Workbook

Sheet Design the Converter
A1: LM76005/-Q1 60VIN, 5AOUT Converter Design Tool
O2: http://www.ti.com/product/lm5175
A3: About | C3: xx | F3: = Input Box | O3: TERMS OF USE
A5: Step 1: Operating Specifications
D6: Input Voltage – Min, VIN(min) | E6: =E7*0.7 -> 16.8 | F6: V
D7: Input Voltage – Nom, VIN(nom) | E7: 24 | F7: V
D8: Input Voltage – Max, VIN(max) | E8: =E7*1.2 -> 28.8 | F8: V
D9: Output Voltage, VOUT | E9: 5 | F9: V
D10: Full Load Output Current, IOUT | E10: 5 | F10: A
D11: Switching Frequency, FSW | E11: 400 | F11: kHz
D12: Frequency Set Resistor, RT | E12: ='Variable Management'!C344 -> 100 | F12: ='Variable Management'!E344 -> kΩ
D13: Ambient Temperature, TA | E13: 25 | F13: °C
A15: Step 2: Buck Inductor
D16: Inductance for 35% Ripple Current at VIN(nom) | E16: =Lopt*1000000 -> 5.654761905 | F16: µH
D17: Buck Inductance, LO | E17: 6.8 | F17: µH
D18: Inductor DCR at 25°C | E18: 50 | F18: mΩ
D19: Inductor Pk-Pk Ripple Current at VIN(nom) | E19: ='Variable Management'!B60 -> 1.535568327 | F19: APK-PK
D20: DIL as a % of Full Load at VIN(nom) | E20: ='Variable Management'!D60*100 -> 30.71136653 | F20: %
D21: Peak Inductor Current at VIN(max) and Full Load | E21: ='Variable Management'!B97 -> 5.805697533 | F21: APK
D22: Peak Inductor Current Limit at VIN(nom) | E22: =Ipk_OCP_Vinnom -> 6.8 | F22: APK
D23: Estimate Inductor Core Loss at VIN(nom) | E23: 0.1 | F23: W
A25: Step 3: Output Capacitors
D26: Desired Output Voltage Ripple | E26: 60 | F26: mVPK-PK
D27: Effective COUT Value to Meet Ripple Spec | E27: ='Variable Management'!B111 -> 7.997751701 | F27: µF
D28: Desired Crossover Frequency | E28: =E11/10 -> 40 | F28: =" kHz " -> kHz
D29: Effective COUT Value to Meet Crossover Spec | E29: ='Variable Management'!B204 -> 78.78169692 | F29: µF
D30: Output Capacitance (derated), COUT | E30: =47*4*0.5 -> 94 | F30: µF
D31: Output Cap ESR (Max) to Meet Ripple Spec | E31: ='Variable Management'!B115 -> 38.93179726 | F31: mΩ
D32: Output Capacitor ESR | E32: 1 | F32: mΩ
D33: Resulting Output Voltage Ripple (max) | E33: ='Variable Management'!B117*1000 -> 5.330897025 | F33: mVPK-PK
D34: Output Capacitor RMS Current (max) | E34: ='Variable Management'!B104 -> 0.4651696874 | F34: ARMS
A36: Step 4: Input Capacitors
D37: Input Voltage Ripple Spec | E37: 240 | F37: mVPK-PK
D38: Minimum Input Capacitance | E38: ='Variable Management'!B134 -> 13.02083333 | F38: µF
D39: Input Capacitance (derated), CIN | E39: 22 | F39: µF
D40: Maximum Permitted ESR | E40: ='Variable Management'!B139 -> 16.87214067 | F40: mΩ | L40: =CHOOSE(SCH_MODE, "", "** For Single-Output Operation in 2-Phase Mode, tie MODE to VDDA and use FB1 to set VOUT **", "** For Single-Output Operation in 3-Phase Mode, tie both MODE pins to VDDA. Use FB1 of master IC to set VOUT. Connect FB2 of master IC to AGND. Connect FB2 of slave IC to VDDA to configure it as a slave **", "** For Single-Output Operation in 4-Phase Mode, tie both MODE pins to VDDA. Use FB1 of master IC to set VOUT. Connect FB2 of master IC to AGND. Connect FB2 of slave IC to VDDA to configure it as a slave **") -> 
D41: Input Capacitor ESR | E41: 10 | F41: mΩ
D42: Resulting Input Voltage Ripple (max) | E42: ='Variable Management'!B144*1000 -> 200.1024299 | F42: mVPK-PK | L42: =CHOOSE(SCH_MODE, "", "** For Single-Output Operation in 2-Phase Mode, tie MODE to VDDA and use FB1 to set VOUT **", "** For Single-Output Operation in 3-Phase Mode, tie both MODE pins to VDDA. Use FB1 of master IC to set VOUT. Connect FB2 of master IC to AGND. Connect FB2 of slave IC to VDDA to configure it as a slave **", "** For Single-Output Operation in 4-Phase Mode, tie both MODE pins to VDDA. Use FB1 of master IC to set VOUT. Connect FB2 of master IC to AGND. Connect FB2 of slave IC to VDDA to configure it as a slave **") -> 
D43: Input Capacitor RMS Current (max) | E43: ='Variable Management'!B127 -> 2.353918798 | F43: ARMS
A45: Step 5: Feedback Network
D46: =CHOOSE(LM64k_Fixed_Vout, "Upper Feedback Resistance", "* Tie FB to VOUT for a Fixed 5V Output", "* Tie FB to VOUT for a Fixed 3.3V Output") -> Upper Feedback Resistance | E46: 40 | F46: kΩ
D47: Lower Feedback Resistance (E96), RFBB | E47: =IF(Vout=Vref,"OPEN",Rfb2_u/1000) -> 10 | F47: =IF(Vout=Vref,"","kΩ") -> kΩ
D48: Feedforward Capacitance, CFF | E48: 100 | F48: pF
A50: Step 6: VIN UVLO, VOUT Soft Start
D51: Desired VIN UVLO Turn-On Threshold | E51: 12 | F51: V
D52: UVLO Divider Lower Resistance, RENB | E52: 100 | F52: kΩ
D53: UVLO Divider Upper Resistance (E96), RENT | E53: =Rent1_u/1000 -> 887 | F53: =IF(Vout=Vref,"","kΩ") -> kΩ
D54: Actual VIN UVLO Turn-On Threshold | E54: ='Variable Management'!B232 -> 12.02166 | F54: V
D55: Actual VIN UVLO Turn-Off Threshold | E55: ='Variable Management'!B233 -> 9.7713 | F55: V
D56: Soft-start Time, tSS | E56: 7 | F56: ms
D57: Soft-start Capacitance | E57: =IF(Css_u > 12, Css_u, "N/A") -> 15 | F57: nF
A59: Step 7: Power Loss & Thermals
D60: IC Power Dissipation | E60: ='Efficiency Calculations'!BE109 -> 1.571491728 | F60: W
D61: Thermal Impedance, RqJA | E61: 15 | F61: °C/W
D62: Junction Temperature (estimate) | E62: ='Variable Management'!B286 -> 48.57237592 | F62: °C
E63: =CHOOSE(Ext_VCC, "* Connect a 1µF Capacitor From BIAS to GND", "* Tie BIAS to GND") -> * Connect a 1µF Capacitor From BIAS to GND
A68: Pole/Zero Frequencies
D69: Load Pole Frequency, FP-LOAD | E69: =Fp_dominant/1000 -> 2.22100557 | F69: kHz
D70: Output Cap ESR Zero Frequency, FZ-ESR | E70: =Fesr/1000000 -> 1.693137694 | F70: MHz
D71: Error Amp Dominant Pole Frequency, FP-EA | E71: =Fp1_u -> 148.6040553 | F71: Hz
D72: Compensator Zero Frequency, FZ-COMP | E72: =Fz1_u/1000 -> 7.578806823 | F72: kHz
D73: Compensator Pole Frequency, FP-COMP | E73: =Fp2_u/1000 -> 275.5627261 | F73: kHz

Sheet Schematic & BOM
A34: ="VIN = "&VIN_min&" V to "&VIN_max&" V, VOUT = "&Vout&" V, IOUT = "&Iout&" A, Fsw = "&Fsw/1000&" kHz" -> VIN = 16.8 V to 28.8 V, VOUT = 5 V, IOUT = 5 A, Fsw = 400 kHz
A35: High-Efficiency Synchronous Buck DC/DC Converter BOM
A36: Count | B36: Ref Des | C36: Value | D36: Description | H36: Size | I36: Part Number | J36: MFR
A37: =ROUNDUP('Design the Converter'!E39/10,0) -> 3 | B37: CIN1 | C37: 10 | D37: =C37 -> 10 | H37: 1210 | I37: Std | J37: Std
A38: 2 | B38: COUT | C38: 22 | D38: =C38 -> 22 | H38: 1210 | I38: Std | J38: Std
A39: 1 | B39: CVCC | C39: 2.2 | D39: =C39 -> 2.2 | H39: 0402 | I39: Std | J39: Std
A40: 1 | B40: CSYNC | C40: 1 | D40: =C40 -> 1 | H40: 0402 | I40: Std | J40: Std
A41: 1 | B41: CSS | C41: ='Design the Converter'!E57 -> 15 | D41: 15 | H41: 0402 | I41: Std | J41: Std
A42: 1 | B42: CFF | C42: ='Variable Management'!D300 -> 100 | D42: 100 | H42: 0402 | I42: Std | J42: Std
A43: 1 | B43: LO | C43: ='Design the Converter'!E17 -> 6.8 | D43: ="Buck Inductor, "&Lf*1000000&" µH, "&Rdcr*1000&" mΩ, >"&ROUNDUP(Ipk_OCP_Vinmin*1.05,0)&" A" -> Buck Inductor, 6.8 µH, 50 mΩ, >8 A | H43: -- | I43: -- | J43: Various
A44: 1 | B44: RT | C44: ='Design the Converter'!E12 -> 100 | D44: =C44 -> 100 | H44: 0402 | I44: Std | J44: Std
A45: 1 | B45: RFBT | C45: ='Design the Converter'!E46 -> 40 | D45: =C45 -> 40 | H45: 0402 | I45: Std | J45: Std
A46: 1 | B46: RFBB | C46: ='Design the Converter'!E47 -> 10 | D46: 10 | H46: 0402 | I46: Std | J46: Std
A47: 1 | B47: RENB | C47: ='Variable Management'!D305 -> 100 | D47: =C47 -> 100 | H47: 0402 | I47: Std | J47: Std
A48: 1 | B48: RENT | C48: ='Variable Management'!D306 -> 887 | D48: 887 | H48: 0402 | I48: Std | J48: Std
A49: 1 | B49: RPG | C49: 100 | D49: 100 | H49: 0402 | I49: Std | J49: Std
A50: 1 | B50: U1 | C50: ='Variable Management'!N19 -> LM76005-Q1 | D50: =CHOOSE(GPN, "IC, LM76005-Q1 Synchronous Buck DC/DC Converter, 3.5V–60V Input, 5A Output", "IC, LM76005 Synchronous Buck DC/DC Converter,60V Input, 5A Output", "IC, LM76005 Synchronous Buck DC/DC Converter, 3V–36V Input, 6A Output") -> IC, LM76005-Q1 Synchronous Buck DC/DC Converter, 3.5V–60V Input, 5A Output | H50: VQFN-22 | I50: =CHOOSE(VARIANT, "LM76005QRNPRQ1", "LM76005", "LM76005", "LM76005", "LM76005") -> LM76005QRNPRQ1 | J50: TI
A53: NOTES:
A54: ** Effective input and output capacitances should be appropriately derated for applied voltage and temperature, particularly with ceramics **

Sheet EVMs (hidden)
A1: LM63460-Q1 & LM64460-Q1 Converter Design Tool
B6: LM64460EVM-2MHZ (BSR173) PCB Layout

Sheet Variable Management (hidden)
A1: EXCEL Variables Names/Calculations
B2: Input from user =
B3: Output =
B4: Constant
A5: Variable Name | B5: Value | C5: STD Units | E5: Notes | I5: Iteration
A6: Step 1: Operational Specs
A7: VIN_min | B7: ='Design the Converter'!E6 -> 16.8 | C7: V | D7: Minimum input voltage | I7: 1
A8: VIN_nom | B8: ='Design the Converter'!E7 -> 24 | C8: V | D8: Nominal input voltage | K8: Use CFF | L8: 1 | N8: LM64460-Q1 3.3Vout | O8: =IF(Vout = 3.3, 1, 0) -> 0 | T8: Dual Outputs | U8: 1 | W8: FPWM | X8: 1 | Z8: =CHOOSE(SCH_MODE, "Bode Plot (Ch1)", "Bode Plot - 2 Ph", "Bode Plot - 3 Ph", "Bode Plot - 4 Ph") -> Bode Plot (Ch1) | AA8: 1
A9: VIN_max | B9: ='Design the Converter'!E8 -> 28.8 | C9: V | D9: Maximum input voltage | K9: No CFF | L9: 2 | N9: LM64460-Q1 5Vout | O9: =IF(Vout = 5, 1, 0) -> 1 | T9: Single Output – 2 Phases | U9: 2 | W9: DEM | X9: 2 | Z9: =IF(MODE=1, "Bode Plot (Ch2)", "N/A - Do Not Use") -> Bode Plot (Ch2) | AA9: 2
L10: 1 | N10: LM64460 Fixed Vout | O10: =IF(AND(GPN=3,Vout=3.3),3,IF(AND(GPN=3,Vout=5),2,1)) -> 1 | P10: 1 = No, 2 = 5V, 3 = 3.3V | T10: Single Output – 3 Phases | U10: 3 | W10: FPWM/DEM | X10: 2 | Z10: BODE_PLOT_TYPE | AA10: 1
A11: Vout | B11: ='Design the Converter'!E9 -> 5 | C11: V | D11: Output voltage | K11: NO_FF_CAP | L11: =IF(L10=2, TRUE, FALSE) -> FALSE | O11: =AND(GPN=3, OR(O8,O9)) -> FALSE | T11: Single Output – 4 Phases | U11: 4
A12: Iout | B12: ='Design the Converter'!E10 -> 5 | C12: A | D12: Output current | F12: Iout-max | G12: =CHOOSE(GPN, 6, 6) -> 6 | H12: A | I12: 1 | T12: Single/Dual Yes/No | U12: 1
I13: 1 | T13: MODE (Single/Dual), DUAL = 1, SINGLE = 2 | U13: =IF(U12=1, 1, 2) -> 1 | W13: External BIAS | X13: 1
A14: Rout | B14: =Vout/Iout -> 1 | C14: W | D14: Load resistance | N14: LM63460-Q1 AUTO | O14: 1 | T14: SINGLE OUTPUT (1 = YES) | U14: =IF(U12=1, 2, 1) -> 2 | W14: No External BIAS | X14: 2
A15: Pout | B15: =Vout*Iout -> 25 | C15: W | D15: Output power | N15: LM63460-Q1 FPWM | O15: 2 | T15: Number of Phases | U15: =SCH_MODE -> 1 | W15: Ext_VCC | X15: 1
N16: LM64460-Q1 | O16: 3
A17: Efficiency | B17: 0.9 | D17: Estimate of efficiency | N17: LM64460-Q1 5V | O17: 4
A18: Pin | B18: =Pout/Efficiency -> 27.77777778 | C18: W | D18: Calculate input power assuming finite efficiency | N18: LM64460-Q1 3.3V | O18: 5
L19: GPN | N19: =CHOOSE(GPN, "LM76005-Q1", "LM76003-Q1", "LM76002-Q1") -> LM76005-Q1 | O19: 1 | W19: 2.2 MHz Fsw Setting | X19: 1
A20: Iin_Vinmin | B20: =Pin/VIN_min -> 1.653439153 | C20: A | W20: 440 kHz Fsw Setting | X20: 2
A21: Iin_Vinnom | B21: =Pin/VIN_nom -> 1.157407407 | C21: A | D21: Input currents at min, nom, max Vin | H21: =AND(OSC=1, OR(Fsw/1000>2530, Fsw/1000<1800)) -> FALSE | K21: Variant | L21: VARIANT | N21: =CHOOSE(VARIANT, "LM63460AAS","LM63460AFS", "LM64460APP", "LM64460BPP", "LM63460CPP") -> LM63460AAS | O21: =IF(AND(GPN=3,Vout=5),4,IF(AND(GPN=3,Vout=3.3),5,GPN)) -> 1 | W21: OSC | X21: 2
A22: Iin_Vinmax | B22: =Pin/VIN_max -> 0.9645061728 | C22: A | H22: =AND(OSC=2, OR(Fsw/1000>500, Fsw/1000<300)) -> FALSE
H23: =OR(H21,H22) -> FALSE
A24: Fsw | B24: ='Design the Converter'!E11*1000 -> 400000 | C24: Hz | D24: Nominal switching frequency - determines RT resistor
A25: RT resistor to AGND | B25: =38400/((Fsw/1000)-14.33) -> 99.56698732 | C25: kΩ | I25: 1
A26: Tsw | B26: =1/Fsw -> 2.5e-06 | C26: sec | D26: Switching period
A27: Max crossover frequency = 20% Fsw | B27: =Fsw*0.2/1000 -> 80 | C27: kHz | F27: Min Crossover | G27: 10 | K27: Adjustable | L27: 1
A28: Vref | B28: 1 | C28: V | D28: Reference voltage | K28: 5V | L28: 2
A29: Rt | B29: ='Standard Value Calculator'!L12/1000 -> 100 | C29: kΩ | D29: Frequency set resistor | F29: =IF(OR((Fsw=440000),(Fsw=2200000)),"N/A",Rfadj/1000) -> 0.1 | K29: 3.3V | L29: 3
K30: Adjustable_NoRT | L30: 4
K31: 5V_NoRT | L31: 5
K32: 3.3V_NoRT | L32: 6
A33: Step 2: Buck Inductor | B33: Channel 1 | K33: Schematic setting | L33: =IF(No_RT, IF(Vout=3.3, 6, IF(Vout=5, 5, 4)),IF(Vout=3.3, 3, IF(Vout=5, 2, 1))) -> 2
A34: Don1 | B34: =Vout/VIN_nom -> 0.2083333333 | F34: Ideal Duty Cycle at VIN(nom)
A35: Doff1 | B35: =1-34:34 -> 0.7916666667 | F35: Ideal 1- Duty Cycle at VIN(nom)
A37: D_Vinmin | B37: =Vout/VIN_min -> 0.2976190476
A38: D_Vinnom | B38: =Vout/VIN_nom -> 0.2083333333
A39: D_Vinmax | B39: =Vout/VIN_max -> 0.1736111111
A41: L_Vinnom | B41: =(VIN_nom-Vout)*D1_Vinnom/(Fsw*Iout*0.35) -> 5.654761905e-06 | C41: H | F41: Calculated inductance for 35% ripple at VIN(nom)
A42: L_slopecomp | C42: H | F42: Calculated inductance based on one times inductor downslope
A44: Lopt | B44: =B41 -> 5.654761905e-06 | C44: H | F44: min of calculated inductances at VIN(min) and VIN(nom)
A45: L_actual_TPSM63602-03 | B45: =-0.0238*Iout^2-0.0868*Iout+2.0073 -> 0.9783 | C45: uH | F45: Calculate TOKO chip inductance based on entered load current value
A46: L_actual_TPSM63604-06 | B46: =-0.1304*Iout+2.32 -> 1.668 | C46: uH | F46: Calculate MagLayers inductance based on entered load current value
A48: Lo | B48: ='Design the Converter'!E17*0.000001 -> 6.8e-06 | C48: H | F48: Chosen inductance
A49: Rdcr | B49: ='Design the Converter'!E18/1000 -> 0.05 | C49: W | F49: Chosen inductor DCR
A51: Don2 | B51: =(Vout+Iout*(Rdcr+Rdson2))/(Vin+Iout*(Rdson2-Rdson1)) -> 0.2272440614
A52: Doff2 | B52: =1-_Don2 -> 0.7727559386
A54: D_Vinmin_2 | B54: =(Vout+Iout*(Rdcr+Rdson2))/(VIN_min+Iout*(Rdson2-Rdson1)) -> 0.3258968948 | D54: =Vout/VIN_min -> 0.2976190476 | F54: Duty cycles adjusted for DCR/Rdson voltage drops
A55: D_Vinnom_2 | B55: =(Vout+Iout*(Rdcr+Rdson2))/(VIN_nom+Iout*(Rdson2-Rdson1)) -> 0.2272440614 | D55: =Vout/VIN_nom -> 0.2083333333
A56: D_Vinmax_2 | B56: =(Vout+Iout*(Rdcr+Rdson2))/(VIN_max+Iout*(Rdson2-Rdson1)) -> 0.1890851845 | D56: =Vout/VIN_max -> 0.1736111111 | F56: =(Ts-0.000000085)/Ts -> 0.966 | G56: Dmax = [Ts-toff(min)]/Ts
A59: Iripple_Vinmin | B59: =(VIN_min-Vout-Iout*(Rdcr+Rdson1))*D1_Vinmin_2/(Fsw*Lf) -> 1.33953209 | C59: A | D59: =B59/Iout -> 0.2679064179 | F59: Ripple calculations include DCR and Rdson
A60: Iripple_Vinnom | B60: =(VIN_nom-Vout-Iout*(Rdcr+Rdson1))*D1_Vinnom_2/(Fsw*Lf) -> 1.535568327 | C60: A | D60: =B60/Iout -> 0.3071136653 | F60: % ripple current at Vin-nom
A61: Iripple_Vinmax | B61: =(VIN_max-Vout-Iout*(Rdcr+Rdson1))*D1_Vinmax_2/(Fsw*Lf) -> 1.611395065 | C61: A | D61: =B61/Iout -> 0.3222790131 | F61: Max inductor ripple current - it's at Vin-max
A63: Iinductor_rms_Vinmin | B63: =SQRT(Iout^2+(Iripple_Vinmin^2)/12) -> 5.014930593 | C63: A
A64: Iinductor_rms_Vinnom | B64: =SQRT(Iout^2+(Iripple_Vinnom^2)/12) -> 5.01961129 | C64: A
A65: Iinudctor_rms_Vinmax | B65: =SQRT(Iout^2+(Iripple_Vinmax^2)/12) -> 5.021591664 | C65: A
A68: Core loss estimate - Vin(nom) | B68: ='Design the Converter'!E23 -> 0.1 | C68: W
A71: Inductor copper temperature | B71: 125 | C71: °C
A72: Inductor DCR at hot | B72: =Rdcr*(1+Ltc*(B71-25))*1000 -> 69.65 | C72: mW
A75: Step 2b: Sense Resistors, Slope Comp, Current Limit
A77: Ilimit_inductor_Vinmin | B77: =Ipk_OCP_Vinmin -> 6.8 | C77: A | F77: Peak inductor current at current limit inception
A78: Ilimit_inductor_Vinnom | B78: =Ipk_OCP_Vinmin -> 6.8 | C78: A
A79: Ilimit_inductor_Vinmax | B79: =Ipk_OCP_Vinmin -> 6.8 | C79: A
A81: CS threshold_min | B81: 0.068 | C81: V | D81: not applicable here
A82: CS threshold | B82: 0.075 | C82: V
A83: CS threshold_max | B83: 0.082 | C83: V
A85: Rs | B85: 0.01 | C85: W | F85: Current sense resistance Rs = high-side MOSFET Rdson
A87: Current limit setpoint - peak - Vin(min) | B87: 6.8 | C87: A | F87: Peak current limit (10.3A trimmed at ATE minus slope comp contribution) = min inductor sat current at hot
A88: Current limit setpoint - peak - Vin(nom) | B88: 6.8 | C88: A
A89: Current limit setpoint - peak - Vin(max) | B89: 6.8 | C89: A
A91: Iout_OCP_Vinmin | B91: =Ipk_OCP_Vinmin-Iripple_Vinmin/2 -> 6.130233955 | C91: A | F91: Current limit setpoints (i.e. IOUT) assuming no CS delay
A92: Iout_OCP_Vinnom | B92: =Ipk_OCP_Vinnom-Iripple_Vinnom/2 -> 6.032215837 | C92: A
A93: Iout_OCP_Vinmax | B93: =Ipk_OCP_Vinmax-Iripple_Vinmax/2 -> 5.994302467 | C93: A
A95: Ipk_full-load_Vinmin | B95: =Iout+Iripple_Vinmin/2 -> 5.669766045 | C95: A
A96: Ipk_full-load_Vinnom | B96: =Iout+Iripple_Vinnom/2 -> 5.767784163 | C96: A
A97: Ipk_full-load_Vinmax | B97: =Iout+Iripple_Vinmax/2 -> 5.805697533 | C97: A
A100: Step 3: Output Capacitor
A101: Icoutrms_VINmin | B101: =Iripple_Vinmin/SQRT(12) -> 0.3866896063 | C101: A | F101: Output cap RMS current
A102: Icoutrms_VINnom | B102: =Iripple_Vinnom/SQRT(12) -> 0.4432803933 | C102: A
A103: Icoutrms_VINmax | B103: =Iripple_Vinmax/SQRT(12) -> 0.4651696874 | C103: A
A104: Max Cout rms current | B104: =MAX(B101:B103) -> 0.4651696874 | C104: A
A106: Vripple1 | B106: ='Design the Converter'!E26/1000 -> 0.06 | C106: V | F106: Output voltage ripple spec(pk-pk)
A108: Output Ripple Spec (pk-pk) | B108: =Vo1_ripple*1000 -> 60 | C108: mV | F108: Vout ripple spec at Vin(nom)
A110: Coutmin | B110: =Iripple_Vinnom/(Fsw*8*Vo1_ripple) -> 7.997751701e-06 | C110: F | F110: Minimum output capacitnace | H110: =Vo2_ripple -> 0 | I110: 1
A111: Reported Coutmin | B111: =IF(Cout_min*1000000<2, 2.2,Cout_min*1000000) -> 7.997751701 | C111: uF
A112: Cout | B112: ='Design the Converter'!E30/1000000 -> 9.4e-05 | C112: F | F112: Chosen output capacitance | I112: 1
A113: Resrmax | B113: =SQRT((Vo1_ripple/Iripple_Vinnom)^2-(1/(Fsw*Cout*8))^2) -> 0.03893179726 | C113: W | F113: Max ESR before ripple exceeds Vripple1 | I113: 1
A115: Reported Cout ESR max | B115: =IF(OR(CoutEsrMax>0.3, CoutEsrMax<0, (ISERROR(CoutEsrMax))), "N/A", CoutEsrMax*1000) -> 38.93179726 | C115: mΩ
A116: CoutEsr | B116: ='Design the Converter'!E32/1000 -> 0.001 | C116: W | F116: Chosen ESR | I116: 1 | K116: =ISERROR(CoutEsrMax) -> FALSE | L116: =ISERROR(B115) -> FALSE
A117: Vripple | B117: =Iripple_Vinnom*SQRT(Cout_ESR^2+(1/(8*Fsw*Cout))^2) -> 0.005330897025 | C117: Vp-p | L117: =OR(CoutEsrMax>0.3,CoutEsrMax<0) -> FALSE
K118: =OR(TRUE, FALSE, TRUE) -> TRUE
A119: Step 4: Input Capacitor
A121: Icinrms_VINmin | B121: =SQRT(D1_Vinmin_2*(Iout^2*(1-D1_Vinmin_2)+Iripple_Vinmin^2/12)) -> 2.353918798 | C121: A | F121: Calculate input cap rms current | N121: A
A122: Icinrms_VINnom | B122: =SQRT(D1_Vinnom_2*(Iout^2*(1-D1_Vinnom_2)+Iripple_Vinnom^2/12)) -> 2.105886474 | C122: A
A123: Icinrms_VINmax | B123: =SQRT(D1_Vinmax_2*(Iout^2*(1-D1_Vinmax_2)+Iripple_Vinmax^2/12)) -> 1.968302372 | C123: A
A124: Max Cin rms current | B124: =MAX(B121:B123) -> 2.353918798 | C124: A
A126: Icinrms - max at D = 0.5 | B126: =Iout/2 -> 2.5 | C126: A
A127: Final result | B127: =IF(VIN_min<2*Vout, Iout/2, B121) -> 2.353918798 | C127: A | D127: …report this
A129: Vinripple1 | B129: ='Design the Converter'!E37/1000 -> 0.24 | C129: Vp-p | F129: Input voltage ripple spec (pk-pk)
F130: =Number_of_Phases -> 1
A131: Cinmin_Vinmax | B131: =Iout*D1_Vinmax*(1-D1_Vinmax)/(Vinripple1*Fsw) -> 7.472411105e-06 | C131: F | F131: Calculate cap at Vinmax and 50% duty cycle (Vin = 2*Vout)
A132: Cinmin_50%D | B132: =Iout*0.5*(1-0.5)/(Vinripple1*Fsw) -> 1.302083333e-05 | C132: F | F132: Buck 50% typically worst case
A133: Cinmin | B133: =IF(VIN_max<2*Vout, B131,B132) -> 1.302083333e-05 | C133: F
A134: Reported Cinmin | B134: =IF(Cinmin*1000000<4.7, 4.7,Cinmin*1000000) -> 13.02083333 | C134: uF | F134: …report this
A135: Cin | B135: ='Design the Converter'!E39/1000000 -> 2.2e-05 | C135: F | F135: Input capacitance
A136: CinEsrMax_Vinmax | B136: =-(Iout*D1_Vinmax*(1-D1_Vinmax)/(Cin*Fsw)-Vinripple1)/(Iout+Iripple_Vinmax/2) -> 0.02729780307 | C136: W
A137: CinEsrMax_50%D | B137: =-(Iout*0.5*(1-0.5)/(Cin*Fsw)-Vinripple1)/(Iout+Iripple_Vinmax/2) -> 0.01687214067 | C137: W | F137: Calculate ESR at Vinmax and 50% duty cycle (Vin = 2*Vout)
A138: CinEsrMax | B138: =IF(VIN_max<2*Vout, B136,B137) -> 0.01687214067 | C138: W
A139: Reported Cin ESR max | B139: =IF(OR(CinEsrMax>0.3, CinEsrMax<0), "N/A",CinEsrMax*1000) -> 16.87214067 | C139: mΩ | F139: …report this
A140: RCinEsr | B140: ='Design the Converter'!E41/1000 -> 0.01 | C140: W | F140: Input capacitance series resistance (ESR)
A142: Vinripple2_Vinmax | B142: =Iout*D1_Vinmax_2*(1-D1_Vinmax_2)/(Cin*Fsw)+(Iout +Iripple_Vinmax/2)*RCinEsr -> 0.1451774171 | C142: Vp-p
A143: Vinripple2_50%D | B143: =Iout*0.5*(1-0.5)/(Cin*Fsw)+(Iout +Iripple_Vinmax/2)*RCinEsr -> 0.2001024299 | C143: Vp-p | F143: Calculate ripple at Vinmax and 50% duty cycle (Vin = 2*Vout)
A144: Vinripple2 | B144: =IF(VIN_max<2*Vout, B142,B143) -> 0.2001024299 | C144: Vp-p | F144: …report highest of these
B146: =Iout*D1_Vinmax_2*(1-D1_Vinmax_2)/(Cin*Fsw) -> 0.08712044178 | C146: Vp-p
A148: Step ?: Other Components - Soft start, SYNC, PG
A150: RPG | B150: 100 | C150: kΩ | D150: PGOOd pull-up resistance
A151: RSYNC | B151: 100 | C151: W | D151: SYNC termination resistance
A152: Soft-start time | B152: ='Design the Converter'!E56 -> 7 | C152: ms
A153: Css | B153: =2*B152*0.000000001 -> 1.4e-08 | C153: F | D153: Soft-start capacitance based on 2uA charging current to 1V
A154: Css - std value | B154: ='Standard Value Calculator'!L22*1000000000 -> 15 | C154: nF | D154: Standard value for Css
A156: Step 5: Feedback Network and Internal Compensation
A157: Pi | B157: 3.14159265 | D157: p
A158: CS Amp Gain (effective value) | B158: 3.276 | F158: Effective CS gain - depending on control architecture = 1/(Imod*Rdson_HS*0.73) = 1/(6*1.7*41mΩ*0.73)
A159: Ri | B159: 0.2 | C159: W | D159: Use slightly higher value to match bench | F159: Current Sense effective resistance = shunt resistor Rs * CS amp gain = 0.1343Ω
A161: Se_ext | B161: =B165/Ri*1000 -> 2080000 | C161: A/s | F161: Slope Comp Slope - referred to inductor current
A162: Sn | B162: =(Vin-Vout)/Lf -> 2794117.647 | C162: A/s | F162: On-time Slope
A163: Sf | B163: =Vout/Lf -> 735294.1176 | C163: A/s | F163: Off-time Slope
A165: Se_int | B165: =5.2*Ri*Fsw/1000 -> 416 | C165: mV/μs | F165: Slope Comp Slope - referred to IC
A166: Sn_int | B166: =Sn*Ri/1000 -> 558.8235294 | C166: mV/μs | F166: Upslope
A167: Sf_int | B167: =Sf*Ri/1000 -> 147.0588235 | C167: mV/μs | F167: Downslope
A169: mc_buck | B169: =1+Se_ext/Sn -> 1.744421053 | F169: mc = 1 + Se/Sn for peak current-mode buck
A170: k_buck | B170: =mc_buck*(1-D1_Vinnom_2) -> 1.348011728 | F170: mc*(1-d)
A172: mc | B172: =1+Se_ext/Sn -> 1.744421053
A173: k | B173: =mc_buck*(1-D1_Vinnom_2) -> 1.348011728
A174: Q | B174: =1/Pi/(k-0.5) -> 0.375360241 | F174: 1/(Pi*(k-0.5)) | H174: Q = 2/Pi = 0.636 gives ideal one-cycle damping
A176: Error Amp (EA)
A177: gm | B177: =33/1000000 -> 3.3e-05 | C177: S | F177: Error amp transconductance
A178: GBW | B178: 20 | C178: MHz | F178: EA gain-bandwidth product
A179: Cbw | B179: =gm/(2*Pi*GBW*1000000) -> 2.626056564e-13 | C179: F | F179: EA effective bandwidth limiting capacitance = gm/(2*Pi*GBW)
A181: RoEA | B181: =30000000 -> 30000000 | C181: W | F181: EA output resistance
A182: AEA | B182: =gm*RoEA -> 990 | C182: V/V | F182: EA DC gain = gm*RoEA
A183: Afb | B183: =Vref/Vout -> 0.2 | C183: V/V | F183: Feedback gain from Vout to FB
A184: Acs | B184: =1/Ri -> 5 | F184: Acs = 1/Ri
A185: Am_buck | B185: =(Ro/Number_of_Phases)/Ri/((1+Ro/Number_of_Phases*(k-0.5)/(Fsw*Lf))) -> 3.811646664
A186: Am | B186: =Ro/Ri/((1+Ro*(k-0.5)/(Fsw*Lf))) -> 3.811646664 | F186: Buck modulator gain
A188: Scaling factor to calculate Rcomp - buck | B188: =2*Pi*Ri/gm -> 38079.91091 | F188: 2*Pi*Ri/gm -- scaling factor to calculate Rcomp given desired buck crossover frequency
A189: DC Gain is Adc = AEA*Afb*Am
A191: Rout | B191: =Rout -> 1 | C191: W | F191: Output Resistance (Load)
A193: Fp_load_buck | B193: =1/(2*Pi*Ro*Cout)+(k-0.5)/(2*Pi*Fsw*Lf*Cout) -> 2221.00557 | C193: Hz | F193: Buck dominant pole frequency -- note slope comp influence
A194: Fp_dominant | B194: =Fload_u -> 2221.00557 | C194: Hz
A195: Cbw | B195: =Cbw -> 2.626056564e-13 | C195: F | F195: Cbw
A196: Fp_EA | B196: =1/(2*Pi*(RoEA+Rcea1_u)*Cc1ea_u) -> 148.6040553 | C196: Hz | F196: Error Amp LF pole -- related to amplifier ouptut resistance and comp cap
A197: Fp_HF | B197: =1/(2*Pi*Rcea1_u*(Cc2ea_u+Cbw)) -> 275562.7261 | C197: Hz | F197: Error Amp HF pole cancels zero related to Output Cap ESR
A198: Fesr | B198: =1/(2*Pi*Cout*Cout_ESR) -> 1693137.694 | C198: Hz | F198: Cout ESR zero frequency
A199: F_mod | B199: =Fsw/2 -> 200000 | C199: Hz | F199: Zero-order sample-and-hold effects of current-mode control modeled as pole at Fsw/2
A200: Fz_ff | B200: =IF(NO_FF_CAP=TRUE, 1000000000, 1/(2*Pi*Rfb1_*Cff_u*0.000000000001)) -> 39788.73582 | C200: Hz | D200: =Fz_ff/1000 -> 39.78873582 | E200: kHz
A201: Fp_ff | B201: =IF(NO_FF_CAP=TRUE, 1000000000, 1/(2*Pi*Rfb4_u*Cff_u*0.000000000001)) -> 198943.6791 | C201: Hz | D201: =Fp_ff/1000 -> 198.9436791 | E201: kHz
A203: Desired Crossover Frequency | B203: ='Design the Converter'!E28*1000 -> 40000 | C203: Hz
A204: Cout - for the Fc spec | B204: =Rcea1_u/Fcross/(2*Pi*Ri/(gm*Afb))*1000000 -> 78.78169692 | C204: uF | F204: Output cap to meet the crossover frequeny spec
A205: Rcea1 | B205: =Fcross*Cout*2*Pi*Ri/(gm*Afb) -> 715902.3251 | C205: W | F205: This component will largely determine the crossover frequency | K205: =Fcross/Fp_dominant/(gm*Afb*Am) -> 715902.3251
A206: Cc1ea, Cc3ea | B206: =10/(Rcea1*Fcross*2*Pi) -> 5.557844195e-11 | C206: F | F206: This along with Rcea1 will set a zero at Fcrossover/5 to optimize phase margin
A207: Cc2ea, Cc4ea | B207: =MAX(1/(Rcea1*2*Pi*Fesr)-Cbw, 1/(Rcea1*2*Pi*(Fsw/2))-Cbw) -> 8.489631826e-13 | C207: F | F207: This along with Rcea1 places a pole at the output cap ESR zero
A209: Chosen Compensation Components from the standard value sheet
A210: Rcea1_u | B210: 600000 | C210: W | F210: =1/(Rcea1*2*Pi*(Fsw/2))-Cbw -> 8.489631826e-13
A211: Cc1ea_u | B211: 3.5e-11 | C211: F
A212: Cc2ea_u | B212: 7e-13 | C212: F
A214: Resulting Pole/Zero Locations | F214: =Cout -> 9.4e-05 | G214: =Cout_ESR -> 0.001
A215: Fz1 | B215: =1/(2*Pi*Rcea1_u*Cc1ea_u) -> 7578.806823 | C215: Hz | F215: This zero is set at or close to the dominant load pole
A216: Fp2 | B216: =1/(2*Pi*Rcea1_u*(Cc1ea_u*(Cc2ea_u+Cbw)/(Cc1ea_u+Cc2ea_u+Cbw))) -> 283141.5329 | C216: Hz | F216: This pole cancels the zero from the Output Cap ESR
A218: Rfb1 | B218: ='Design the Converter'!E46*1000 -> 40000 | C218: W | F218: Lower Feedback Resistance - chosen by user
A219: Rfb2 | B219: =IF(Vout=Vref, "N/A", Vref/(Vout-Vref)*B218) -> 10000 | C219: W | D219: =Rfb2_u -> 10000 | F219: Upper Feedback Resistance
A220: Rfb2_u | B220: =IF(Vout=Vref,"N/A",'Standard Value Calculator'!L11) -> 10000 | C220: W | F220: Std Value Upper Feedback Resistance
A221: Cff | B221: =1/(2*Pi*200000)/Rfb1_ -> 1.989436791e-11 | C221: F | D221: =1/(1/Rfb1_+1/Rfb2_u) -> 8000 | E221: W | F221: Based on a 200kHz zero frequency
A222: Cff_u | B222: =IF('Design the Converter'!E48<0.1, 0.1, 'Design the Converter'!E48) -> 100 | C222: pF
A224: Fcross based on datasheet equation | B224: =15.46/(Vout*Cout) -> 32893.61702 | C224: Hz
A227: Step 6: UVLO Divider
A228: VIN UVLO turn-on voltage | B228: ='Design the Converter'!E51 -> 12 | C228: V
A229: Renb | B229: ='Design the Converter'!E52*1000 -> 100000 | C229: W
A230: Rent | B230: =(B228/1.218 - 1)*Renb -> 885221.6749 | C230: W
A231: Rent_u | B231: ='Standard Value Calculator'!L7 -> 887000 | C231: W
A232: Actual VIN UVLO turn-on voltage | B232: =1.218/Renb*(Renb+Rent1_u) -> 12.02166 | C232: V
A233: Actual VIN UVLO turn-off voltage | B233: =0.99/Renb*(Renb+Rent1_u) -> 9.7713 | C233: V
A235: Step 7: Efficiency
A236: VAR | B236: 0
A237: Design
A238: Ta | B238: ='Design the Converter'!E13 -> 25 | C238: °C | D238: Ambient Temperature
A239: Components
A240: LTc | B240: =3930/1000000 -> 0.00393 | C240: %/°C | D240: Inductor DCR Temp Co
A241: θCA | B241: 22 | C241: °C/W | D241: Inductor Core-to-Ambient Thermal Resistance
A242: RCinEsr | B242: =RCinEsr -> 0.01 | C242: W | D242: Input Capacitor ESR
A244: Controller Characteristics
A245: VCC | B245: 3.3 | C245: V
A246: Top Driver
A247: RdsonDRT | B247: 0.5 | C247: W | D247: Drain-Source Resistance of Pullup High-side FET Driver
A248: RdsonDRT2 | B248: 0.5 | C248: W | D248: Drain-Source Resistance of Pulldown High-side FET Driver
A249: Bottom Driver
A250: RdsonDRB | B250: 0.5 | C250: W | D250: Drain-Source Resistance of Pullup Low-side FET Driver
A251: RdsonDRB2 | B251: 0.5 | C251: W | D251: Drain-Source Resistance of Pulldown Low-side FET Driver
A252: Deadtime
A253: Deadtime | B253: 8e-09 | C253: s | D253: Total Deadtime | G253: 8ns
... 73 more rows

Sheet MOSFET Parameters (hidden)
A3: MOSFET Parameters
E4: Internal Power MOSFETs
E5: High-side | F5: Low-side
D6: On-State Resistance, RDS(on) | E6: 74 | F6: 31 | G6: mΩ
D7: Total Gate Charge, QG | E7: 4.1 | F7: 8.6 | G7: nC
D8: Gate-Drain Charge, QGD | E8: 1.7 | F8: 8.56 | G8: nC
D9: Gate-Source Charge, QGS | E9: 2.39 | F9: 5.8 | G9: nC
D10: Output Charge, QOSS | F10: 6.88 | G10: nC
D11: Output Capacitance, COSS | E11: 530 | F11: 509 | G11: pF
D12: Gate Resistance, RGATE | E12: 0.158 | F12: 0.24 | G12: Ω
D13: Transconductance, gFS | E13: 100 | F13: 100 | G13: S
D14: Gate-Source Miller Plateau Voltage, VTH | E14: 1.5 | F14: 1.5 | G14: V
D15: Body Diode Forward Voltage, VBD | E15: 0.7 | F15: 0.7 | G15: V
D16: Body Diode Rev Recovery Charge, QRR | F16: 23 | G16: nC
D17: Thermal Resistance, θJA | E17: 23 | F17: 23 | G17: °C/W

Sheet Schematic Management (hidden)
A1: =VARIANT -> 1 | N1: 3.3V or 5V fixed (FB1/2)
A2: =CHOOSE(VARIANT, "LM63460_sch", "LM63460_sch", "LM64460_sch", "LM64460_fixed_VOUT_sch", "LM64460_fixed_VOUT_sch") -> LM63460_sch | N2: With/without VOUT connected to VCCX

Sheet Stability Calculations (hidden)
A2: Divider Network & EA Poles/Zeros | E2: Modulator | J2: Power Stage Poles/Zeros | M2: Complex Pole Pair | P2: Total System
B3: Afb1 | C3: =Afb -> 0.2 | D3: V/V | E3: Acs | F3: =Acs -> 5 | G3: A/V | H3: gm | I3: =gm -> 3.3e-05 | J3: z_ESR | K3: =Fesr -> 1693137.694 | L3: Hz | M3: p3 | N3: =Fsw/2 -> 200000 | O3: Hz | P3: Adc | Q3: =Am*Afb*AEA -> 754.7060395 | R3: V/V
B4: EA zero, z1 | C4: =Fz1_u -> 7578.806823 | D4: Hz | E4: Am | F4: =Am -> 3.811646664 | G4: V/V | J4: p_dom | K4: =Fp_dominant -> 2221.00557 | L4: Hz | M4: pterm1 | N4: =Q*pole3 -> 75072.0482 | P4: Crossover | Q4: =AJ7 -> 42.41525 | R4: kHz
B5: EA pole, p1 | C5: =Fp1_u -> 148.6040553 | D5: Hz | E5: Q | F5: =Q -> 0.375360241 | M5: pterm2 | N5: =pole3^2 -> 40000000000 | P5: Phase Margin | Q5: =AJ9 -> 57.17879275 | R5: °
B6: Aea | C6: =AEA -> 990 | D6: V/V | E6: mc | F6: =mc -> 1.744421053 | H6: FF zero, z5 | I6: =Fz_ff -> 39788.73582 | P6: radconv | Q6: =180/Pi -> 57.29577958 | U6: =AB13+AE13 -> 57.55535904 | AB6: =Adc -> 754.7060395 | AI6: XOVER SEARCH
B7: EA pole, p2 | C7: =Fp2_u -> 275562.7261 | D7: Hz | E7: k | F7: =k -> 1.348011728 | H7: FF pole, p5 | I7: =Fp_ff -> 198943.6791 | AI7: xover | AJ7: =SUM(AI12:AI613)/1000 -> 42.41525
AI9: phase margin | AJ9: =SUM(AJ13:AJ613) -> 57.17879275
A10: Freq (Hz) | C10: Power Stage | I10: Error Amplifier | P10: FF Network | S10: Sampling Double Pole | U10: System Response | AB10: Compensator Response | AE10: PLANT Response | AG10: total
C11: p_dom | E11: z_ESR | G11: z_RHP | I11: p1 | K11: z1 | M11: p2 | O11: z3 | Q11: p3 | S11: p3
C12: Gain(V/V) | D12: Phase(rad) | E12: Gain(V/V) | F12: Phase(rad) | G12: Gain(V/V) | H12: Phase(rad) | I12: Gain(V/V) | J12: Phase(rad) | K12: Gain(V/V) | L12: Phase(rad) | M12: Gain(V/V) | N12: Phase(rad) | O12: Gain(V/V) | P12: Phase(rad) | Q12: Gain(V/V) | R12: Phase(rad) | S12: Gain(V/V) | T12: Phase(rad) | U12: Gain (dB) | V12: Phase (°) | W12: Phase Margin (°) | Z12: Fsquare | AB12: Gain(dB) | AC12: Phase(Deg) | AE12: Gain(dB) | AF12: Phase(Deg)
A13: 1 | B13: =A13/1000 -> 0.001 | C13: =SQRT(1+(A13/pole1)^2) -> 1.000000101 | D13: =ATAN(A13/pole1) -> 0.0004502464766 | E13: =SQRT(1+(A13/Zero1)^2) -> 1 | F13: =ATAN(A13/Zero1) -> 5.906194182e-07 | G13: =IF(VIN_nom>Vout, 1, SQRT(1+(A13/z_RHP)^2)) -> 1 | H13: =IF(VIN_nom>Vout, 0, -ATAN(A13/z_RHP)) -> 0 | I13: =SQRT(1+(A13/Pole2)^2) -> 1.000022641 | J13: =ATAN(A13/Pole2) -> 0.006729189884 | K13: =SQRT(1+(A13/Zero2)^2) -> 1.000000009 | L13: =ATAN(A13/Zero2) -> 0.0001319468905 | M13: =SQRT(1+(A13/pole4)^2) -> 1 | N13: =ATAN(A13/pole4) -> 3.628937826e-06 | O13: =SQRT(1+(A13/Zero3)^2) -> 1 | P13: =ATAN(A13/Zero3) -> 2.513274119e-05 | Q13: =SQRT(1+(A13/pole5)^2) -> 1 | R13: =ATAN(A13/pole5) -> 5.02654824e-06 | S13: =SQRT((1-(Z13/pterm2))^2+(A13/pterm1)^2) -> 1 | T13: =IF((ATAN((A13/pterm1)/(1-A13^2/pterm2))>0),ATAN((A13/pterm1)/(1-A13^2/pterm2)),PI()+ATAN((A13/pterm1)/(1-A13^2/pterm2))) -> 1.332053706e-05 | U13: =20*LOG10(((E13*K13*G13*O13)/(C13*I13*S13*M13*Q13))*Adc) -> 57.55535905 | V13: =((F13+L13+H13+R13)-(D13+J13+T13+N13))*radconv -> -0.4044406966 | W13: =IF(V13>0,V13,V13+180) -> 179.5955593 | Y13: =IF(U13<0,A13,1000000000) -> 1000000000 | Z13: =A13^2 -> 1 | AB13: =20*LOG10((K13/(I13*M13))*AEA*Afb) -> 45.93310722 | AC13: =(L13-(J13+N13))*radconv -> -0.3782021032 | AE13: =20*LOG10((E13*G13/(C13*S13))*Am) -> 11.62225182 | AF13: =(F13+H13-(D13+T13))*radconv -> -0.02652659343 | AG13: =AB13+AE13 -> 57.55535904 | AH13: =AC13+AF13 -> -0.4047286966 | AI13: =SUM((U14<0)*(U13>0))*A13 -> 0 | AJ13: =IF(AI13>0,W11,0) -> 0
A14: 1.0965 | B14: =A14/1000 -> 0.0010965 | C14: 1.000000122 | D14: 0.0004936952548 | E14: 1 | F14: 6.476141921e-07 | G14: 1 | H14: 0 | I14: 1.000027222 | J14: 0.007378534176 | K14: 1.00000001 | L14: 0.0001446797653 | M14: 1 | N14: 3.979130326e-06 | O14: 1 | P14: 2.755805072e-05 | Q14: 1 | R14: 5.511610145e-06 | S14: 1 | T14: 1.460596888e-05 | U14: =20*LOG10(((E14*K14*G14*O14)/(C14*I14*S14*M14*Q14))*Adc) -> 57.5553191 | V14: -0.4434679325 | W14: 179.5565321 | Y14: 1000000000 | Z14: 1.20231225 | AB14: 45.93306745 | AC14: -0.4146973152 | AE14: 11.62225164 | AF14: -0.02908640931 | AG14: =AB14+AE14 -> 57.5553191 | AH14: =AC14+AF14 -> -0.4437837245 | AI14: =SUM((U15<0)*(U14>0))*A14 -> 0 | AJ14: 0
A15: 1.2023 | B15: 0.0012023 | C15: 1.000000147 | D15: 0.0005413313225 | E15: 1 | F15: 7.101017265e-07 | G15: 1 | H15: 0 | I15: 1.000032729 | J15: 0.008090450592 | K15: 1.000000013 | L15: 0.0001586397461 | M15: 1 | N15: 4.363071948e-06 | O15: 1 | P15: 3.021709474e-05 | Q15: 1 | R15: 6.043418949e-06 | S15: 1 | T15: 1.60152817e-05 | U15: 57.55527108 | V15: -0.4862559315 | W15: 179.5137441 | Y15: 1000000000 | Z15: 1.44552529 | AB15: 45.93301964 | AC15: -0.4547092715 | AE15: 11.62225143 | AF15: =(F15+H15-(D15+T15))*radconv -> -0.03189292235 | AG15: 57.55527107 | AH15: -0.4866021939 | AI15: 0 | AJ15: 0
A16: 1.3183 | B16: 0.0013183 | C16: 1.000000176 | D16: 0.0005935599005 | E16: 1 | F16: 7.78613579e-07 | G16: 1 | H16: 0 | I16: 1.000039349 | J16: 0.00887099222 | K16: 1.000000015 | L16: 0.000173945585 | M16: 1 | N16: 4.784028736e-06 | O16: 1.000000001 | P16: 3.313249271e-05 | Q16: 1 | R16: 6.626498545e-06 | S16: 1 | T16: 1.7560464e-05 | U16: 57.55521334 | V16: -0.5331685077 | W16: 179.4668315 | Y16: 1000000000 | Z16: 1.73791489 | AB16: 45.93296217 | AC16: -0.4985781716 | AE16: 11.62225117 | AF16: -0.03497000643 | AG16: 57.55521334 | AH16: -0.5335481781 | AI16: 0 | AJ16: 0
A17: 1.4454 | B17: 0.0014454 | C17: 1.000000212 | D17: 0.0006507862094 | E17: 1 | F17: 8.536813071e-07 | G17: 1 | H17: 0 | I17: 1.000047301 | J17: 0.009726211162 | K17: 1.000000018 | L17: 0.0001907160344 | M17: 1 | N17: 5.245266734e-06 | O17: 1.000000001 | P17: 3.632686411e-05 | Q17: 1 | R17: 7.265372826e-06 | S17: 1 | T17: 1.925350426e-05 | U17: 57.55514399 | V17: -0.5845694189 | W17: 179.4154306 | Y17: 1000000000 | Z17: 2.08918116 | AB17: 45.93289312 | AC17: -0.5466441587 | AE17: 11.62225086 | AF17: -0.03834153541 | AG17: 57.55514398 | AH17: -0.5849856941 | AI17: 0 | AJ17: 0
A18: 1.5849 | B18: 0.0015849 | C18: 1.000000255 | D18: 0.0007135955679 | E18: 1 | F18: 9.360727159e-07 | G18: 1 | H18: 0 | I18: 1.000056872 | J18: 0.01066484967 | K18: 1.000000022 | L18: 0.000209122625 | M18: 1 | N18: 5.75150356e-06 | O18: 1.000000001 | P18: 3.983288151e-05 | Q18: 1 | R18: 7.966576305e-06 | S18: 1 | T18: 2.111171918e-05 | U18: 57.55506052 | V18: -0.6409841118 | W18: 179.3590159 | Y18: 1000000000 | Z18: 2.51190801 | AB18: 45.93281002 | AC18: -0.5993985692 | AE18: 11.62225049 | AF18: -0.04204199376 | AG18: 57.55506051 | AH18: -0.641440563 | AI18: 0 | AJ18: 0
A19: 1.7378 | B19: 0.0017378 | C19: 1.000000306 | D19: 0.0007824382202 | E19: 1 | F19: 1.026378425e-06 | G19: 1 | H19: 0 | I19: 1.000068374 | J19: 0.01169362966 | K19: 1.000000026 | L19: 0.0002292973037 | M19: 1 | N19: 6.306368154e-06 | O19: 1.000000001 | P19: 4.367567763e-05 | Q19: 1 | R19: 8.735135531e-06 | S19: 1 | T19: 2.31484293e-05 | U19: 57.55496021 | V19: -0.7028166098 | W19: 179.2971834 | Y19: 1000000000 | Z19: 3.01994884 | AB19: 45.93271016 | AC19: -0.6572191882 | AE19: 11.62225004 | AF19: -0.04609790795 | AG19: =AB19+AE19 -> 57.5549602 | AH19: -0.7033170962 | AI19: 0 | AJ19: 0
A20: 1.9055 | B20: 0.0019055 | C20: 1.000000368 | D20: 0.0008579445086 | E20: 1 | F20: 1.125425301e-06 | G20: 1 | H20: 0 | I20: 1.000082207 | J20: 0.01282196217 | K20: 1.000000032 | L20: 0.0002514247961 | M20: 1 | N20: 6.914941027e-06 | O20: 1.000000001 | P20: 4.789043832e-05 | Q20: 1 | R20: 9.578087671e-06 | S20: 1 | T20: 2.538228336e-05 | U20: 57.55483958 | V20: -0.7706325665 | W20: 179.2293674 | Y20: 1000000000 | Z20: 3.63093025 | AB20: 45.93259007 | AC20: -0.7206349354 | AE20: 11.6222495 | AF20: -0.05054641505 | AG20: 57.55483957 | AH20: -0.7711813505 | AI20: 0 | AJ20: 0
A21: 2.0893 | B21: 0.0020893 | C21: 1.000000442 | D21: 0.0009406997497 | E21: 1 | F21: 1.23398115e-06 | G21: 1 | H21: 0 | I21: 1.00009883 | J21: 0.01405858237 | K21: 1.000000038 | L21: 0.000275676633 | M21: 1 | N21: 7.5819398e-06 | O21: 1.000000001 | P21: 5.250983614e-05 | Q21: 1 | R21: 1.050196724e-05 | S21: 1 | T21: 2.783059807e-05 | U21: 57.55469462 | V21: -0.8449570232 | W21: 179.155043 | Y21: 1000000000 | Z21: 4.36517449 | AB21: 45.93244575 | AC21: -0.7901367422 | AE21: 11.62224886 | AF21: -0.05542199941 | AG21: 57.55469461 | AH21: -0.8455587416 | AI21: 0 | AJ21: 0
A22: 2.2909 | B22: 0.0022909 | C22: 1.000000532 | D22: 0.001031469357 | E22: 1 | F22: 1.353050025e-06 | G22: 1 | H22: 0 | I22: 1.000118822 | J22: 0.01541491272 | K22: 1.000000046 | L22: 0.0003022771241 | M22: 1 | N22: 8.313533665e-06 | O22: 1.000000002 | P22: 5.757659675e-05 | Q22: 1 | R22: 1.151531936e-05 | S22: 1 | T22: 3.051601834e-05 | U22: 57.55452029 | V22: -0.9264765451 | W22: 179.0735235 | Y22: 1000000000 | Z22: 5.24822281 | AB22: 45.93227219 | AC22: -0.8663665683 | AE22: 11.62224808 | AF22: -0.06076975593 | AG22: 57.55452027 | AH22: -0.9271363243 | AI22: 0 | AJ22: 0
A23: 2.5119 | B23: 0.0025119 | C23: 1.00000064 | D23: 0.001130973719 | E23: 1 | F23: 1.483576917e-06 | G23: 1 | H23: 0 | I23: 1.000142851 | J23: 0.0169016976 | K23: 1.000000055 | L23: 0.0003314373841 | M23: 1 | N23: 9.115528925e-06 | O23: 1.000000002 | P23: 6.313093254e-05 | Q23: 1 | R23: 1.262618652e-05 | S23: 1 | T23: 3.345985703e-05 | U23: 57.55431075 | V23: -1.015836958 | W23: 178.984163 | Y23: 1000000000 | Z23: 6.30964161 | AB23: 45.93206359 | AC23: -0.9499282584 | AE23: 11.62224714 | AF23: -0.0666321268 | AG23: 57.55431073 | AH23: -1.016560385 | AI23: 0 | AJ23: 0
A24: 2.7542 | B24: 0.0027542 | C24: 1.000000769 | D24: 0.001240068294 | E24: 1 | F24: 1.626684002e-06 | G24: 1 | H24: 0 | I24: 1.000171736 | J24: 0.01853169283 | K24: 1.000000066 | L24: 0.000363408112 | M24: 1 | N24: 9.99482056e-06 | O24: 1.000000002 | P24: 6.92205957e-05 | Q24: 1 | R24: 1.384411916e-05 | S24: 1 | T24: 3.668742315e-05 | U24: 57.55405886 | V24: -1.113805 | W24: 178.886195 | Y24: 1000000000 | Z24: 7.58561764 | AB24: 45.93181282 | AC24: -1.041538698 | AE24: 11.62224602 | AF24: -0.07305951202 | AG24: 57.55405884 | AH24: -1.11459821 | AI24: 0 | AJ24: 0
A25: 3.02 | B25: 0.00302 | C25: 1.000000924 | D25: 0.001359743613 | E25: 1 | F25: 1.783670643e-06 | G25: 1 | H25: 0 | I25: 1.00020648 | J25: 0.02031966315 | K25: 1.000000079 | L25: 0.0003984795906 | M25: 1 | N25: 1.095939223e-05 | O25: 1.000000003 | P25: 7.590087828e-05 | Q25: 1 | R25: 1.518017568e-05 | S25: 1.000000001 | T25: 4.02280219e-05 | U25: 57.55375591 | V25: -1.221268178 | W25: 178.7787318 | Y25: 1000000000 | Z25: 9.1204 | AB25: 45.93151122 | AC25: -1.142027669 | AE25: 11.62224467 | AF25: -0.08011026942 | AG25: 57.55375589 | AH25: -1.222137938 | AI25: 0 | AJ25: 0
A26: 3.3113 | B26: 0.0033113 | C26: 1.000001111 | D26: 0.001490900154 | E26: 1 | F26: 1.955718079e-06 | G26: 1 | H26: 0 | I26: 1.000248229 | J26: 0.02227901597 | K26: 1.000000095 | L26: 0.0004369157134 | M26: 1 | N26: 1.201650182e-05 | O26: 1.000000003 | P26: 8.322204574e-05 | Q26: 1 | R26: 1.664440919e-05 | S26: 1.000000001 | T26: 4.410829434e-05 | U26: 57.55339189 | V26: -1.339032454 | W26: 178.6609675 | Y26: 1000000000 | Z26: 10.96470769 | AB26: 45.93114881 | AC26: -1.252148657 | AE26: 11.62224304 | AF26: -0.08783745132 | AG26: 57.55339186 | AH26: -1.339986108 | AI26: 0 | AJ26: 0
A27: 3.6308 | B27: 0.0036308 | C27: 1.000001336 | D27: 0.001634753561 | E27: 1 | F27: 2.144420984e-06 | G27: 1 | H27: 0 | I27: 1.000298434 | J27: 0.0244278514 | K27: 1.000000115 | L27: 0.0004790727363 | M27: 1 | N27: 1.317594746e-05 | O27: 1.000000004 | P27: 9.12519565e-05 | Q27: 1 | R27: 1.825039135e-05 | S27: 1.000000001 | T27: 4.836420592e-05 | U27: 57.55295415 | V27: -1.468185877 | W27: 178.5318141 | Y27: 1000000000 | Z27: 13.18270864 | AB27: 45.93071302 | AC27: -1.37291887 | AE27: 11.62224109 | AF27: -0.09631267833 | AG27: 57.55295411 | AH27: -1.469231548 | AI27: 0 | AJ27: 0
A28: 3.9811 | B28: 0.0039811 | C28: 1.000001606 | D28: 0.001792474449 | E28: 1 | F28: 2.351314966e-06 | G28: 1 | H28: 0 | I28: 1.000358787 | J28: 0.02678357589 | K28: 1.000000138 | L28: 0.0005252937206 | M28: 1 | N28: 1.444716438e-05 | O28: 1.000000005 | P28: 0.0001000559557 | Q28: 1 | R28: 2.00111912e-05 | S28: 1.000000001 | T28: 5.303039005e-05 | U28: 57.55242796 | V28: -1.60977487 | W28: 178.3902251 | Y28: 1000000000 | Z28: 15.84915721 | AB28: 45.93018918 | AC28: -1.505316509 | AE28: 11.62223874 | AF28: -0.1056049181 | AG28: 57.55242792 | AH28: -1.610921427 | AI28: 0 | AJ28: 0
A29: 4.3652 | B29: 0.0043652 | C29: 1.000001931 | D29: 0.001965413522 | E29: 1 | F29: 2.578171884e-06 | G29: 1 | H29: 0 | I29: 1.000431344 | J29: 0.02936625856 | K29: 1.000000166 | L29: 0.0005759745062 | M29: 1 | N29: 1.58410394e-05 | O29: 1.000000006 | P29: 0.0001097094414 | Q29: 1 | R29: 2.194188837e-05 | S29: 1.000000001 | T29: 5.814680832e-05 | U29: 57.55179542 | V29: -1.765005964 | W29: 178.234994 | Y29: 1000000000 | Z29: 19.05497104 | AB29: 45.92955945 | AC29: -1.650469394 | AE29: 11.62223592 | AF29: -0.1157937483 | AG29: 57.55179537 | AH29: -1.766263142 | AI29: 0 | AJ29: 0
A30: 4.7863 | B30: 0.0047863 | C30: 1.000002322 | D30: 0.002155011521 | E30: 1 | F30: 2.826881721e-06 | G30: 1 | H30: 0 | I30: 1.000518556 | J30: 0.03219727716 | K30: 1.000000199 | L30: 0.0006315373219 | M30: 1 | N30: 1.736918511e-05 | O30: 1.000000007 | P30: 0.0001202928386 | Q30: 1 | R30: 2.405856784e-05 | S30: 1.000000001 | T30: 6.375608647e-05 | U30: 57.55103516 | V30: -1.93516445 | W30: 178.0648356 | Y30: 1000000000 | Z30: 22.90866769 | AB30: 45.92880258 | AC30: -1.809578853 | AE30: 11.62223252 | AF30: -0.1269640514 | AG30: 57.5510351 | AH30: -1.936542904 | AI30: 0 | AJ30: 0
A31: 5.2481 | B31: 0.0052481 | C31: 1.000002792 | D31: 0.002362934296 | E31: 1 | F31: 3.099629769e-06 | G31: 1 | H31: 0 | I31: 1.000623415 | J31: 0.0353013232 | K31: 1.00000024 | L31: 0.0006924703695 | M31: 1 | N31: 1.90450286e-05 | O31: 1.000000009 | P31: 0.0001318991383 | Q31: 1 | R31: 2.637982781e-05 | S31: 1.000000002 | T31: 6.990751046e-05 | U31: 57.55012117 | V31: -2.121734923 | W31: 177.8782651 | Y31: 1000000000 | Z31: 27.54255361 | AB31: 45.92789266 | AC31: -1.984032403 | AE31: 11.62222844 | AF31: -0.1392139722 | AG31: 57.5501211 | AH31: -2.123246375 | AI31: 0 | AJ31: 0
A32: 5.7544 | B32: 0.0057544 | C32: 1.000003356 | D32: 0.002590892703 | E32: 1 | F32: 3.39866038e-06 | G32: 1 | H32: 0 | I32: 1.000749456 | J32: 0.03870369743 | K32: 1.000000288 | L32: 0.0007592750454 | M32: 1 | N32: 2.088235982e-05 | O32: 1.00000001 | P32: 0.000144623845 | Q32: 1 | R32: 2.892476918e-05 | S32: 1.000000002 | T32: 7.665169835e-05 | U32: 57.54902267 | V32: -2.326238772 | W32: 177.6737612 | Y32: 1000000000 | Z32: 33.11311936 | AB32: 45.92679905 | AC32: -2.175251732 | AE32: 11.62222353 | AF32: -0.1526443071 | AG32: 57.54902259 | AH32: -2.327896039 | AI32: 0 | AJ32: 0
A33: 6.3096 | B33: 0.0063096 | C33: 1.000004035 | D33: 0.002840867718 | E33: 1 | F33: 3.726572281e-06 | G33: 1 | H33: 0 | I33: 1.000900983 | J33: 0.04243365013 | K33: 1.000000347 | L33: 0.000832531913 | M33: 1 | N33: 2.28971461e-05 | O33: 1.000000013 | P33: 0.0001585775425 | Q33: 1.000000001 | R33: 3.171550876e-05 | S33: 1.000000003 | T33: 8.40472605e-05 | U33: 57.54770223 | V33: -2.550435012 | W33: 177.449565 | Y33: 1000000000 | Z33: 39.81105216 | AB33: 45.9254845 | AC33: -2.384880409 | AE33: 11.62221763 | AF33: -0.167371767 | AG33: 57.54770213 | AH33: -2.552252177 | AI33: 0 | AJ33: 0
A34: 6.9183 | B34: 0.0069183 | C34: 1.000004851 | D34: 0.003114930335 | E34: 1 | F34: 4.086082321e-06 | G34: 1 | H34: 0 | I34: 1.001083109 | J34: 0.04652166626 | K34: 1.000000417 | L34: 0.0009128479245 | M34: 1 | N34: 2.510608056e-05 | O34: 1.000000015 | P34: 0.0001738758417 | Q34: 1.000000001 | R34: 3.477516867e-05 | S34: 1.000000003 | T34: 9.215547137e-05 | U34: 57.54611541 | V34: -2.79615717 | W34: 177.2038428 | Y34: 1000000000 | Z34: 47.86287489 | AB34: 45.92390474 | AC34: -2.614631274 | AE34: 11.62221054 | AF34: -0.1835183662 | AG34: 57.54611528 | AH34: -2.798149641 | AI34: 0 | AJ34: 0
A35: 7.5858 | B35: 0.0075858 | C35: 1.000005833 | D35: 0.003415466672 | E35: 1 | F35: 4.480320783e-06 | G35: 1 | H35: 0 | I35: 1.001302053 | J35: 0.05100278881 | K35: 1.000000501 | L35: 0.001000922394 | M35: 1 | N35: 2.752839655e-05 | O35: 1.000000018 | P35: 0.0001906519459 | Q35: 1.000000001 | R35: 3.813038962e-05 | S35: 1.000000004 | T35: 0.0001010469298 | U35: 57.54420818 | V35: -3.065513152 | W35: 176.9344868 | Y35: 1000000000 | Z35: 57.54436164 | AB35: 45.92200602 | AC35: -2.866473178 | AE35: 11.62220201 | AF35: -0.2012246847 | AG35: 57.54420803 | AH35: -3.067697862 | AI35: 0 | AJ35: 0
A36: 8.3176 | B36: 0.0083176 | C36: 1.000007012 | D36: 0.00374495284 | E36: 1 | F36: 4.912536073e-06 | G36: 1 | H36: 0 | I36: 1.001565183 | J36: 0.05591321473 | K36: 1.000000602 | L36: 0.001097481022 | M36: 1 | N36: 3.018405325e-05 | O36: 1.000000022 | P36: 0.0002090440852 | Q36: 1.000000001 | R36: 4.180881762e-05 | S36: 1.000000004 | T36: 0.0001107948988 | U36: 57.5419166 | V36: -3.360680751 | W36: 176.6393192 | Y36: 1000000000 | Z36: 69.18246976 | AB36: 45.91972466 | AC36: -3.142439615 | AE36: 11.62219176 | AF36: -0.2206366049 | AG36: 57.54191641 | AH36: -3.36307622 | AI36: 0 | AJ36: 0
A37: 9.1201 | B37: 0.0091201 | C37: 1.000008431 | D37: 0.004106270089 | E37: 1 | F37: 5.386508156e-06 | G37: 1 | H37: 0 | I37: 1.00188148 | J37: 0.06129493238 | K37: 1.000000724 | L37: 0.001203368262 | M37: 1.000000001 | N37: 3.309627585e-05 | O37: 1.000000026 | P37: 0.000229213109 | Q37: 1.000000001 | R37: 4.584262257e-05 | S37: 1.000000005 | T37: 0.0001214846297 | U37: 57.53916277 | V37: -3.684186579 | W37: 176.3158134 | Y37: 1000000000 | Z37: 83.17622401 | AB37: 45.91698312 | AC37: -3.444889289 | AE37: 11.62217943 | AF37: -0.2419238783 | AG37: 57.53916255 | AH37: -3.686813168 | AI37: 0 | AJ37: 0
A38: 10 | B38: 0.01 | C38: 1.000010136 | D38: 0.004502434646 | E38: 1 | F38: 5.906194182e-06 | G38: 1 | H38: 0 | I38: 1.002261611 | J38: 0.06719161467 | K38: 1.00000087 | L38: 0.001319468147 | M38: 1.000000001 | N38: 3.628937824e-05 | O38: 1.000000032 | P38: 0.0002513274067 | Q38: 1.000000001 | R38: 5.026548236e-05 | S38: 1.000000006 | T38: 0.0001332053701 | U38: 57.53585431 | V38: -4.038659424 | W38: 175.9613406 | Y38: 1000000000 | Z38: 100 | AB38: 45.91368944 | AC38: -3.776275216 | AE38: 11.62216461 | AF38: -0.2652642086 | AG38: 57.53585405 | AH38: -4.041539424 | AI38: 0 | AJ38: 0
A39: 10.965 | B39: 0.010965 | C39: 1.000012187 | D39: 0.00493691284 | E39: 1 | F39: 6.47614192e-06 | G39: 1 | H39: 0 | I39: 1.002718542 | J39: 0.07365320667 | K39: 1.000001047 | L39: 0.001446796654 | M39: 1.000000001 | N39: 3.979130324e-05 | O39: 1.000000038 | P39: 0.0002755805003 | Q39: 1.000000002 | R39: 5.51161014e-05 | S39: 1.000000008 | T39: 0.0001460596882 | U39: 57.53187907 | V39: -4.427106324 | W39: 175.5728937 | Y39: 1000000000 | Z39: 120.231225 | AB39: 45.90973197 | AC39: -4.139402426 | AE39: 11.62214679 | AF39: -0.290861818 | AG39: 57.53187876 | AH39: -4.430264244 | AI39: 0 | AJ39: 0
A40: 12.023 | B40: 0.012023 | C40: 1.000014652 | D40: 0.005413260878 | E40: 1 | F40: 7.101017265e-06 | G40: 1 | H40: 0 | I40: 1.003267574 | J40: 0.08073042853 | K40: 1.000001258 | L40: 0.001586396143 | M40: 1.000000001 | N40: 4.363071945e-05 | O40: 1.000000046 | P40: 0.0003021709383 | Q40: 1.000000002 | R40: 6.043418942e-05 | S40: 1.000000009 | T40: 0.0001601528162 | U40: 57.52710495 | V40: -4.852582491 | W40: 175.1474175 | Y40: 1000000000 | Z40: 144.552529 | AB40: 45.90497921 | AC40: -4.537118891 | AE40: 11.62212536 | AF40: -0.3189262242 | AG40: 57.52710457 | AH40: -4.856045115 | AI40: 0 | AJ40: 0
A41: 13.183 | B41: 0.013183 | C41: 1.000017616 | D41: 0.005935529997 | E41: 1 | F41: 7.78613579e-06 | G41: 1 | H41: 0 | I41: 1.00392722 | J41: 0.08848062425 | K41: 1.000001513 | L41: 0.001739454114 | M41: 1.000000001 | N41: 4.784028732e-05 | O41: 1.000000055 | P41: 0.0003313249151 | Q41: 1.000000002 | R41: 6.626498535e-05 | S41: 1.000000011 | T41: 0.000175604639 | U41: 57.5213724 | V41: -5.318543417 | W41: 174.6814566 | Y41: 1000000000 | Z41: 173.791489 | AB41: 45.89927234 | AC41: -4.972644011 | AE41: 11.6220996 | AF41: -0.3496961104 | AG41: 57.52137194 | AH41: -5.322340121 | AI41: 0 | AJ41: 0
A42: 14.454 | B42: 0.014454 | C42: 1.000021176 | D42: 0.006507771141 | E42: 1 | F42: 8.53681307e-06 | G42: 1 | H42: 0 | I42: 1.004719122 | J42: 0.09696018188 | K42: 1.000001819 | L42: 0.001907158055 | M42: 1.000000001 | N42: 5.245266729e-05 | O42: 1.000000066 | P42: 0.0003632686253 | Q42: 1.000000003 | R42: 7.265372813e-05 | S42: 1.000000013 | T42: 0.0001925350412 | U42: 57.51449544 | V42: -5.828389808 | W42: 174.1716102 | Y42: 1000000000 | Z42: 208.918116 | AB42: 45.89242623 | AC42: -5.449142418 | AE42: 11.62206866 | AF42: -0.3834101427 | AG42: 57.51449489 | AH42: -5.83255256 | AI42: 0 | AJ42: 0
A43: 15.849 | B43: 0.015849 | C43: 1.000025461 | D43: 0.007135835768 | E43: 1 | F43: 9.360727159e-06 | G43: 1 | H43: 0 | I43: 1.0056713 | J43: 0.1062508954 | K43: 1.000002187 | L43: 0.002091223232 | M43: 1.000000002 | N43: 5.751503554e-05 | O43: 1.000000079 | P43: 0.0003983287942 | Q43: 1.000000003 | R43: 7.966576289e-05 | S43: 1.000000016 | T43: 0.00021111719 | U43: 57.50623373 | V43: -6.387053542 | W43: 173.6129465 | Y43: 1000000000 | Z43: 251.190801 | AB43: 45.88420165 | AC43: -5.971204987 | AE43: 11.62203142 | AF43: -0.4204130671 | AG43: 57.50623307 | AH43: -6.391618054 | AI43: 0 | AJ43: 0
A44: 17.378 | B44: 0.017378 | C44: 1.00003061 | D44: 0.007824224133 | E44: 1 | F44: 1.026378425e-05 | G44: 1 | H44: 0 | I44: 1.006814454 | J44: 0.1164128863 | K44: 1.000002629 | L44: 0.002292969058 | M44: 1.000000002 | N44: 6.306368146e-05 | O44: 1.000000095 | P44: 0.0004367567488 | Q44: 1.000000004 | R44: 8.735135509e-05 | S44: 1.000000019 | T44: 0.0002314842906 | U44: 57.49632525 | V44: -6.998168065 | W44: 173.0018319 | Y44: 1000000000 | Z44: 301.994884 | AB44: 45.87433779 | AC44: -6.542202906 | AE44: 11.62198667 | AF44: -0.4609700227 | AG44: 57.49632446 | AH44: -7.003172929 | AI44: 0 | AJ44: 0
A45: 19.055 | B45: 0.019055 | C45: 1.000036803 | D45: 0.008579236698 | E45: 1 | F45: 1.125425301e-05 | G45: 1 | H45: 0 | I45: 1.008187519 | J45: 0.1275307306 | K45: 1.000003161 | L45: 0.002514242716 | M45: 1.000000002 | N45: 6.914941016e-05 | O45: 1.000000115 | P45: 0.000478904347 | Q45: 1.000000005 | R45: 9.578087642e-05 | S45: 1.000000023 | T45: 0.0002538228305 | U45: 57.4844387 | V45: -7.666843476 | W45: 172.3331565 | Y45: 1000000000 | Z45: 363.093025 | AB45: 45.8625049 | AC45: -7.166879106 | AE45: 11.62193284 | AF45: -0.5054522106 | AG45: 57.48443775 | AH45: -7.672331316 | AI45: 0 | AJ45: =IF(AI45>0,W43,0) -> 0
A46: 20.893 | B46: 0.020893 | C46: 1.000044245 | D46: 0.009406722806 | E46: 1 | F46: 1.23398115e-05 | G46: 1 | H46: 0 | I46: 1.009835124 | J46: 0.1396795406 | K46: 1.0000038 | L46: 0.002756759416 | M46: 1.000000003 | N46: 7.581939785e-05 | O46: 1.000000138 | P46: 0.0005250983136 | Q46: 1.000000006 | R46: 0.000105019672 | S46: 1.000000028 | T46: 0.0002783059766 | U46: 57.47019665 | V46: -8.397628695 | W46: 171.6023713 | Y46: 1000000000 | Z46: 436.517449 | AB46: 45.84832734 | AC46: -7.849441624 | AE46: 11.62186816 | AF46: -0.5542042552 | AG46: 57.4701955 | AH46: -8.403645879 | AI46: 0 | AJ46: 0
A47: 22.909 | B47: 0.022909 | C47: 1.000053195 | D47: 0.01031433145 | E47: 1 | F47: 1.353050025e-05 | G47: 1 | H47: 0 | I47: 1.011813085 | J47: 0.1529572104 | K47: 1.000004569 | L47: 0.003022762126 | M47: 1.000000003 | N47: 8.313533646e-05 | O47: 1.000000166 | P47: 0.0005757659045 | Q47: 1.000000007 | R47: 0.0001151531931 | S47: 1.000000033 | T47: 0.000305160178 | U47: 57.45312939 | V47: -9.196453424 | W47: 170.8035466 | Y47: 1000000000 | Z47: 524.822281 | AB47: 45.83133763 | AC47: -8.595374405 | AE47: 11.62179038 | AF47: -0.6076768109 | AG47: 57.45312801 | AH47: -9.203051216 | AI47: 0 | AJ47: 0
A48: 25.119 | B48: 0.025119 | C48: 1.000063953 | D48: 0.01130925984 | E48: 1 | F48: 1.483576916e-05 | G48: 1 | H48: 0 | I48: 1.014185476 | J48: 0.1674502387 | K48: 1.000005493 | L48: 0.003314361826 | M48: 1.000000004 | N48: 9.1155289e-05 | O48: 1.000000199 | P48: 0.0006313092423 | Q48: 1.000000008 | R48: 0.0001262618646 | S48: 1.00000004 | T48: 0.0003345985631 | U48: 57.43270229 | V48: -10.06857548 | W48: 169.9314245 | Y48: 1000000000 | Z48: 630.964161 | AB48: 45.81100374 | AC48: -9.409515834 | AE48: 11.62169688 | AF48: -0.6662939173 | AG48: 57.43270063 | AH48: -10.07580975 | AI48: 0 | AJ48: 0
A49: 27.542 | B49: 0.027542 | C49: 1.000076886 | D49: 0.01240005371 | E49: 1 | F49: 1.626684001e-05 | G49: 1 | H49: 0 | I49: 1.017030102 | J49: 0.1832587017 | K49: 1.000006603 | L49: 0.003634065282 | M49: 1.000000005 | N49: 9.994820527e-05 | O49: 1.00000024 | P49: 0.0006922058476 | Q49: 1.00000001 | R49: 0.0001384411907 | S49: 1.000000048 | T49: 0.0003668742221 | U49: 57.40827146 | V49: -11.02008716 | W49: 168.9799128 | Y49: 1000000000 | Z49: 758.561764 | AB49: 45.78668497 | AC49: -10.29746019 | AE49: 11.62158449 | AF49: -0.7305590673 | AG49: 57.40826946 | AH49: -11.02801925 | AI49: 0 | AJ49: 0
A50: 30.2 | B50: 0.0302 | C50: 1.000092441 | D50: 0.01359660659 | E50: 1 | F50: 1.783670643e-05 | G50: 1 | H50: 0 | I50: 1.020441198 | J50: 0.2004942072 | K50: 1.000007939 | L50: 0.003984775026 | M50: 1.000000006 | N50: 0.0001095939219 | O50: 1.000000288 | P50: 0.0007590086385 | Q50: 1.000000012 | R50: 0.0001518017557 | S50: 1.000000058 | T50: 0.0004022802066 | U50: 57.37906474 | V50: -12.05779795 | W50: 167.9422021 | Y50: 1000000000 | Z50: 912.04 | AB50: 45.75761303 | AC50: -11.26544038 | AE50: 11.6214493 | AF50: -0.8010551644 | AG50: 57.37906234 | AH50: -12.06649555 | AI50: 0 | AJ50: 0
A51: 33.113 | B51: 0.033113 | C51: 1.000111133 | D51: 0.01490790808 | E51: 1 | F51: 1.955718079e-05 | G51: 1 | H51: 0 | I51: 1.024525199 | J51: 0.2192452163 | K51: 1.000009545 | L51: 0.00436912961 | M51: 1.000000007 | N51: 0.0001201650177 | O51: 1.000000346 | P51: 0.0008322202672 | Q51: 1.000000014 | R51: 0.0001664440903 | S51: 1.00000007 | T51: 0.0004410829271 | U51: 57.3442235 | V51: -13.18715317 | W51: 166.8128468 | Y51: 1000000000 | Z51: 1096.470769 | AB51: 45.72293375 | AC51: -12.31837785 | AE51: 11.62128686 | AF51: -0.8783118617 | AG51: 57.34422061 | AH51: -13.19668971 | AI51: 0 | AJ51: 0
A52: 36.308 | B52: 0.036308 | C52: 1.000133612 | D52: 0.01634609416 | E52: 1 | F52: 2.144420983e-05 | G52: 1 | H52: 0 | I52: 1.029415241 | J52: 0.2396323912 | K52: 1.000011475 | L52: 0.004790691079 | M52: 1.000000009 | N52: 0.0001317594738 | O52: 1.000000416 | P52: 0.0009125193142 | Q52: 1.000000017 | R52: 0.0001825039115 | S52: 1.000000084 | T52: 0.0004836420377 | U52: 57.30268651 | V52: -14.41557503 | W52: 165.584425 | Y52: 1000000000 | Z52: 1318.270864 | AB52: 45.68159152 | AC52: -13.46298755 | AE52: 11.62109151 | AF52: -0.9630441927 | AG52: 57.30268304 | AH52: -14.42603174 | AI52: 0 | AJ52: 0
A53: 39.811 | B53: 0.039811 | C53: 1.000160636 | D53: 0.01792284434 | E53: 1 | F53: 2.351314965e-05 | G53: 1 | H53: 0 | I53: 1.035263404 | J53: 0.2617533241 | K53: 1.000013797 | L53: 0.005252889375 | M53: 1.00000001 | N53: 0.0001444716428 | O53: 1.000000501 | P53: 0.001000559226 | Q53: 1.00000002 | R53: 0.0002001119093 | S53: 1.000000101 | T53: 0.0005303038721 | U53: 57.25326716 | V53: -15.74914473 | W53: 164.2508553 | Y53: 1000000000 | Z53: 1584.915721 | AB53: 45.63240631 | AC53: -14.70466999 | AE53: 11.62085668 | AF53: -1.055940308 | AG53: 57.25326299 | AH53: -15.7606103 | AI53: 0 | AJ53: 0
A54: 43.652 | B54: 0.043652 | C54: 1.000193124 | D54: 0.0196516304 | E54: 1 | F54: 2.578171884e-05 | G54: 1 | H54: 0 | I54: 1.042251082 | J54: 0.2857102988 | K54: 1.000016587 | L54: 0.005759682008 | M54: 1.000000013 | N54: 0.0001584103927 | O54: 1.000000602 | P54: 0.001097093979 | Q54: 1.000000024 | R54: 0.0002194188803 | S54: 1.000000121 | T54: 0.0005814680458 | U54: 57.19458005 | V54: -17.19428727 | W54: 162.8057127 | Y54: 1000000000 | Z54: 1905.497104 | AB54: 45.57400068 | AC54: -16.04906508 | AE54: 11.62057436 | AF54: -1.157793965 | AG54: 57.19457503 | AH54: -17.20685904 | AI54: 0 | AJ54: 0
A55: 47.863 | B55: 0.047863 | C55: 1.000232177 | D55: 0.02154681347 | E55: 1 | F55: 2.826881721e-05 | G55: 1 | H55: 0 | I55: 1.050589431 | J55: 0.31159229 | K55: 1.000019942 | L55: 0.0063152901 | M55: 1.000000015 | N55: 0.0001736918494 | O55: 1.000000724 | P55: 0.001202927812 | Q55: 1.000000029 | R55: 0.0002405856738 | S55: 1.000000146 | T55: 0.0006375608153 | U55: 57.12505737 | V55: -18.7567023 | W55: 161.2432977 | Y55: 1000000000 | Z55: 2290.866769 | AB55: 45.50481633 | AC55: -17.50103551 | AE55: 11.620235 | AF55: -1.269451335 | AG55: 57.12505134 | AH55: -18.77048684 | AI55: 0 | AJ55: 0
A56: 52.481 | B56: 0.052481 | C56: 1.000279135 | D56: 0.0236249906 | E56: 1 | F56: 3.099629768e-05 | G56: 1 | H56: 0 | I56: 1.060529088 | J56: 0.3394871367 | K56: 1.000023975 | L56: 0.006924594122 | M56: 1.000000018 | N56: 0.0001904502837 | O56: 1.00000087 | P56: 0.001318990626 | Q56: 1.000000035 | R56: 0.0002637982721 | S56: 1.000000175 | T56: 0.0006990750395 | U56: 57.04289444 | V56: -20.44211795 | W56: 159.557882 | Y56: 1000000000 | Z56: 2754.255361 | AB56: 45.4230602 | AC56: -19.06534213 | AE56: 11.61982699 | AF56: -1.391890346 | AG56: 57.04288718 | AH56: -20.45723248 | AI56: 0 | AJ56: 0
A57: 57.544 | B57: 0.057544 | C57: 1.000335581 | D57: 0.02590318998 | E57: 1.000000001 | F57: 3.398660379e-05 | G57: 1 | H57: 0 | I57: 1.072355977 | J57: 0.369449819 | K57: 1.000028825 | L57: 0.007592606011 | M57: 1.000000022 | N57: 0.0002088235952 | O57: 1.000001046 | P57: 0.001446237451 | Q57: 1.000000042 | R57: 0.0002892476839 | S57: 1.000000211 | T57: 0.0007665168977 | U57: 56.9461197 | V57: -22.25439751 | W57: 157.7456025 | Y57: 1000000000 | Z57: 3311.311936 | AB57: 45.32677444 | AC57: -20.74485582 | AE57: 11.61933654 | AF57: -1.526114358 | AG57: 56.94611098 | AH57: -22.27097018 | AI57: 0 | AJ57: 0
A58: 63.096 | B58: 0.063096 | C58: 1.000403447 | D58: 0.02840111481 | E58: 1.000000001 | F58: 3.726572279e-05 | G58: 1 | H58: 0 | I58: 1.086405925 | J58: 0.4015244864 | K58: 1.000034655 | L58: 0.008325128716 | M58: 1.000000026 | N58: 0.0002289714571 | O58: 1.000001257 | P58: 0.00158577411 | Q58: 1.00000005 | R58: 0.0003171550771 | S58: 1.000000254 | T58: 0.0008404724919 | U58: 56.83251947 | V58: -24.19689555 | W58: 155.8031044 | Y58: 1000000000 | Z58: 3981.105216 | AB58: 45.21376207 | AC58: -22.54178283 | AE58: 11.61874691 | AF58: -1.673284372 | AG58: 56.83250898 | AH58: -24.2150672 | AI58: 0 | AJ58: 0
A59: 69.183 | B59: 0.069183 | C59: 1.000485025 | D59: 0.03113933535 | E59: 1.000000001 | F59: 4.086082319e-05 | G59: 1 | H59: 0 | I59: 1.103059018 | J59: 0.4357119096 | K59: 1.000041664 | L59: 0.009128228237 | M59: 1.000000032 | N59: 0.0002510608003 | O59: 1.000001512 | P59: 0.001738756682 | Q59: 1.00000006 | R59: 0.0003477516729 | S59: 1.000000305 | T59: 0.0009215545646 | U59: 56.69974124 | V59: -26.27051713 | W59: 153.7294829 | Y59: 1000000000 | Z59: 4786.287489 | AB59: 45.08169042 | AC59: -24.4558293 | AE59: 11.61803821 | AF59: -1.834612529 | AG59: 56.69972863 | AH59: -26.29044183 | AI59: 0 | AJ59: 0
A60: 75.858 | B60: 0.075858 | C60: 1.000583105 | D60: 0.03414152772 | E60: 1.000000001 | F60: 4.48032078e-05 | G60: 1 | H60: 0 | I60: 1.122755639 | J60: 0.4719889522 | K60: 1.000050091 | L60: 0.01000889304 | M60: 1.000000038 | N60: 0.0002752839587 | O60: 1.000001817 | P60: 0.001906517172 | Q60: 1.000000073 | R60: 0.0003813038779 | S60: 1.000000367 | T60: 0.001010469102 | U60: 56.54523502 | V60: -28.47492717 | W60: 151.5250728 | Y60: 1000000000 | Z60: 5754.436164 | AB60: 44.92803365 | AC60: -26.48528025 | AE60: 11.61718622 | AF60: -2.011494027 | AG60: 56.54521987 | AH60: -28.49677428 | AI60: 0 | AJ60: 0
A61: 83.176 | B61: 0.083176 | C61: 1.000700994 | D61: 0.0374322107 | E61: 1.000000001 | F61: 4.912536069e-05 | G61: 1 | H61: 0 | I61: 1.145984944 | J61: 0.5102717504 | K61: 1.000060221 | L61: 0.01097437404 | M61: 1.000000046 | N61: 0.0003018405234 | O61: 1.000002185 | P61: 0.002090437837 | Q61: 1.000000087 | R61: 0.000418088152 | S61: 1.000000441 | T61: 0.001107948729 | U61: 56.36642871 | V61: -30.80634573 | W61: 149.1936543 | Y61: 1000000000 | Z61: 6918.246976 | AB61: 44.75024823 | AC61: -28.62492661 | AE61: 11.61616226 | AF61: -2.205373803 | AG61: 56.36641049 | AH61: -30.83030041 | AI61: 0 | AJ61: 0
A62: 91.201 | B62: 0.091201 | C62: 1.000842727 | D62: 0.04103987539 | E62: 1.000000001 | F62: 5.386508151e-05 | G62: 1 | H62: 0 | I62: 1.173307257 | J62: 0.5504453306 | K62: 1.000072402 | L62: 0.01203310762 | M62: 1.000000055 | N62: 0.0003309627466 | O62: 1.000002627 | P62: 0.002292127116 | Q62: 1.000000105 | R62: 0.0004584261939 | S62: 1.00000053 | T62: 0.001214845955 | U62: 56.16065031 | V62: -33.25937589 | W62: 146.7406241 | Y62: 1000000000 | Z62: 8317.622401 | AB62: 44.54569705 | AC62: -30.86771082 | AE62: 11.61493136 | AF62: -2.417930959 | AG62: 56.16062841 | AH62: -33.28564178 | AI62: 0 | AJ62: 0
A63: 100 | B63: 0.1 | C63: 1.001013096 | D63: 0.04499426271 | E63: 1.000000002 | F63: 5.906194175e-05 | G63: 1 | H63: 0 | I63: 1.205335487 | J63: 0.5923256437 | K63: 1.000087046 | L63: 0.01319392348 | M63: 1.000000066 | N63: 0.0003628937667 | O63: 1.000003158 | P63: 0.002513268828 | Q63: 1.000000126 | R63: 0.0005026547817 | S63: 1.000000637 | T63: 0.001332053251 | U63: 55.92537875 | V63: -35.82471406 | W63: 144.1752859 | Y63: 1000000000 | Z63: 10000 | AB63: 44.31190042 | AC63: -33.20259567 | AE63: 11.61345199 | AF63: -2.650918388 | AG63: 55.92535241 | AH63: -35.85351406 | AI63: 0 | AJ63: 0
A64: 109.65 | B64: 0.10965 | C64: 1.001217934 | D64: 0.04932947777 | E64: 1.000000002 | F64: 6.476141912e-05 | G64: 1 | H64: 0 | I64: 1.242757992 | J64: 0.6356905357 | K64: 1.000104656 | L64: 0.01446696727 | M64: 1.000000079 | N64: 0.0003979130116 | O64: 1.000003797 | P64: 0.002755798096 | Q64: 1.000000152 | R64: 0.0005511609587 | S64: 1.000000766 | T64: 0.001460596289 | U64: 55.65818613 | V64: -38.49105452 | W64: 141.5089455 | Y64: 1000000000 | Z64: 12023.1225 | AB64: 44.0464808 | AC64: -35.61628738 | AE64: 11.61167367 | AF64: -2.906346332 | AG64: 55.65815447 | AH64: -38.52263371 | AI64: 0 | AJ64: 0
A65: 120.23 | B65: 0.12023 | C65: 1.001464126 | D65: 0.05408035313 | E65: 1.000000003 | F65: 7.101017253e-05 | G65: 1 | H65: 0 | I65: 1.286305746 | J65: 0.6802426083 | K65: 1.000125825 | L65: 0.01586264414 | M65: 1.000000095 | N65: 0.0004363071671 | O65: 1.000004565 | P65: 0.003021700278 | Q65: 1.000000183 | R65: 0.0006043418213 | S65: 1.000000921 | T65: 0.00160152738 | U65: 55.35708647 | V65: -41.24280847 | W65: 138.7571915 | Y65: 1000000000 | Z65: 14455.2529 | AB65: 43.74751162 | AC65: -38.09116654 | AE65: 11.60953678 | AF65: -3.186268169 | AG65: 55.3570484 | AH65: -41.27743471 | AI65: 0 | AJ65: 0
A66: 131.83 | B66: 0.13183 | C66: 1.001760018 | D66: 0.05928643762 | E66: 1.000000003 | F66: 7.786135774e-05 | G66: 1 | H66: 0 | I66: 1.336782075 | J66: 0.7256547293 | K66: 1.000151274 | L66: 0.01739280464 | M66: 1.000000114 | N66: 0.0004784028371 | O66: 1.000005489 | P66: 0.003313237149 | Q66: 1.00000022 | R66: 0.0006626497575 | S66: 1.000001107 | T66: 0.001756045358 | U66: 55.02041938 | V66: -44.06287807 | W66: 135.9371219 | Y66: 1000000000 | Z66: 17379.1489 | AB66: 43.41340439 | AC66: -40.60782958 | AE66: 11.60696922 | AF66: -3.493015522 | AG66: 55.02037361 | AH66: -44.1008451 | AI66: 0 | AJ66: 0
A67: 144.54 | B67: 0.14454 | C67: 1.002115377 | D67: 0.06498698861 | E67: 1.000000004 | F67: 8.53681305e-05 | G67: 1 | H67: 0 | I67: 1.395009498 | J67: 0.7715353716 | K67: 1.000181846 | L67: 0.01906929189 | M67: 1.000000138 | N67: 0.0005245266253 | O67: 1.000006598 | P67: 0.003632670434 | Q67: 1.000000264 | R67: 0.0007265371548 | S67: 1.000001331 | T67: 0.001925349053 | U67: 54.64728035 | V67: -46.93045961 | W67: 133.0695404 | Y67: 1000000000 | Z67: 20891.8116 | AB67: 43.04333868 | AC67: -43.14318381 | AE67: 11.60388665 | AF67: -3.828903316 | AG67: 54.64722533 | AH67: -46.97208712 | AI67: 0 | AJ67: 0
A68: 158.49 | B68: 0.15849 | C68: 1.002542861 | D68: 0.07123881219 | E68: 1.000000004 | F68: 9.360727132e-05 | G68: 1 | H68: 0 | I68: 1.462011093 | J68: 0.8175789615 | K68: 1.000218637 | L68: 0.02090921513 | M68: 1.000000165 | N68: 0.0005751502926 | O68: 1.000007933 | P68: 0.003983267086 | Q68: 1.000000317 | R68: 0.000796657462 | S68: 1.000001601 | T68: 0.002111170107 | U68: 54.23643388 | V68: -49.83040387 | W68: 130.1695961 | Y68: 1000000000 | Z68: 25119.0801 | AB68: 42.63618787 | AC68: -45.67876787 | AE68: 11.60017986 | AF68: -4.197281116 | AG68: 54.23636773 | AH68: -49.87604898 | AI68: 0 | AJ68: 0
A69: 173.78 | B69: 0.17378 | C69: 1.003056378 | D69: 0.0780847498 | E69: 1.000000005 | F69: 0.0001026378421 | G69: 1 | H69: 0 | I69: 1.538679437 | J69: 0.8633330117 | K69: 1.000262852 | L69: 0.02292571343 | M69: 1.000000199 | N69: 0.0006306367318 | O69: 1.000009538 | P69: 0.004367539995 | Q69: 1.000000382 | R69: 0.000873513331 | S69: 1.000001924 | T69: 0.002314840543 | U69: 53.78843057 | V69: -52.738552 | W69: 127.261448 | Y69: 1000000000 | Z69: 30199.4884 | AB69: 42.19262188 | AC69: -48.18792414 | AE69: 11.59572916 | AF69: -4.600676491 | AG69: 53.78835104 | AH69: -52.78860063 | AI69: 0 | AJ69: 0
A70: 190.55 | B70: 0.19055 | C70: 1.003673598 | D70: 0.08558489451 | E70: 1.000000006 | F70: 0.0001125425297 | G70: 1 | H70: 0 | I70: 1.626101886 | J70: 0.9084514288 | K70: 1.000316022 | L70: 0.02513718425 | M70: 1.000000239 | N70: 0.0006914939925 | O70: 1.000011467 | P70: 0.004789007224 | Q70: 1.000000459 | R70: 0.0009578084742 | S70: 1.000002314 | T70: 0.002538225189 | U70: 53.30356944 | V70: -55.63755419 | W70: 124.3624458 | Y70: 1000000000 | Z70: 36309.3025 | AB70: 41.71309116 | AC70: -50.64979794 | AE70: 11.59038266 | AF70: -5.04263463 | AG70: 53.30347382 | AH70: -55.69243257 | AI70: 0 | AJ70: 0
A71: 208.93 | B71: 0.20893 | C71: 1.004414837 | D71: 0.09379398641 | E71: 1.000000008 | F71: 0.0001233981144 | G71: 1 | H71: 0 | I71: 1.725310938 | J71: 0.9525516225 | K71: 1.000379916 | L71: 0.02756068359 | M71: 1.000000287 | N71: 0.0007581938347 | O71: 1.000013786 | P71: 0.005250935358 | Q71: 1.000000551 | R71: 0.001050196338 | S71: 1.000002781 | T71: 0.002783055659 | U71: 52.78333425 | V71: -58.50773316 | W71: 121.4922668 | Y71: 1000000000 | Z71: 43651.7449 | AB71: 41.19925308 | AC71: -53.04151825 | AE71: 11.58396622 | AF71: -5.526386723 | AG71: 52.7832193 | AH71: -58.56790498 | AI71: 0 | AJ71: 0
A72: 229.09 | B72: 0.22909 | C72: 1.005305574 | D72: 0.102783486 | E72: 1.000000009 | F72: 0.0001353050017 | G72: 1 | H72: 0 | I72: 1.83754505 | J72: 0.9953558953 | K72: 1.000456753 | L72: 0.03021851187 | M72: 1.000000346 | N72: 0.000831353175 | O72: 1.000016575 | P72: 0.005757596059 | Q72: 1.000000663 | R72: 0.001151531427 | S72: 1.000003344 | T72: 0.003051596366 | U72: 52.22890743 | V72: -61.33610507 | W72: 118.6638949 | Y72: 1000000000 | Z72: 52482.2281 | AB72: 40.6525073 | AC72: -55.34593181 | AE72: 11.57626192 | AF72: -6.056151148 | AG72: 52.22876922 | AH72: -61.40208296 | AI72: 0 | AJ72: 0
A73: 251.19 | B73: 0.25119 | C73: 1.006375192 | D73: 0.1126188767 | E73: 1.000000011 | F73: 0.0001483576906 | G73: 1 | H73: 0 | I73: 1.963980129 | J73: 1.036576041 | K73: 1.000549103 | L73: 0.0331316114 | M73: 1.000000415 | N73: 0.00091155264 | O73: 1.000019927 | P73: 0.006313009394 | Q73: 1.000000797 | R73: 0.001262617981 | S73: 1.00000402 | T73: 0.003345978495 | U73: 51.64251214 | V73: -64.10881279 | W73: 115.8911872 | Y73: 1000000000 | Z73: 63096.4161 | AB73: 40.07532655 | AC73: -57.54535896 | AE73: 11.56701943 | AF73: -6.635796513 | AG73: 51.64234598 | AH73: -64.18115547 | AI73: 0 | AJ73: 0
A74: 275.42 | B74: 0.27542 | C74: 1.007659521 | D74: 0.1233770469 | E74: 1.000000013 | F74: 0.0001626683987 | G74: 1 | H74: 0 | I74: 2.105949384 | J74: 1.076008175 | K74: 1.000660109 | L74: 0.03632482758 | M74: 1.000000499 | N74: 0.0009994817232 | O74: 1.000023957 | P74: 0.006921949028 | Q74: 1.000000958 | R74: 0.001384411032 | S74: 1.000004833 | T74: 0.003668732814 | U74: 51.02620698 | V74: -66.81727987 | W74: 113.1827201 | Y74: 1000000000 | Z74: 75856.1764 | AB74: 39.47007264 | AC74: -59.62673401 | AE74: 11.55593458 | AF74: -7.269866776 | AG74: 51.02600722 | AH74: -66.89660078 | AI74: 0 | AJ74: 0
A75: 302 | B75: 0.302 | C75: 1.009202185 | D75: 0.1351456078 | E75: 1.000000016 | F75: 0.0001783670624 | G75: 1 | H75: 0 | I75: 2.264955603 | J75: 1.113515711 | K75: 1.000793615 | L75: 0.03982689025 | M75: 1.000000601 | N75: 0.001095938785 | O75: 1.000028804 | P75: 0.007589942094 | Q75: 1.000001152 | R75: 0.001518016402 | S75: 1.000005811 | T75: 0.004022789663 | U75: 50.38187414 | V75: -69.45719686 | W75: 110.5428031 | Y75: 1000000000 | Z75: 91204 | AB75: 38.83899524 | AC75: -61.58063065 | AE75: 11.54263872 | AF75: -7.963542143 | AG75: 50.38163396 | AH75: -69.54417279 | AI75: 0 | AJ75: 0
A76: 331.13 | B76: 0.33113 | C76: 1.01105285 | D76: 0.1479999766 | E76: 1.000000019 | F76: 0.0001955718055 | G76: 1 | H76: 0 | I76: 2.442373526 | J76: 1.148958588 | K76: 1.000954022 | L76: 0.04366380419 | M76: 1.000000722 | N76: 0.001201649604 | O76: 1.000034629 | P76: 0.008322012472 | Q76: 1.000001385 | R76: 0.001664439382 | S76: 1.000006987 | T76: 0.004410812922 | U76: 49.71234221 | V76: -72.02349998 | W76: 107.9765 | Y76: 1000000000 | Z76: 109647.0769 | AB76: 38.18533844 | AC76: -63.39757577 | AE76: 11.52671503 | AF76: -8.721289563 | AG76: 49.71205347 | AH76: -72.11886533 | AI76: 0 | AJ76: 0
A77: 363.08 | B77: 0.36308 | C77: =SQRT(1+(A77/pole1)^2) -> 1.01327402 | D77: =ATAN(A77/pole1) -> 0.1620421626 | E77: =SQRT(1+(A77/Zero1)^2) -> 1.000000023 | F77: =ATAN(A77/Zero1) -> 0.0002144420951 | G77: =IF(VIN_nom>Vout, 1, SQRT(1+(A77/z_RHP)^2)) -> 1 | H77: =IF(VIN_nom>Vout, 0, -ATAN(A77/z_RHP)) -> 0 | I77: =SQRT(1+(A77/Pole2)^2) -> 2.639995052 | J77: =ATAN(A77/Pole2) -> 1.182309331 | K77: =SQRT(1+(A77/Zero2)^2) -> 1.001146896 | L77: =ATAN(A77/Zero2) -> 0.0478706769 | M77: =SQRT(1+(A77/pole4)^2) -> 1.000000868 | N77: =ATAN(A77/pole4) -> 0.001317593983 | O77: =SQRT(1+(A77/Zero3)^2) -> 1.000041634 | P77: =ATAN(A77/Zero3) -> 0.009124942405 | Q77: =SQRT(1+(A77/pole5)^2) -> 1.000001665 | R77: =ATAN(A77/pole5) -> 0.001825037109 | S77: =SQRT((1-(Z77/pterm2))^2+(A77/pterm1)^2) -> 1.0000084 | T77: =IF((ATAN((A77/pterm1)/(1-A77^2/pterm2))>0),ATAN((A77/pterm1)/(1-A77^2/pterm2)),PI()+ATAN((A77/pterm1)/(1-A77^2/pterm2))) -> 0.004836398825 | U77: =20*LOG10(((E77*K77*G77*O77)/(C77*I77*S77*M77*Q77))*Adc) -> 49.01917906 | V77: =((F77+L77+H77+R77)-(D77+J77+T77+N77))*radconv -> -74.51862339 | W77: =IF(V77>0,V77,V77+180) -> 105.4813766 | Y77: =IF(U77<0,A77,1000000000) -> 1000000000 | Z77: =A77^2 -> 131827.0864 | AB77: =20*LOG10((K77/(I77*M77))*AEA*Afb) -> 37.51119011 | AC77: =(L77-(J77+N77))*radconv -> -65.07403967 | AE77: =20*LOG10((E77*G77/(C77*S77))*Am) -> 11.50764179 | AF77: =(F77+H77-(D77+T77))*radconv -> -9.549150646 | AG77: 49.0188319 | AH77: -74.62319032 | AI77: 0 | AJ77: =IF(AI77>0,W75,0) -> 0
A78: 398.11 | B78: =A78/1000 -> 0.39811 | C78: 1.01593785 | D78: 0.1773640912 | E78: 1.000000028 | F78: 0.0002351314922 | G78: 1 | H78: 0 | I78: 2.859550921 | J78: 1.213539845 | K78: 1.001378717 | L78: 0.05248114134 | M78: 1.000001044 | N78: 0.001444715433 | O78: 1.000050055 | P78: 0.01000526173 | Q78: 1.000002002 | R78: 0.002001116449 | S78: 1.000010099 | T78: 0.005303010309 | U78: 48.30454496 | V78: -76.94446609 | W78: 103.0555339 | Y78: 1000000000 | Z78: 158491.5721 | AB78: 36.81930519 | AC78: -66.60653967 | AE78: 11.48482241 | AF78: -10.45258194 | AG78: =AB78+AE78 -> 48.3041276 | AH78: -77.05912162 | AI78: =SUM((U79<0)*(U78>0))*A78 -> 0 | AJ78: 0
A79: 436.52 | B79: 0.43652 | C79: 1.019131298 | D79: 0.1940679795 | E79: 1.000000033 | F79: 0.0002578171827 | G79: 1 | H79: 0 | I79: 3.103019787 | J79: 1.242673348 | K79: 1.00165736 | L79: 0.05753389091 | M79: 1.000001255 | N79: 0.001584102615 | O79: 1.000060179 | P79: 0.01097050406 | Q79: 1.000002407 | R79: 0.002194185316 | S79: 1.000012141 | T79: 0.005814643004 | U79: 47.57003227 | V79: -79.30619278 | W79: 100.6938072 | Y79: 1000000000 | Z79: 190549.7104 | AB79: 36.11198574 | AC79: -67.9942515 | AE79: 11.45754475 | AF79: -11.43765884 | AG79: 47.56953049 | AH79: -79.43191034 | AI79: 0 | AJ79: 0
A80: 478.63 | B80: 0.47863 | C80: 1.022956935 | D80: 0.2122554393 | E80: 1.00000004 | F80: 0.0002826881646 | G80: 1 | H80: 0 | I80: 3.372508749 | J80: 1.269754681 | K80: 1.001992213 | L80: 0.06306998025 | M80: 1.000001508 | N80: 0.001736916765 | O80: 1.000072349 | P80: 0.01202870374 | Q80: 1.000002894 | R80: 0.002405852142 | S80: 1.000014597 | T80: 0.006375558781 | U80: 46.81709844 | V80: -81.61005009 | W80: 98.38994991 | Y80: 1000000000 | Z80: 229086.6769 | AB80: 35.39151593 | AC80: -69.23745863 | AE80: 11.42497925 | AF80: -12.51043664 | AG80: 46.81649518 | AH80: -81.74789527 | AI80: 0 | AJ80: 0
A81: 524.81 | B81: 0.52481 | C81: 1.02753822 | D81: 0.2320377615 | E81: 1.000000048 | F81: 0.0003099629669 | G81: 1 | H81: 0 | I81: 3.670448838 | J81: 1.294861786 | K81: 1.00239471 | L81: 0.06913668197 | M81: 1.000001814 | N81: 0.001904500558 | O81: 1.000086983 | P81: 0.01318914909 | Q81: 1.000003479 | R81: 0.002637976663 | S81: 1.00001755 | T81: 0.006990685309 | U81: 46.04654614 | V81: -83.86441192 | W81: 96.13558808 | Y81: 1000000000 | Z81: 275425.5361 | AB81: 34.65967987 | AC81: -70.33799521 | AE81: 11.386141 | AF81: -13.67756163 | AG81: 46.04582087 | AH81: -84.01555685 | AI81: 0 | AJ81: 0
A82: 575.44 | B82: 0.57544 | C82: 1.033018659 | D82: 0.2535153501 | E82: 1.000000058 | F82: 0.0003398660249 | G82: 1 | H82: 0 | I82: 3.999341722 | J82: 1.318073573 | K82: 1.002878352 | L82: 0.07578211467 | M82: 1.00000218 | N82: 0.002088232947 | O82: 1.000104575 | P82: 0.0144613764 | Q82: 1.000004183 | R82: 0.002892468853 | S82: 1.000021099 | T82: 0.007665083179 | U82: 45.25925829 | V82: -86.07704188 | W82: 93.92295812 | Y82: 1000000000 | Z82: 331131.1936 | AB82: 33.91847972 | AC82: -71.29770449 | AE82: 11.33990662 | AF82: -14.94506365 | AG82: 45.25838634 | AH82: -86.24276813 | AI82: 0 | AJ82: 0
A83: 630.96 | B83: 0.63096 | C83: 1.039569973 | D83: 0.2767950375 | E83: 1.000000069 | F83: 0.0003726572109 | G83: 1 | H83: 0 | I83: 4.362084761 | J83: 1.339491103 | K83: 1.003459564 | L83: 0.08306166113 | M83: 1.000002621 | N83: 0.002289710609 | O83: 1.000125726 | P83: 0.01585642535 | Q83: 1.000005029 | R83: 0.003171540244 | S83: 1.000025367 | T83: 0.008404611813 | U83: 44.4554033 | V83: -88.25696379 | W83: 91.74303621 | Y83: 1000000000 | Z83: 398110.5216 | AB83: 33.16939656 | AC83: -72.1192951 | AE83: 11.28495844 | AF83: -16.31938456 | AG83: 44.45435501 | AH83: -88.43867966 | AI83: 0 | AJ83: 0
A84: 691.83 | B84: 0.69183 | C84: 1.047391301 | D84: 0.3019681452 | E84: 1.000000083 | F84: 0.0004086082094 | G84: 1 | H84: 0 | I84: 4.761713937 | J84: 1.359212759 | K84: 1.004157815 | L84: 0.09103252173 | M84: 1.000003152 | N84: 0.002510602781 | O84: 1.000151153 | P84: 0.01738583241 | Q84: 1.000006047 | R84: 0.003477502851 | S84: 1.000030497 | T84: 0.009215396547 | U84: 43.63511942 | V84: -90.41206816 | W84: 89.58793184 | Y84: 1000000000 | Z84: 478628.7489 | AB84: 32.41404986 | AC84: -72.80522231 | AE84: 11.21980929 | AF84: -17.80609209 | AG84: 43.63385914 | AH84: -90.6113144 | AI84: 0 | AJ84: 0
A85: 758.58 | B85: 0.75858 | C85: 1.056718994 | D85: 0.3291254415 | E85: 1.0000001 | F85: 0.0004480320483 | G85: 1 | H85: 0 | I85: 5.20173264 | J85: 1.377348408 | K85: 1.004996748 | L85: 0.09976001087 | M85: 1.000003789 | N85: 0.002752832702 | O85: 1.000181724 | P85: 0.01906288537 | Q85: 1.00000727 | R85: 0.003813020484 | S85: 1.000036666 | T85: 0.01010449446 | U85: 42.79786347 | V85: -92.55045219 | W85: 87.44954781 | Y85: 1000000000 | Z85: 575443.6164 | AB85: 31.65360349 | AC85: -73.35814888 | AE85: 11.14274483 | AF85: -19.41077329 | AG85: 42.79634832 | AH85: -92.76892217 | AI85: 0 | AJ85: 0
A86: 831.76 | B86: 0.83176 | C86: 1.067823969 | D86: 0.3583296415 | E86: 1.000000121 | F86: 0.0004912535678 | G86: 1 | H86: 0 | I86: 5.685784841 | J86: 1.393999525 | K86: 1.006004302 | L86: 0.1093106773 | M86: 1.000004555 | N86: 0.00301839616 | O86: 1.000218473 | P86: 0.02090136458 | Q86: 1.00000874 | R86: 0.004180857404 | S86: 1.000044081 | T86: 0.01107922819 | U86: 41.94315166 | V86: -94.67806731 | W86: 85.32193269 | Y86: 1000000000 | Z86: 691824.6976 | AB86: 30.88945257 | AC86: -73.78019038 | AE86: 11.05187757 | AF86: -21.13742241 | AG86: 41.94133014 | AH86: -94.91761279 | AI86: 0 | AJ86: 0
A87: 912.01 | B87: 0.91201 | C87: 1.081025641 | D87: 0.3896358646 | E87: 1.000000145 | F87: 0.0005386507635 | G87: 1 | H87: 0 | I87: 6.218118033 | J87: 1.409274548 | K87: 1.007214459 | L87: 0.1197610148 | M87: 1.000005477 | N87: 0.003309615503 | O87: 1.000262659 | P87: 0.02291729838 | Q87: 1.000010508 | R87: 0.004584230147 | S87: 1.000052997 | T87: 0.01214811799 | U87: 41.06977964 | V87: -96.80031721 | W87: 83.19968279 | Y87: 1000000000 | Z87: 831762.2401 | AB87: 30.12251603 | AC87: -74.07331016 | AE87: 10.94507375 | AF87: -22.98966409 | AG87: 41.06758978 | AH87: -97.06297425 | AI87: 0 | AJ87: 0
A88: 1000 | B88: 1 | C88: 1.096686791 | D88: 0.4230589027 | E88: 1.000000174 | F88: 0.0005906193495 | G88: 1 | H88: 0 | I88: 6.803187746 | J88: 1.423271885 | K88: 1.008667429 | L88: 0.131189061 | M88: 1.000006585 | N88: 0.003628921896 | O88: 1.000315777 | P88: 0.02512745147 | Q88: 1.000012633 | R88: 0.005026505907 | S88: 1.000063717 | T88: 0.01332008225 | U88: 40.17663863 | V88: -98.91965116 | W88: 81.08034884 | Y88: 1000000000 | Z88: 1000000 | AB88: 29.35395743 | AC88: -74.23881459 | AE88: 10.82004855 | AF88: -24.96883414 | AG88: 40.17400598 | AH88: -99.20764873 | AI88: 0 | AJ88: 0
A89: 1096.5 | B89: 1.0965 | C89: 1.115228696 | D89: 0.4585911361 | E89: 1.00000021 | F89: 0.0006476141015 | G89: 1 | H89: 0 | I89: 7.44612266 | J89: 1.436091232 | K89: 1.010411913 | L89: 0.143682768 | M89: 1.000007917 | N89: 0.003979109325 | O89: 1.000379651 | P89: 0.02755107762 | Q89: 1.000015189 | R89: 0.005511554336 | S89: 1.000076607 | T89: 0.01460536931 | U89: 39.26207598 | V89: -101.036805 | W89: 78.96319503 | Y89: 1000000000 | Z89: 1202312.25 | AB89: 28.58460048 | AC89: -74.27753665 | AE89: 10.67431044 | AF89: -27.07505712 | AG89: 39.25891092 | AH89: -101.3525938 | AI89: 0 | AJ89: 0
A90: 1202.3 | B90: 1.2023 | C90: 1.137119017 | D90: 0.4961634851 | E90: 1.000000252 | F90: 0.0007101016071 | G90: 1 | H90: 0 | I90: 8.152192782 | J90: 1.447820215 | K90: 1.012505096 | L90: 0.1573286821 | M90: 1.000009518 | N90: 0.004363044263 | O90: 1.000456432 | P90: 0.03020790298 | Q90: 1.000018261 | R90: 0.006043345376 | S90: 1.000092103 | T90: 0.0160144913 | U90: 38.32481815 | V90: -103.1483948 | W90: 76.85160516 | Y90: 1000000000 | Z90: 1445525.29 | AB90: 27.81567666 | AC90: -74.18970241 | AE90: 10.50533648 | AF90: -29.30495062 | AG90: 38.32101314 | AH90: -103.494653 | AI90: 0 | AJ90: =IF(AI90>0,W90,0) -> 0
A91: 1318.3 | B91: 1.3183 | C91: 1.162890123 | D91: 0.5356707277 | E91: 1.000000303 | F91: 0.0007786134217 | G91: 1 | H91: 0 | I91: 8.927409014 | J91: 1.458546165 | K91: 1.015015797 | L91: 0.1722224023 | M91: 1.000011443 | N91: 0.004783992239 | O91: 1.00054873 | P91: 0.03312037684 | Q91: 1.000021955 | R91: 0.006626401556 | S91: 1.000110732 | T91: 0.01755942206 | U91: 37.36324594 | V91: -105.2485019 | W91: 74.75149806 | Y91: 1000000000 | Z91: 1737914.89 | AB91: 27.04815178 | AC91: -73.97502533 | AE91: 10.31051995 | AF91: -31.65314145 | AG91: 37.35867173 | AH91: -105.6281668 | AI91: 0 | AJ91: 0
A92: 1445.4 | B92: 1.4454 | C92: 1.193114751 | D92: 0.5769277821 | E92: 1.000000364 | F92: 0.0008536810997 | G92: 1 | H92: 0 | I92: 9.777788599 | J92: 1.468344578 | K92: 1.018023873 | L92: 0.1884529441 | M92: 1.000013756 | N92: 0.00524521863 | O92: 1.000659603 | P92: 0.0363108973 | Q92: 1.000026392 | R92: 0.007265244994 | S92: 1.000133112 | T92: 0.019252131 | U92: 36.37648426 | V92: -107.3263305 | W92: 72.67366946 | Y92: 1000000000 | Z92: 2089181.16 | AB92: 26.28353071 | AC92: -73.63291785 | AE92: 10.08745545 | AF92: -34.10968057 | AG92: 36.37098615 | AH92: -107.7425984 | AI92: 0 | AJ92: 0
A93: 1584.9 | B93: 1.5849 | C93: 1.228502669 | D93: 0.6197924282 | E93: 1.000000438 | F93: 0.0009360724425 | G93: 1 | H93: 0 | I93: 10.71203265 | J93: 1.477307236 | K93: 1.021632162 | L93: 0.206151732 | M93: 1.00001654 | N93: 0.005751440142 | O93: 1.000793015 | P93: 0.0398118345 | Q93: 1.000031733 | R93: 0.007966407776 | S93: 1.000160044 | T93: 0.02110990875 | U93: 35.36156761 | V93: -109.3723033 | W93: 70.62769667 | Y93: 1000000000 | Z93: 2511908.01 | AB93: 25.52161352 | AC93: -73.16137884 | AE93: 9.833344411 | AF93: -36.66736603 | AG93: 35.35495793 | AH93: -109.8287449 | AI93: 0 | AJ93: 0
A94: 1737.8 | B94: 1.7378 | C94: 1.269728246 | D94: 0.6639405304 | E94: 1.000000527 | F94: 0.001026378065 | G94: 1 | H94: 0 | I94: 11.73684119 | J94: 1.485491103 | K94: 1.025951878 | L94: 0.2254008981 | M94: 1.000019885 | N94: 0.006306284554 | O94: 1.000953328 | P94: 0.043647938 | Q94: 1.000038151 | R94: 0.00873491337 | S94: 1.000192411 | T94: 0.02314604281 | U94: 34.3189621 | V94: -111.3670542 | W94: 68.63294582 | Y94: 1000000000 | Z94: 3019948.84 | AB94: 24.76464634 | AC94: -72.55917413 | AE94: 9.546370566 | AF94: -39.30835372 | AG94: 34.3110169 | AH94: -111.8675279 | AI94: 0 | AJ94: 0
A95: 1905.5 | B95: 1.9055 | C95: 1.317599765 | D95: 0.7090883389 | E95: 1.000000633 | F95: 0.001125424826 | G95: 1 | H95: 0 | I95: 12.86159922 | J95: 1.492966948 | K95: 1.031122898 | L95: 0.2463192024 | M95: 1.000023908 | N95: 0.006914830815 | O95: 1.00114609 | P95: 0.04785387651 | Q95: 1.000045869 | R95: 0.00957779479 | S95: 1.000231334 | T95: 0.02537913729 | U95: 33.24753496 | V95: -113.2924824 | W95: 66.70751765 | Y95: 1000000000 | Z95: 3630930.25 | AB95: 24.01340533 | AC95: -71.82384504 | AE95: 9.224578917 | AF95: -42.01740453 | AG95: 33.23798424 | AH95: -113.8412496 | AI95: 0 | AJ95: 0
A96: 2089.3 | B96: 2.0893 | C96: 1.372922627 | D96: 0.7548516972 | E96: 1.000000761 | F96: 0.001233980524 | G96: 1 | H96: 0 | I96: 14.0950269 | J96: 1.499789664 | K96: 1.037303046 | L96: 0.2689951688 | M96: 1.000028742 | N96: 0.00758179452 | O96: 1.001377692 | P96: 0.05246165438 | Q96: 1.000055144 | R96: 0.01050158117 | S96: 1.000278109 | T96: 0.0278264512 | U96: 32.1482511 | V96: -115.1254915 | W96: 64.87450854 | Y96: 1000000000 | Z96: 4365174.49 | AB96: 23.26984904 | AC96: -70.95373494 | AE96: 8.866922772 | AF96: -44.7734528 | AG96: 32.13677181 | AH96: -115.7271877 | AI96: 0 | AJ96: 0
A97: 2290.9 | B97: 2.2909 | C97: 1.436638364 | D97: 0.8008880354 | E97: 1.000000915 | F97: 0.001353049199 | G97: 1 | H97: 0 | I97: 15.4485333 | J97: 1.506019972 | K97: 1.044687257 | L97: 0.293544596 | M97: 1.000034557 | N97: 0.008313342144 | O97: 1.001656161 | P97: 0.05751309969 | Q97: 1.000066299 | R97: 0.01151481042 | S97: 1.000334361 | T97: 0.03051055185 | U97: 31.02118974 | V97: -116.8443975 | W97: 63.15560254 | Y97: 1000000000 | Z97: 5248222.81 | AB97: 22.53498453 | AC97: -69.94604131 | AE97: 8.472407724 | AF97: -47.55810619 | AG97: 31.00739226 | AH97: -117.5041475 | AI97: 0 | AJ97: 0
A98: 2511.9 | B98: 2.5119 | C98: 1.509669713 | D98: 0.8467830696 | E98: 1.0000011 | F98: 0.001483575828 | G98: 1 | H98: 0 | I98: 16.93286138 | J98: 1.51170518 | K98: 1.053494541 | L98: 0.3200432416 | M98: 1.000041546 | N98: 0.009115276459 | O98: 1.001990776 | P98: 0.06304726286 | Q98: 1.000079707 | R98: 0.01262551563 | S98: 1.000401972 | T98: 0.03345265154 | U98: 29.86869648 | V98: -118.4248671 | W98: 61.57513291 | Y98: 1000000000 | Z98: 6309641.61 | AB98: 21.81098168 | AC98: -68.79946663 | AE98: 8.041132634 | AF98: -50.34878922 | AG98: 29.85211431 | AH98: -119.1482558 | AI98: 0 | AJ98: 0
A99: 2754.2 | B99: 2.7542 | C99: 1.593038276 | D99: 0.8921609985 | E99: 1.000001323 | F99: 0.001626682567 | G99: 1 | H99: 0 | I99: 18.56077264 | J99: 1.51689316 | K99: 1.063985652 | L99: 0.3485694084 | M99: 1.000049947 | N99: 0.009994487765 | O99: 1.002392882 | P99: 0.06911035595 | Q99: 1.000095825 | R99: 0.01384323481 | S99: 1.000483244 | T99: 0.03667792581 | U99: 28.69313518 | V99: -119.8448514 | W99: 60.15514859 | Y99: 1000000000 | Z99: 7585617.64 | AB99: 21.09966439 | AC99: -67.51266212 | AE99: 7.573543585 | AF99: -53.12534822 | AG99: 28.67320798 | AH99: -120.6380103 | AI99: 0 | AJ99: 0
A100: 3020 | B100: 3.02 | C100: 1.687869951 | D100: 0.9366839174 | E100: 1.000001591 | F100: 0.001783668751 | G100: 1 | H100: 0 | I100: 20.34704864 | J100: 1.521629343 | K100: 1.076469229 | L100: 0.3791950108 | M100: 1.000060052 | N100: 0.01095895349 | O100: 1.002876335 | P100: 0.07575562661 | Q100: 1.000115212 | R100: 0.01517900982 | S100: 1.000580994 | T100: 0.04021550236 | U100: 27.49717505 | V100: -121.0848914 | W100: 58.91510861 | Y100: 1000000000 | Z100: 9120400 | AB100: 20.40278615 | AC100: -66.08456746 | AE100: 7.070441902 | AF100: -55.87001713 | AG100: 27.47322805 | AH100: -121.9545846 | AI100: 0 | AJ100: 0
A101: 3311.3 | B101: 3.3113 | C101: 1.795212122 | D101: 0.9799823116 | E101: 1.000001912 | F101: 0.001955715586 | G101: 1 | H101: 0 | I101: 22.30513044 | J101: 1.52594856 | K101: 1.091281524 | L101: 0.4119199421 | M101: 1.000072196 | N101: 0.01201592349 | O101: 1.003456979 | P101: 0.08303071097 | Q101: 1.000138509 | R101: 0.01664287241 | S101: 1.000698447 | T101: 0.04409179355 | U101: 26.28597897 | V101: -122.1271034 | W101: 57.87289658 | Y101: 1000000000 | Z101: 10964707.69 | AB101: 19.72331745 | AC101: -64.51759981 | AE101: 6.533889357 | AF101: -58.56306995 | AG101: 26.2572068 | AH101: -123.0806698 | AI101: 0 | AJ101: 0
A102: 3630.8 | B102: 3.6308 | C102: 1.916356952 | D102: 1.021809211 | E102: 1.000002299 | F102: 0.002144417697 | G102: 1 | H102: 0 | I102: 24.45316722 | J102: 1.529890422 | K102: 1.108833045 | L102: 0.4467661045 | M102: 1.000086799 | N102: 0.01317518507 | O102: 1.004154829 | P102: 0.09099993214 | Q102: 1.000166525 | R102: 0.01824836549 | S102: 1.000839682 | T102: 0.04834245658 | U102: 25.0631923 | V102: -122.9600883 | W102: 57.03991169 | Y102: 1000000000 | Z102: 13182708.64 | AB102: 19.06317076 | AC102: -62.81333463 | AE102: 5.965454216 | AF102: -61.192308 | AG102: 25.02862497 | AH102: -124.0056426 | AI102: 0 | AJ102: 0
A103: 3981.1 | B103: 3.9811 | C103: 2.052552444 | D103: 1.061917697 | E103: 1.000002764 | F103: 0.002351310633 | G103: 1 | H103: 0 | I103: 26.80863941 | J103: 1.533486263 | K103: 1.129572284 | L103: 0.4836772679 | M103: 1.000104355 | N103: 0.01444615936 | O103: 1.004993131 | P103: 0.09972405416 | Q103: 1.000200204 | R103: 0.02000852069 | S103: 1.001009451 | T103: 0.05300172424 | U103: 23.83433353 | V103: -123.5763822 | W103: 56.42361779 | Y103: 1000000000 | Z103: 15849157.21 | AB103: 18.42518252 | AC103: -60.97732875 | AE103: 5.367627908 | AF103: -63.74545725 | AG103: 23.79281043 | AH103: -124.722786 | AI103: 0 | AJ103: 0
A104: 4365.2 | B104: 4.3652 | C104: 2.205189393 | D104: 1.100135017 | E104: 1.000003323 | F104: 0.002578166172 | G104: 1 | H104: 0 | I104: 29.39171958 | J104: 1.536766571 | K104: 1.154013304 | L104: 0.5225663865 | M104: 1.000125461 | N104: 0.01583971456 | O104: 1.00600008 | P104: 0.1092724333 | Q104: 1.000240694 | R104: 0.02193836811 | S104: 1.001213529 | T104: 0.05810902795 | U104: 22.60462993 | V104: -123.9747406 | W104: 56.02525941 | Y104: 1000000000 | Z104: 19054971.04 | AB104: 17.81193053 | AC104: -59.01693903 | AE104: 4.742829489 | AF104: -66.21477746 | AG104: 22.55476002 | AH104: -125.2317165 | AI104: 0 | AJ104: 0
A105: 4786.3 | B105: 4.7863 | C105: 2.375729158 | D105: 1.136333271 | E105: 1.000003996 | F105: 0.002826874191 | G105: 1 | H105: 0 | I105: 32.22392785 | J105: 1.539758504 | K105: 1.182725452 | L105: 0.5632865649 | M105: 1.000150833 | N105: 0.01736743874 | O105: 1.007209197 | P105: 0.1197175982 | Q105: 1.000289365 | R105: 0.02405392764 | S105: 1.001458803 | T105: 0.06370629763 | U105: 21.37967082 | V105: -124.159848 | W105: 55.840152 | Y105: 1000000000 | Z105: 22908667.69 | AB105: 17.22610311 | AC105: -56.94280191 | AE105: 4.093687085 | AF105: -68.59523464 | AG105: 21.3197902 | AH105: -125.5380365 | AI105: 0 | AJ105: 0
A106: 5248.1 | B106: 5.2481 | C106: 2.565829158 | D106: 1.170449723 | E106: 1.000004804 | F106: 0.003099619842 | G106: 1 | H106: 0 | I106: 35.33014955 | J106: 1.542488109 | K106: 1.216353306 | L106: 0.6056546999 | M106: 1.00018134 | N106: 0.01904272648 | O106: 1.008661183 | P106: 0.1311421256 | Q106: 1.000347887 | R106: 0.02637371117 | S106: 1.001753666 | T106: 0.06984189709 | U106: 20.16442001 | V106: -124.1424462 | W106: 55.85755381 | Y106: 1000000000 | Z106: 27542553.61 | AB106: 16.67001413 | AC106: -54.76766837 | AE106: 3.4225209 | AF106: -70.88588017 | AG106: 20.09253503 | AH106: -125.6535485 | AI106: 0 | AJ106: 0
A107: 5370.3 | B107: 5.3703 | C107: 2.616586486 | D107: 1.178645 | E107: 1.00000503 | F107: 0.003171792825 | G107: 1 | H107: 0 | I107: 36.15214699 | J107: 1.543131924 | K107: 1.225604345 | L107: 0.6164707528 | M107: 1.000189882 | N107: 0.01948601812 | O107: 1.00906739 | P107: 0.1341596184 | Q107: 1.000364274 | R107: 0.0269875182 | S107: 1.001836219 | T107: 0.07146498244 | U107: 19.86287852 | V107: -124.1082655 | W107: 55.89173447 | Y107: 1000000000 | Z107: 28840122.09 | AB107: 16.53597862 | AC107: -54.21024079 | AE107: 3.251659941 | AF107: -71.44429563 | AG107: 19.78763856 | AH107: -125.6545364 | AI107: 0 | AJ107: 0
A108: 5432.85 | B108: 5.43285 | C108: 2.642633449 | D108: 1.182717929 | E108: 1.000005148 | F108: 0.003208735694 | G108: 1 | H108: 0 | I108: 36.57290497 | J108: 1.543450272 | K108: 1.230394481 | L108: 0.6219438603 | M108: 1.000194331 | N108: 0.019712921 | O108: 1.009278867 | P108: 0.1357032228 | Q108: 1.000372807 | R108: 0.02730169718 | S108: 1.001879208 | T108: 0.07229570052 | U108: 19.71155199 | V108: -124.0867607 | W108: 55.91323933 | Y108: 1000000000 | Z108: 29515859.12 | AB108: 16.46931437 | AC108: -53.92789545 | AE108: 3.165251583 | AF108: -71.72313725 | AG108: 19.63456595 | AH108: -125.6510327 | AI108: 0 | AJ108: 0
A109: 5495.4 | B109: 5.4954 | C109: 2.668723394 | D109: 1.186711287 | E109: 1.000005267 | F109: 0.003245678554 | G109: 1 | H109: 0 | I109: 36.99366657 | J109: 1.54376138 | K109: 1.235221188 | L109: 0.6273743564 | M109: 1.000198831 | N109: 0.01993982184 | O109: 1.009492747 | P109: 0.1372461767 | Q109: 1.000381439 | R109: 0.02761587077 | S109: 1.001922694 | T109: 0.07312636102 | U109: 19.56221852 | V109: -124.0627202 | W109: 55.9372798 | Y109: 1000000000 | Z109: 30199421.16 | AB109: 16.40392404 | AC109: -53.64757652 | AE109: 3.079542927 | AF109: -71.99741652 | AG109: 19.48346697 | AH109: -125.644993 | AI109: 0 | AJ109: 0
A110: 5559.4 | B110: 5.5594 | C110: 2.695461328 | D110: 1.190717139 | E110: 1.000005391 | F110: 0.003283477794 | G110: 1 | H110: 0 | I110: 37.42418565 | J110: 1.544072458 | K110: 1.24019719 | L110: 0.6328868216 | M110: 1.000203489 | N110: 0.02017198045 | O110: 1.009714071 | P110: 0.1388242182 | Q110: 1.000390374 | R110: 0.02793732171 | S110: 1.001967701 | T110: 0.07397621713 | U110: 19.41144525 | V110: -124.0356324 | W110: 55.96436759 | Y110: 1000000000 | Z110: 30906928.36 | AB110: 16.33830419 | AC110: -53.36286071 | AE110: 2.992562978 | AF110: -72.27346233 | AG110: 19.33086716 | AH110: -125.636323 | AI110: 0 | AJ110: 0
A111: 5623.4 | B111: 5.6234 | C111: 2.722241665 | D111: 1.194644236 | E111: 1.000005515 | F111: 0.003321277024 | G111: 1 | H111: 0 | I111: 37.85470828 | J111: 1.54437646 | K111: 1.245210577 | L111: 0.638355064 | M111: 1.000208201 | N111: 0.02040413689 | O111: 1.009937909 | P111: 0.140401564 | Q111: 1.000399412 | R111: 0.02825876688 | S111: 1.002013228 | T111: 0.07482601157 | U111: 19.26267644 | V111: -124.0061574 | W111: 55.99384261 | Y111: 1000000000 | Z111: 31622627.56 | AB111: 16.27395353 | AC111: -53.08027314 | AE111: 2.90629798 | AF111: -72.54499232 | AG111: 19.18025151 | AH111: -125.6252655 | AI111: 0 | AJ111: 0
A112: 5688.9 | B112: 5.6889 | C112: 2.74969228 | D112: 1.198584107 | E112: 1.000005645 | F112: 0.003359962164 | G112: 1 | H112: 0 | I112: 38.29532482 | J112: 1.54468051 | K112: 1.250379704 | L112: 0.6439058946 | M112: 1.000213078 | N112: 0.02064173221 | O112: 1.010169594 | P112: 0.142015151 | Q112: 1.000408769 | R112: 0.02858773987 | S112: 1.002060359 | T112: 0.07569565846 | U112: 19.11245465 | V112: -123.973652 | W112: 56.02634797 | Y112: 1000000000 | Z112: 32363583.21 | AB112: 16.20937639 | AC112: -52.79326796 | AE112: 2.818742207 | AF112: -72.81834091 | AG112: 19.0281186 | AH112: -125.6116089 | AI112: 0 | AJ112: 0
A113: 5754.4 | B113: 5.7544 | C113: 2.777184732 | D113: 1.202446032 | E113: 1.000005775 | F113: 0.003398647294 | G113: 1 | H113: 0 | I113: 38.73594482 | J113: 1.544977643 | K113: 1.25558704 | L113: 0.6494108514 | M113: 1.000218013 | N113: 0.02087932521 | O113: 1.010403908 | P113: 0.1436279938 | Q113: 1.000418234 | R113: 0.02891670668 | S113: 1.002108034 | T113: 0.07656523927 | U113: 18.96424878 | V113: -123.9389092 | W113: 56.0610908 | Y113: 1000000000 | Z113: 33113119.36 | AB113: 16.1460638 | AC113: -52.50849471 | AE113: 2.731916607 | AF113: -73.08721974 | AG113: 18.87798041 | AH113: -125.5957145 | AI113: 0 | AJ113: 0
A114: 5821.4 | B114: 5.8214 | C114: 2.805348787 | D114: 1.206318026 | E114: 1.000005911 | F114: 0.003438218333 | G114: 1 | H114: 0 | I114: 39.18665881 | J114: 1.545274667 | K114: 1.260952666 | L114: 0.6549946612 | M114: 1.000223118 | N114: 0.02112235683 | O114: 1.010646305 | P114: 0.1452769938 | Q114: 1.000428027 | R114: 0.02925320059 | S114: 1.002157364 | T114: 0.07745466499 | U114: 18.81469217 | V114: -123.9011857 | W114: 56.09881433 | Y114: 1000000000 | Z114: 33888697.96 | AB114: 16.08257701 | AC114: -52.21950889 | AE114: 2.643848312 | AF114: -73.35776171 | AG114: 18.72642532 | AH114: -125.5772706 | AI114: 0 | AJ114: 0
A115: 5888.4 | B115: 5.8884 | C115: 2.833554064 | D115: 1.210112991 | E115: 1.000006048 | F115: 0.003477789361 | G115: 1 | H115: 0 | I115: 39.63737618 | J115: 1.545564936 | K115: 1.266357273 | L115: 0.6605309807 | M115: 1.000228283 | N115: 0.02136538595 | O115: 1.01089145 | P115: 0.1469251984 | Q115: 1.000437935 | R115: 0.02958968788 | S115: 1.002207262 | T115: 0.07834401998 | U115: 18.6671599 | V115: -123.8613789 | W115: 56.1386211 | Y115: 1000000000 | Z115: 34673254.56 | AB115: 16.0203482 | AC115: -51.93285689 | AE115: 2.556524253 | AF115: -73.62388625 | AG115: 18.57687245 | AH115: -125.5567431 | AI115: 0 | AJ115: 0
A116: 5957 | B116: 5.957 | C116: 2.862474339 | D116: 1.213921039 | E116: 1.000006189 | F116: 0.003518305357 | G116: 1 | H116: 0 | I116: 40.09886033 | J116: 1.545855376 | K116: 1.271930814 | L116: 0.6661505862 | M116: 1.000233633 | N116: 0.02161421613 | O116: 1.011145293 | P116: 0.1486119305 | Q116: 1.000448196 | R116: 0.02993420375 | S116: 1.002258942 | T116: 0.07925453917 | U116: 18.51815873 | V116: -123.8185904 | W116: 56.18140958 | Y116: 1000000000 | Z116: 35485849 | AB116: 15.95790392 | AC116: -51.64177512 | AE116: 2.467875629 | AF116: -73.89191884 | AG116: 18.42577955 | AH116: -125.533694 | AI116: 0 | AJ116: 0
A117: 6025.6 | B117: 6.0256 | C117: 2.891435291 | D117: 1.217652857 | E117: 1.000006333 | F117: 0.003558821342 | G117: 1 | H117: 0 | I117: 40.56034778 | J117: 1.546139207 | K117: 1.277544173 | L117: 0.6717209827 | M117: 1.000239044 | N117: 0.02186304364 | O117: 1.01140201 | P117: 0.150297811 | Q117: 1.000458575 | R117: 0.0302787125 | S117: 1.002311218 | T117: 0.08016498252 | U117: 18.37119321 | V117: -123.773871 | W117: 56.22612905 | Y117: 1000000000 | Z117: 36307855.36 | AB117: 15.89671285 | AC117: -51.35313399 | AE117: 2.379986338 | AF117: -74.1555794 | AG117: 18.27669918 | AH117: -125.5087134 | AI117: 0 | AJ117: 0
A118: 6095.8 | B118: 6.0958 | C118: 2.921112569 | D118: 1.221395054 | E118: 1.000006481 | F118: 0.003600282294 | G118: 1 | H118: 0 | I118: 41.0326021 | J118: 1.546423049 | K118: 1.283329129 | L118: 0.6773706726 | M118: 1.000244646 | N118: 0.0221176719 | O118: 1.01166769 | P118: 0.1520221216 | Q118: 1.00046932 | R118: 0.030631249 | S118: 1.00236533 | T118: 0.08109658127 | U118: 18.22286345 | V118: -123.726234 | W118: 56.27376598 | Y118: 1000000000 | Z118: 37158777.64 | AB118: 15.83535897 | AC118: -51.06028265 | AE118: 2.290822391 | AF118: -74.42099266 | AG118: 18.12618136 | AH118: -125.4812753 | AI118: 0 | AJ118: 0
A119: 6166 | B119: 6.166 | C119: 2.950829931 | D119: 1.225061928 | E119: 1.000006631 | F119: 0.003641743233 | G119: 1 | H119: 0 | I119: 41.50485965 | J119: 1.546700431 | K119: 1.289154681 | L119: 0.6829694791 | M119: 1.000250312 | N119: 0.0223722973 | O119: 1.011936377 | P119: 0.1537455217 | Q119: 1.000480189 | R119: 0.03098377789 | S119: 1.002420067 | T119: 0.08202809878 | U119: 18.07657745 | V119: -123.6768223 | W119: 56.32317772 | Y119: 1000000000 | Z119: 38019556 | AB119: 15.7752515 | AC119: -50.76997645 | AE119: 2.202431663 | AF119: -74.68208554 | AG119: 17.97768316 | AH119: -125.452062 | AI119: 0 | AJ119: 0
A120: 6237.8 | B120: 6.2378 | C120: 2.981264827 | D120: 1.228736705 | E120: 1.000006787 | F120: 0.003684149138 | G120: 1 | H120: 0 | I120: 41.98788413 | J120: 1.54697768 | K120: 1.295154429 | L120: 0.68864361 | M120: 1.000256175 | N120: 0.02263272312 | O120: 1.012214294 | P120: 0.1555072496 | Q120: 1.000491435 | R120: 0.03134433365 | S120: 1.002476697 | T120: 0.08298076245 | U120: 17.92902691 | V120: -123.6245699 | W120: 56.37543011 | Y120: 1000000000 | Z120: 38910148.84 | AB120: 15.71503029 | AC120: -50.47567922 | AE120: 2.112814806 | AF120: -74.94478871 | AG120: 17.82784509 | AH120: -125.4204679 | AI120: 0 | AJ120: 0
A121: 6309.6 | B121: 6.3096 | C121: 3.011739168 | D121: 1.232337164 | E121: 1.000006944 | F121: 0.00372655503 | G121: 1 | H121: 0 | I121: 42.47091177 | J121: 1.547248624 | K121: 1.301195491 | L121: 0.694265234 | M121: 1.000262105 | N121: 0.02289314587 | O121: 1.012495352 | P121: 0.157268005 | Q121: 1.00050281 | R121: 0.03170488126 | S121: 1.002533979 | T121: 0.08393333919 | U121: 17.78352514 | V121: -123.5707018 | W121: 56.42929823 | Y121: 1000000000 | Z121: 39811052.16 | AB121: 15.65604679 | AC121: -50.18402892 | AE121: 2.023983848 | AF121: -75.20322874 | AG121: 17.68003064 | AH121: -125.3872577 | AI121: 0 | AJ121: 0
A122: 6383.05 | B122: 6.38305 | C122: 3.042953404 | D122: 1.235945695 | E122: 1.000007106 | F122: 0.003769935417 | G122: 1 | H122: 0 | I122: 42.96504277 | J122: 1.54751949 | K122: 1.307417531 | L122: 0.6999621059 | M122: 1.000268242 | N122: 0.02315955005 | O122: 1.012786114 | P122: 0.1590682065 | Q122: 1.000514582 | R122: 0.0320737059 | S122: 1.002593254 | T122: 0.08490771564 | U122: 17.63675444 | V122: -123.514042 | W122: 56.485958 | Y122: 1000000000 | Z122: 40743327.3 | AB122: 15.5969553 | AC122: -49.88840551 | AE122: 1.933912821 | AF122: -75.46332448 | AG122: 17.53086813 | AH122: -125.35173 | AI122: 0 | AJ122: 0
A123: 6456.5 | B123: 6.4565 | C123: 3.074206459 | D123: 1.239480901 | E123: 1.000007271 | F123: 0.00381331579 | G123: 1 | H123: 0 | I123: 43.45917686 | J123: 1.547784196 | K123: 1.313681599 | L123: 0.7056048304 | M123: 1.00027445 | N123: 0.02342595094 | O123: 1.013080157 | P123: 0.1608673688 | Q123: 1.000526489 | R123: 0.03244252181 | S123: 1.002653212 | T123: 0.08588199904 | U123: 17.49203731 | V123: -123.4559255 | W123: 56.54407449 | Y123: 1000000000 | Z123: 41686392.25 | AB123: 15.5390927 | AC123: -49.59553141 | AE123: 1.844640257 | AF123: -75.71921367 | AG123: 17.38373295 | AH123: -125.3147451 | AI123: 0 | AJ123: 0
A124: 6531.7 | B124: 6.5317 | C124: 3.106243135 | D124: 1.24302659 | E124: 1.000007441 | F124: 0.003857729717 | G124: 1 | H124: 0 | I124: 43.96508714 | J124: 1.548049045 | K124: 1.320137831 | L124: 0.7113263314 | M124: 1.00028088 | N124: 0.02369869558 | O124: 1.013384601 | P124: 0.1627083097 | Q124: 1.000538822 | R124: 0.03282011589 | S124: 1.002715305 | T124: 0.08687939795 | U124: 17.34595389 | V124: -123.39503 | W124: 56.60497005 | Y124: 1000000000 | Z124: 42663104.89 | AB124: 15.48109123 | AC124: -49.29851538 | AE124: 1.754055532 | AF124: -75.9769687 | AG124: 17.23514676 | AH124: -125.2754841 | AI124: 0 | AJ124: 0
A125: 6606.9 | B125: 6.6069 | C125: 3.138318064 | D125: 1.246499845 | E125: 1.000007613 | F125: 0.003902143628 | G125: 1 | H125: 0 | I125: 44.47100043 | J125: 1.548307867 | K125: 1.326636857 | L125: 0.7169919586 | M125: 1.000287384 | N125: 0.0239714367 | O125: 1.013692478 | P125: 0.1645481385 | Q125: 1.000551297 | R125: 0.0331977006 | S125: 1.002778114 | T125: 0.08787669709 | U125: 17.20193122 | V125: -123.3328349 | W125: 56.66716507 | Y125: 1000000000 | Z125: 43651127.61 | AB125: 15.42431117 | AC125: -49.00435522 | AE125: 1.66428276 | AF125: -76.23056785 | AG125: 17.08859393 | AH125: -125.2349231 | AI125: 0 | AJ125: 0
A126: 6683.85 | B126: 6.68385 | C126: 3.171177807 | D126: 1.249981152 | E126: 1.000007792 | F126: 0.003947591092 | G126: 1 | H126: 0 | I126: 44.98868998 | J126: 1.548566687 | K126: 1.333330771 | L126: 0.7227320685 | M126: 1.000294116 | N126: 0.02425052116 | O126: 1.014011068 | P126: 0.1664296194 | Q126: 1.00056421 | R126: 0.03358406239 | S126: 1.002843126 | T126: 0.08889710021 | U126: 17.05664372 | V126: -123.2679586 | W126: 56.73204136 | Y126: 1000000000 | Z126: 44673850.82 | AB126: 15.36744062 | AC126: -48.70629079 | AE126: 1.573248471 | AF126: -76.48589289 | AG126: 16.94068909 | AH126: -125.1921837 | AI126: 0 | AJ126: 0
A127: 6760.8 | B127: 6.7608 | C127: 3.204075194 | D127: 1.253391011 | E127: 1.000007972 | F127: 0.00399303854 | G127: 1 | H127: 0 | I127: 45.50638247 | J127: 1.548819618 | K127: 1.340068176 | L127: 0.7284146455 | M127: 1.000300926 | N127: 0.02452960184 | O127: 1.014333247 | P127: 0.1683099118 | Q127: 1.000577272 | R127: 0.03397041414 | S127: 1.002908887 | T127: 0.08991739648 | U127: 16.9134209 | V127: -123.201942 | W127: 56.79805803 | Y127: 1000000000 | Z127: 45708416.64 | AB127: 15.31178201 | AC127: -48.41118515 | AE127: 1.48303836 | AF127: -76.73711819 | AG127: 16.79482037 | AH127: -125.1483033 | AI127: 0 | AJ127: 0
A128: 6839.55 | B128: 6.83955 | C128: 3.237779889 | D128: 1.256808851 | E128: 1.000008159 | F128: 0.004039549069 | G128: 1 | H128: 0 | I128: 46.03618768 | J128: 1.549072576 | K128: 1.347007531 | L128: 0.7341711017 | M128: 1.000307976 | N128: 0.02481520676 | O128: 1.014666672 | P128: 0.1702329444 | Q128: 1.000590795 | R128: 0.03436579287 | S128: 1.002976962 | T128: 0.09096144745 | U128: 16.76893845 | V128: -123.1333078 | W128: 56.86669216 | Y128: 1000000000 | Z128: 46779444.2 | AB128: 15.2560426 | AC128: -48.11222188 | AE128: 1.391557998 | AF128: -76.99010085 | AG128: 16.6476006 | AH128: -125.1023227 | AI128: 0 | AJ128: 0
A129: 6918.3 | B129: 6.9183 | C129: 3.271521627 | D129: 1.260156228 | E129: 1.000008348 | F129: 0.004086059581 | G129: 1 | H129: 0 | I129: 46.56599577 | J129: 1.549319778 | K129: 1.353991062 | L129: 0.7398683646 | M129: 1.000315108 | N129: 0.02510080764 | O129: 1.015003847 | P129: 0.1721547064 | Q129: 1.000604473 | R129: 0.03476116084 | S129: 1.003045821 | T129: 0.09200538398 | U129: 16.62652411 | V129: -123.063692 | W129: 56.93630798 | Y129: 1000000000 | Z129: 47862874.89 | AB129: 15.20150531 | AC129: -47.81632011 | AE129: 1.300913844 | AF129: -77.23903972 | AG129: 16.50241915 | AH129: -125.0553598 | AI129: 0 | AJ129: 0
A130: 6998.9 | B130: 6.9989 | C130: 3.306093203 | D130: 1.263511451 | E130: 1.000008544 | F130: 0.004133662702 | G130: 1 | H130: 0 | I130: 47.10825302 | J130: 1.549567029 | K130: 1.361183688 | L130: 0.7456387401 | M130: 1.000322492 | N130: 0.02539311363 | O130: 1.015352822 | P130: 0.1741202854 | Q130: 1.000618636 | R130: 0.03516580556 | S130: 1.00311711 | T130: 0.09307372486 | U130: 16.48285802 | V130: -122.9915278 | W130: 57.00847217 | Y130: 1000000000 | Z130: 48984601.21 | AB130: 15.14689787 | AC130: -47.51661629 | AE130: 1.208992297 | AF130: -77.48976377 | AG130: 16.35589016 | AH130: -125.0063801 | AI130: 0 | AJ130: 0
A131: 7079.5 | B131: 7.0795 | C131: 3.340701226 | D131: 1.266797193 | E131: 1.000008742 | F131: 0.004181265804 | G131: 1 | H131: 0 | I131: 47.65051309 | J131: 1.549808653 | K131: 1.368421159 | L131: 0.751348266 | M131: 1.000329961 | N131: 0.02568541528 | O131: 1.015705717 | P131: 0.1760845062 | Q131: 1.000632962 | R131: 0.03557043876 | S131: 1.00318922 | T131: 0.09414194313 | U131: 16.34126287 | V131: -122.9185401 | W131: 57.08145992 | Y131: 1000000000 | Z131: 50119320.25 | AB131: 15.09348226 | AC131: -47.22007624 | AE131: 1.117918767 | AF131: -77.73649986 | AG131: 16.21140103 | AH131: -124.9565761 | AI131: 0 | AJ131: 0
A132: 7161.95 | B132: 7.16195 | C132: 3.376140147 | D132: 1.270088616 | E132: 1.000008946 | F132: 0.004229961514 | G132: 1 | H132: 0 | I132: 48.20522238 | J132: 1.550050198 | K132: 1.375870416 | L132: 0.7571264974 | M132: 1.00033769 | N132: 0.02598442154 | O132: 1.016070764 | P132: 0.1780923918 | Q132: 1.000647786 | R132: 0.0359843474 | S132: 1.003263835 | T132: 0.09523455174 | U132: 16.19851226 | V132: -122.8431244 | W132: 57.15687565 | Y132: 1000000000 | Z132: 51293527.8 | AB132: 15.04004 | AC132: -46.91997928 | AE132: 1.025617936 | AF132: -77.98489631 | AG132: 16.06565794 | AH132: -124.9048756 | AI132: 0 | AJ132: 0
A133: 7244.4 | B133: 7.2444 | C133: 3.411614882 | D133: 1.273311623 | E133: 1.000009154 | F133: 0.004278657203 | G133: 1 | H133: 0 | I133: 48.75993443 | J133: 1.550286248 | K133: 1.383365115 | L133: 0.762842308 | M133: 1.000345509 | N133: 0.02628342316 | O133: 1.016439904 | P133: 0.180098827 | Q133: 1.000662782 | R133: 0.03639824369 | S133: 1.003339309 | T133: 0.09632702913 | U133: 16.05783225 | V133: -122.7670432 | W133: 57.23295682 | Y133: 1000000000 | Z133: 52481331.36 | AB133: 14.98777741 | AC133: -46.62314361 | AE133: 0.9341756536 | AF133: -78.22936531 | AG133: 15.92195306 | AH133: -124.8525089 | AI133: 0 | AJ133: 0
A134: 7328.75 | B134: 7.32875 | C134: 3.447943017 | D134: 1.276540237 | E134: 1.000009368 | F134: 0.004328475029 | G134: 1 | H134: 0 | I134: 49.32743215 | J134: 1.550522243 | K134: 1.391078782 | L134: 0.7686259064 | M134: 1.0003536 | N134: 0.02658931018 | O134: 1.016821782 | P134: 0.1821499831 | Q134: 1.000678301 | R134: 0.03682166502 | S134: 1.003417412 | T134: 0.09744454452 | U134: 15.91600438 | V134: -122.6886152 | W134: 57.31138478 | Y134: 1000000000 | Z134: 53710576.56 | AB134: 14.93549739 | AC134: -46.32281539 | AE134: 0.8414998201 | AF134: -78.47552583 | AG134: 15.77699721 | AH134: -124.7983412 | AI134: 0 | AJ134: 0
A135: 7413.1 | B135: 7.4131 | C135: 3.484306343 | D135: 1.279701494 | E135: 1.000009585 | F135: 0.004378292832 | G135: 1 | H135: 0 | I135: 49.89493256 | J135: 1.550752869 | K135: 1.398838467 | L135: 0.7743455283 | M135: 1.000361785 | N135: 0.02689519223 | O135: 1.017207935 | P135: 0.1841995904 | Q135: 1.000693999 | R135: 0.03724507313 | S135: 1.003496413 | T135: 0.09856191944 | U135: 15.7762462 | V135: -122.6096784 | W135: 57.39032162 | Y135: 1000000000 | Z135: 54954051.61 | AB135: 14.88438448 | AC135: -46.02584488 | AE135: 0.7496928352 | AF135: -78.71781901 | AG135: 15.63407732 | AH135: -124.7436639 | AI135: 0 | AJ135: 0
A136: 7499.45 | B136: 7.49945 | C136: 3.521567185 | D136: 1.282870047 | E136: 1.000009809 | F136: 0.00442929183 | G136: 1 | H136: 0 | I136: 50.4758915 | J136: 1.550983592 | K136: 1.406829011 | L136: 0.7801352148 | M136: 1.000370261 | N136: 0.02720832175 | O136: 1.017607667 | P136: 0.1862961751 | Q136: 1.000710255 | R136: 0.03767850672 | S136: 1.003578218 | T136: 0.099705641 | U136: 15.63526891 | V136: -122.5284335 | W136: 57.47156651 | Y136: 1000000000 | Z136: 56241750.3 | AB136: 14.83323471 | AC136: -45.72528074 | AE136: 0.6565938012 | AF136: -78.96197217 | AG136: 15.48982851 | AH136: -124.6872529 | AI136: 0 | AJ136: 0
A137: 7585.8 | B137: 7.5858 | C137: 3.558862643 | D137: 1.285972222 | E137: 1.000010037 | F137: 0.004480290805 | G137: 1 | H137: 0 | I137: 51.05685307 | J137: 1.551209065 | K137: 1.41486618 | L137: 0.7858593146 | M137: 1.000378835 | N137: 0.02752144593 | O137: 1.018011869 | P137: 0.1883911041 | Q137: 1.000726699 | R137: 0.03811192615 | S137: 1.003660965 | T137: 0.100849212 | U137: 15.49636213 | V137: -122.4468342 | W137: 57.55316579 | Y137: 1000000000 | Z137: 57544361.64 | AB137: 14.78324036 | AC137: -45.4281733 | AE137: 0.5643746757 | AF137: -79.20231343 | AG137: 15.34761504 | AH137: -124.6304867 | AI137: 0 | AJ137: 0
A138: 7674.15 | B138: 7.67415 | C138: 3.597056624 | D138: 1.289079636 | E138: 1.000010272 | F138: 0.004532470971 | G138: 1 | H138: 0 | I138: 51.65127324 | J138: 1.55143451 | K138: 1.423136934 | L138: 0.7916488817 | M138: 1.000387709 | N138: 0.02784181697 | O138: 1.018430053 | P138: 0.1905328241 | Q138: 1.000743719 | R138: 0.03855536941 | S138: 1.003746603 | T138: 0.1020191123 | U138: 15.35633136 | V138: -122.3630643 | W138: 57.63693566 | Y138: 1000000000 | Z138: 58892578.22 | AB138: 14.73325003 | AC138: -45.1277285 | AE138: 0.4709146581 | AF138: -79.44439578 | AG138: 15.20416469 | AH138: -124.5721243 | AI138: 0 | AJ138: 0
A139: 7762.5 | B139: 7.7625 | C139: 3.635284609 | D139: 1.292121724 | E139: 1.00001051 | F139: 0.004584651112 | G139: 1 | H139: 0 | I139: 52.24569597 | J139: 1.551654825 | K139: 1.431454839 | L139: 0.7973713546 | M139: 1.000396685 | N139: 0.02816218229 | O139: 1.018852905 | P139: 0.1926727762 | Q139: 1.000760935 | R139: 0.03899879751 | S139: 1.003833227 | T139: 0.1031888515 | U139: 15.21836873 | V139: -122.2790932 | W139: 57.7209068 | Y139: 1000000000 | Z139: 60256406.25 | AB139: 14.68440157 | AC139: -44.83083367 | AE139: 0.3783442977 | AF139: -79.68272604 | AG139: 15.06274586 | AH139: -124.5135597 | AI139: 0 | AJ139: 0
A140: 7852.9 | B140: 7.8529 | C140: 3.674433694 | D140: 1.295168852 | E140: 1.000010756 | F140: 0.004638041972 | G140: 1 | H140: 0 | I140: 52.85391376 | J140: 1.551875123 | K140: 1.440013697 | L140: 0.803157985 | M140: 1.000405977 | N140: 0.02848997512 | O140: 1.019290393 | P140: 0.1948605339 | Q140: 1.000778755 | R140: 0.03945249865 | S140: 1.00392288 | T140: 0.1043855636 | U140: 15.07929553 | V140: -122.1930468 | W140: 57.80695315 | Y140: 1000000000 | Z140: 61668038.41 | AB140: 14.63556767 | AC140: -44.53068745 | AE140: 0.2845307884 | AF140: -79.92282107 | AG140: 14.92009846 | AH140: -124.4535085 | AI140: 0 | AJ140: 0
A141: 7943.3 | B141: 7.9433 | C141: =SQRT(1+(A141/pole1)^2) -> 3.713616176 | D141: =ATAN(A141/pole1) -> 1.298151706 | E141: =SQRT(1+(A141/Zero1)^2) -> 1.000011005 | F141: =ATAN(A141/Zero1) -> 0.004691432806 | G141: =IF(VIN_nom>Vout, 1, SQRT(1+(A141/z_RHP)^2)) -> 1 | H141: =IF(VIN_nom>Vout, 0, -ATAN(A141/z_RHP)) -> 0 | I141: =SQRT(1+(A141/Pole2)^2) -> 53.46213406 | J141: =ATAN(A141/Pole2) -> 1.552090408 | K141: =SQRT(1+(A141/Zero2)^2) -> 1.448620203 | L141: =ATAN(A141/Zero2) -> 0.8088760462 | M141: =SQRT(1+(A141/pole4)^2) -> 1.000415375 | N141: =ATAN(A141/pole4) -> 0.02881776182 | O141: =SQRT(1+(A141/Zero3)^2) -> 1.019732756 | P141: =ATAN(A141/Zero3) -> 0.1970464039 | Q141: =SQRT(1+(A141/pole5)^2) -> 1.00079678 | R141: =ATAN(A141/pole5) -> 0.03990618355 | S141: =SQRT((1-(Z141/pterm2))^2+(A141/pterm1)^2) -> 1.004013564 | T141: =IF((ATAN((A141/pterm1)/(1-A141^2/pterm2))>0),ATAN((A141/pterm1)/(1-A141^2/pterm2)),PI()+ATAN((A141/pterm1)/(1-A141^2/pterm2))) -> 0.1055821032 | U141: =20*LOG10(((E141*K141*G141*O141)/(C141*I141*S141*M141*Q141))*Adc) -> 14.94228739 | V141: =((F141+L141+H141+R141)-(D141+J141+T141+N141))*radconv -> -122.1069501 | W141: =IF(V141>0,V141,V141+180) -> 57.89304988 | Y141: =IF(U141<0,A141,1000000000) -> 1000000000 | Z141: =A141^2 -> 63096014.89 | AB141: =20*LOG10((K141/(I141*M141))*AEA*Afb) -> 14.58786159 | AC141: =(L141-(J141+N141))*radconv -> -44.2341824 | AE141: =20*LOG10((E141*G141/(C141*S141))*Am) -> 0.1916163931 | AF141: =(F141+H141-(D141+T141))*radconv -> -80.15922361 | AG141: 14.77947798 | AH141: -124.393406 | AI141: 0 | AJ141: 0
A142: 8035.8 | B142: =A142/1000 -> 8.0358 | C142: 3.753742349 | D142: 1.301139366 | E142: 1.000011263 | F142: 0.004746063885 | G142: 1 | H142: 0 | I142: 54.08448587 | J142: 1.552305683 | K142: 1.457475079 | L142: 0.8146568421 | M142: 1.000425104 | N142: 0.02915315662 | O142: 1.020190434 | P142: 0.1992810787 | Q142: 1.000815438 | R142: 0.04037039058 | S142: 1.004107422 | T142: 0.1068062579 | U142: 14.80418363 | V142: -122.0188779 | W142: 57.98112207 | Y142: 1000000000 | Z142: 64574081.64 | AB142: 14.54018083 | AC142: -43.93451821 | AE142: 0.09745778522 | AF142: -80.39741272 | AG142: =AB142+AE142 -> 14.63763861 | AH142: -124.3319309 | AI142: =SUM((U143<0)*(U142>0))*A142 -> 0 | AJ142: 0
A143: 8128.3 | B143: 8.1283 | C143: 3.79390132 | D143: 1.304063803 | E143: 1.000011523 | F143: 0.004800694937 | G143: 1 | H143: 0 | I143: 54.70684013 | J143: 1.552516059 | K143: 1.466378072 | L143: 0.8203676317 | M143: 1.000434945 | N143: 0.02948854486 | O143: 1.020653202 | P143: 0.2015137383 | Q143: 1.000834311 | R143: 0.04083458019 | S143: 1.004202359 | T143: 0.1080302279 | U143: 14.66814105 | V143: -121.9309037 | W143: 58.06909626 | Y143: 1000000000 | Z143: 66069260.89 | AB143: 14.49361329 | AC143: -43.63858407 | AE143: 0.004207437941 | AF143: -80.63196878 | AG143: 14.49782072 | AH143: -124.2705528 | AI143: 0 | AJ143: 0
A144: 8222.95 | B144: 8.22295 | C144: 3.835026591 | D144: 1.306992788 | E144: 1.000011793 | F144: 0.004856595761 | G144: 1 | H144: 0 | I144: 55.34366238 | J144: 1.552726427 | K144: 1.475536898 | L144: 0.8261396295 | M144: 1.000445131 | N144: 0.02983172175 | O144: 1.021131987 | P144: 0.2037961857 | Q144: 1.000853846 | R144: 0.04130954086 | S144: 1.004300619 | T144: 0.1092824535 | U144: 14.53101919 | V144: -121.841058 | W144: 58.15894196 | Y144: 1000000000 | Z144: 67616906.7 | AB144: 14.44708188 | AC144: -43.33958876 | AE144: -0.09028706118 | AF144: -80.86833164 | AG144: 14.35679482 | AH144: -124.2079204 | AI144: 0 | AJ144: 0
A145: 8270.275 | B145: 8.270275 | C145: 3.855601367 | D145: 1.308433844 | E145: 1.00001193 | F145: 0.004884546162 | G145: 1 | H145: 0 | I145: 55.6620744 | J145: 1.552829806 | K145: 1.480134574 | L145: 0.8289987938 | M145: 1.000450268 | N145: 0.03000330756 | O145: 1.021373374 | P145: 0.2049366039 | Q145: 1.000863698 | R145: 0.04154701421 | S145: 1.004350173 | T145: 0.1099084923 | U145: 14.46323255 | V145: -121.7962224 | W145: 58.20377757 | Y145: 1000000000 | Z145: 68397448.58 | AB145: 14.42423002 | AC145: -43.19152504 | AE145: -0.1371893622 | AF145: -80.98516596 | AG145: 14.28704066 | AH145: -124.176691 | AI145: 0 | AJ145: 0
A146: 8317.6 | B146: 8.3176 | C146: 3.876184064 | D146: 1.309859598 | E146: 1.000012066 | F146: 0.004912496555 | G146: 1 | H146: 0 | I146: 55.98048701 | J146: 1.552932009 | K146: 1.484744275 | L146: 0.8318402273 | M146: 1.000455435 | N146: 0.0301748916 | O146: 1.021616088 | P146: 0.2060764818 | Q146: 1.000873607 | R146: 0.04178448287 | S146: 1.004400009 | T146: 0.1105344813 | U146: 14.39595383 | V146: -121.751456 | W146: 58.24854405 | Y146: 1000000000 | Z146: 69182469.76 | AB146: 14.40164859 | AC146: -43.04440974 | AE146: -0.1838644807 | AF146: -81.10112074 | AG146: 14.21778411 | AH146: -124.1455305 | AI146: 0 | AJ146: 0
A147: 8366.05 | B147: 8.36605 | C147: 3.897264124 | D147: 1.31130364 | E147: 1.000012207 | F147: 0.004941111372 | G147: 1 | H147: 0 | I147: 56.30646946 | J147: 1.553035444 | K147: 1.489475897 | L147: 0.8347309632 | M147: 1.000460755 | N147: 0.03035055267 | O147: 1.021865946 | P147: 0.2072428941 | Q147: 1.00088381 | R147: 0.0420275917 | S147: 1.004451322 | T147: 0.1111752995 | U147: 14.32759561 | V147: -121.7057051 | W147: 58.29429486 | Y147: 1000000000 | Z147: 69990792.6 | AB147: 14.37880632 | AC147: -42.89477381 | AE147: -0.2314159509 | AF147: -81.21893496 | AG147: 14.14739037 | AH147: -124.1137088 | AI147: 0 | AJ147: 0
A148: 8414.5 | B148: 8.4145 | C148: 3.918352224 | D148: 1.312732143 | E148: 1.000012349 | F148: 0.00496972618 | G148: 1 | H148: 0 | I148: 56.63245251 | J148: 1.553137689 | K148: =SQRT(1+(A148/Zero2)^2) -> 1.494219887 | L148: =ATAN(A148/Zero2) -> 0.8376033674 | M148: 1.000466106 | N148: 0.03052621186 | O148: 1.022117194 | P148: 0.2084087345 | Q148: 1.000894071 | R148: 0.04227069557 | S148: 1.004502931 | T148: 0.1118160649 | U148: 14.25975696 | V148: -121.6600432 | W148: 58.33995682 | Y148: 1000000000 | Z148: 70803810.25 | AB148: 14.35623906 | AC148: -42.74611987 | AE148: -0.2787336467 | AF148: -81.33585577 | AG148: 14.07750541 | AH148: -124.0819756 | AI148: 0 | AJ148: 0
A149: 8462.95 | B149: 8.46295 | C149: 3.939448234 | D149: 1.314145348 | E149: 1.000012492 | F149: 0.00499834098 | G149: 1 | H149: 0 | I149: 56.95843614 | J149: 1.553238763 | K149: 1.498976127 | L149: 0.8404575667 | M149: 1.000471488 | N149: 0.03070186916 | O149: 1.02236983 | P149: 0.2095740004 | Q149: 1.000904392 | R149: 0.04251379443 | S149: 1.004554835 | T149: 0.1124567774 | U149: 14.19243155 | V149: -121.6144779 | W149: 58.38552206 | Y149: 1000000000 | Z149: 71621522.7 | AB149: 14.33394267 | AC149: -42.59844183 | AE149: -0.3258197234 | AF149: -81.45189711 | AG149: 14.00812295 | AH149: -124.0503389 | AI149: 0 | AJ149: 0
A150: 8511.4 | B150: 8.5114 | C150: 3.960552028 | D150: 1.315543496 | E150: 1.000012635 | F150: 0.005026955771 | G150: 1 | H150: 0 | I150: 57.28442034 | J150: 1.553338687 | K150: 1.503744501 | L150: 0.8432936877 | M150: 1.0004769 | N150: 0.03087752457 | O150: 1.022623854 | P150: 0.2107386889 | Q150: 1.000914773 | R150: 0.04275688827 | S150: 1.004607036 | T150: 0.1130974366 | U150: 14.12561317 | V150: -121.569017 | W150: 58.43098301 | Y150: 1000000000 | Z150: 72443929.96 | AB150: 14.31191308 | AC150: -42.45173359 | AE150: -0.3726763108 | AF150: -81.56707265 | AG150: 13.93923677 | AH150: -124.0188062 | AI150: 0 | AJ150: 0
A151: 8560.95 | B151: 8.56095 | C151: 3.98214288 | D151: 1.316958057 | E151: 1.000012783 | F151: 0.00505622022 | G151: 1 | H151: 0 | I151: 57.61780622 | J151: 1.55343971 | K151: 1.508633566 | L151: 0.8461756322 | M151: 1.000482468 | N151: 0.03105716606 | O151: 1.02288508 | P151: 0.2119292203 | Q151: 1.000925449 | R151: 0.04300549603 | S151: 1.004660727 | T151: 0.1137525857 | U151: 14.0577958 | V151: -121.5226394 | W151: 58.47736064 | Y151: 1000000000 | Z151: 73289864.9 | AB151: 14.28965511 | AC151: -42.30269122 | AE151: -0.4203615506 | AF151: -81.68398156 | AG151: 13.86929356 | AH151: -123.9866728 | AI151: 0 | AJ151: 0
A152: 8610.5 | B152: 8.6105 | C152: 4.003741615 | D152: 1.318357359 | E152: 1.000012931 | F152: 0.005085484659 | G152: 1 | H152: 0 | I152: 57.95119268 | J152: 1.55353957 | K152: 1.513535081 | L152: 0.8490389342 | M152: 1.000488067 | N152: 0.03123680554 | O152: 1.023147754 | P152: 0.2131191421 | Q152: 1.000936188 | R152: 0.04325409847 | S152: 1.004714727 | T152: 0.1144076785 | U152: 13.99049589 | V152: -121.4763859 | W152: 58.52361407 | Y152: 1000000000 | Z152: 74140710.25 | AB152: 14.2676678 | AC152: -42.15465027 | AE152: -0.4678111869 | AF152: -81.80001295 | AG152: 13.79985661 | AH152: -123.9546632 | AI152: 0 | AJ152: 0
A153: 8660.05 | B153: 8.66005 | C153: 4.025348105 | D153: 1.319741641 | E153: 1.00001308 | F153: 0.00511474909 | G153: 1 | H153: 0 | I153: 58.28457971 | J153: 1.553638288 | K153: 1.518448923 | L153: 0.8518837276 | M153: 1.000493699 | N153: 0.031416443 | O153: 1.023411876 | P153: 0.2143084514 | Q153: 1.000946989 | R153: 0.04350269557 | S153: 1.004769037 | T153: 0.1150627147 | U153: 13.92370711 | V153: -121.4302639 | W153: 58.56973608 | Y153: 1000000000 | Z153: 74996466 | AB153: 14.24594702 | AC153: -42.00760422 | AE153: -0.5150274165 | AF153: -81.91518056 | AG153: 13.7309196 | AH153: -123.9227848 | AI153: 0 | AJ153: 0
A154: 8709.6 | B154: 8.7096 | C154: 4.046962226 | D154: 1.321111139 | E154: 1.000013231 | F154: 0.005144013513 | G154: 1 | H154: 0 | I154: 58.6179673 | J154: 1.553735883 | K154: 1.523374975 | L154: 0.8547101456 | M154: 1.000499364 | N154: 0.03159607844 | O154: 1.023677446 | P154: 0.2154971453 | Q154: 1.000957852 | R154: 0.04375128728 | S154: 1.004823656 | T154: 0.1157176938 | U154: 13.8574232 | V154: -121.3842803 | W154: 58.61571972 | Y154: 1000000000 | Z154: 75857132.16 | AB154: 14.22448872 | AC154: -41.86154654 | AE154: -0.5620124095 | AF154: -82.02949786 | AG154: 13.66247632 | AH154: -123.8910444 | AI154: 0 | AJ154: =IF(AI154>0,W154,0) -> 0
A155: 8760.325 | B155: 8.760325 | C155: 4.069096669 | D155: 1.32249804 | E155: 1.000013385 | F155: 0.005173971885 | G155: 1 | H155: 0 | I155: 58.95926122 | J155: 1.55383465 | K155: 1.528430364 | L155: 0.8575846921 | M155: 1.000505196 | N155: 0.03177997153 | O155: 1.02395081 | P155: 0.2167133867 | Q155: 1.000969036 | R155: 0.04400576835 | S155: 1.00487989 | T155: 0.1163881454 | U155: 13.79008404 | V155: -121.3373565 | W155: 58.66264348 | Y155: 1000000000 | Z155: 76743294.11 | AB155: 14.20278932 | AC155: -41.71304234 | AE155: -0.6098742884 | AF155: -82.14565898 | AG155: 13.59291503 | AH155: -123.8587013 | AI155: 0 | AJ155: 0
A156: 8811.05 | B156: 8.81105 | C156: 4.091238855 | D156: 1.323869931 | E156: 1.000013541 | F156: 0.005203930249 | G156: 1 | H156: 0 | I156: 59.30055571 | J156: 1.553932279 | K156: 1.5334983 | L156: 0.8604402624 | M156: 1.000511062 | N156: 0.03196386248 | O156: 1.024225688 | P156: 0.2179289771 | Q156: 1.000980285 | R156: 0.04426024372 | S156: 1.004936448 | T156: 0.1170585367 | U156: 13.72326108 | V156: -121.2905916 | W156: 58.70940836 | Y156: 1000000000 | Z156: 77634602.1 | AB156: 14.18135662 | AC156: -41.56556015 | AE156: -0.6574983516 | AF156: -82.26095666 | AG156: 13.52385827 | AH156: -123.8265168 | AI156: 0 | AJ156: 0
A157: 8861.775 | B157: 8.861775 | C157: 4.113388658 | D157: 1.325227051 | E157: 1.000013697 | F157: 0.005233888603 | G157: 1 | H157: 0 | I157: 59.64185076 | J157: 1.554028791 | K157: 1.538578657 | L157: 0.8632769976 | M157: 1.000516962 | N157: 0.03214775126 | O157: 1.024502079 | P157: 0.2191439135 | Q157: 1.000991599 | R157: 0.04451471335 | S157: 1.00499333 | T157: 0.1177288672 | U157: 13.65694792 | V157: -121.2439922 | W157: 58.75600775 | Y157: 1000000000 | Z157: 78531056.15 | AB157: 14.16018653 | AC157: -41.41909298 | AE157: -0.7048868424 | AF157: -82.37540447 | AG157: 13.45529969 | AH157: -123.7944975 | AI157: 0 | AJ157: 0
A158: 8912.5 | B158: 8.9125 | C158: 4.135545956 | D158: 1.32656963 | E158: 1.000013854 | F158: 0.005263846947 | G158: 1 | H158: 0 | I158: 59.98314636 | J158: 1.554124205 | K158: =SQRT(1+(A158/Zero2)^2) -> 1.543671314 | L158: =ATAN(A158/Zero2) -> 0.8660950383 | M158: 1.000522895 | N158: 0.03233163787 | O158: 1.024779981 | P158: 0.2203581926 | Q158: 1.001002977 | R158: 0.04476917721 | S158: 1.005050536 | T158: 0.1183991366 | U158: 13.5911383 | V158: -121.1975647 | W158: 58.80243531 | Y158: 1000000000 | Z158: 79432656.25 | AB158: 14.13927501 | AC158: -41.27363387 | AE158: -0.7520419761 | AF158: -82.48901572 | AG158: 13.38723303 | AH158: -123.7626496 | AI158: 0 | AJ158: 0
A159: 8964.4 | B159: 8.9644 | C159: 4.15822414 | D159: 1.327928497 | E159: 1.000014016 | F159: 0.005294499241 | G159: 1 | H159: 0 | I159: 60.33234833 | J159: 1.554220712 | K159: 1.548894541 | L159: 0.8689591531 | M159: 1.000529001 | N159: 0.03251978178 | O159: 1.025065883 | P159: 0.2215999162 | Q159: 1.001014687 | R159: 0.0450295295 | S159: 1.005109402 | T159: 0.1190848687 | U159: 13.52431899 | V159: -121.1502459 | W159: 58.84975414 | Y159: 1000000000 | Z159: 80360467.36 | AB159: 14.11814256 | AC159: -41.12584145 | AE159: -0.8000501708 | AF159: -82.6044064 | AG159: 13.31809239 | AH159: -123.7302479 | AI159: 0 | AJ159: 0
A160: 9016.3 | B160: 9.0163 | C160: 4.18090992 | D160: 1.329272621 | E160: 1.000014179 | F160: 0.005325151524 | G160: 1 | H160: 0 | I160: 60.68155085 | J160: 1.554316107 | K160: 1.554130389 | L160: 0.8718039929 | M160: 1.000535143 | N160: 0.03270792339 | O160: 1.025353366 | P160: 0.2228409453 | Q160: 1.001026464 | R160: 0.04528987568 | S160: 1.005168607 | T160: 0.1197705362 | U160: 13.45801385 | V160: -121.1031195 | W160: 58.89688048 | Y160: 1000000000 | Z160: 81293665.69 | AB160: 14.09727248 | AC160: -40.97908965 | AE160: -0.8478186766 | AF160: -82.71894861 | AG160: 13.2494538 | AH160: -123.6980383 | AI160: 0 | AJ160: 0
A161: 9068.2 | B161: 9.0682 | C161: 4.203603171 | D161: 1.330602234 | E161: 1.000014342 | F161: 0.005355803798 | G161: 1 | H161: 0 | I161: 61.03075392 | J161: 1.554410412 | K161: 1.55937873 | L161: 0.8746297058 | M161: 1.00054132 | N161: 0.03289606269 | O161: 1.025642426 | P161: 0.2240812769 | Q161: 1.001038309 | R161: 0.04555021572 | S161: 1.00522815 | T161: 0.1204561386 | U161: 13.39221647 | V161: -121.0561916 | W161: 58.94380836 | Y161: 1000000000 | Z161: 82232251.24 | AB161: 14.07666066 | AC161: -40.83337105 | AE161: -0.8953497782 | AF161: -82.83265571 | AG161: 13.18131088 | AH161: -123.6660268 | AI161: 0 | AJ161: 0
A162: 9120.1 | B162: 9.1201 | C162: 4.226303774 | D162: 1.331917566 | E162: 1.000014507 | F162: 0.005386456061 | G162: 1 | H162: 0 | I162: 61.37995753 | J162: 1.554503643 | K162: 1.564639439 | L162: 0.8774364395 | M162: 1.000547532 | N162: 0.03308419965 | O162: 1.025933064 | P162: 0.2253209076 | Q162: 1.001050222 | R162: 0.04581054957 | S162: 1.005288032 | T162: 0.1211416758 | U162: 13.32692057 | V162: -121.0094679 | W162: 58.99053206 | Y162: 1000000000 | Z162: 83176224.01 | AB162: 14.05630309 | AC162: -40.68867826 | AE162: -0.9426457313 | AF162: -82.94554083 | AG162: 13.11365736 | AH162: -123.6342191 | AI162: 0 | AJ162: 0
A163: 9173.2 | B163: 9.1732 | C163: 4.249536732 | D163: 1.333248764 | E163: 1.000014677 | F163: 0.005417817037 | G163: 1 | H163: 0 | I163: 61.73723576 | J163: 1.554597938 | K163: 1.570034452 | L163: 0.8802885794 | M163: 1.000553924 | N163: 0.03327668418 | O163: 1.026232052 | P163: 0.2265884716 | Q163: 1.00106248 | R163: 0.04607689628 | S163: 1.00534965 | T163: 0.1218429955 | U163: 13.26062747 | V163: -120.9618809 | W163: 59.03811906 | Y163: 1000000000 | Z163: 84147598.24 | AB163: 14.03573385 | AC163: -40.54169396 | AE163: -0.9907941885 | AF163: -83.06019867 | AG163: 13.04493967 | AH163: -123.6018926 | AI163: 0 | AJ163: 0
A164: 9226.3 | B164: 9.2263 | C164: 4.272777138 | D164: 1.334565483 | E164: 1.000014847 | F164: 0.005449178002 | G164: 1 | H164: 0 | I164: 62.09451453 | J164: 1.554691148 | K164: 1.57544215 | L164: 0.8831211622 | M164: 1.000560354 | N164: 0.03346916624 | O164: 1.026532688 | P164: 0.2278552952 | Q164: 1.00107481 | R164: 0.04634323645 | S164: 1.005411622 | T164: 0.122544246 | U164: 13.1948463 | V164: -120.914519 | W164: 59.08548102 | Y164: 1000000000 | Z164: 85124611.69 | AB164: 14.01542249 | AC164: -40.39576788 | AE164: -1.038701184 | AF164: -83.17402297 | AG164: 12.9767213 | AH164: -123.5697908 | AI164: 0 | AJ164: 0
A165: 9279.4 | B165: 9.2794 | C165: 4.296024873 | D165: 1.335867954 | E165: 1.000015018 | F165: 0.005480538957 | G165: 1 | H165: 0 | I165: 62.45179383 | J165: 1.554783292 | K165: 1.580862402 | L165: 0.8859343435 | M165: 1.000566821 | N165: 0.03366164582 | O165: 1.02683497 | P165: 0.2291213749 | Q165: 1.00108721 | R165: 0.04660957003 | S165: 1.005473948 | T165: 0.123245427 | U165: 13.12957064 | V165: -120.8673874 | W165: 59.13261257 | Y165: 1000000000 | Z165: 86107264.36 | AB165: 13.99536492 | AC165: -40.25089217 | AE165: -1.086369042 | AF165: -83.2870269 | AG165: 12.90899588 | AH165: -123.5379191 | AI165: 0 | AJ165: 0
A166: 9332.5 | B166: 9.3325 | C166: 4.319279816 | D166: 1.337156402 | E166: 1.000015191 | F166: 0.005511899901 | G166: 1 | H166: 0 | I166: 62.80907365 | J166: 1.554874388 | K166: 1.586295079 | L166: 0.8887282779 | M166: 1.000573325 | N166: 0.03385412291 | O166: 1.027138898 | P166: 0.2303867074 | Q166: 1.001099682 | R166: 0.046875897 | S166: 1.005536629 | T166: 0.123946538 | U166: 13.06479418 | V166: -120.8204914 | W166: 59.17950864 | Y166: 1000000000 | Z166: 87095556.25 | AB166: 13.97555717 | AC166: -40.10705903 | AE166: -1.133800058 | AF166: -83.39922339 | AG166: 12.84175711 | AH166: -123.5062824 | AI166: 0 | AJ166: 0
A167: 9386.85 | B167: 9.38685 | C167: 4.343089538 | D167: 1.338460889 | E167: 1.000015368 | F167: 0.005543999085 | G167: 1 | H167: 0 | I167: 63.17476456 | J167: 1.55496656 | K167: 1.591868379 | L167: 0.8915682113 | M167: 1.00058002 | N167: 0.0340511284 | O167: 1.027451682 | P167: 0.2316810491 | Q167: 1.00111252 | R167: 0.04714848654 | S167: 1.005601152 | T167: 0.1246640807 | U167: 12.99900333 | V167: -120.7727403 | W167: 59.22725973 | Y167: 1000000000 | Z167: 88112952.92 | AB167: 13.95553775 | AC167: -39.96091153 | AE167: -1.182104716 | AF167: -83.51323803 | AG167: 12.77343304 | AH167: -123.4741496 | AI167: 0 | AJ167: 0
A168: 9441.2 | B168: 9.4412 | C168: 4.36690657 | D168: 1.33975115 | E168: 1.000015547 | F168: 0.005576098258 | G168: 1 | H168: 0 | I168: 63.54045599 | J168: 1.555057672 | K168: 1.597454428 | L168: 0.8943883058 | M168: 1.000586754 | N168: 0.03424813125 | O168: 1.027766187 | P168: 0.2329746009 | Q168: 1.001125433 | R168: 0.04742106907 | S168: 1.005666046 | T168: 0.1253815493 | U168: 12.93372242 | V168: -120.7252459 | W168: 59.27475407 | Y168: 1000000000 | Z168: 89136257.44 | AB168: 13.93577182 | AC168: -39.81583977 | AE168: -1.230166019 | AF168: -83.62643328 | AG168: 12.70560581 | AH168: -123.4422731 | AI168: 0 | AJ168: 0
A169: 9495.55 | B169: 9.49555 | C169: 4.390730793 | D169: 1.34102741 | E169: 1.000015726 | F169: 0.00560819742 | G169: 1 | H169: 0 | I169: 63.90614794 | J169: 1.555147741 | K169: 1.603053093 | L169: 0.897188724 | M169: 1.000593527 | N169: 0.03444513143 | O169: 1.02808241 | P169: 0.234267359 | Q169: 1.001138421 | R169: 0.04769364455 | S169: 1.005731312 | T169: 0.1260989435 | U169: 12.868945 | V169: -120.6780131 | W169: 59.32198693 | Y169: 1000000000 | Z169: 90165469.8 | AB169: 13.91625534 | AC169: -39.67183549 | AE169: -1.277986334 | AF169: -83.73882213 | AG169: 12.63826901 | AH169: -123.4106576 | AI169: 0 | AJ169: 0
A170: 9549.9 | B170: 9.5499 | C170: 4.41456209 | D170: 1.342289893 | E170: 1.000015907 | F170: 0.00564029657 | G170: 1 | H170: 0 | I170: 64.27184041 | J170: 1.555236786 | K170: 1.608664241 | L170: 0.8999696278 | M170: 1.000600339 | N170: 0.03464212895 | O170: 1.02840035 | P170: 0.2355593199 | Q170: 1.001151483 | R170: 0.04796621294 | S170: 1.005796948 | T170: 0.1268162627 | U170: 12.80466476 | V170: -120.6310462 | W170: 59.36895384 | Y170: 1000000000 | Z170: 91200590.01 | AB170: 13.89698434 | AC170: -39.52889042 | AE170: -1.325567996 | AF170: -83.8504173 | AG170: 12.57141634 | AH170: -123.3793077 | AI170: 0 | AJ170: 0
A171: 9605.525 | B171: 9.605525 | C171: 4.438959654 | D171: 1.343567954 | E171: 1.000016093 | F171: 0.005673148724 | G171: 1 | H171: 0 | I171: 64.6461122 | J171: 1.555326875 | K171: 1.614419814 | L171: 0.90279573 | M171: 1.000607351 | N171: 0.03484374505 | O171: 1.028727525 | P171: 0.2368807599 | Q171: 1.001164928 | R171: 0.04824516814 | S171: 1.005864509 | T171: 0.1275503316 | U171: 12.73938486 | V171: -120.5832573 | W171: 59.41674273 | Y171: 1000000000 | Z171: 92266110.53 | AB171: 13.87751137 | AC171: -39.38368021 | AE171: -1.374021167 | AF171: -83.96382158 | AG171: 12.50349021 | AH171: -123.3475018 | AI171: 0 | AJ171: 0
A172: 9661.15 | B172: 9.66115 | C172: 4.463364389 | D172: 1.344832041 | E172: 1.000016279 | F172: 0.005706000865 | G172: 1 | H172: 0 | I172: 65.0203845 | J172: 1.555415928 | K172: 1.620188188 | L172: 0.905601731 | M172: 1.000614403 | N172: 0.03504535832 | O172: 1.029056495 | P172: 0.2382013573 | Q172: 1.001178451 | R172: 0.04852411583 | S172: 1.005932458 | T172: 0.1282843212 | U172: 12.67461266 | V172: -120.5357557 | W172: 59.46424427 | Y172: 1000000000 | Z172: 93337819.32 | AB172: 13.85828737 | AC172: -39.23956214 | AE172: -1.422229207 | AF172: -84.07642064 | AG172: 12.43605817 | AH172: -123.3159828 | AI172: 0 | AJ172: 0
A173: 9716.775 | B173: 9.716775 | C173: 4.487776179 | D173: 1.346082378 | E173: 1.000016467 | F173: 0.005738852994 | G173: 1 | H173: 0 | I173: 65.39465732 | J173: 1.555503962 | K173: 1.625969229 | L173: 0.9083878006 | M173: 1.000621496 | N173: 0.03524696874 | O173: 1.029387259 | P173: 0.2395211083 | Q173: 1.001192052 | R173: 0.04880305596 | S173: 1.006000795 | T173: 0.129018231 | U173: 12.6103417 | V173: -120.4885456 | W173: 59.51145436 | Y173: 1000000000 | Z173: 94415716.4 | AB173: 13.83930832 | AC173: -39.09652748 | AE173: -1.470194522 | AF173: -84.1882273 | AG173: 12.3691138 | AH173: -123.2847548 | AI173: 0 | AJ173: 0
A174: 9772.4 | B174: 9.7724 | C174: 4.512194909 | D174: 1.347319184 | E174: 1.000016657 | F174: 0.005771705111 | G174: 1 | H174: 0 | I174: 65.76893064 | J174: 1.555590993 | K174: 1.631762802 | L174: 0.9111541077 | M174: 1.00062863 | N174: 0.0354485763 | O174: 1.029719815 | P174: 0.2408400091 | Q174: 1.001205731 | R174: 0.04908198849 | S174: 1.006069521 | T174: 0.1297520606 | U174: 12.54656564 | V174: -120.4416309 | W174: 59.55836915 | Y174: 1000000000 | Z174: 95499801.76 | AB174: 13.82057027 | AC174: -38.95456755 | AE174: -1.517919486 | AF174: -84.29925409 | AG174: 12.30265079 | AH174: -123.2538216 | AI174: 0 | AJ174: 0
A175: 9829.3 | B175: 9.8293 | C175: 4.537180412 | D175: 1.348570563 | E175: 1.000016851 | F175: 0.00580531023 | G175: 1 | H175: 0 | I175: 66.15178332 | J175: 1.555679001 | K175: 1.637701998 | L175: 0.9139635499 | M175: 1.000635969 | N175: 0.03565480199 | O175: 1.030061845 | P175: 0.2421882574 | Q175: 1.001219804 | R175: 0.04936730662 | S175: 1.006140223 | T175: 0.1305026272 | U175: 12.4818333 | V175: -120.3939501 | W175: 59.60604994 | Y175: 1000000000 | Z175: 96615138.49 | AB175: 13.80164805 | AC175: -38.81045669 | AE175: -1.566492133 | AF175: -84.41203169 | AG175: 12.23515592 | AH175: -123.2224884 | AI175: 0 | AJ175: 0
A176: 9886.2 | B176: 9.8862 | C176: 4.562172943 | D176: 1.349808233 | E176: 1.000017047 | F176: 0.005838915336 | G176: 1 | H176: 0 | I176: 66.5346365 | J176: 1.555765995 | K176: 1.643654027 | L176: 0.9167526667 | M176: 1.000643351 | N176: 0.03586102464 | O176: 1.030405746 | P176: 0.2435356082 | Q176: 1.001233959 | R176: 0.0496526167 | S176: 1.006211332 | T176: 0.1312531089 | U176: 12.41760572 | V176: -120.3465858 | W176: 59.65341423 | Y176: 1000000000 | Z176: 97736950.44 | AB176: 13.78296991 | AC176: -38.66745218 | AE176: -1.614818208 | AF176: -84.52401897 | AG176: 12.16815171 | AH176: -123.1914711 | AI176: 0 | AJ176: 0
A177: 9943.1 | B177: 9.9431 | C177: 4.587172386 | D177: 1.351032415 | E177: 1.000017243 | F177: 0.005872520429 | G177: 1 | H177: 0 | I177: 66.91749018 | J177: 1.555851994 | K177: 1.64961875 | L177: 0.919521635 | M177: 1.000650776 | N177: 0.03606724424 | O177: 1.030751517 | P177: 0.2448820575 | Q177: 1.001248195 | R177: 0.0499379187 | S177: 1.006282848 | T177: 0.1320035053 | U177: 12.35387647 | V177: -120.2995414 | W177: 59.70045857 | Y177: 1000000000 | Z177: 98865237.61 | AB177: 13.76453188 | AC177: -38.52554488 | AE177: -1.662900149 | AF177: -84.63522854 | AG177: 12.10163173 | AH177: -123.1607734 | AI177: 0 | AJ177: 0
A178: 10000 | B178: 10 | C178: 4.612178629 | D178: 1.352243324 | E178: 1.000017441 | F178: 0.005906125508 | G178: 1 | H178: 0 | I178: 67.30034436 | J178: 1.555937015 | K178: 1.655596029 | L178: 0.9222706304 | M178: 1.000658243 | N178: 0.03627346078 | O178: 1.031099155 | P178: 0.2462276013 | Q178: 1.001262512 | R178: 0.05022321256 | S178: 1.006354769 | T178: 0.1327538159 | U178: 12.29063919 | V178: -120.2528203 | W178: 59.74717969 | Y178: 1000000000 | Z178: 100000000 | AB178: 13.74633006 | AC178: -38.38472571 | AE178: -1.710740365 | AF178: -84.74567272 | AG178: 12.03558969 | AH178: -123.1303984 | AI178: 0 | AJ178: 0
A179: 10058.25 | B179: 10.05825 | C179: 4.637785095 | D179: 1.353469434 | E179: 1.000017645 | F179: 0.005940527882 | G179: 1 | H179: 0 | I179: 67.69228256 | J179: 1.556023057 | K179: 1.661727991 | L179: 0.9250643406 | M179: 1.000665931 | N179: 0.03648456677 | O179: 1.031456974 | P179: 0.2476041272 | Q179: 1.001277254 | R179: 0.05051526678 | S179: 1.006428817 | T179: 0.1335218389 | U179: 12.22640467 | V179: -120.2053287 | W179: 59.79467133 | Y179: 1000000000 | Z179: 101168393.1 | AB179: 13.72793706 | AC179: -38.24168321 | AE179: -1.759467713 | AF179: -84.85795705 | AG179: 11.96846935 | AH179: -123.0996403 | AI179: 0 | AJ179: 0
A180: 10116.5 | B180: 10.1165 | C180: 4.663398457 | D180: 1.354682078 | E180: 1.00001785 | F180: 0.005974930242 | G180: 1 | H180: 0 | I180: 68.08422126 | J180: 1.556108108 | K180: 1.667872826 | L180: 0.9278374869 | M180: 1.000673664 | N180: 0.03669566952 | O180: 1.031816746 | P180: 0.2489796958 | Q180: 1.001292081 | R180: 0.05080731237 | S180: 1.006503291 | T180: 0.134289771 | U180: 12.16267265 | V180: -120.158182 | W180: 59.841818 | Y180: 1000000000 | Z180: 102343572.2 | AB180: 13.70978357 | AC180: -38.099762 | AE180: -1.80794673 | AF180: -84.96946458 | AG180: 11.90183684 | AH180: -123.0692266 | AI180: 0 | AJ180: 0
A181: 10174.75 | B181: 10.17475 | C181: 4.689018601 | D181: 1.355881472 | E181: 1.000018056 | F181: 0.006009332588 | G181: 1 | H181: 0 | I181: 68.47616045 | J181: 1.556192185 | K181: 1.674030393 | L181: 0.9305902534 | M181: 1.000681442 | N181: 0.03690676899 | O181: 1.032178468 | P181: 0.2503543028 | Q181: 1.001306994 | R181: 0.05109934929 | S181: 1.00657819 | T181: 0.1350576117 | U181: 12.09943667 | V181: -120.1113832 | W181: 59.88861685 | Y181: 1000000000 | Z181: 103525537.6 | AB181: 13.69186565 | AC181: -37.95895249 | AE181: -1.856179895 | AF181: -85.08020772 | AG181: 11.83568576 | AH181: -123.0391602 | AI181: 0 | AJ181: 0
A182: 10233 | B182: 10.233 | C182: 4.714645418 | D182: 1.357067829 | E182: 1.000018264 | F182: 0.006043734919 | G182: 1 | H182: 0 | I182: 68.86810011 | J182: 1.556275306 | K182: 1.680200553 | L182: 0.9333228226 | M182: 1.000689264 | N182: 0.03711786517 | O182: 1.03254214 | P182: 0.2517279441 | Q182: 1.001321992 | R182: 0.05139137749 | S182: 1.006653514 | T182: 0.1358253605 | U182: 12.03669038 | V182: -120.0649348 | W182: 59.93506524 | Y182: 1000000000 | Z182: 104714289 | AB182: 13.67417943 | AC182: -37.81924517 | AE182: -1.904169652 | AF182: -85.19019863 | AG182: 11.77000977 | AH182: -123.0094438 | AI182: 0 | AJ182: 0
A183: 10292.5 | B183: 10.2925 | C183: 4.740828941 | D183: 1.358266401 | E183: 1.000018477 | F183: 0.006078875484 | G183: 1 | H183: 0 | I183: 69.26845098 | J183: 1.556359239 | K183: 1.686515977 | L183: 0.9360933669 | M183: 1.0006973 | N183: 0.03733348789 | O183: 1.032915626 | P183: 0.2531300614 | Q183: 1.001337399 | R183: 0.05168966333 | S183: 1.006730894 | T183: 0.1366094892 | U183: 11.97309669 | V183: -120.017854 | W183: 59.982146 | Y183: 1000000000 | Z183: 105935556.2 | AB183: 13.65634893 | AC183: -37.67766796 | AE183: -1.952940442 | AF183: -85.3017856 | AG183: 11.70340849 | AH183: -122.9794536 | AI183: 0 | AJ183: 0
A184: 10352 | B184: 10.352 | C184: 4.767019201 | D184: 1.359451805 | E184: 1.000018691 | F184: 0.006114016033 | G184: 1 | H184: 0 | I184: 69.66880234 | J184: 1.556442207 | K184: 1.692844249 | L184: 0.9388432182 | M184: 1.000705382 | N184: 0.03754910714 | O184: 1.033291141 | P184: 0.2545311623 | Q184: 1.001352896 | R184: 0.05198793996 | S184: 1.006808717 | T184: 0.137393521 | U184: 11.91000088 | V184: -119.9711439 | W184: 60.02885613 | Y184: 1000000000 | Z184: 107163904 | AB184: 13.63875225 | AC184: -37.53722089 | AE184: -2.001462316 | AF184: -85.41261253 | AG184: 11.63728993 | AH184: -122.9498334 | AI184: 0 | AJ184: 0
A185: 10411.5 | B185: 10.4115 | C185: 4.793216086 | D185: 1.360624252 | E185: 1.000018906 | F185: 0.006149156567 | G185: 1 | H185: 0 | I185: 70.06915417 | J185: 1.556524227 | K185: 1.699185227 | L185: 0.9415725664 | M185: 1.000713511 | N185: 0.0377647229 | O185: 1.033668683 | P185: 0.2559312424 | Q185: 1.001368483 | R185: 0.05228620733 | S185: 1.006886984 | T185: 0.1381774554 | U185: 11.84739654 | V185: -119.9248066 | W185: 60.0751934 | Y185: 1000000000 | Z185: 108399332.2 | AB185: 13.62138551 | AC185: -37.39789405 | AE185: -2.049737775 | AF185: -85.52269156 | AG185: 11.57164773 | AH185: -122.9205856 | AI185: 0 | AJ185: 0
A186: 10471 | B186: 10.471 | C186: 4.819419488 | D186: 1.361783953 | E186: 1.000019123 | F186: 0.006184297086 | G186: 1 | H186: 0 | I186: 70.46950646 | J186: 1.556605315 | K186: 1.705538769 | L186: 0.9442815997 | M186: 1.000721687 | N186: 0.03798033515 | O186: 1.034048249 | P186: 0.2573302975 | Q186: 1.001384158 | R186: 0.0525844654 | S186: 1.006965694 | T186: 0.1389612917 | U186: 11.78527736 | V186: -119.8788442 | W186: 60.12115578 | Y186: 1000000000 | Z186: 109641841 | AB186: 13.60424489 | AC186: -37.25967756 | AE186: -2.097769284 | AF186: -85.63203459 | AG186: 11.50647561 | AH186: -122.8917122 | AI186: 0 | AJ186: 0
A187: 10532 | B187: 10.532 | C187: 4.846290135 | D187: 1.362959868 | E187: 1.000019347 | F187: 0.006220323485 | G187: 1 | H187: 0 | I187: 70.87995215 | J187: 1.556687497 | K187: 1.71206538 | L187: 0.9470380337 | M187: 1.000730117 | N187: 0.03820137933 | O187: 1.034439485 | P187: 0.2587635541 | Q187: 1.00140032 | R187: 0.05289023285 | S187: 1.007046848 | T187: 0.1397647863 | U187: 11.7220893 | V187: -119.8321142 | W187: 60.16788576 | Y187: 1000000000 | Z187: 110923024 | AB187: 13.586903 | AC187: -37.11911908 | AE187: -2.146760964 | AF187: -85.74338228 | AG187: 11.44014204 | AH187: -122.8625014 | AI187: 0 | AJ187: 0
A188: 10593 | B188: 10.593 | C188: 4.87316741 | D188: 1.364122814 | E188: 1.000019571 | F188: 0.006256349867 | G188: 1 | H188: 0 | I188: 71.29039831 | J188: 1.556768732 | K188: 1.7186049 | L188: 0.9497735112 | M188: 1.000738595 | N188: 0.03842241977 | O188: 1.034832843 | P188: 0.260195724 | Q188: 1.001416577 | R188: 0.0531959904 | S188: 1.007128469 | T188: 0.1405681768 | U188: 11.65939808 | V188: -119.7857821 | W188: 60.21421795 | Y188: 1000000000 | Z188: 112211649 | AB188: 13.56979091 | AC188: -36.97970689 | AE188: -2.195501377 | AF188: -85.85398091 | AG188: 11.37428953 | AH188: -122.8336878 | AI188: 0 | AJ188: 0
A189: 10654 | B189: 10.654 | C189: 4.900051203 | D189: 1.365273001 | E189: 1.000019797 | F189: 0.006292376233 | G189: 1 | H189: 0 | I189: 71.70084493 | J189: 1.556849038 | K189: 1.725157183 | L189: 0.9524882298 | M189: 1.000747123 | N189: 0.03864345646 | O189: 1.035228323 | P189: 0.2616268026 | Q189: 1.001432927 | R189: 0.053501738 | S189: 1.007210555 | T189: 0.1413714626 | U189: 11.59719724 | V189: -119.7398493 | W189: 60.26015072 | Y189: 1000000000 | Z189: 113507716 | AB189: 13.55290474 | AC189: -36.84143059 | AE189: -2.243993071 | AF189: -85.96384247 | AG189: 11.30891167 | AH189: -122.8052731 | AI189: 0 | AJ189: 0
A190: 10715 | B190: 10.715 | C190: 4.926941408 | D190: 1.366410634 | E190: 1.000020025 | F190: 0.006328402583 | G190: 1 | H190: 0 | I190: 72.11129201 | J190: 1.556928429 | K190: 1.731722084 | L190: 0.9551823853 | M190: 1.0007557 | N190: 0.03886448937 | O190: 1.035625921 | P190: 0.2630567853 | Q190: 1.001449371 | R190: 0.05380747558 | S190: 1.007293107 | T190: 0.1421746431 | U190: 11.53548045 | V190: -119.6943174 | W190: 60.30568263 | Y190: 1000000000 | Z190: 114811225 | AB190: 13.53624073 | AC190: -36.70427988 | AE190: -2.292238557 | AF190: -86.07297875 | AG190: 11.24400217 | AH190: -122.7772586 | AI190: 0 | AJ190: 0
A191: 10777.5 | B191: 10.7775 | C191: 4.954499388 | D191: 1.367563432 | E191: 1.000020259 | F191: 0.00636531481 | G191: 1 | H191: 0 | I191: 72.53183252 | J191: 1.55700884 | K191: 1.738461353 | L191: 0.9579216657 | M191: 1.000764538 | N191: 0.03909095358 | O191: 1.03603549 | P191: 0.2645207901 | Q191: 1.001466316 | R191: 0.05412072086 | S191: 1.007378171 | T191: 0.1429974642 | U191: 11.47274156 | V191: -119.6480829 | W191: 60.35191706 | Y191: 1000000000 | Z191: 116154506.2 | AB191: 13.51939346 | AC191: -36.56491335 | AE191: -2.341417634 | AF191: -86.18405849 | AG191: 11.17797583 | AH191: -122.7489718 | AI191: 0 | AJ191: 0
A192: 10840 | B192: 10.84 | C192: 4.98206388 | D192: 1.368703476 | E192: 1.000020495 | F192: 0.006402227019 | G192: 1 | H192: 0 | I192: 72.95237349 | J192: 1.557088324 | K192: 1.745213567 | L192: 0.9606397698 | M192: 1.000773428 | N192: 0.03931741377 | O192: 1.036447279 | P192: 0.2659836346 | Q192: 1.001483359 | R192: 0.05443395551 | S192: 1.007463725 | T192: 0.1438201736 | U192: 11.41049768 | V192: -119.6022719 | W192: 60.39772811 | Y192: 1000000000 | Z192: 117505600 | AB192: 13.50277158 | AC192: -36.42670678 | AE192: -2.390343472 | AF192: -86.29440102 | AG192: 11.11242811 | AH192: -122.7211078 | AI192: 0 | AJ192: 0
A193: 10902.5 | B193: 10.9025 | C193: 5.009634775 | D193: 1.369830972 | E193: 1.000020732 | F193: 0.006439139211 | G193: 1 | H193: 0 | I193: 73.37291492 | J193: 1.557166897 | K193: 1.751978575 | L193: 0.9633369026 | M193: 1.000782369 | N193: 0.03954386993 | O193: 1.036861284 | P193: 0.2674453141 | Q193: 1.001500501 | R193: 0.05474717947 | S193: 1.007549766 | T193: 0.1446427706 | U193: 11.34874235 | V193: -119.5568852 | W193: 60.44311476 | Y193: 1000000000 | Z193: 118864506.2 | AB193: 13.48637126 | AC193: -36.28964934 | AE193: -2.43901866 | AF193: -86.40401823 | AG193: 11.0473526 | AH193: -122.6936676 | AI193: 0 | AJ193: 0
A194: 10965 | B194: 10.965 | C194: 5.03721197 | D194: 1.370946124 | E194: 1.00002097 | F194: 0.006476051385 | G194: 1 | H194: 0 | I194: 73.7934568 | J194: 1.557244575 | K194: 1.75875623 | L194: 0.9660132671 | M194: 1.000791361 | N194: 0.03977032203 | O194: 1.037277502 | P194: 0.2689058237 | Q194: 1.001517741 | R194: 0.05506039267 | S194: 1.007636297 | T194: 0.1454652547 | U194: 11.28746921 | V194: -119.5119239 | W194: 60.48807612 | Y194: 1000000000 | Z194: 120231225 | AB194: 13.47018873 | AC194: -36.1537303 | AE194: -2.48744575 | AF194: -86.5129217 | AG194: 10.98274298 | AH194: -122.666652 | AI194: 0 | AJ194: 0
A195: 11028.75 | B195: 11.02875 | C195: 5.06534709 | D195: 1.372071069 | E195: 1.000021215 | F195: 0.006513701785 | G195: 1 | H195: 0 | I195: 74.22240996 | J195: 1.557322899 | K195: 1.765682316 | L195: 0.9687219719 | M195: 1.000800586 | N195: 0.04000129897 | O195: 1.037704322 | P195: 0.2703943333 | Q195: 1.001535426 | R195: 0.055379859 | S195: 1.00772506 | T195: 0.1463040715 | U195: 11.2254609 | V195: -119.4665022 | W195: 60.53349785 | Y195: 1000000000 | Z195: 121633326.6 | AB195: 13.45390311 | AC195: -36.01625461 | AE195: -2.536588402 | AF195: -86.62327974 | AG195: 10.9173147 | AH195: -122.6395343 | AI195: 0 | AJ195: 0
A196: 11092.5 | B196: 11.0925 | C196: 5.09348855 | D196: 1.373183584 | E196: 1.00002146 | F196: 0.006551352166 | G196: 1 | H196: 0 | I196: 74.65136358 | J196: 1.557400324 | K196: 1.772621255 | L196: 0.9714094897 | M196: 1.000809864 | N196: 0.04023227164 | O196: 1.038133439 | P196: 0.2718816156 | Q196: 1.001553215 | R196: 0.05569931401 | S196: 1.007814332 | T196: 0.1471427695 | U196: 11.16394126 | V196: -119.4215242 | W196: 60.57847577 | Y196: 1000000000 | Z196: 123043556.2 | AB196: 13.43783642 | AC196: -35.87994102 | AE196: -2.585478183 | AF196: -86.73291883 | AG196: 10.85235823 | AH196: -122.6128599 | AI196: 0 | AJ196: 0
A197: 11156.25 | B197: 11.15625 | C197: 5.121636245 | D197: 1.374283873 | E197: 1.000021708 | F197: 0.006589002529 | G197: 1 | H197: 0 | I197: 75.08031764 | J197: 1.557476863 | K197: 1.779572898 | L197: 0.9740760299 | M197: 1.000819196 | N197: 0.04046324002 | O197: 1.038564851 | P197: 0.2733676655 | Q197: 1.001571105 | R197: 0.05601875764 | S197: 1.007904112 | T197: 0.1479813481 | U197: 11.1029039 | V197: -119.3769906 | W197: 60.62300944 | Y197: 1000000000 | Z197: 124461914.1 | AB197: 13.42198491 | AC197: -35.74477843 | AE197: -2.634117688 | AF197: -86.84185053 | AG197: 10.78786722 | AH197: -122.586629 | AI197: 0 | AJ197: 0
A198: 11220 | B198: 11.22 | C198: 5.149790072 | D198: 1.375372132 | E198: 1.000021957 | F198: 0.006626652873 | G198: 1 | H198: 0 | I198: 75.50927213 | J198: 1.557552533 | K198: 1.786537095 | L198: 0.9767217996 | M198: 1.000828581 | N198: 0.04069420407 | O198: 1.038998555 | P198: 0.2748524781 | Q198: 1.001589097 | R198: 0.05633818983 | S198: 1.007994399 | T198: 0.1488198066 | U198: 11.04234254 | V198: -119.3329014 | W198: 60.66709857 | Y198: 1000000000 | Z198: 125888400 | AB198: 13.40634491 | AC198: -35.61075582 | AE198: -2.682509476 | AF198: -86.95008612 | AG198: 10.72383543 | AH198: -122.5608419 | AI198: 0 | AJ198: 0
A199: 11285.5 | B199: 11.2855 | C199: 5.178723032 | D199: 1.37647794 | E199: 1.000022214 | F199: 0.006665336736 | G199: 1 | H199: 0 | I199: 75.95000229 | J199: 1.55762939 | K199: 1.79370539 | L199: 0.9794187802 | M199: 1.000838279 | N199: 0.04093150379 | O199: 1.039446548 | P199: 0.2763767563 | Q199: 1.00160769 | R199: 0.05666637876 | S199: 1.008087693 | T199: 0.1496811558 | U199: 10.98060801 | V199: -119.2880652 | W199: 60.71193482 | Y199: 1000000000 | Z199: 127362510.2 | AB199: 13.39049209 | AC199: -35.47423005 | AE199: -2.731974305 | AF199: -87.06057947 | AG199: 10.65851779 | AH199: -122.5348095 | AI199: 0 | AJ199: 0
A200: 11351 | B200: 11.351 | C200: 5.207662254 | D200: 1.377571458 | E200: 1.000022472 | F200: 0.006704020579 | G200: 1 | H200: 0 | I200: 76.3907329 | J200: 1.55770536 | K200: 1.800886628 | L200: 0.9820942712 | M200: 1.000848034 | N200: 0.0411687989 | O200: 1.039896954 | P200: 0.2778997175 | Q200: 1.001626391 | R200: 0.05699455547 | S200: 1.008181523 | T200: 0.150542377 | U200: 10.91936289 | V200: -119.2436984 | W200: 60.75630161 | Y200: 1000000000 | Z200: 128845201 | AB200: 13.37485493 | AC200: -35.33888448 | AE200: -2.781182987 | AF200: -87.1703614 | AG200: 10.59367194 | AH200: -122.5092459 | AI200: 0 | AJ200: 0
A201: 11416.5 | B201: 11.4165 | C201: 5.236607635 | D201: 1.37865289 | E201: 1.000022732 | F201: 0.006742704402 | G201: 1 | H201: 0 | I201: 76.83146394 | J201: 1.557780458 | K201: 1.808080654 | L201: 0.9847484905 | M201: 1.000857845 | N201: 0.04140608936 | O201: 1.040349769 | P201: 0.2794213566 | Q201: 1.0016452 | R201: 0.05732271988 | S201: 1.008275889 | T201: 0.1514034692 | U201: 10.85860072 | V201: -119.1998009 | W201: 60.80019907 | Y201: 1000000000 | Z201: 130336472.2 | AB201: 13.35942968 | AC201: -35.20470748 | AE201: -2.830138178 | AF201: -87.27944337 | AG201: 10.5292915 | AH201: -122.4841509 | AI201: 0 | AJ201: 0
A202: 11482 | B202: 11.482 | C202: 5.265559072 | D202: 1.37972243 | E202: 1.000022994 | F202: 0.006781388205 | G202: 1 | H202: 0 | I202: 77.2721954 | J202: 1.5578547 | K202: 1.815287317 | L202: 0.9873816538 | M202: 1.000867712 | N202: 0.04164337517 | O202: 1.040804992 | P202: 0.2809416681 | Q202: 1.001664116 | R202: 0.05765087194 | S202: 1.00837079 | T202: 0.152264432 | U202: 10.79831518 | V202: -119.1563725 | W202: 60.84362746 | Y202: 1000000000 | Z202: 131836324 | AB202: 13.34421266 | AC202: -35.07168755 | AE202: -2.878842496 | AF202: -87.38783664 | AG202: 10.46537017 | AH202: -122.4595242 | AI202: 0 | AJ202: 0
... 433 more rows

Sheet Bode Plot Management (hidden)
A2: =CHOOSE(BODE_PLOT_TYPE, "BODE_PLOT_Ch1", "BODE_PLOT_Ch2") -> BODE_PLOT_Ch1
F6: =INDIRECT(A2) -> 0

Sheet Efficiency Calculations (hidden)
A1: BUCK CONTROLLER POWER DESIGN TOOL | AO1: =Ext_VCC -> 1
H2: =AV19 -> 0.9085806525 | I2: 10% load
H3: =AV59 -> 0.9293310535 | I3: 50% load | AN3: =IF(MODE=1, (Qg_Q1+Qg_Q2)*Fsw*Vin, (Qg_Q1+Qg_Q2+Qg_Q3+Qg_Q4)*Fsw*Vin) -> 0.12192
H4: =AV109 -> 0.8897519291 | I4: 100% load | U4: 3 | AG4: 1 | AK4: 2 | AM4: I_VCC | AN4: =(Qg_Q1+Qg_Q2)*Fsw*1000 -> 5.08 | AO4: mA | AP4: =AN4*5/1000 -> 0.0254
AP5: =VCC -> 3.3
A6: Enter the values of your design and MOSFET datasheet specifications below. Note that thermal resistance (θJA) will change when components are placed on the PCB
G7: Operating Point Condtions | R7: Filter Inductor | V7: Cout | Y7: Cin | AB7: High-side BUCK "Control" MOSFET Losses | AH7: Low-side BUCK "Sync" MOSFET Losses | AL7: Diode/FET | AM7: "Controller" Losses | AT7: RESULTS | AZ7: Consolidated Buck Efficiency & Losses
A8: Input Parameters | G8: Step | H8: Vin | I8: Mode | J8: Iout | K8: Iout/ phase | L8: Iin | M8: Duty Cycle BUCK Leg | N8: Ripple Current pk-pk | O8: Peak Inductor Current | P8: Valley Inductor Current | Q8: SW node voltage at Q1 turn-on | R8: Irms Lf | S8: DCR Loss | T8: Core Loss | U8: Total Inductor Loss | V8: Irms Cout | W8: Cout ESR Loss | X8: Total Cout Loss | Y8: Irms Cin | Z8: Cin ESR Loss | AA8: Total Cin Loss | AB8: Irms | AC8: RDS(on) Loss | AD8: Transition Loss (not including capacitive loss) | AE8: MOSFET Output Capacitance Loss | AF8: Dead Time Loss | AG8: Total Control MOSFET Loss | AH8: Irms | AI8: RDS(on) Loss | AJ8: Deadtime Loss | AK8: Total Sync MOSFET Loss | AL8: Reverse Recovery Loss | AM8: IQ Loss | AN8: Switching Current Loss | AO8: Switching Current Diss from VCC | AP8: LDO Loss Saved from Gate Drive Current (ext VCC = Vout) | AQ8: Total "Control" Loss | AR8: Total Loss (not considering total loss) | AS8: Total Loss (considering total loss) | AT8: Total Loss | AU8: Pout | AV8: EFF, h | AW8: =IF(Vin>Vout, "Buck ''CONTROL'' MOSFET Temp Rise", "Boost ''CONTROL'' MOSFET Temp Rise") -> Buck ''CONTROL'' MOSFET Temp Rise | AX8: =IF(Vin>Vout, "Buck ''SYNC'' MOSFET Temp Rise", "Boost ''SYNC'' MOSFET Temp Rise") -> Buck ''SYNC'' MOSFET Temp Rise | AZ8: h | BA8: Inductor Cu & Core Loss | BB8: Total MOSFET Loss | BC8: Control MOSFET Loss | BD8: SYNC MOSFET Loss | BE8: IC Power Loss
A9: Design | B9: Input Value | C9: Units | D9: Description | G9: 0 | H9: =Vin -> 24 | I9: =MODE -> 1 | J9: 0 | K9: =Iout*G9/100/Number_of_Phases -> 0 | L9: =Vout*K9/(Vin*Efficiency) -> 0 | M9: =(Vout+(Rdson2+Rs+Rdcr)*K9)/(Vin+(Rs+Rdson2-Rdson1)*K9) -> 0.2083333333 | N9: =(Vin-(Rdson1+Rdcr)*K9-Vout)*M9/(Fsw*Lf) -> 1.455269608 | O9: =K9+N9/2 -> 0.7276348039 | P9: =K9-N9/2 -> -0.7276348039 | Q9: =IF(MIN(Vin, -P9/(Coss_Q1+Coss_Q2)*0.00000002)<0, 0, MIN(Vin, -P9/(Coss_Q1+Coss_Q2)*0.00000002)) -> 14.00644473 | R9: =SQRT(K9^2+(N9^2)/12) -> 0.4201001499 | S9: =R9^2*Rdcr -> 0.008824206798 | T9: =Core_Loss -> 0.1 | U9: =(T9+S9*(1+Ltc*(Ta-25)))/(1-S9*Ltc*ThetaCa) -> 0.1089072966 | V9: =N9/SQRT(12) -> 0.4201001499 | W9: =RCoutEsr*V9^2 -> 0.000176484136 | X9: =W9 -> 0.000176484136 | Y9: =SQRT(M9*(1-M9))*SQRT(K9^2+(N9^2)/12) -> 0.1706095736 | Z9: =RCinEsr*Y9^2 -> 0.0002910762659 | AA9: =Z9 -> 0.0002910762659 | AB9: =SQRT(M9)*SQRT(K9^2+(N9^2)/12) -> 0.1917486071 | AC9: =Rdson1*AB9^2 -> 0.002720797096 | AD9: =(Vin*K9/2)*Fsw*(Tr_buck+Tf_buck) -> 0 | AE9: =(0.5*Coss_Q1*(Vin-Q9)^2-0.5*Coss_Q2*(Vin-Q9)^2+(Qoss_Q2*(Vin-Q9)/Vin)*Vin)*Fsw -> 0.02792172291 | AF9: =IF(K9>N9/2,0,ABS(K9-N9/2)*Vsd_Q1*Deadtime*Fsw) -> 0.001629901961 | AG9: =(AF9+AE9+AD9+AC9*(1+RdsonTC*(Ta-25))/(1-AC9*RdsonTC*ThetaJA_Q1)) -> 0.03227310319 | AH9: =SQRT((1-M9))*SQRT(K9^2+(N9^2)/12) -> 0.3737868479 | AI9: =Rdson2*AH9^2 -> 0.004331214837 | AJ9: =IF(K9<N9/2,Deadtime*Fsw*Vsd_Q2*(K9+N9/2),2*Deadtime*Fsw*Vsd_Q2*K9) -> 0.001629901961 | AK9: =(AJ9+AI9*(1+RdsonTC*(Ta-25)))/(1-AI9*RdsonTC*ThetaJA_Q2) -> 0.005963493081 | AL9: =Qrr_Q2*K9/Iout*Fsw*Vin -> 0 | AM9: =Iq*Vin -> 0.00084 | AN9: =IF(Ext_VCC=1, (Qg_Q1+Qg_Q2)*Fsw*Vout, (Qg_Q1+Qg_Q2)*Fsw*Vin) -> 0.0254 | AO9: =(Vin-VCC)*Fsw*(Qg_Q1+Qg_Q2) -> 0.105156 | AP9: =(Qg_Q1+Qg_Q2)*Fsw*(Vin-Vout) -> 0.09652 | AQ9: =SUM(AM9:AN9) -> 0.02624 | AR9: =SUM(S9,T9,AC9,AD9,AE9,AF9,AI9,AJ9,AQ9, AL9) -> 0.1732977456 | AS9: =U9 + ((AF9+AE9+AD9+AC9*(1+RdsonTC*(Ta-25))) + (AJ9+AI9*(1+RdsonTC*(Ta-25))) + AQ9 + AL9) / (1-AC9*RdsonTC*ThetaJA_Q1 -AI9*RdsonTC*ThetaJA_Q2) -> 0.173422692 | AT9: =AS9 -> 0.173422692 | AU9: =Vout*K9 -> 0 | AV9: =AU9/(AU9+AT9) -> 0 | AW9: =ThetaJA_Q1*BC9 -> 0.7422813733 | AX9: =ThetaJA_Q2*BD9 -> 0.1371603409 | AZ9: =AV9*100 -> 0 | BA9: =U9 -> 0.1089072966 | BB9: =AG9+AK9+AL9 -> 0.03823659627 | BC9: =AG9+AL9*0.66 -> 0.03227310319 | BD9: =AK9+AL9*0.33 -> 0.005963493081 | BE9: =AS9-BA9 -> 0.06451539539
G10: 1 | H10: 24 | I10: 1 | J10: =Iout*G10/100 -> 0.05 | K10: 0.05 | L10: 0.01157407407 | M10: 0.2085372536 | N10: 1.456218709 | O10: =K10+N10/2 -> 0.7781093543 | P10: =K10-N10/2 -> -0.6781093543 | Q10: 13.05311558 | R10: =SQRT(K10^2+(N10^2)/12) -> 0.4233372304 | S10: 0.008960720531 | T10: 0.1 | U10: 0.1090452026 | V10: =N10/SQRT(12) -> 0.4203741317 | W10: 0.0001767144106 | X10: =W10 -> 0.0001767144106 | Y10: =SQRT(M10*(1-M10))*SQRT(K10^2+(N10^2)/12) -> 0.1719861711 | Z10: 0.0002957924303 | AA10: =Z10 -> 0.0002957924303 | AB10: =SQRT(M10)*SQRT(K10^2+(N10^2)/12) -> 0.1933206688 | AC10: 0.002765593194 | AD10: 0.0005561986065 | AE10: 0.0306291299 | AF10: 0.001518964954 | AG10: =(AF10+AE10+AD10+AC10*(1+RdsonTopTc*Ta-RdsonTopTc*25))/(1-AC10*RdsonTopTc*ThetaJA_Q1) -> 0.03547891371 | AH10: 0.3766185466 | AI10: 0.004397087418 | AJ10: 0.001742964954 | AK10: =(AJ10+AI10*(1+RdsonBotTc*Ta-RdsonBotTc*25))/(1-AI10*RdsonBotTc*ThetaJA_Q2) -> 0.006142537225 | AL10: 0.002208 | AM10: 0.00084 | AN10: 0.0254 | AO10: 0.105156 | AP10: 0.09652 | AQ10: 0.02624 | AR10: =SUM(S10,T10,AC10,AD10,AE10,AF10,AI10,AJ10,AQ10, AL10) -> 0.1790186596 | AS10: 0.1791493379 | AT10: =AS10 -> 0.1791493379 | AU10: 0.25 | AV10: =AU10/(AU10+AT10) -> 0.5825477937 | AW10: 0.8495324554 | AX10: 0.1580370762 | AZ10: =AV10*100 -> 58.25477937 | BA10: 0.1090452026 | BB10: 0.04382945094 | BC10: 0.03693619371 | BD10: 0.006871177225 | BE10: =AS10-BA10 -> 0.07010413531
A11: Vin | B11: =Vin -> 24 | C11: V | D11: Vin | G11: 2 | H11: 24 | I11: 1 | J11: 0.1 | K11: 0.1 | L11: 0.02314814815 | M11: 0.2087412019 | N11: 1.457167076 | O11: 0.8285835378 | P11: -0.6285835378 | Q11: 12.09977936 | R11: 0.4323709717 | S11: 0.009347232859 | T11: 0.1 | U11: 0.1094356746 | V11: 0.4206479017 | W11: 0.0001769446572 | X11: 0.0001769446572 | Y11: 0.1757194741 | Z11: 0.0003087733356 | AA11: 0.0003087733356 | AB11: 0.1975425332 | AC11: 0.00288770588 | AD11: 0.001112397213 | AE11: 0.03334419126 | AF11: 0.001408027125 | AG11: 0.0387626195 | AH11: 0.3846057784 | AI11: 0.004585569747 | AJ11: 0.001856027125 | AK11: 0.006444315551 | AL11: 0.004416 | AM11: 0.00084 | AN11: 0.0254 | AO11: 0.105156 | AP11: 0.09652 | AQ11: 0.02624 | AR11: 0.1851971512 | AS11: 0.1853377788 | AT11: 0.1853377788 | AU11: 0.5 | AV11: 0.7295672521 | AW11: 0.9585751284 | AX11: 0.1817366977 | AZ11: 72.95672521 | BA11: 0.1094356746 | BB11: 0.04962293505 | BC11: 0.0416771795 | BD11: 0.007901595551 | BE11: 0.07590210418
A12: Vout | B12: =Vout -> 5 | C12: V | D12: Vout | G12: 3 | H12: 24 | I12: 1 | J12: 0.15 | K12: 0.15 | L12: 0.03472222222 | M12: 0.2089451783 | N12: 1.458114708 | O12: 0.8790573542 | P12: -0.5790573542 | Q12: 11.14643608 | R12: 0.4468499471 | S12: 0.009983743762 | T12: 0.1 | U12: 0.1100787631 | V12: 0.4209214597 | W12: 0.0001771748752 | X12: 0.0001771748752 | Y12: 0.1816691477 | Z12: 0.0003300367923 | AA12: 0.0003300367923 | AB12: 0.2042574415 | AC12: 0.003087361578 | AD12: 0.001668595819 | AE12: 0.03606690716 | AF12: 0.001297088473 | AG12: 0.04213192006 | AH12: 0.3974339855 | AI12: 0.004896566958 | AJ12: 0.001969088473 | AK12: 0.006868749694 | AL12: 0.006624 | AM12: 0.00084 | AN12: 0.0254 | AO12: 0.105156 | AP12: 0.09652 | AQ12: 0.02624 | AR12: 0.1918333522 | AS12: 0.1919885361 | AT12: 0.1919885361 | AU12: 0.75 | AV12: 0.7961880334 | AW12: 1.069586481 | AX12: 0.208257403 | AZ12: 79.61880334 | BA12: 0.1100787631 | BB12: 0.05562466976 | BC12: 0.04650376006 | BD12: 0.009054669694 | BE12: 0.08190977294
A13: Fsw | B13: =Fsw/1000 -> 400 | C13: kHz | D13: Switching Frequency | G13: 4 | H13: 24 | I13: 1 | J13: 0.2 | K13: 0.2 | L13: 0.0462962963 | M13: 0.2091491827 | N13: 1.459061607 | O13: 0.9295308036 | P13: -0.5295308036 | Q13: 10.19308573 | R13: 0.46626716 | S13: 0.01087025322 | T13: 0.1 | U13: 0.1109745518 | V13: 0.4211948058 | W13: 0.0001774050645 | X13: 0.0001774050645 | Y13: 0.1896313768 | Z13: 0.0003596005906 | AA13: 0.0003596005906 | AB13: 0.213237172 | AC13: 0.003364786774 | AD13: 0.002224794426 | AE13: 0.03879727778 | AF13: 0.001186149 | AG13: 0.04558711995 | AH13: 0.4146504225 | AI13: 0.00532998416 | AJ13: 0.002082149 | AK13: 0.007415769546 | AL13: 0.008832 | AM13: 0.00084 | AN13: 0.0254 | AO13: 0.105156 | AP13: 0.09652 | AQ13: 0.02624 | AR13: 0.1989273944 | AS13: 0.1991021879 | AT13: 0.1991021879 | AU13: 1 | AV13: 0.8339572808 | AW13: 1.182573519 | AX13: 0.2375975796 | AZ13: 83.39572808 | BA13: 0.1109745518 | BB13: 0.06183488949 | BC13: 0.05141623995 | BD13: 0.01033032955 | BE13: 0.0881276361
A14: Iout | B14: =Iout -> 5 | C14: A | D14: Max Output Current | G14: 5 | H14: 24 | I14: 1 | J14: 0.25 | K14: 0.25 | L14: 0.05787037037 | M14: 0.2093532152 | N14: 1.460007772 | O14: 0.9800038858 | P14: -0.4800038858 | Q14: 9.239728311 | R14: 0.490035942 | S14: 0.01200676122 | T14: 0.1 | U14: 0.1121231568 | V14: 0.42146794 | W14: 0.0001776352244 | X14: 0.0001776352244 | Y14: 0.1993696318 | Z14: 0.000397482501 | AA14: 0.000397482501 | AB14: 0.2242165946 | AC14: 0.003720208017 | AD14: 0.002780993032 | AE14: 0.04153530329 | AF14: 0.001075208704 | AG14: 0.04912852773 | AH14: 0.435731733 | AI14: 0.005885726436 | AJ14: 0.002195208704 | AK14: 0.008085313231 | AL14: 0.01104 | AM14: 0.00084 | AN14: 0.0254 | AO14: 0.105156 | AP14: 0.09652 | AQ14: 0.02624 | AR14: 0.2064794094 | AS14: 0.2066793686 | AT14: 0.2066793686 | AU14: 1.25 | AV14: 0.8581160871 | AW14: 1.297543338 | AX14: 0.2697558043 | AZ14: 85.81160871 | BA14: 0.1121231568 | BB14: 0.06825384096 | BC14: 0.05641492773 | BD14: 0.01172851323 | BE14: 0.09455621186
A15: Ta | B15: =Ta -> 25 | C15: °C | D15: Ambient Temperature | G15: 6 | H15: 24 | I15: 1 | J15: 0.3 | K15: 0.3 | L15: 0.06944444444 | M15: 0.2095572757 | N15: 1.460953201 | O15: 1.030476601 | P15: -0.4304766007 | Q15: 8.286363825 | R15: 0.5175571029 | S15: 0.01339326774 | T15: 0.1 | U15: 0.1135247273 | V15: 0.4217408621 | W15: 0.0001778653547 | X15: 0.0001778653547 | Y15: 0.2106419411 | Z15: 0.0004437002736 | AA15: 0.0004437002736 | AB15: 0.2369243212 | AC15: 0.004153851915 | AD15: 0.003337191639 | AE15: 0.04428098387 | AF15: 0.0009642675856 | AG15: 0.05275645612 | AH15: 0.4601436957 | AI15: 0.006563698843 | AJ15: 0.002308267586 | AK15: 0.008877327094 | AL15: 0.013248 | AM15: 0.00084 | AN15: 0.0254 | AO15: 0.105156 | AP15: 0.09652 | AQ15: 0.02624 | AR15: 0.2144895292 | AS15: 0.2147207695 | AT15: 0.2147207695 | AU15: 1.5 | AV15: 0.8747779969 | AW15: 1.414503131 | AX15: 0.3047308432 | AZ15: 87.47779969 | BA15: 0.1135247273 | BB15: 0.07488178322 | BC15: 0.06150013612 | BD15: 0.01324916709 | BE15: 0.1011960422
A16: Vcc | B16: =VCC -> 3.3 | C16: V | D16: Subregulated VCC Voltage | G16: 7 | H16: 24 | I16: 1 | J16: 0.35 | K16: 0.35 | L16: 0.08101851852 | M16: 0.2097613643 | N16: 1.461897897 | O16: 1.080948948 | P16: -0.3809489483 | Q16: 7.332992268 | R16: 0.5482658616 | S16: 0.01502977275 | T16: 0.1 | U16: 0.1151794455 | V16: 0.4220135721 | W16: 0.000178095455 | X16: 0.000178095455 | Y16: 0.2232199898 | Z16: 0.0004982716385 | AA16: 0.0004982716385 | AB16: 0.2511041871 | AC16: 0.004665945144 | AD16: 0.003893390245 | AE16: 0.04703431969 | AF16: 0.0008533256443 | AG16: 0.05647122196 | AH16: 0.4873829524 | AI16: 0.00736380641 | AJ16: 0.002421325644 | AK16: 0.009791765684 | AL16: 0.015456 | AM16: 0.00084 | AN16: 0.0254 | AO16: 0.105156 | AP16: 0.09652 | AQ16: 0.02624 | AR16: 0.2229578855 | AS16: 0.2232271386 | AT16: 0.2232271386 | AU16: 1.75 | AV16: 0.8868720512 | AW16: 1.533460185 | AX16: 0.3425216507 | AZ16: 88.68720512 | BA16: 0.1151794455 | BB16: 0.08171898764 | BC16: 0.06667218196 | BD16: 0.01489224568 | BE16: 0.1080476932
A17: Components | B17: Input Value | C17: Units | D17: Description | G17: 8 | H17: 24 | I17: 1 | J17: 0.4 | K17: 0.4 | L17: 0.09259259259 | M17: 0.209965481 | N17: 1.462841857 | O17: 1.131420929 | P17: -0.3314209286 | Q17: 6.379613639 | R17: 0.5816575667 | S17: 0.01691627625 | T17: 0.1 | U17: 0.1170875263 | V17: 0.42228607 | W17: 0.0001783255249 | X17: 0.0001783255249 | Y17: 0.2368996213 | Z17: 0.0005612143056 | AA17: 0.0005612143056 | AB17: 0.2665270748 | AC17: 0.005256714437 | AD17: 0.004449588852 | AE17: 0.04979531093 | AF17: 0.00074238288 | AG17: 0.06027314626 | AH17: 0.5169998485 | AI17: 0.008285954143 | AJ17: 0.00253438288 | AK17: 0.01082859174 | AL17: 0.017664 | AM17: 0.00084 | AN17: 0.0254 | AO17: 0.105156 | AP17: 0.09652 | AQ17: 0.02624 | AR17: 0.2318846104 | AS17: 0.2321992811 | AT17: 0.2321992811 | AU17: 2 | AV17: 0.8959773516 | AW17: 1.654421884 | AX17: 0.3831273701 | AZ17: 89.59773516 | BA17: 0.1170875263 | BB17: 0.088765738 | BC17: 0.07193138626 | BD17: 0.01665771174 | BE17: 0.1151117548
A18: L | B18: =Lf*1000000 -> 6.8 | C18: uH | D18: Filter Inductance | G18: 9 | H18: 24 | I18: 1 | J18: 0.45 | K18: 0.45 | L18: 0.1041666667 | M18: 0.2101696258 | N18: 1.463785083 | O18: 1.181892541 | P18: -0.2818925413 | Q18: 5.426227937 | R18: 0.617296982 | S18: 0.0190527782 | T18: 0.1 | U18: 0.1192492178 | V18: 0.4225583558 | W18: 0.000178555564 | X18: 0.000178555564 | Y18: 0.2515046649 | Z18: 0.0006325459648 | AA18: 0.0006325459648 | AB18: 0.282995239 | AC18: 0.005926386592 | AD18: 0.005005787458 | AE18: 0.05256395775 | AF18: 0.0006314392926 | AG18: 0.06416255429 | AH18: 0.5486066521 | AI18: 0.009330047021 | AJ18: 0.002647439293 | AK18: 0.01198777619 | AL18: 0.019872 | AM18: 0.00084 | AN18: 0.0254 | AO18: 0.105156 | AP18: 0.09652 | AQ18: 0.02624 | AR18: 0.2412698356 | AS18: 0.2416380592 | AT18: 0.2416380592 | AU18: 2.25 | AV18: 0.9030204012 | AW18: 1.777395709 | AX18: 0.4265473324 | AZ18: 90.30204012 | BA18: 0.1192492178 | BB18: 0.09602233048 | BC18: 0.07727807429 | BD18: 0.01854553619 | BE18: 0.1223888414
A19: Rdcr | B19: =Rdcr*1000 -> 50 | C19: mW | D19: Inductor DCR at 25°C | G19: 10 | H19: 24 | I19: 1 | J19: 0.5 | K19: 0.5 | L19: 0.1157407407 | M19: 0.2103737987 | N19: 1.464727573 | O19: 1.232363787 | P19: -0.2323637866 | Q19: 4.47283516 | R19: 0.654817205 | S19: 0.0214392786 | T19: 0.1 | U19: 0.1216648013 | V19: 0.4228304293 | W19: 0.000178785572 | X19: 0.000178785572 | Y19: 0.2668865462 | Z19: 0.0007122842857 | AA19: 0.0007122842857 | AB19: 0.3003418878 | AC19: 0.006675188469 | AD19: 0.005561986065 | AE19: 0.05534026034 | AF19: 0.0005204948819 | AG19: 0.06813977557 | AH19: 0.5818765525 | AI19: 0.01049598999 | AJ19: 0.002760494882 | AK19: 0.01326929812 | AL19: 0.02208 | AM19: 0.00084 | AN19: 0.0254 | AO19: 0.105156 | AP19: 0.09652 | AQ19: 0.02624 | AR19: 0.2511136932 | AS19: 0.2515443931 | AT19: 0.2515443931 | AU19: 2.5 | AV19: 0.9085806525 | AW19: 1.902389238 | AX19: 0.4727810568 | AZ19: 90.85806525 | BA19: 0.1216648013 | BB19: 0.1034890737 | BC19: 0.08271257557 | BD19: 0.02055569812 | BE19: 0.1298795917
A20: LTc | B20: 3930 | C20: ppm | D20: Inductor Series Resistance Temp Co | G20: 11 | H20: 24 | I20: 1 | J20: 0.55 | K20: 0.55 | L20: 0.1273148148 | M20: 0.2105779996 | N20: 1.465669328 | O20: 1.282834664 | P20: -0.1828346642 | Q20: 3.519435306 | R20: 0.6939132138 | S20: 0.02407577742 | T20: 0.1 | U20: 0.1243345913 | V20: 0.4231022906 | W20: 0.0001790155483 | X20: 0.0001790155483 | Y20: 0.2829217061 | Z20: 0.0008004469177 | AA20: 0.0008004469177 | AB20: 0.318428298 | AC20: 0.00750334699 | AD20: 0.006118184671 | AE20: 0.05812421886 | AF20: 0.0004095496477 | AG20: 0.07220514396 | AH20: 0.616537888 | AI20: 0.01178368799 | AJ20: 0.002873549648 | AK20: 0.01467314478 | AL20: 0.024288 | AM20: 0.00084 | AN20: 0.0254 | AO20: 0.105156 | AP20: 0.09652 | AQ20: 0.02624 | AR20: 0.2614163152 | AS20: 0.2619192603 | AT20: 0.2619192603 | AU20: 2.75 | AV20: 0.9130390832 | AW20: 2.029410151 | AX20: 0.52182825 | AZ20: 91.30390832 | BA20: 0.1243345913 | BB20: 0.1111662887 | BC20: 0.08823522396 | BD20: 0.02268818478 | BE20: 0.137584669
A21: ThetaCa | B21: =ThetaCa -> 22 | C21: °C/W | D21: Core to Ambient Thermal Resistance | G21: 12 | H21: 24 | I21: 1 | J21: 0.6 | K21: 0.6 | L21: 0.1388888889 | M21: 0.2107822287 | N21: 1.466610348 | O21: 1.333305174 | P21: -0.1333051741 | Q21: 2.566028375 | R21: 0.7343333662 | S21: 0.02696227464 | T21: 0.1 | U21: 0.1272589354 | V21: 0.4233739396 | W21: 0.0001792454928 | X21: 0.0001792454928 | Y21: 0.2995081785 | Z21: 0.00089705149 | AA21: 0.00089705149 | AB21: 0.337139981 | AC21: 0.008411089141 | AD21: 0.006674383277 | AE21: 0.0609158335 | AF21: 0.0002986035899 | AG21: 0.07635899764 | AH21: 0.652366558 | AI21: 0.01319304591 | AJ21: 0.00298660359 | AK21: 0.01619931158 | AL21: 0.026496 | AM21: 0.00084 | AN21: 0.0254 | AO21: 0.105156 | AP21: 0.09652 | AQ21: 0.02624 | AR21: 0.2721778336 | AS21: 0.2727636968 | AT21: 0.2727636968 | AU21: 3 | AV21: 0.9166564647 | AW21: 2.158466226 | AX21: 0.5736888063 | AZ21: 91.66564647 | BA21: 0.1272589354 | BB21: 0.1190543092 | BC21: 0.09384635764 | BD21: 0.02494299158 | BE21: 0.1455047614
A22: Cin | B22: =Cin*1000000 -> 22 | C22: μF | D22: Input Capacitance | G22: 13 | H22: 24 | I22: 1 | J22: 0.65 | K22: 0.65 | L22: 0.150462963 | M22: 0.2109864858 | N22: 1.467550632 | O22: 1.383775316 | P22: -0.08377531621 | Q22: 1.612614364 | R22: 0.7758707398 | S22: 0.03009877024 | T22: 0.1 | U22: 0.1304382148 | V22: 0.4236453763 | W22: 0.0001794754049 | X22: 0.0001794754049 | Y22: 0.3165620969 | Z22: 0.001002115612 | AA22: 0.001002115612 | AB22: 0.3563827651 | AC22: 0.009398641968 | AD22: 0.007230581884 | AE22: 0.06371510442 | AF22: 0.0001876567083 | AG22: 0.08060167924 | AH22: 0.6891783003 | AI22: 0.01472396862 | AJ22: 0.003099656708 | AK22: 0.01784780205 | AL22: 0.028704 | AM22: 0.00084 | AN22: 0.0254 | AO22: 0.105156 | AP22: 0.09652 | AQ22: 0.02624 | AR22: 0.2833983806 | AS22: 0.2840787966 | AT22: 0.2840787966 | AU22: 3.25 | AV22: 0.9196172997 | AW22: 2.289565343 | AX22: 0.6283628072 | AZ22: 91.96172997 | BA22: 0.1304382148 | BB22: 0.1271534813 | BC22: 0.09954631924 | BD22: 0.02732012205 | BE22: 0.1536405818
A23: RCinEsr | B23: =RCinEsr*1000 -> 10 | C23: mW | D23: Input Capacitor ESR | G23: 14 | H23: 24 | I23: 1 | J23: 0.7 | K23: 0.7 | L23: 0.162037037 | M23: 0.2111907711 | N23: 1.468490181 | O23: 1.43424509 | P23: -0.0342450905 | Q23: 0.6591932723 | R23: 0.8183552311 | S23: 0.03348526422 | T23: 0.1 | U23: 0.1338728443 | V23: 0.4239166006 | W23: 0.0001797052843 | X23: 0.0001797052843 | Y23: 0.3340145014 | Z23: 0.001115656872 | AA23: 0.001115656872 | AB23: 0.3760792143 | AC23: 0.01046623258 | AD23: 0.00778678049 | AE23: 0.0665220318 | AF23: 7.670900271e-05 | AG23: 0.08493353582 | AH23: 0.7268216486 | AI23: 0.01637636098 | AJ23: 0.003212709003 | AK23: 0.0196186279 | AL23: 0.030912 | AM23: 0.00084 | AN23: 0.0254 | AO23: 0.105156 | AP23: 0.09652 | AQ23: 0.02624 | AR23: 0.2950780881 | AS23: 0.2958657126 | AT23: 0.2958657126 | AU23: 3.5 | AV23: 0.922055801 | AW23: 2.422715484 | AX23: 0.6858505216 | AZ23: 92.2055801 | BA23: 0.1338728443 | BB23: 0.1354641637 | BC23: 0.1053354558 | BD23: 0.0298195879 | BE23: 0.1619928683
A24: Cout | B24: =Cout*1000000 -> 94 | C24: μF | D24: Output Capcitance | G24: 15 | H24: 24 | I24: 1 | J24: 0.75 | K24: 0.75 | L24: 0.1736111111 | M24: 0.2113950845 | N24: 1.469428994 | O24: 1.484714497 | P24: 0.01528550314 | Q24: 0 | R24: 0.8616467551 | S24: 0.03712175653 | T24: 0.1 | U24: 0.1375632723 | V24: 0.4241876125 | W24: 0.0001799351306 | X24: 0.0001799351306 | Y24: 0.3518085898 | Z24: 0.001237692839 | AA24: 0.001237692839 | AB24: 0.3961655427 | AC24: 0.01161408815 | AD24: 0.008342979097 | AE24: 0.0684672 | AF24: 0 | AG24: 0.08851884929 | AH24: 0.7651718718 | AI24: 0.0181501278 | AJ24: 0.00336 | AK24: 0.02154610574 | AL24: 0.03312 | AM24: 0.00084 | AN24: 0.0254 | AO24: 0.105156 | AP24: 0.09652 | AQ24: 0.02624 | AR24: 0.3064161516 | AS24: 0.3073225205 | AT24: 0.3073225205 | AU24: 3.75 | AV24: 0.9242548457 | AW24: 2.538695134 | AX24: 0.746941232 | AZ24: 92.42548457 | BA24: 0.1375632723 | BB24: 0.143184955 | BC24: 0.1103780493 | BD24: 0.03247570574 | BE24: 0.1697592481
A25: RCoutEsr | B25: =Cout_ESR*1000 -> 1 | C25: mW | D25: Output Capacitor ESR | G25: 16 | H25: 24 | I25: 1 | J25: 0.8 | K25: 0.8 | L25: 0.1851851852 | M25: 0.211599426 | N25: 1.47036707 | O25: 1.535183535 | P25: 0.06481646478 | Q25: 0 | R25: 0.905629584 | S25: 0.04100824717 | T25: 0.1 | U25: 0.1415099811 | V25: 0.424458412 | W25: 0.0001801649435 | X25: 0.0001801649435 | Y25: 0.3698974264 | Z25: 0.00136824106 | AA25: 0.00136824106 | AB25: 0.4165890437 | AC25: 0.01284243592 | AD25: 0.008899177703 | AE25: 0.0684672 | AF25: 0 | AG25: 0.09031552178 | AH25: 0.8041259306 | AI25: 0.02004517388 | AJ25: 0.003584 | AK25: 0.02367283027 | AL25: 0.035328 | AM25: 0.00084 | AN25: 0.0254 | AO25: 0.105156 | AP25: 0.09652 | AQ25: 0.02624 | AR25: 0.3164142347 | AS25: 0.3174482982 | AT25: 0.3174482982 | AU25: 4 | AV25: 0.9264731674 | AW25: 2.613536041 | AX25: 0.8126146162 | AZ25: 92.64731674 | BA25: 0.1415099811 | BB25: 0.149316352 | BC25: 0.1136320018 | BD25: 0.03533107027 | BE25: 0.175938317
A26: Top Driver | B26: Input Value | C26: Units | D26: Description | G26: 17 | H26: 24 | I26: 1 | J26: 0.85 | K26: 0.85 | L26: 0.1967592593 | M26: 0.2118037957 | N26: 1.471304411 | O26: 1.585652206 | P26: 0.1143477945 | Q26: 0 | R26: 0.950207726 | S26: 0.04514473612 | T26: 0.1 | U26: 0.145713487 | V26: 0.4247289989 | W26: 0.0001803947225 | X26: 0.0001803947225 | Y26: 0.3882420721 | Z26: 0.001507319065 | AA26: 0.001507319065 | AB26: 0.4373059905 | AC26: 0.01415150317 | AD26: 0.00945537631 | AE26: 0.0684672 | AF26: 0 | AG26: 0.09219411052 | AH26: 0.8435983601 | AI26: 0.02206140399 | AJ26: 0.003808 | AK26: 0.02592201659 | AL26: 0.037536 | AM26: 0.00084 | AN26: 0.0254 | AO26: 0.105156 | AP26: 0.09652 | AQ26: 0.02624 | AR26: 0.3268642196 | AS26: 0.3280404086 | AT26: 0.3280404086 | AU26: 4.25 | AV26: 0.9283447984 | AW26: 2.690261022 | AX26: 0.8811046215 | AZ26: 92.83447984 | BA26: 0.145713487 | BB26: 0.1556521271 | BC26: 0.1169678705 | BD26: 0.03830889659 | BE26: 0.1823269216
A27: RdsonDRT | B27: 1 | C27: W | D27: Drain to Source Resistance of pullup Top FET Driver | G27: 18 | H27: 24 | I27: 1 | J27: 0.9 | K27: 0.9 | L27: 0.2083333333 | M27: 0.2120081935 | N27: 1.472241015 | O27: 1.636120508 | P27: 0.1638794924 | Q27: 0 | R27: 0.9953011942 | S27: 0.04953122336 | T27: 0.1 | U27: 0.1501743404 | V27: 0.4249993732 | W27: 0.0001806244673 | X27: 0.0001806244673 | Y27: 0.4068100738 | Z27: 0.001654944361 | AA27: 0.001654944361 | AB27: 0.4582799403 | AC27: 0.01554151727 | AD27: 0.01001157492 | AE27: 0.0684672 | AF27: 0 | AG27: 0.09415491674 | AH27: 0.8835179475 | AI27: 0.02419872287 | AJ27: 0.004032 | AK27: 0.02829371267 | AL27: 0.039744 | AM27: 0.00084 | AN27: 0.0254 | AO27: 0.105156 | AP27: 0.09652 | AQ27: 0.02624 | AR27: 0.3377662384 | AS27: 0.3391000873 | AT27: 0.3391000873 | AU27: 4.5 | AV27: 0.9299249693 | AW27: 2.768877005 | AX27: 0.9524123513 | AZ27: 92.99249693 | BA27: 0.1501743404 | BB27: 0.1621926294 | BC27: 0.1203859567 | BD27: 0.04140923267 | BE27: 0.1889257469
A28: RdsonDRT2 | B28: 1 | C28: W | D28: Drain to Source Resistance of pulldown Top FET Driver | G28: 19 | H28: 24 | I28: 1 | J28: 0.95 | K28: 0.95 | L28: 0.2199074074 | M28: 0.2122126194 | N28: 1.473176883 | O28: 1.686588442 | P28: 0.2134115584 | Q28: 0 | R28: 1.040843013 | S28: 0.05416770887 | T28: 0.1 | U28: 0.1548931261 | V28: 0.425269535 | W28: 0.0001808541774 | X28: 0.0001808541774 | Y28: 0.4255742515 | Z28: 0.001811134435 | AA28: 0.001811134435 | AB28: 0.4794803726 | AC28: 0.01701270565 | AD28: 0.01056777352 | AE28: 0.0684672 | AF28: 0 | AG28: 0.09619824568 | AH28: 0.9238250644 | AI28: 0.02645703524 | AJ28: 0.004256 | AK28: 0.03078797462 | AL28: 0.041952 | AM28: 0.00084 | AN28: 0.0254 | AO28: 0.105156 | AP28: 0.09652 | AQ28: 0.02624 | AR28: 0.3491204233 | AS28: 0.3506286291 | AT28: 0.3506286291 | AU28: 4.75 | AV28: 0.9312577616 | AW28: 2.849391011 | AX28: 1.026539096 | AZ28: 93.12577616 | BA28: 0.1548931261 | BB28: 0.1689382203 | BC28: 0.1238865657 | BD28: 0.04463213462 | BE28: 0.195735503
A29: Bottom Driver | B29: Input Value | C29: Units | D29: Description | G29: 20 | H29: 24 | I29: 1 | J29: 1 | K29: 1 | L29: 0.2314814815 | M29: 0.2124170735 | N29: 1.474112014 | O29: 1.737056007 | P29: 0.2629439928 | Q29: 0 | R29: 1.086776818 | S29: 0.05905419263 | T29: 0.1 | U29: 0.1598704633 | V29: 0.4255394841 | W29: 0.0001810838526 | X29: 0.0001810838526 | Y29: 0.4445117271 | Z29: 0.001975906755 | AA29: 0.001975906755 | AB29: 0.5008815983 | AC29: 0.01856529579 | AD29: 0.01112397213 | AE29: 0.0684672 | AF29: 0 | AG29: 0.09832440671 | AH29: 0.9644695314 | AI29: 0.02883624579 | AJ29: 0.00448 | AK29: 0.03340486672 | AL29: 0.04416 | AM29: 0.00084 | AN29: 0.0254 | AO29: 0.105156 | AP29: 0.09652 | AQ29: 0.02624 | AR29: 0.3609269063 | AS29: 0.3626273882 | AT29: 0.3626273882 | AU29: 5 | AV29: 0.9323787834 | AW29: 2.931810154 | AX29: 1.103486334 | AZ29: 93.23787834 | BA29: 0.1598704633 | BB29: 0.1758892734 | BC29: 0.1274700067 | BD29: 0.04797766672 | BE29: 0.2027569249
A30: RdsonDRB | B30: 1 | C30: W | D30: Drain to Source Resistance of pullup Bottom FET Driver | G30: 21 | H30: 24 | I30: 1 | J30: 1.05 | K30: 1.05 | L30: 0.2430555556 | M30: 0.2126215557 | N30: 1.475046409 | O30: 1.787523204 | P30: 0.3124767956 | Q30: 0 | R30: 1.133054938 | S30: 0.06419067462 | T30: 0.1 | U30: 0.1651070062 | V30: 0.4258092206 | W30: 0.0001813134923 | X30: 0.0001813134923 | Y30: 0.4636031457 | Z30: 0.002149278767 | AA30: 0.002149278767 | AB30: 0.5224618857 | AC30: 0.02019951523 | AD30: 0.01168017074 | AE30: 0.0684672 | AF30: 0 | AG30: 0.1005337133 | AH30: 1.005408907 | AI30: 0.03133625918 | AJ30: 0.004704 | AK30: 0.03614446134 | AL30: 0.046368 | AM30: 0.00084 | AN30: 0.0254 | AO30: 0.105156 | AP30: 0.09652 | AQ30: 0.02624 | AR30: 0.3731858198 | AS30: 0.3750977788 | AT30: 0.3750977788 | AU30: 5.25 | AV30: 0.9333171096 | AW30: 3.016141647 | AX30: 1.183255731 | AZ30: 93.33171096 | BA30: 0.1651070062 | BB30: 0.1830461747 | BC30: 0.1311365933 | BD30: 0.05144590134 | BE30: 0.2099907726
A31: RdsonDRB2 | B31: 1 | C31: W | D31: Drain to Source Resistance of pulldown Bottom FET Driver | G31: 22 | H31: 24 | I31: 1 | J31: 1.1 | K31: 1.1 | L31: 0.2546296296 | M31: 0.2128260661 | N31: 1.475980066 | O31: 1.837990033 | P31: 0.3620099669 | Q31: 0 | R31: 1.179636849 | S31: 0.06957715482 | T31: 0.1 | U31: 0.1706034439 | V31: 0.4260787443 | W31: 0.0001815430963 | X31: 0.0001815430963 | Y31: 0.4828320513 | Z31: 0.002331267897 | AA31: 0.002331267897 | AB31: 0.5442027591 | AC31: 0.02191559158 | AD31: 0.01223636934 | AE31: 0.0684672 | AF31: 0 | AG31: 0.1028264832 | AH31: 1.046607115 | AI31: 0.03395698005 | AJ31: 0.004928 | AK31: 0.03900683906 | AL31: 0.048576 | AM31: 0.00084 | AN31: 0.0254 | AO31: 0.105156 | AP31: 0.09652 | AQ31: 0.02624 | AR31: 0.3858972958 | AS31: 0.3880412754 | AT31: 0.3880412754 | AU31: 5.5 | AV31: 0.9340967128 | AW31: 3.102392794 | AX31: 1.265849138 | AZ31: 93.40967128 | BA31: 0.1706034439 | BB31: 0.1904093223 | BC31: 0.1348866432 | BD31: 0.05503691906 | BE31: 0.2174378316
A32: Deadtime | B32: Input Value | C32: Units | D32: Description | G32: 23 | H32: 24 | I32: 1 | J32: 1.15 | K32: 1.15 | L32: 0.2662037037 | M32: 0.2130306046 | N32: 1.476912987 | O32: 1.888456493 | P32: 0.4115435066 | Q32: 0 | R32: 1.226487939 | S32: 0.07521363321 | T32: 0.1 | U32: 0.1763605004 | V32: 0.4263480552 | W32: 0.0001817726642 | X32: 0.0001817726642 | Y32: 0.5021843837 | Z32: 0.002521891552 | AA32: 0.002521891552 | AB32: 0.5660884341 | AC32: 0.02371375253 | AD32: 0.01279256795 | AE32: 0.0684672 | AF32: 0 | AG32: 0.1052030383 | AH32: 1.08803334 | AI32: 0.03669831302 | AJ32: 0.005152 | AK32: 0.04199208859 | AL32: 0.050784 | AM32: 0.00084 | AN32: 0.0254 | AO32: 0.105156 | AP32: 0.09652 | AQ32: 0.02624 | AR32: 0.3990614667 | AS32: 0.4014594134 | AT32: 0.4014594134 | AU32: 5.75 | AV32: 0.9347375336 | AW32: 3.190571001 | AX32: 1.351268598 | AZ32: 93.47375336 | BA32: 0.1763605004 | BB32: 0.1979791269 | BC32: 0.1387204783 | BD32: 0.05875080859 | BE32: 0.225098913
A33: Deadtime | B33: 15 | C33: ns | D33: Total Deadtime | G33: 24 | H33: 24 | I33: 1 | J33: 1.2 | K33: 1.2 | L33: 0.2777777778 | M33: 0.2132351714 | N33: 1.47784517 | O33: 1.938922585 | P33: 0.461077415 | Q33: 0 | R33: 1.2735785 | S33: 0.08110010978 | T33: 0.1 | U33: 0.1823789355 | V33: 0.4266171534 | W33: 0.0001820021955 | X33: 0.0001820021955 | Y33: 0.5216480727 | Z33: 0.002721167118 | AA33: 0.002721167118 | AB33: 0.5881053614 | AC33: 0.02559422579 | AD33: 0.01334876655 | AE33: 0.0684672 | AF33: 0 | AG33: 0.1076637047 | AH33: 1.129661135 | AI33: 0.03956016266 | AJ33: 0.005376 | AK33: 0.04510030681 | AL33: 0.052992 | AM33: 0.00084 | AN33: 0.0254 | AO33: 0.105156 | AP33: 0.09652 | AQ33: 0.02624 | AR33: 0.4126784648 | AS33: 0.4153537892 | AT33: 0.4153537892 | AU33: 6 | AV33: 0.9352562925 | AW33: 3.280683768 | AX33: 1.439516337 | AZ33: 93.52562925 | BA33: 0.1823789355 | BB33: 0.2057560115 | BC33: 0.1426384247 | BD33: 0.06258766681 | BE33: 0.2329748537
A34: IQ | B34: Input Value | C34: Units | D34: Description | G34: 25 | H34: 24 | I34: 1 | J34: 1.25 | K34: 1.25 | L34: 0.2893518519 | M34: 0.2134397663 | N34: 1.478776616 | O34: 1.989388308 | P34: 0.510611692 | Q34: 0 | R34: 1.320882921 | S34: 0.0872365845 | T34: 0.1 | U34: 0.1886595444 | V34: 0.4268860386 | W34: 0.00018223169 | X34: 0.00018223169 | Y34: 0.5412127085 | Z34: 0.002929111959 | AA34: 0.002929111959 | AB34: 0.6102418571 | AC34: 0.02755723918 | AD34: 0.01390496516 | AE34: 0.0684672 | AF34: 0 | AG34: 0.110208813 | AH34: 1.171467697 | AI34: 0.04254243354 | AJ34: 0.0056 | AK34: 0.04833159877 | AL34: 0.0552 | AM34: 0.00084 | AN34: 0.0254 | AO34: 0.105156 | AP34: 0.09652 | AQ34: 0.02624 | AR34: 0.4267484224 | AS34: 0.4297260612 | AT34: 0.4297260612 | AU34: 6.25 | AV34: 0.9356671131 | AW34: 3.372738699 | AX34: 1.530594772 | AZ34: 93.56671131 | BA34: 0.1886595444 | BB34: 0.2137404118 | BC34: 0.146640813 | BD34: 0.06654759877 | BE34: 0.2410665168
A35: IQ | B35: =Iq*1000 -> 0.035 | C35: mA | D35: Quiescent Current Of Controller (Not Switching!) | G35: 26 | H35: 24 | I35: 1 | J35: 1.3 | K35: 1.3 | L35: 0.3009259259 | M35: 0.2136443893 | N35: 1.479707324 | O35: 2.039853662 | P35: 0.5601463379 | Q35: 0 | R35: 1.368379022 | S35: 0.09362305736 | T35: 0.1 | U35: 0.1952031585 | V35: 0.427154711 | W35: 0.0001824611471 | X35: 0.0001824611471 | Y35: 0.5608692735 | Z35: 0.00314574342 | AA35: 0.00314574342 | AB35: 0.632487801 | AC35: 0.02960302056 | AD35: 0.01446116377 | AE35: 0.0684672 | AF35: 0 | AG35: 0.112838698 | AH35: 1.213433282 | AI35: 0.04564503019 | AJ35: 0.005824 | AK35: 0.05168607775 | AL35: 0.057408 | AM35: 0.00084 | AN35: 0.0254 | AO35: 0.105156 | AP35: 0.09652 | AQ35: 0.02624 | AR35: 0.4412714719 | AS35: 0.44457795 | AT35: 0.44457795 | AU35: 6.5 | AV35: 0.9359820059 | AW35: 3.466743495 | AX35: 1.624506508 | AZ35: 93.59820059 | BA35: 0.1952031585 | BB35: 0.2219327758 | BC35: 0.150727978 | BD35: 0.07063071775 | BE35: 0.2493747915
A36: High-side FET | B36: Input Value | C36: Units | D36: Description | G36: 27 | H36: 24 | I36: 1 | J36: 1.35 | K36: 1.35 | L36: 0.3125 | M36: 0.2138490406 | N36: 1.480637295 | O36: 2.090318647 | P36: 0.6096813525 | Q36: 0 | R36: 1.416047516 | S36: 0.1002595283 | T36: 0.1 | U36: 0.2020106452 | V36: 0.4274231704 | W36: 0.0001826905666 | X36: 0.0001826905666 | Y36: 0.580609923 | Z36: 0.003371078826 | AA36: 0.003371078826 | AB36: 0.6548343905 | AC36: 0.03173179784 | AD36: 0.01501736237 | AE36: 0.0684672 | AF36: 0 | AG36: 0.1155536991 | AH36: 1.255540715 | AI36: 0.04886785712 | AJ36: 0.006048 | AK36: 0.05516386519 | AL36: 0.059616 | AM36: 0.00084 | AN36: 0.0254 | AO36: 0.105156 | AP36: 0.09652 | AQ36: 0.02624 | AR36: 0.4562477457 | AS36: 0.4599112389 | AT36: 0.4599112389 | AU36: 6.75 | AV36: 0.9362112482 | AW36: 3.562705958 | AX36: 1.721254339 | AZ36: 93.62112482 | BA36: 0.2020106452 | BB36: 0.2303335643 | BC36: 0.1549002591 | BD36: 0.07483714519 | BE36: 0.2579005936
A37: RdsonTop | B37: =Rdson1*1000 -> 74 | C37: mW | D37: Drain-Source Resistance of Top FET | G37: 28 | H37: 24 | I37: 1 | J37: 1.4 | K37: 1.4 | L37: 0.3240740741 | M37: 0.2140537201 | N37: 1.481566528 | O37: 2.140783264 | P37: 0.6592167361 | Q37: 0 | R37: 1.463871561 | S37: 0.1071459974 | T37: 0.1 | U37: 0.2090829086 | V37: 0.4276914168 | W37: 0.000182919948 | X37: 0.000182919948 | Y37: 0.6004278043 | Z37: 0.003605135482 | AA37: 0.003605135482 | AB37: 0.6772739377 | AC37: 0.03394379902 | AD37: 0.01557356098 | AE37: 0.0684672 | AF37: 0 | AG37: 0.1183541599 | AH37: 1.297775004 | AI37: 0.0522108188 | AJ37: 0.006272 | AK37: 0.05876509076 | AL37: 0.061824 | AM37: 0.00084 | AN37: 0.0254 | AO37: 0.105156 | AP37: 0.09652 | AQ37: 0.02624 | AR37: 0.4716773762 | AS37: 0.4757277746 | AT37: 0.4757277746 | AU37: 7 | AV37: 0.9363636841 | AW37: 3.660633997 | AX37: 1.820841248 | AZ37: 93.63636841 | BA37: 0.2090829086 | BB37: 0.2389432506 | BC37: 0.1591579999 | BD37: 0.07916701076 | BE37: 0.266644866
A38: RdsonTopTc | B38: =RdsonTopTc*1000000 -> 4000 | C38: ppm | D38: Drain to Source Resistance Temp Co | G38: 29 | H38: 24 | I38: 1 | J38: 1.45 | K38: 1.45 | L38: 0.3356481481 | M38: 0.2142584277 | N38: 1.482495023 | O38: 2.191247511 | P38: 0.7087524886 | Q38: 0 | R38: 1.511836397 | S38: 0.1142824646 | T38: 0.1 | U38: 0.2164208895 | V38: 0.4279594502 | W38: 0.000183149291 | X38: 0.000183149291 | Y38: 0.6203169084 | Z38: 0.003847930669 | AA38: 0.003847930669 | AB38: 0.6997997024 | AC38: 0.03623925214 | AD38: 0.01612975959 | AE38: 0.0684672 | AF38: 0 | AG38: 0.1212404287 | AH38: 1.340123005 | AI38: 0.05567381969 | AJ38: 0.006496 | AK38: 0.06248989239 | AL38: 0.064032 | AM38: 0.00084 | AN38: 0.0254 | AO38: 0.105156 | AP38: 0.09652 | AQ38: 0.02624 | AR38: 0.487560496 | AS38: 0.4920294677 | AT38: 0.4920294677 | AU38: 7.25 | AV38: 0.9364469653 | AW38: 3.760535619 | AX38: 1.923270405 | AZ38: 93.64469653 | BA38: 0.2164208895 | BB38: 0.2477623211 | BC38: 0.1635015487 | BD38: 0.08362045239 | BE38: 0.2756085783
A39: QgTop | B39: =Qg_Q1*1000000000 -> 4.1 | C39: nC | D39: Gate Charge Of Top FET | G39: 30 | H39: 24 | I39: 1 | J39: 1.5 | K39: 1.5 | L39: 0.3472222222 | M39: 0.2144631636 | N39: 1.483422779 | O39: 2.24171139 | P39: 0.7582886103 | Q39: 0 | R39: 1.559929035 | S39: 0.1216689298 | T39: 0.1 | U39: 0.2240255657 | V39: 0.4282272705 | W39: 0.0001833785952 | X39: 0.0001833785952 | Y39: 0.6402719463 | Z39: 0.004099481652 | AA39: 0.004099481652 | AB39: 0.7224057529 | AC39: 0.03861838531 | AD39: 0.01668595819 | AE39: 0.0684672 | AF39: 0 | AG39: 0.1242128583 | AH39: 1.382573153 | AI39: 0.05925676423 | AJ39: 0.00672 | AK39: 0.06633841622 | AL39: 0.06624 | AM39: 0.00084 | AN39: 0.0254 | AO39: 0.105156 | AP39: 0.09652 | AQ39: 0.02624 | AR39: 0.5038972375 | AS39: 0.5088182935 | AT39: 0.5088182935 | AU39: 7.5 | AV39: 0.9364677441 | AW39: 3.862418941 | AX39: 2.028545173 | AZ39: 93.64677441 | BA39: 0.2240255657 | BB39: 0.2567912745 | BC39: 0.1679312583 | BD39: 0.08819761622 | BE39: 0.2847927278
A40: QgdTop | B40: =Qgd_Q1*1000000000 -> 1.7 | C40: nC | D40: Gate to Drain Charge | G40: 31 | H40: 24 | I40: 1 | J40: 1.55 | K40: 1.55 | L40: 0.3587962963 | M40: 0.2146679277 | N40: 1.484349798 | O40: 2.292174899 | P40: 0.807825101 | Q40: 0 | R40: 1.60813801 | S40: 0.129305393 | T40: 0.1 | U40: 0.2318979528 | V40: 0.4284948777 | W40: 0.0001836078602 | X40: 0.0001836078602 | Y40: 0.6602882456 | Z40: 0.004359805673 | AA40: 0.004359805673 | AB40: 0.7450868507 | AC40: 0.04108142672 | AD40: 0.0172421568 | AE40: 0.0684672 | AF40: 0 | AG40: 0.1272718062 | AH40: 1.425115239 | AI40: 0.0629595568 | AJ40: 0.006944 | AK40: 0.07031081668 | AL40: 0.068448 | AM40: 0.00084 | AN40: 0.0254 | AO40: 0.105156 | AP40: 0.09652 | AQ40: 0.02624 | AR40: 0.5206877333 | AS40: 0.5260962921 | AT40: 0.5260962921 | AU40: 7.75 | AV40: 0.9364318305 | AW40: 3.966292183 | AX40: 2.136669104 | AZ40: 93.64318305 | BA40: 0.2318979528 | BB40: 0.2660306229 | BC40: 0.1724474862 | BD40: 0.09289865668 | BE40: 0.2941983393
A41: QgsTop | B41: =Qgs_Q1*1000000000 -> 2.39 | C41: nC | G41: 32 | H41: =Vin -> 24 | I41: =MODE -> 1 | J41: 1.6 | K41: =Iout*G41/100/Number_of_Phases -> 1.6 | L41: =Vout*K41/(Vin*Efficiency) -> 0.3703703704 | M41: =(Vout+(Rdson2+Rs+Rdcr)*K41)/(Vin+(Rs+Rdson2-Rdson1)*K41) -> 0.21487272 | N41: =(Vin-(Rdson1+Rdcr)*K41-Vout)*M41/(Fsw*Lf) -> 1.485276078 | O41: 2.342638039 | P41: 0.857361961 | Q41: =IF(MIN(Vin, -P41/(Coss_Q1+Coss_Q2)*0.00000002)<0, 0, MIN(Vin, -P41/(Coss_Q1+Coss_Q2)*0.00000002)) -> 0 | R41: 1.656453164 | S41: =R41^2*Rdcr -> 0.1371918543 | T41: =Core_Loss -> 0.1 | U41: =(T41+S41*(1+Ltc*(Ta-25)))/(1-S41*Ltc*ThetaCa) -> 0.240039104 | V41: 0.4287622717 | W41: 0.0001838370856 | X41: 0.0001838370856 | Y41: 0.6803616651 | Z41: 0.004628919954 | AA41: 0.004628919954 | AB41: 0.7678383539 | AC41: =Rdson1*AB41^2 -> 0.0436286046 | AD41: =(Vin*K41/2)*Fsw*(Tr_buck+Tf_buck) -> 0.01779835541 | AE41: =(0.5*Coss_Q1*(Vin-Q41)^2-0.5*Coss_Q2*(Vin-Q41)^2+(Qoss_Q2*(Vin-Q41)/Vin)*Vin)*Fsw -> 0.0684672 | AF41: =IF(K41>N41/2,0,ABS(K41-N41/2)*Vsd_Q1*Deadtime*Fsw) -> 0 | AG41: =(AF41+AE41+AD41+AC41*(1+RdsonTopTc*Ta-RdsonTopTc*25))/(1-AC41*RdsonTopTc*ThetaJA_Q1) -> 0.1304176344 | AH41: =SQRT((1-M41))*SQRT(K41^2+(N41^2)/12) -> 1.467740218 | AI41: =Rdson2*AH41^2 -> 0.06678210178 | AJ41: =IF(K41<N41/2,Deadtime*Fsw*Vsd_Q2*(K41+N41/2),2*Deadtime*Fsw*Vsd_Q2*K41) -> 0.007168 | AK41: =(AJ41+AI41*(1+RdsonBotTc*Ta-RdsonBotTc*25))/(1-AI41*RdsonBotTc*ThetaJA_Q2) -> 0.0744072565 | AL41: =Qrr_Q2*K41/Iout*Fsw*Vin -> 0.070656 | AM41: =Iq*Vin -> 0.00084 | AN41: =IF(Ext_VCC=1, (Qg_Q1+Qg_Q2)*Fsw*Vout, (Qg_Q1+Qg_Q2)*Fsw*Vin) -> 0.0254 | AO41: =(Vin-VCC)*Fsw*(Qg_Q1+Qg_Q2) -> 0.105156 | AP41: =(Qg_Q1+Qg_Q2)*Fsw*(Vin-Vout) -> 0.09652 | AQ41: =SUM(AM41:AN41) -> 0.02624 | AR41: 0.5379321161 | AS41: =U41 + ((AF41+AE41+AD41+AC41*(1+RdsonTC*(Ta-25))) + (AJ41+AI41*(1+RdsonTC*(Ta-25))) + AQ41 + AL41) / (1-AC41*RdsonTC*ThetaJA_Q1 -AI41*RdsonTC*ThetaJA_Q2) -> 0.5438655697 | AT41: 0.5438655697 | AU41: =Vout*K41 -> 8 | AV41: 0.9363443204 | AW41: =ThetaJA_Q1*BC41 -> 4.072163672 | AX41: =ThetaJA_Q2*BD41 -> 2.247645939 | AZ41: 93.63443204 | BA41: =U41 -> 0.240039104 | BB41: =AG41+AK41+AL41 -> 0.2754808909 | BC41: =AG41+AL41*0.66 -> 0.1770505944 | BD41: =AK41+AL41*0.33 -> 0.0977237365 | BE41: 0.3038264657
A42: RGateTop | B42: =Rgate1 -> 0.158 | C42: W | D42: Gate Resistance | G42: 33 | H42: 24 | I42: 1 | J42: =Iout*G42/100 -> 1.65 | K42: 1.65 | L42: 0.3819444444 | M42: 0.2150775405 | N42: 1.486201619 | O42: 2.39310081 | P42: 0.9068991903 | Q42: 0 | R42: 1.70486547 | S42: 0.1453283136 | T42: 0.1 | U42: 0.2484501106 | V42: 0.4290294525 | W42: 0.0001840662711 | X42: 0.0001840662711 | Y42: 0.7004885221 | Z42: 0.004906841696 | AA42: 0.004906841696 | AB42: 0.7906561357 | AC42: 0.04626014724 | AD42: 0.01835455401 | AE42: 0.0684672 | AF42: 0 | AG42: 0.1336507098 | AH42: 1.510440051 | AI42: 0.07072430353 | AJ42: 0.007392 | AK42: 0.0786279067 | AL42: 0.072864 | AM42: 0.00084 | AN42: 0.0254 | AO42: 0.105156 | AP42: 0.09652 | AQ42: 0.02624 | AR42: 0.5556305183 | AS42: 0.5621282986 | AT42: 0.5621282986 | AU42: 8.25 | AV42: 0.936209701 | AW42: 4.180041845 | AX42: 2.361479614 | AZ42: 93.6209701 | BA42: 0.2484501106 | BB42: 0.2851426165 | BC42: 0.1817409498 | BD42: 0.1026730267 | BE42: 0.3136781881
A43: GfsTop | B43: =Gfs_Q1 -> 100 | C43: S | D43: Transconductance of Top FET | G43: 34 | H43: 24 | I43: 1 | J43: 1.7 | K43: 1.7 | L43: 0.3935185185 | M43: 0.2152823893 | N43: 1.487126422 | O43: 2.443563211 | P43: 0.9564367889 | Q43: 0 | R43: 1.75336688 | S43: 0.1537147708 | T43: 0.1 | U43: 0.2571321025 | V43: 0.4292964201 | W43: 0.0001842954163 | X43: 0.0001842954163 | Y43: 0.7206655314 | Z43: 0.005193588081 | AA43: 0.005193588081 | AB43: 0.8135365158 | AC43: 0.04897628302 | AD43: 0.01891075262 | AE43: 0.0684672 | AF43: 0 | AG43: 0.1369714039 | AH43: 1.553207569 | AI43: 0.07478606637 | AJ43: 0.007616 | AK43: 0.08297294663 | AL43: 0.075072 | AM43: 0.00084 | AN43: 0.0254 | AO43: 0.105156 | AP43: 0.09652 | AQ43: 0.02624 | AR43: 0.5737830728 | AS43: 0.5808867187 | AT43: 0.5808867187 | AU43: 8.5 | AV43: 0.9360319387 | AW43: 4.289935249 | AX43: 2.478174253 | AZ43: 93.60319387 | BA43: 0.2571321025 | BB43: 0.2950163505 | BC43: 0.1865189239 | BD43: 0.1077467066 | BE43: 0.3237546161
A44: VthTop | B44: =Vth_Q1 -> 1.5 | C44: V | D44: Threshold Voltage of Top FET | G44: 35 | H44: 24 | I44: 1 | J44: 1.75 | K44: 1.75 | L44: 0.4050925926 | M44: 0.2154872662 | N44: 1.488050486 | O44: 2.494025243 | P44: 1.005974757 | Q44: 0 | R44: 1.801950199 | S44: 0.162351226 | T44: 0.1 | U44: 0.2660862486 | V44: 0.4295631743 | W44: 0.0001845245207 | X44: 0.0001845245207 | Y44: 0.7408897535 | Z44: 0.005489176268 | AA44: 0.005489176268 | AB44: 0.8364762025 | AC44: 0.05177724037 | AD44: 0.01946695123 | AE44: 0.0684672 | AF44: 0 | AG44: 0.140380093 | AH44: 1.596036367 | AI44: 0.07896729458 | AJ44: 0.00784 | AK44: 0.08744256403 | AL44: 0.07728 | AM44: 0.00084 | AN44: 0.0254 | AO44: 0.105156 | AP44: 0.09652 | AQ44: 0.02624 | AR44: 0.5923899122 | AS44: 0.6001431372 | AT44: 0.6001431372 | AU44: 8.75 | AV44: 0.9358145508 | AW44: 4.40185254 | AX44: 2.597734173 | AZ44: 93.58145508 | BA44: 0.2660862486 | BB44: 0.3051026571 | BC44: 0.191384893 | BD44: 0.112944964 | BE44: 0.3340568885
A45: VspTop | B45: =Vsp_Q1 -> 1.55 | C45: V | G45: 36 | H45: 24 | I45: 1 | J45: 1.8 | K45: 1.8 | L45: 0.4166666667 | M45: 0.2156921715 | N45: 1.488973811 | O45: 2.544486905 | P45: 1.055513095 | Q45: 0 | R45: 1.850608977 | S45: 0.1712376792 | T45: 0.1 | U45: 0.2753137571 | V45: 0.4298297152 | W45: 0.0001847535841 | X45: 0.0001847535841 | Y45: 0.7611585511 | Z45: 0.005793623399 | AA45: 0.005793623399 | AB45: 0.8594722434 | AC45: 0.05466324776 | AD45: 0.02002314983 | AE45: 0.0684672 | AF45: 0 | AG45: 0.1438771585 | AH45: 1.638920696 | AI45: 0.08326789245 | AJ45: 0.008064 | AK45: 0.09203695499 | AL45: 0.079488 | AM45: 0.00084 | AN45: 0.0254 | AO45: 0.105156 | AP45: 0.09652 | AQ45: 0.02624 | AR45: 0.6114511692 | AS45: 0.6198999302 | AT45: 0.6198999302 | AU45: 9 | AV45: 0.9355606675 | AW45: 4.515802486 | AX45: 2.720163885 | AZ45: 93.55606675 | BA45: 0.2753137571 | BB45: 0.3154021135 | BC45: 0.1963392385 | BD45: 0.118267995 | BE45: 0.3445861731
A46: VsdTop | B46: =Vsd_Q1 -> 0.7 | C46: V | G46: 37 | H46: 24 | I46: 1 | J46: 1.85 | K46: 1.85 | L46: 0.4282407407 | M46: 0.2158971049 | N46: 1.489896396 | O46: 2.594948198 | P46: 1.105051802 | Q46: 0 | R46: 1.899337412 | S46: 0.1803741303 | T46: 0.1 | U46: 0.2848158758 | V46: 0.4300960427 | W46: 0.000184982606 | X46: 0.000184982606 | Y46: 0.781469551 | Z46: 0.006106946591 | AA46: 0.006106946591 | AB46: 0.8825219831 | AC46: 0.05763453375 | AD46: 0.02057934844 | AE46: 0.0684672 | AF46: 0 | AG46: 0.1474629866 | AH46: 1.681855391 | AI46: 0.08768776421 | AJ46: 0.008288 | AK46: 0.09675632402 | AL46: 0.081696 | AM46: 0.00084 | AN46: 0.0254 | AO46: 0.105156 | AP46: 0.09652 | AQ46: 0.02624 | AR46: 0.6309669767 | AS46: 0.6401595432 | AT46: 0.6401595432 | AU46: 9.25 | AV46: 0.9352730823 | AW46: 4.631793971 | AX46: 2.845468092 | AZ46: 93.52730823 | BA46: 0.2848158758 | BB46: 0.3259153106 | BC46: 0.2013823466 | BD46: 0.123716004 | BE46: 0.3553436674
A47: θJATop | B47: =ThetaJA_Q1 -> 23 | C47: °C/W | D47: Junction to Ambient Resistance | G47: 38 | H47: 24 | I47: 1 | J47: 1.9 | K47: 1.9 | L47: 0.4398148148 | M47: 0.2161020666 | N47: 1.490818242 | O47: 2.645409121 | P47: 1.154590879 | Q47: 0 | R47: 1.94813028 | S47: 0.1897605793 | T47: 0.1 | U47: 0.2945938928 | V47: 0.4303621568 | W47: 0.000185211586 | X47: 0.000185211586 | Y47: 0.8018206123 | Z47: 0.006429162943 | AA47: 0.006429162943 | AB47: 0.905623027 | AC47: 0.06069132697 | AD47: 0.02113554705 | AE47: 0.0684672 | AF47: 0 | AG47: 0.1511379683 | AH47: 1.724835795 | AI47: 0.09222681409 | AJ47: 0.008512 | AK47: 0.1016008841 | AL47: 0.083904 | AM47: 0.00084 | AN47: 0.0254 | AO47: 0.105156 | AP47: 0.09652 | AQ47: 0.02624 | AR47: 0.6509374674 | AS47: 0.6609244916 | AT47: 0.6609244916 | AU47: 9.5 | AV47: 0.9349542955 | AW47: 4.749835991 | AX47: 2.973651693 | AZ47: 93.49542955 | BA47: 0.2945938928 | BB47: 0.3366428523 | BC47: 0.2065146083 | BD47: 0.1292892041 | BE47: 0.3663305988
A48: Low-side FET | B48: Input Value | C48: Units | D48: Description | G48: 39 | H48: 24 | I48: 1 | J48: 1.95 | K48: 1.95 | L48: 0.4513888889 | M48: 0.2163070566 | N48: 1.491739349 | O48: 2.695869675 | P48: 1.204130325 | Q48: 0 | R48: 1.996982855 | S48: 0.1993970262 | T48: 0.1 | U48: 0.3046491368 | V48: 0.4306280574 | W48: 0.0001854405238 | X48: 0.0001854405238 | Y48: 0.8222097989 | Z48: 0.006760289535 | AA48: 0.006760289535 | AB48: 0.9287732106 | AC48: 0.06383385608 | AD48: 0.02169174565 | AE48: 0.0684672 | AF48: 0 | AG48: 0.1549024999 | AH48: 1.7678577 | AI48: 0.09688494626 | AJ48: 0.008736 | AK48: 0.1065708565 | AL48: 0.086112 | AM48: 0.00084 | AN48: 0.0254 | AO48: 0.105156 | AP48: 0.09652 | AQ48: 0.02624 | AR48: 0.6713627742 | AS48: 0.6821973618 | AT48: 0.6821973618 | AU48: 9.75 | AV48: 0.9346065514 | AW48: 4.869937658 | AX48: 3.10471978 | AZ48: 93.46065514 | BA48: 0.3046491368 | BB48: 0.3475853565 | BC48: 0.2117364199 | BD48: 0.1349878165 | BE48: 0.3775482251
A49: RdsonBot | B49: =Rdson2*1000 -> 31 | C49: mW | D49: Drain-Source Resistance of Low-side FET | G49: 40 | H49: 24 | I49: 1 | J49: 2 | K49: 2 | L49: 0.462962963 | M49: 0.2165120749 | N49: 1.492659716 | O49: 2.746329858 | P49: 1.253670142 | Q49: 0 | R49: 2.045890862 | S49: 0.209283471 | T49: 0.1 | U49: 0.3149829773 | V49: 0.4308937445 | W49: 0.000185669419 | X49: 0.000185669419 | Y49: 0.8426353554 | Z49: 0.007100343422 | AA49: 0.007100343422 | AB49: 0.9519705724 | AC49: 0.06706234983 | AD49: 0.02224794426 | AE49: 0.0684672 | AF49: 0 | AG49: 0.1587569828 | AH49: 1.810917295 | AI49: 0.1016620649 | AJ49: 0.00896 | AK49: 0.1116664714 | AL49: 0.08832 | AM49: 0.00084 | AN49: 0.0254 | AO49: 0.105156 | AP49: 0.09652 | AQ49: 0.02624 | AR49: 0.6922430299 | AS49: 0.7039808121 | AT49: 0.7039808121 | AU49: 10 | AV49: 0.934231869 | AW49: 4.992108204 | AX49: 3.238677641 | AZ49: 93.4231869 | BA49: 0.3149829773 | BB49: 0.3587434541 | BC49: 0.2170481828 | BD49: 0.1408120714 | BE49: 0.3889978347
A50: RdsonBotTc | B50: =RdsonBotTc*1000000 -> 4000 | C50: ppm | D50: Drain To Source Resitance Temp Co | G50: 41 | H50: 24 | I50: 1 | J50: 2.05 | K50: 2.05 | L50: 0.474537037 | M50: 0.2167171214 | N50: 1.493579343 | O50: 2.796789672 | P50: 1.303210328 | Q50: 0 | R50: 2.094850417 | S50: 0.2194199136 | T50: 0.1 | U50: 0.3255968258 | V50: 0.431159218 | W50: 0.0001858982713 | X50: 0.0001858982713 | Y50: 0.8630956866 | Z50: 0.007449341642 | AA50: 0.007449341642 | AB50: 0.9752133309 | AC50: 0.07037703702 | AD50: 0.02280414286 | AE50: 0.0684672 | AF50: 0 | AG50: 0.1627018233 | AH50: 1.854011119 | AI50: 0.1065580741 | AJ50: 0.009184 | AK50: 0.116887967 | AL50: 0.090528 | AM50: 0.00084 | AN50: 0.0254 | AO50: 0.105156 | AP50: 0.09652 | AQ50: 0.02624 | AR50: 0.7135783676 | AS50: 0.7262775732 | AT50: 0.7262775732 | AU50: 10.25 | AV50: 0.9338320694 | AW50: 5.116356977 | AX50: 3.37553076 | AZ50: 93.38320694 | BA50: 0.3255968258 | BB50: 0.3701177903 | BC50: 0.2224503033 | BD50: 0.146762207 | BE50: 0.4006807473
A51: QgBot | B51: =Qg_Q2*1000000000 -> 8.6 | C51: nC | D51: Gate Charge Of Top FET | G51: 42 | H51: 24 | I51: 1 | J51: 2.1 | K51: 2.1 | L51: 0.4861111111 | M51: 0.2169221962 | N51: 1.494498231 | O51: 2.847249115 | P51: 1.352750885 | Q51: 0 | R51: 2.14385799 | S51: 0.229806354 | T51: 0.1 | U51: 0.3364921356 | V51: 0.4314244779 | W51: 0.0001861270801 | X51: 0.0001861270801 | Y51: 0.8835893396 | Z51: 0.00780730121 | AA51: 0.00780730121 | AB51: 0.9984998649 | AC51: 0.07377814653 | AD51: 0.02336034147 | AE51: 0.0684672 | AF51: 0 | AG51: 0.1667374332 | AH51: 1.897136026 | AI51: 0.1115728781 | AJ51: 0.009408 | AK51: 0.1222355903 | AL51: 0.092736 | AM51: 0.00084 | AN51: 0.0254 | AO51: 0.105156 | AP51: 0.09652 | AQ51: 0.02624 | AR51: 0.7353689201 | AS51: 0.7490904495 | AT51: 0.7490904495 | AU51: 10.5 | AV51: 0.9334087984 | AW51: 5.242693445 | AX51: 3.515284818 | AZ51: 93.34087984 | BA51: 0.3364921356 | BB51: 0.3817090236 | BC51: 0.2279431932 | BD51: 0.1528384703 | BE51: 0.412598314
A52: RGateBot | B52: =Rgate2 -> 0.24 | C52: W | D52: Gate Resistance | G52: 43 | H52: 24 | I52: 1 | J52: 2.15 | K52: 2.15 | L52: 0.4976851852 | M52: 0.2171272992 | N52: 1.495416378 | O52: 2.897708189 | P52: 1.402291811 | Q52: 0 | R52: 2.19291036 | S52: 0.2404427923 | T52: 0.1 | U52: 0.3476704023 | V52: 0.4316895241 | W52: 0.0001863558453 | X52: 0.0001863558453 | Y52: 0.9041149884 | Z52: 0.008174239123 | AA52: 0.008174239123 | AB52: 1.021828695 | AC52: 0.07726590728 | AD52: 0.02391654008 | AE52: 0.0684672 | AF52: 0 | AG52: 0.1708642295 | AH52: 1.940289144 | AI52: 0.1167063809 | AJ52: 0.009632 | AK52: 0.1277095971 | AL52: 0.094944 | AM52: 0.00084 | AN52: 0.0254 | AO52: 0.105156 | AP52: 0.09652 | AQ52: 0.02624 | AR52: 0.7576148205 | AS52: 0.7724223199 | AT52: 0.7724223199 | AU52: 10.75 | AV52: 0.9329635472 | AW52: 5.371127198 | AX52: 3.657945694 | AZ52: 93.29635472 | BA52: 0.3476704023 | BB52: 0.3935178266 | BC52: 0.2335272695 | BD52: 0.1590411171 | BE52: 0.4247519175
A53: VsdBot | B53: =Vsd_Q2 -> 0.7 | C53: V | D53: Diode Forward Voltage of Bottom FET Body Diode | G53: 44 | H53: 24 | I53: 1 | J53: 2.2 | K53: 2.2 | L53: 0.5092592593 | M53: 0.2173324306 | N53: 1.496333785 | O53: 2.948166892 | P53: 1.451833108 | Q53: 0 | R53: 2.242004587 | S53: 0.2513292283 | T53: 0.1 | U53: 0.3591331651 | V53: 0.4319543567 | W53: 0.0001865845663 | X53: 0.0001865845663 | Y53: 0.9246714202 | Z53: 0.008550172354 | AA53: 0.008550172354 | AB53: 1.04519847 | AC53: 0.08084054826 | AD53: 0.02447273868 | AE53: 0.0684672 | AF53: 0 | AG53: 0.1750826344 | AH53: 1.983467853 | AI53: 0.1219584865 | AJ53: 0.009856 | AK53: 0.1333102516 | AL53: 0.097152 | AM53: 0.00084 | AN53: 0.0254 | AO53: 0.105156 | AP53: 0.09652 | AQ53: 0.02624 | AR53: 0.7803162017 | AS53: 0.7962761384 | AT53: 0.7962761384 | AU53: 11 | AV53: 0.9324976688 | AW53: 5.50166795 | AX53: 3.803519467 | AZ53: 93.24976688 | BA53: 0.3591331651 | BB53: 0.4055448859 | BC53: 0.2392029544 | BD53: 0.1653704116 | BE53: 0.4371429733
A54: QrrBot | B54: =Qrr_Q2*1000000000 -> 23 | C54: nC | D54: Reverse Recovery Charge of Body Diode | G54: 45 | H54: 24 | I54: 1 | J54: 2.25 | K54: 2.25 | L54: 0.5208333333 | M54: 0.2175375903 | N54: 1.497250451 | O54: 2.998625226 | P54: 1.501374774 | Q54: 0 | R54: 2.29113798 | S54: 0.2624656621 | T54: 0.1 | U54: 0.3708820063 | V54: 0.4322189755 | W54: 0.0001868132428 | X54: 0.0001868132428 | Y54: 0.9452575235 | Z54: 0.008935117858 | AA54: 0.008935117858 | AB54: 1.068607951 | AC54: 0.08450229855 | AD54: 0.02502893729 | AE54: 0.0684672 | AF54: 0 | AG54: 0.1793930755 | AH54: 2.026669753 | AI54: 0.127329099 | AJ54: 0.01008 | AK54: 0.1390378266 | AL54: 0.09936 | AM54: 0.00084 | AN54: 0.0254 | AO54: 0.105156 | AP54: 0.09652 | AQ54: 0.02624 | AR54: 0.8034731969 | AS54: 0.8206549357 | AT54: 0.8206549357 | AU54: 11.25 | AV54: 0.9320123937 | AW54: 5.634325537 | AX54: 3.952012412 | AZ54: 93.20123937 | BA54: 0.3708820063 | BB54: 0.4177909021 | BC54: 0.2449706755 | BD54: 0.1718266266 | BE54: 0.4497729294
A55: TrrBot | B55: =Trr_Q2*1000000000 -> 40 | C55: ns | D55: Reverse Recovery Time of Body Diode | G55: 46 | H55: 24 | I55: 1 | J55: 2.3 | K55: 2.3 | L55: 0.5324074074 | M55: 0.2177427782 | N55: 1.498166377 | O55: 3.049083189 | P55: 1.550916811 | Q55: 0 | R55: 2.340308073 | S55: 0.2738520937 | T55: 0.1 | U55: 0.3829185528 | V55: 0.4324833805 | W55: 0.0001870418744 | X55: 0.0001870418744 | Y55: 0.9658722777 | Z55: 0.009329092568 | AA55: 0.009329092568 | AB55: 1.092056003 | AC55: 0.08825138724 | AD55: 0.0255851359 | AE55: 0.0684672 | AF55: 0 | AG55: 0.1837959862 | AH55: 2.069892645 | AI55: 0.1328181224 | AJ55: 0.010304 | AK55: 0.1448926038 | AL55: 0.101568 | AM55: 0.00084 | AN55: 0.0254 | AO55: 0.105156 | AP55: 0.09652 | AQ55: 0.02624 | AR55: 0.8270859392 | AS55: 0.8455618198 | AT55: 0.8455618198 | AU55: 11.5 | AV55: 0.9315088424 | AW55: 5.769109923 | AX55: 4.103431008 | AZ55: 93.15088424 | BA55: 0.3829185528 | BB55: 0.43025659 | BC55: 0.2508308662 | BD55: 0.1784100438 | BE55: 0.462643267
A56: θJABot | B56: =ThetaJA_Q2 -> 23 | C56: °C/W | D56: Junction to Ambient Resistance | G56: 47 | H56: 24 | I56: 1 | J56: 2.35 | K56: 2.35 | L56: 0.5439814815 | M56: 0.2179479945 | N56: 1.499081562 | O56: 3.099540781 | P56: 1.600459219 | Q56: 0 | R56: 2.389512599 | S56: 0.285488523 | T56: 0.1 | U56: 0.3952444759 | V56: 0.4327475717 | W56: 0.0001872704608 | X56: 0.0001872704608 | Y56: 0.9865147438 | Z56: 0.009732113396 | AA56: 0.009732113396 | AB56: 1.115541582 | AC56: 0.09208804354 | AD56: 0.0261413345 | AE56: 0.0684672 | AF56: 0 | AG56: 0.188291805 | AH56: 2.113134506 | AI56: 0.1384254606 | AJ56: 0.010528 | AK56: 0.1508748736 | AL56: 0.103776 | AM56: 0.00084 | AN56: 0.0254 | AO56: 0.105156 | AP56: 0.09652 | AQ56: 0.02624 | AR56: 0.8511545617 | AS56: 0.8709999768 | AT56: 0.8709999768 | AU56: 11.75 | AV56: 0.9309880375 | AW56: 5.906031196 | AX56: 4.257781934 | AZ56: 93.09880375 | BA56: 0.3952444759 | BB56: 0.4429426787 | BC56: 0.256783965 | BD56: 0.1851209536 | BE56: 0.4757555009
G57: 48 | H57: 24 | I57: 1 | J57: 2.4 | K57: 2.4 | L57: 0.5555555556 | M57: 0.218153239 | N57: 1.499996006 | O57: 3.149998003 | P57: 1.650001997 | Q57: 0 | R57: 2.438749475 | S57: 0.2973749501 | T57: 0.1 | U57: 0.4078614925 | V57: 0.433011549 | W57: 0.0001874990016 | X57: 0.0001874990016 | Y57: 1.007184056 | Z57: 0.01014419723 | AA57: 0.01014419723 | AB57: 1.139063726 | AC57: 0.09601249667 | AD57: 0.02669753311 | AE57: 0.0684672 | AF57: 0 | AG57: 0.1928809763 | AH57: 2.156393478 | AI57: 0.1441510177 | AJ57: 0.010752 | AK57: 0.1569849353 | AL57: 0.105984 | AM57: 0.00084 | AN57: 0.0254 | AO57: 0.105156 | AP57: 0.09652 | AQ57: 0.02624 | AR57: 0.8756791976 | AS57: 0.8969726727 | AT57: 0.8969726727 | AU57: 12 | AV57: 0.9304509131 | AW57: 6.045099575 | AX57: 4.415072071 | AZ57: 93.04509131 | BA57: 0.4078614925 | BB57: 0.4558499116 | BC57: 0.2628304163 | BD57: 0.1919596553 | BE57: 0.4891111802
G58: 49 | H58: 24 | I58: 1 | J58: 2.45 | K58: 2.45 | L58: 0.5671296296 | M58: 0.2183585119 | N58: 1.50090971 | O58: 3.200454855 | P58: 1.699545145 | Q58: 0 | R58: 2.48801678 | S58: 0.3095113748 | T58: 0.1 | U58: 0.4207713653 | V58: 0.4332753124 | W58: 0.0001877274964 | X58: 0.0001877274964 | Y58: 1.027879417 | Z58: 0.01056536095 | AA58: 0.01056536095 | AB58: 1.162621548 | AC58: 0.100024976 | AD58: 0.02725373172 | AE58: 0.0684672 | AF58: 0 | AG58: 0.19756395 | AH58: 2.199667846 | AI58: 0.1499946976 | AJ58: 0.010976 | AK58: 0.1632230967 | AL58: 0.108192 | AM58: 0.00084 | AN58: 0.0254 | AO58: 0.105156 | AP58: 0.09652 | AQ58: 0.02624 | AR58: 0.9006599801 | AS58: 0.9234832539 | AT58: 0.9234832539 | AU58: 12.25 | AV58: 0.9298983241 | AW58: 6.18632541 | AX58: 4.575308504 | AZ58: 92.98983241 | BA58: 0.4207713653 | BB58: 0.4689790467 | BC58: 0.26897067 | BD58: 0.1989264567 | BE58: 0.5027118886
G59: 50 | H59: 24 | I59: 1 | J59: 2.5 | K59: 2.5 | L59: 0.5787037037 | M59: 0.2185638131 | N59: 1.501822672 | O59: 3.250911336 | P59: 1.749088664 | Q59: 0 | R59: 2.537312741 | S59: 0.3218977972 | T59: 0.1 | U59: 0.4339759037 | V59: 0.4335388619 | W59: 0.0001879559448 | X59: 0.0001879559448 | Y59: 1.048600086 | Z59: 0.01099562141 | AA59: 0.01099562141 | AB59: 1.18621423 | AC59: 0.1041257108 | AD59: 0.02780993032 | AE59: 0.0684672 | AF59: 0 | AG59: 0.2023411817 | AH59: 2.242956028 | AI59: 0.1559564041 | AJ59: 0.0112 | AK59: 0.1695896749 | AL59: 0.1104 | AM59: 0.00084 | AN59: 0.0254 | AO59: 0.105156 | AP59: 0.09652 | AQ59: 0.02624 | AR59: 0.9260970424 | AS59: 0.9505351484 | AT59: 0.9505351484 | AU59: 12.5 | AV59: 0.9293310535 | AW59: 6.329719179 | AX59: 4.738498523 | AZ59: 92.93310535 | BA59: 0.4339759037 | BB59: 0.4823308566 | BC59: 0.2752051817 | BD59: 0.2060216749 | BE59: 0.5165592447
G60: 51 | H60: 24 | I60: 1 | J60: 2.55 | K60: 2.55 | L60: 0.5902777778 | M60: 0.2187691426 | N60: 1.502734892 | O60: 3.301367446 | P60: 1.798632554 | Q60: 0 | R60: 2.58663572 | S60: 0.3345342173 | T60: 0.1 | U60: 0.4474769643 | V60: 0.4338021973 | W60: 0.0001881843464 | X60: 0.0001881843464 | Y60: 1.06934538 | Z60: 0.01143499542 | AA60: 0.01143499542 | AB60: 1.209841014 | AC60: 0.1083149306 | AD60: 0.02836612893 | AE60: 0.0684672 | AF60: 0 | AG60: 0.2072131329 | AH60: 2.286256562 | AI60: 0.1620360411 | AJ60: 0.011424 | AK60: 0.1760849958 | AL60: 0.112608 | AM60: 0.00084 | AN60: 0.0254 | AO60: 0.105156 | AP60: 0.09652 | AQ60: 0.02624 | AR60: 0.9519905179 | AS60: 0.9781318672 | AT60: 0.9781318672 | AU60: 12.75 | AV60: 0.92874982 | AW60: 6.475291497 | AX60: 4.904649622 | AZ60: 92.874982 | BA60: 0.4474769643 | BB60: 0.4959061287 | BC60: 0.2815344129 | BD60: 0.2132456358 | BE60: 0.5306549029
A61: Controller | B61: Input Value | C61: Units | D61: Std Units | G61: 52 | H61: 24 | I61: 1 | J61: 2.6 | K61: 2.6 | L61: 0.6018518519 | M61: 0.2189745005 | N61: 1.503646372 | O61: 3.351823186 | P61: 1.848176814 | Q61: 0 | R61: 2.6359842 | S61: 0.347420635 | T61: 0.1 | U61: 0.4612764516 | V61: 0.4340653187 | W61: 0.0001884127009 | X61: 0.0001884127009 | Y61: 1.090114664 | Z61: 0.0118834998 | AA61: 0.0118834998 | AB61: 1.233501196 | AC61: 0.1125928648 | AD61: 0.02892232754 | AE61: 0.0684672 | AF61: 0 | AG61: 0.212180271 | AH61: 2.329568093 | AI61: 0.1682335125 | AJ61: 0.011648 | AK61: 0.1827093941 | AL61: 0.114816 | AM61: 0.00084 | AN61: 0.0254 | AO61: 0.105156 | AP61: 0.09652 | AQ61: 0.02624 | AR61: 0.9783405399 | AS61: 1.006277005 | AT61: 1.006277005 | AU61: 13 | AV61: 0.9281552832 | AW61: 6.623053112 | AX61: 5.073769504 | AZ61: 92.81552832 | BA61: 0.4612764516 | BB61: 0.509705665 | BC61: 0.287958831 | BD61: 0.2205986741 | BE61: 0.5450005538
A62: θJA | B62: 23 | C62: °C/W | D62: Junction to Ambient Resistance | G62: 53 | H62: 24 | I62: 1 | J62: 2.65 | K62: 2.65 | L62: 0.6134259259 | M62: 0.2191798867 | N62: 1.504557109 | O62: 3.402278555 | P62: 1.897721445 | Q62: 0 | R62: 2.685356775 | S62: 0.3605570504 | T62: 0.1 | U62: 0.4753763189 | V62: 0.434328226 | W62: 0.0001886410079 | X62: 0.0001886410079 | Y62: 1.110907347 | Z62: 0.01234115133 | AA62: 0.01234115133 | AB62: 1.257194125 | AC62: 0.1169597431 | AD62: 0.02947852614 | AE62: 0.0684672 | AF62: 0 | AG62: 0.2172430691 | AH62: 2.372889365 | AI62: 0.1745487221 | AJ62: 0.011872 | AK62: 0.1894632138 | AL62: 0.117024 | AM62: 0.00084 | AN62: 0.0254 | AO62: 0.105156 | AP62: 0.09652 | AQ62: 0.02624 | AR62: 1.005147242 | AS62: 1.034974243 | AT62: 1.034974243 | AU62: 13.25 | AV62: 0.9275480497 | AW62: 6.773014909 | AX62: 5.245866077 | AZ62: 92.75480497 | BA62: 0.4753763189 | BB62: 0.5237302829 | BC62: 0.2944789091 | BD62: 0.2280811338 | BE62: 0.5595979243
A63: Theta JC | B63: 2 | C63: °C/W | D63: Junction to Ambient Resistance | G63: 54 | H63: 24 | I63: 1 | J63: 2.7 | K63: 2.7 | L63: 0.625 | M63: 0.2193853013 | N63: 1.505467105 | O63: 3.452733552 | P63: 1.947266448 | Q63: 0 | R63: 2.73475214 | S63: 0.3739434633 | T63: 0.1 | U63: 0.4897785686 | V63: 0.4345909191 | W63: 0.000188869267 | X63: 0.000188869267 | Y63: 1.131722881 | Z63: 0.01280796679 | AA63: 0.01280796679 | AB63: 1.280919196 | AC63: 0.1214157951 | AD63: 0.03003472475 | AE63: 0.0684672 | AF63: 0 | AG63: 0.2224020065 | AH63: 2.416219212 | AI63: 0.1809815737 | AJ63: 0.012096 | AK63: 0.1963468079 | AL63: 0.119232 | AM63: 0.00084 | AN63: 0.0254 | AO63: 0.105156 | AP63: 0.09652 | AQ63: 0.02624 | AR63: 1.032410757 | AS63: 1.064227348 | AT63: 1.064227348 | AU63: 13.5 | AV63: 0.9269286779 | AW63: 6.92518791 | AX63: 5.420947461 | AZ63: 92.69286779 | BA63: 0.4897785686 | BB63: 0.5379808144 | BC63: 0.3010951265 | BD63: 0.2356933679 | BE63: 0.574448779
G64: 55 | H64: 24 | I64: 1 | J64: 2.75 | K64: 2.75 | L64: 0.6365740741 | M64: 0.2195907442 | N64: 1.506376359 | O64: 3.503188179 | P64: 1.996811821 | Q64: 0 | R64: 2.784169082 | S64: 0.3875798739 | T64: 0.1 | U64: 0.5044852534 | V64: 0.4348533981 | W64: 0.0001890974778 | X64: 0.0001890974778 | Y64: 1.152560754 | Z64: 0.01328396292 | AA64: 0.01328396292 | AB64: 1.304675844 | AC64: 0.1259612503 | AD64: 0.03059092335 | AE64: 0.0684672 | AF64: 0 | AG64: 0.2276575686 | AH64: 2.459556549 | AI64: 0.187531971 | AJ64: 0.01232 | AK64: 0.2033605384 | AL64: 0.12144 | AM64: 0.00084 | AN64: 0.0254 | AO64: 0.105156 | AP64: 0.09652 | AQ64: 0.02624 | AR64: 1.060131219 | AS64: 1.094040173 | AT64: 1.094040173 | AU64: 13.75 | AV64: 0.9262976817 | AW64: 7.079583279 | AX64: 5.599021984 | AZ64: 92.62976817 | BA64: 0.5044852534 | BB64: 0.5524581071 | BC64: 0.3078079686 | BD64: 0.2434357384 | BE64: 0.58955492
G65: 56 | H65: 24 | I65: 1 | J65: 2.8 | K65: 2.8 | L65: 0.6481481481 | M65: 0.2197962154 | N65: 1.50728487 | O65: 3.553642435 | P65: 2.046357565 | Q65: 0 | R65: 2.833606472 | S65: 0.401466282 | T65: 0.1 | U65: 0.5194984766 | V65: 0.4351156628 | W65: 0.00018932564 | X65: 0.00018932564 | Y65: 1.173420489 | Z65: 0.01376915645 | AA65: 0.01376915645 | AB65: 1.328463544 | AC65: 0.1305963387 | AD65: 0.03114712196 | AE65: 0.0684672 | AF65: 0 | AG65: 0.2330102469 | AH65: 2.502900368 | AI65: 0.1941998178 | AJ65: 0.012544 | AK65: 0.2105047768 | AL65: 0.123648 | AM65: 0.00084 | AN65: 0.0254 | AO65: 0.105156 | AP65: 0.09652 | AQ65: 0.02624 | AR65: 1.08830876 | AS65: 1.124416665 | AT65: 1.124416665 | AU65: 14 | AV65: 0.9256555351 | AW65: 7.236212319 | AX65: 5.780098187 | AZ65: 92.56555351 | BA65: 0.5194984766 | BB65: 0.5671630237 | BC65: 0.3146179269 | BD65: 0.2513086168 | BE65: 0.6049181879
A66: Outputs | G66: 57 | H66: 24 | I66: 1 | J66: 2.85 | K66: 2.85 | L66: 0.6597222222 | M66: 0.2200017151 | N66: 1.50819264 | O66: 3.60409632 | P66: 2.09590368 | Q66: 0 | R66: 2.883063259 | S66: 0.4156026877 | T66: 0.1 | U66: 0.5348203933 | V66: 0.4353777133 | W66: 0.0001895537532 | X66: 0.0001895537532 | Y66: 1.19430164 | Z66: 0.01426356407 | AA66: 0.01426356407 | AB66: 1.352281805 | AC66: 0.13532129 | AD66: 0.03170332057 | AE66: 0.0684672 | AF66: 0 | AG66: 0.2384605391 | AH66: 2.546249727 | AI66: 0.2009850178 | AJ66: 0.012768 | AK66: 0.2177799036 | AL66: 0.125856 | AM66: 0.00084 | AN66: 0.0254 | AO66: 0.105156 | AP66: 0.09652 | AQ66: 0.02624 | AR66: 1.116943516 | AS66: 1.155360856 | AT66: 1.155360856 | AU66: 14.25 | AV66: 0.925002675 | AW66: 7.395086478 | AX66: 5.964184823 | AZ66: 92.5002675 | BA66: 0.5348203933 | BB66: 0.5820964427 | BC66: 0.3215254991 | BD66: 0.2593123836 | BE66: 0.6205404622
A67: Design | B67: Value | C67: Units | G67: 58 | H67: 24 | I67: 1 | J67: 2.9 | K67: 2.9 | L67: 0.6712962963 | M67: 0.220207243 | N67: 1.509099667 | O67: 3.654549833 | P67: 2.145450167 | Q67: 0 | R67: 2.93253846 | S67: 0.4299890908 | T67: 0.1 | U67: 0.550453211 | V67: 0.4356395494 | W67: 0.000189781817 | X67: 0.000189781817 | Y67: 1.215203789 | Z67: 0.01476720248 | AA67: 0.01476720248 | AB67: 1.37613017 | AC67: 0.1401363341 | AD67: 0.03225951917 | AE67: 0.0684672 | AF67: 0 | AG67: 0.2440089491 | AH67: 2.589603748 | AI67: 0.2078874747 | AJ67: 0.012992 | AK67: 0.2251863087 | AL67: 0.128064 | AM67: 0.00084 | AN67: 0.0254 | AO67: 0.105156 | AP67: 0.09652 | AQ67: 0.02624 | AR67: 1.146035619 | AS67: 1.186876873 | AT67: 1.186876873 | AU67: 14.5 | AV67: 0.9243395048 | AW67: 7.556217349 | AX67: 6.151290861 | AZ67: 92.43395048 | BA67: 0.550453211 | BB67: 0.5972592578 | BC67: 0.3285311891 | BD67: 0.2674474287 | BE67: 0.636423662
A68: Dmax | B68: =D1_Vinmin -> 0.2976190476 | C68: index | G68: 59 | H68: 24 | I68: 1 | J68: 2.95 | K68: 2.95 | L68: 0.6828703704 | M68: 0.2204127994 | N68: 1.510005951 | O68: 3.705002976 | P68: 2.194997024 | Q68: 0 | R68: 2.982031159 | S68: 0.4446254916 | T68: 0.1 | U68: 0.5663991905 | V68: 0.4359011712 | W68: 0.000190009831 | X68: 0.000190009831 | Y68: 1.236126544 | Z68: 0.01528008833 | AA68: 0.01528008833 | AB68: 1.400008209 | AC68: 0.1450417009 | AD68: 0.03281571778 | AE68: 0.0684672 | AF68: 0 | AG68: 0.2496559874 | AH68: 2.632961611 | AI68: 0.2149070922 | AJ68: 0.013216 | AK68: 0.2327243915 | AL68: 0.130272 | AM68: 0.00084 | AN68: 0.0254 | AO68: 0.105156 | AP68: 0.09652 | AQ68: 0.02624 | AR68: 1.175585202 | AS68: 1.218968937 | AT68: 1.218968937 | AU68: 14.75 | AV68: 0.9236663969 | AW68: 7.71961667 | AX68: 6.341425483 | AZ68: 92.36663969 | BA68: 0.5663991905 | BB68: 0.6126523788 | BC68: 0.3356355074 | BD68: 0.2757141515 | BE68: 0.6525697467
A69: Dprime | B69: =1-B68 -> 0.7023809524 | C69: index | G69: 60 | H69: 24 | I69: 1 | J69: 3 | K69: 3 | L69: 0.6944444444 | M69: 0.2206183842 | N69: 1.510911493 | O69: 3.755455746 | P69: 2.244544254 | Q69: 0 | R69: 3.031540499 | S69: 0.4595118897 | T69: 0.1 | U69: 0.5826606465 | V69: 0.4361625785 | W69: 0.0001902377949 | X69: 0.0001902377949 | Y69: 1.257069539 | Z69: 0.01580223826 | AA69: 0.01580223826 | AB69: 1.423915522 | AC69: 0.1500376205 | AD69: 0.03337191639 | AE69: 0.0684672 | AF69: 0 | AG69: 0.2554021708 | AH69: 2.676322548 | AI69: 0.2220437739 | AJ69: 0.01344 | AK69: 0.2403945605 | AL69: 0.13248 | AM69: 0.00084 | AN69: 0.0254 | AO69: 0.105156 | AP69: 0.09652 | AQ69: 0.02624 | AR69: 1.205592401 | AS69: 1.251641363 | AT69: 1.251641363 | AU69: 15 | AV69: 0.9229836953 | AW69: 7.885296329 | AX69: 6.534598091 | AZ69: 92.29836953 | BA69: 0.5826606465 | BB69: 0.6282767313 | BC69: 0.3428389708 | BD69: 0.2841129605 | BE69: 0.6689807163
A70: Ipp | B70: =Iripple_Vinnom -> 1.535568327 | C70: A | G70: 61 | H70: 24 | I70: 1 | J70: 3.05 | K70: 3.05 | L70: 0.7060185185 | M70: 0.2208239973 | N70: 1.511816292 | O70: 3.805908146 | P70: 2.294091854 | Q70: 0 | R70: 3.081065677 | S70: 0.4746482854 | T70: 0.1 | U70: 0.5992399488 | V70: 0.4364237714 | W70: 0.0001904657083 | X70: 0.0001904657083 | Y70: 1.278032429 | Z70: 0.0163336689 | AA70: 0.0163336689 | AB70: 1.447851731 | AC70: 0.1551243229 | AD70: 0.03392811499 | AE70: 0.0684672 | AF70: 0 | AG70: 0.2612480228 | AH70: 2.719685841 | AI70: 0.2292974233 | AJ70: 0.013664 | AK70: 0.248197234 | AL70: 0.134688 | AM70: 0.00084 | AN70: 0.0254 | AO70: 0.105156 | AP70: 0.09652 | AQ70: 0.02624 | AR70: 1.236057347 | AS70: 1.284898562 | AT70: 1.284898562 | AU70: 15.25 | AV70: 0.9222917179 | AW70: 8.053268364 | AX70: 6.730818303 | AZ70: 92.22917179 | BA70: 0.5992399488 | BB70: 0.6441332568 | BC70: 0.3501421028 | BD70: 0.292644274 | BE70: 0.6856586127
A71: Top FET | B71: Value | C71: Units | G71: 62 | H71: 24 | I71: 1 | J71: 3.1 | K71: 3.1 | L71: 0.7175925926 | M71: 0.2210296388 | N71: 1.512720347 | O71: 3.856360174 | P71: 2.343639826 | Q71: 0 | R71: 3.130605943 | S71: 0.4900346785 | T71: 0.1 | U71: 0.6161395233 | V71: 0.4366847499 | W71: 0.0001906935708 | X71: 0.0001906935708 | Y71: 1.29901489 | Z71: 0.01687439684 | AA71: 0.01687439684 | AB71: 1.471816483 | AC71: 0.1603020383 | AD71: 0.0344843136 | AE71: 0.0684672 | AF71: 0 | AG71: 0.2671940733 | AH71: 2.763050816 | AI71: 0.2366679441 | AJ71: 0.013888 | AK71: 0.2561328399 | AL71: 0.136896 | AM71: 0.00084 | AN71: 0.0254 | AO71: 0.105156 | AP71: 0.09652 | AQ71: 0.02624 | AR71: 1.266980175 | AS71: 1.318745043 | AT71: 1.318745043 | AU71: 15.5 | AV71: 0.9215907584 | AW71: 8.223544965 | AX71: 6.930095958 | AZ71: 92.15907584 | BA71: 0.6161395233 | BB71: 0.6602229132 | BC71: 0.3575454333 | BD71: 0.3013085199 | BE71: 0.7026055197
A72: Tr | B72: =(Qgd_Q1+Qgs_Q1/2)*(RdsonDRT+Rgate1)/(VCC-Vsp_Q1)*1000000000 -> 1.08852 | C72: ns | D72: Turn on of MOSFET -> Rise time of current | G72: 63 | H72: 24 | I72: 1 | J72: 3.15 | K72: 3.15 | L72: 0.7291666667 | M72: 0.2212353088 | N72: 1.51362366 | O72: 3.90681183 | P72: 2.39318817 | Q72: 0 | R72: 3.180160591 | S72: 0.5056710691 | T72: 0.1 | U72: 0.6333618524 | V72: 0.4369455137 | W72: 0.000190921382 | X72: 0.000190921382 | Y72: 1.320016616 | Z72: 0.01742443867 | AA72: 0.01742443867 | AB72: 1.495809447 | AC72: 0.1655709968 | AD72: 0.03504051221 | AE72: 0.0684672 | AF72: 0 | AG72: 0.273240859 | AH72: 2.80641684 | AI72: 0.2441552399 | AJ72: 0.014112 | AK72: 0.2642018156 | AL72: 0.139104 | AM72: 0.00084 | AN72: 0.0254 | AO72: 0.105156 | AP72: 0.09652 | AQ72: 0.02624 | AR72: 1.298361018 | AS72: 1.353185416 | AT72: 1.353185416 | AU72: 15.75 | AV72: 0.9208810883 | AW72: 8.396138477 | AX72: 7.132441118 | AZ72: 92.08810883 | BA72: 0.6333618524 | BB72: 0.6765466746 | BC72: 0.365049499 | BD72: 0.3101061356 | BE72: 0.719823564
A73: Tf | B73: =(Qgd_Q1+Qgs_Q1/2)*(RdsonDRT2+Rgate1)/(Vsp_Q1)*1000000000 -> 1.228974194 | C73: ns | D73: Turn off of MOSFET -> Fall time of current | G73: 64 | H73: =Vin -> 24 | I73: =MODE -> 1 | J73: 3.2 | K73: =Iout*G73/100/Number_of_Phases -> 3.2 | L73: =Vout*K73/(Vin*Efficiency) -> 0.7407407407 | M73: =(Vout+(Rdson2+Rs+Rdcr)*K73)/(Vin+(Rs+Rdson2-Rdson1)*K73) -> 0.2214410071 | N73: =(Vin-(Rdson1+Rdcr)*K73-Vout)*M73/(Fsw*Lf) -> 1.514526229 | O73: 3.957263115 | P73: 2.442736885 | Q73: =IF(MIN(Vin, -P73/(Coss_Q1+Coss_Q2)*0.00000002)<0, 0, MIN(Vin, -P73/(Coss_Q1+Coss_Q2)*0.00000002)) -> 0 | R73: 3.229728958 | S73: =R73^2*Rdcr -> 0.5215574571 | T73: =Core_Loss -> 0.1 | U73: =(T73+S73*(1+Ltc*(Ta-25)))/(1-S73*Ltc*ThetaCa) -> 0.6509094764 | V73: 0.437206063 | W73: 0.0001911491416 | X73: 0.0001911491416 | Y73: 1.34103732 | Z73: 0.01798381094 | AA73: 0.01798381094 | AB73: 1.51983031 | AC73: =Rdson1*AB73^2 -> 0.1709314287 | AD73: =(Vin*K73/2)*Fsw*(Tr_buck+Tf_buck) -> 0.03559671081 | AE73: =(0.5*Coss_Q1*(Vin-Q73)^2-0.5*Coss_Q2*(Vin-Q73)^2+(Qoss_Q2*(Vin-Q73)/Vin)*Vin)*Fsw -> 0.0684672 | AF73: =IF(K73>N73/2,0,ABS(K73-N73/2)*Vsd_Q1*Deadtime*Fsw) -> 0 | AG73: =(AF73+AE73+AD73+AC73*(1+RdsonTopTc*Ta-RdsonTopTc*25))/(1-AC73*RdsonTopTc*ThetaJA_Q1) -> 0.2793889235 | AH73: =SQRT((1-M73))*SQRT(K73^2+(N73^2)/12) -> 2.84978332 | AI73: =Rdson2*AH73^2 -> 0.2517592141 | AJ73: =IF(K73<N73/2,Deadtime*Fsw*Vsd_Q2*(K73+N73/2),2*Deadtime*Fsw*Vsd_Q2*K73) -> 0.014336 | AK73: =(AJ73+AI73*(1+RdsonBotTc*Ta-RdsonBotTc*25))/(1-AI73*RdsonBotTc*ThetaJA_Q2) -> 0.2724046081 | AL73: =Qrr_Q2*K73/Iout*Fsw*Vin -> 0.141312 | AM73: =Iq*Vin -> 0.00084 | AN73: =IF(Ext_VCC=1, (Qg_Q1+Qg_Q2)*Fsw*Vout, (Qg_Q1+Qg_Q2)*Fsw*Vin) -> 0.0254 | AO73: =(Vin-VCC)*Fsw*(Qg_Q1+Qg_Q2) -> 0.105156 | AP73: =(Qg_Q1+Qg_Q2)*Fsw*(Vin-Vout) -> 0.09652 | AQ73: 0.02624 | AR73: 1.330200011 | AS73: =U73 + ((AF73+AE73+AD73+AC73*(1+RdsonTC*(Ta-25))) + (AJ73+AI73*(1+RdsonTC*(Ta-25))) + AQ73 + AL73) / (1-AC73*RdsonTC*ThetaJA_Q1 -AI73*RdsonTC*ThetaJA_Q2) -> 1.388224393 | AT73: 1.388224393 | AU73: =Vout*K73 -> 16 | AV73: 0.9201629585 | AW73: =ThetaJA_Q1*BC73 -> 8.5710614 | AX73: =ThetaJA_Q2*BD73 -> 7.337864067 | AZ73: 92.01629585 | BA73: =U73 -> 0.6509094764 | BB73: =AG73+AK73+AL73 -> 0.6931055316 | BC73: =AG73+AL73*0.66 -> 0.3726548435 | BD73: =AK73+AL73*0.33 -> 0.3190375681 | BE73: 0.7373149162
A74: Part Power | B74: Value | C74: Units | G74: 65 | H74: 24 | I74: 1 | J74: =Iout*G74/100 -> 3.25 | K74: 3.25 | L74: 0.7523148148 | M74: 0.2216467338 | N74: 1.515428055 | O74: =K74+N74/2 -> 4.007714027 | P74: =K74-N74/2 -> 2.492285973 | Q74: 0 | R74: =SQRT(K74^2+(N74^2)/12) -> 3.279310423 | S74: 0.5376938425 | T74: 0.1 | U74: 0.6687849945 | V74: =N74/SQRT(12) -> 0.4374663977 | W74: =RCoutEsr*V74^2 -> 0.0001913768491 | X74: =W74 -> 0.0001913768491 | Y74: =SQRT(M74*(1-M74))*SQRT(K74^2+(N74^2)/12) -> 1.36207673 | Z74: =RCinEsr*Y74^2 -> 0.01855253019 | AA74: =Z74 -> 0.01855253019 | AB74: =SQRT(M74)*SQRT(K74^2+(N74^2)/12) -> 1.543878778 | AC74: 0.1763835643 | AD74: 0.03615290942 | AE74: 0.0684672 | AF74: 0 | AG74: 0.285638817 | AH74: 2.893149697 | AI74: 0.2594797703 | AJ74: 0.01456 | AK74: 0.2807416745 | AL74: 0.14352 | AM74: 0.00084 | AN74: 0.0254 | AO74: 0.105156 | AP74: 0.09652 | AQ74: 0.02624 | AR74: =SUM(S74,T74,AC74,AD74,AE74,AF74,AI74,AJ74,AQ74, AL74) -> 1.362497286 | AS74: 1.423866785 | AT74: =AS74 -> 1.423866785 | AU74: 16.25 | AV74: =AU74/(AU74+AT74) -> 0.9194366008 | AW74: 8.748326392 | AX74: 7.546375313 | AZ74: =AV74*100 -> 91.94366008 | BA74: 0.6687849945 | BB74: 0.7099004915 | BC74: 0.380362017 | BD74: 0.3281032745 | BE74: =AS74-BA74 -> 0.755081791
A75: Power Dis | B75: =AQ9 -> 0.02624 | C75: W | G75: 66 | H75: 24 | I75: 1 | J75: 3.3 | K75: 3.3 | L75: 0.7638888889 | M75: 0.221852489 | N75: 1.516329137 | O75: 4.058164568 | P75: 2.541835432 | Q75: 0 | R75: 3.3289044 | S75: 0.5540802252 | T75: 0.1 | U75: 0.6869910655 | V75: 0.4377265177 | W75: 0.0001916045043 | X75: 0.0001916045043 | Y75: 1.383134589 | Z75: 0.01913061292 | AA75: 0.01913061292 | AB75: 1.567954572 | AC75: 0.1819276341 | AD75: 0.03670910803 | AE75: 0.0684672 | AF75: 0 | AG75: 0.291991097 | AH75: 2.936515446 | AI75: 0.2673168118 | AJ75: 0.014784 | AK75: 0.2892134814 | AL75: 0.145728 | AM75: 0.00084 | AN75: 0.0254 | AO75: 0.105156 | AP75: 0.09652 | AQ75: =SUM(AM75:AN75) -> 0.02624 | AR75: 1.395252979 | AS75: 1.460117514 | AT75: 1.460117514 | AU75: 16.5 | AV75: 0.9187022294 | AW75: 8.927946272 | AX75: 7.757985593 | AZ75: 91.87022294 | BA75: 0.6869910655 | BB75: 0.7269325785 | BC75: 0.388171577 | BD75: 0.3373037214 | BE75: 0.7731264481
A76: Temp rise | B76: =B75*B62 -> 0.60352 | C76: °C | G76: 67 | H76: 24 | I76: 1 | J76: 3.35 | K76: 3.35 | L76: 0.775462963 | M76: 0.2220582726 | N76: 1.517229475 | O76: 4.108614738 | P76: 2.591385262 | Q76: 0 | R76: 3.378510338 | S76: 0.5707166053 | T76: 0.1 | U76: 0.7055304091 | V76: 0.437986423 | W76: 0.0001918321067 | X76: 0.0001918321067 | Y76: 1.404210655 | Z76: 0.01971807565 | AA76: 0.01971807565 | AB76: 1.592057433 | AC76: 0.1875638684 | AD76: 0.03726530663 | AE76: 0.0684672 | AF76: 0 | AG76: 0.2984463278 | AH76: 2.979880071 | AI76: 0.2752702423 | AJ76: 0.015008 | AK76: 0.2978205056 | AL76: 0.147936 | AM76: 0.00084 | AN76: 0.0254 | AO76: 0.105156 | AP76: 0.09652 | AQ76: 0.02624 | AR76: 1.428467223 | AS76: 1.496981603 | AT76: 1.496981603 | AU76: 16.75 | AV76: 0.9179600421 | AW76: 9.10993402 | AX76: 7.972705869 | AZ76: 91.79600421 | BA76: 0.7055304091 | BB76: 0.7442028335 | BC76: 0.3960840878 | BD76: 0.3466393856 | BE76: 0.7914511934
A77: Current (switching) | B77: =(Qg_Q1+Qg_Q2)*Fsw+Iq -> 0.005115 | C77: A | G77: 68 | H77: 24 | I77: 1 | J77: 3.4 | K77: 3.4 | L77: 0.787037037 | M77: 0.2222640846 | N77: 1.51812907 | O77: 4.159064535 | P77: 2.640935465 | Q77: 0 | R77: 3.428127719 | S77: 0.5876029828 | T77: 0.1 | U77: 0.7244058069 | V77: 0.4382461135 | W77: 0.000192059656 | X77: 0.000192059656 | Y77: 1.425304698 | Z77: 0.02031493483 | AA77: 0.02031493483 | AB77: 1.616187112 | AC77: 0.1932924978 | AD77: 0.03782150524 | AE77: 0.0684672 | AF77: 0 | AG77: 0.3050050809 | AH77: 3.023243105 | AI77: 0.2833399651 | AJ77: 0.015232 | AK77: 0.3065632338 | AL77: 0.150144 | AM77: 0.00084 | AN77: 0.0254 | AO77: 0.105156 | AP77: 0.09652 | AQ77: 0.02624 | AR77: 1.462140151 | AS77: 1.534464186 | AT77: 1.534464186 | AU77: 17 | AV77: 0.9172102214 | AW77: 9.294302781 | AX77: 8.190547337 | AZ77: 91.72102214 | BA77: 0.7244058069 | BB77: 0.7617123147 | BC77: 0.4041001209 | BD77: 0.3561107538 | BE77: 0.8100583793
A78: Qrr Current | B78: =Qrr_Q2*Fsw -> 0.0092 | C78: A | G78: 69 | H78: 24 | I78: 1 | J78: 3.45 | K78: 3.45 | L78: 0.7986111111 | M78: 0.222469925 | N78: 1.51902792 | O78: 4.20951396 | P78: 2.69048604 | Q78: 0 | R78: 3.477756051 | S78: 0.6047393576 | T78: 0.1 | U78: 0.7436201035 | V78: 0.4385055892 | W78: 0.0001922871518 | X78: 0.0001922871518 | Y78: 1.4464165 | Z78: 0.02092120693 | AA78: 0.02092120693 | AB78: 1.640343376 | AC78: 0.1991137529 | AD78: 0.03837770385 | AE78: 0.0684672 | AF78: 0 | AG78: 0.311667935 | AH78: 3.066604109 | AI78: 0.2915258836 | AJ78: 0.015456 | AK78: 0.3154421627 | AL78: 0.152352 | AM78: 0.00084 | AN78: 0.0254 | AO78: 0.105156 | AP78: 0.09652 | AQ78: 0.02624 | AR78: 1.496271898 | AS78: 1.572570509 | AT78: 1.572570509 | AU78: 17.25 | AV78: 0.9164529357 | AW78: 9.481065866 | AX78: 8.411521421 | AZ78: 91.64529357 | BA78: 0.7436201035 | BB78: 0.7794620977 | BC78: 0.412220255 | BD78: 0.3657183227 | BE78: 0.8289504055
A79: Diode Current | B79: =Deadtime*Fsw*(Iripple_Vinnom/2)*(Vsd_Q2)/Vin -> 7.165985524e-05 | G79: 70 | H79: 24 | I79: 1 | J79: 3.5 | K79: 3.5 | L79: 0.8101851852 | M79: 0.2226757939 | N79: 1.519926026 | O79: 4.259963013 | P79: 2.740036987 | Q79: 0 | R79: 3.527394874 | S79: 0.6221257297 | T79: 0.1 | U79: 0.7631762075 | V79: 0.4387648501 | W79: 0.0001925145936 | X79: 0.0001925145936 | Y79: 1.467545855 | Z79: 0.02153690836 | AA79: 0.02153690836 | AB79: 1.664526003 | AC79: 0.2050278644 | AD79: 0.03893390245 | AE79: 0.0684672 | AF79: 0 | AG79: 0.3184354762 | AH79: 3.109962665 | AI79: 0.2998279011 | AJ79: 0.01568 | AK79: 0.3244577992 | AL79: 0.15456 | AM79: 0.00084 | AN79: 0.0254 | AO79: 0.105156 | AP79: 0.09652 | AQ79: 0.02624 | AR79: 1.530862598 | AS79: 1.611305928 | AT79: 1.611305928 | AU79: 17.5 | AV79: 0.91568834 | AW79: 9.670236753 | AX79: 8.635639782 | AZ79: 91.568834 | BA79: 0.7631762075 | BB79: 0.7974532754 | BC79: 0.4204450762 | BD79: 0.3754625992 | BE79: 0.8481297204
A80: Total | B80: =SUM(B77:B79) -> 0.01438665986 | C80: A | G80: 71 | H80: 24 | I80: 1 | J80: 3.55 | K80: 3.55 | L80: 0.8217592593 | M80: 0.2228816913 | N80: 1.520823387 | O80: 4.310411694 | P80: 2.789588306 | Q80: 0 | R80: 3.577043749 | S80: 0.6397620991 | T80: 0.1 | U80: 0.7830770931 | V80: 0.439023896 | W80: 0.0001927419813 | X80: 0.0001927419813 | Y80: 1.488692566 | Z80: 0.02216205555 | AA80: 0.02216205555 | AB80: 1.688734785 | AC80: 0.2110350628 | AD80: 0.03949010106 | AE80: 0.0684672 | AF80: 0 | AG80: 0.3253082979 | AH80: 3.15331838 | AI80: 0.3082459211 | AJ80: 0.015904 | AK80: 0.3336106606 | AL80: 0.156768 | AM80: 0.00084 | AN80: 0.0254 | AO80: 0.105156 | AP80: 0.09652 | AQ80: 0.02624 | AR80: 1.565912384 | AS80: 1.650675914 | AT80: 1.650675914 | AU80: 17.75 | AV80: 0.914916577 | AW80: 9.861829092 | AX80: 8.862914314 | AZ80: 91.4916577 | BA80: 0.7830770931 | BB80: 0.8156869585 | BC80: 0.4287751779 | BD80: 0.3853441006 | BE80: 0.8675988213
G81: 72 | H81: 24 | I81: 1 | J81: 3.6 | K81: 3.6 | L81: 0.8333333333 | M81: 0.223087617 | N81: 1.521720004 | O81: 4.360860002 | P81: 2.839139998 | Q81: 0 | R81: 3.626702264 | S81: 0.6576484657 | T81: 0.1 | U81: 0.8033258008 | V81: 0.439282727 | W81: 0.0001929693143 | X81: 0.0001929693143 | Y81: 1.509856446 | Z81: 0.02279666488 | AA81: 0.02279666488 | AB81: 1.712969521 | AC81: 0.217135579 | AD81: 0.04004629966 | AE81: 0.0684672 | AF81: 0 | AG81: 0.3322870011 | AH81: 3.196670883 | AI81: 0.3167798467 | AJ81: 0.016128 | AK81: 0.3429012743 | AL81: 0.158976 | AM81: 0.00084 | AN81: 0.0254 | AO81: 0.105156 | AP81: 0.09652 | AQ81: 0.02624 | AR81: 1.601421391 | AS81: 1.690686056 | AT81: 1.690686056 | AU81: 18 | AV81: 0.9141377781 | AW81: 10.0558567 | AX81: 9.09335715 | AZ81: 91.41377781 | BA81: 0.8033258008 | BB81: 0.8341642754 | BC81: 0.4372111611 | BD81: 0.3953633543 | BE81: 0.8873602556
G82: 73 | H82: 24 | I82: 1 | J82: 3.65 | K82: 3.65 | L82: 0.8449074074 | M82: 0.2232935713 | N82: 1.522615876 | O82: 4.411307938 | P82: 2.888692062 | Q82: 0 | R82: 3.676370029 | S82: 0.6757848296 | T82: 0.1 | U82: 0.8239254388 | V82: 0.4395413431 | W82: 0.0001931965923 | X82: 0.0001931965923 | Y82: 1.531037319 | Z82: 0.02344075272 | AA82: 0.02344075272 | AB82: 1.737230025 | AC82: 0.2233296439 | AD82: 0.04060249827 | AE82: 0.0684672 | AF82: 0 | AG82: 0.3393721943 | AH82: 3.24001982 | AI82: 0.3254295814 | AJ82: 0.016352 | AK82: 0.3523301783 | AL82: 0.161184 | AM82: 0.00084 | AN82: 0.0254 | AO82: 0.105156 | AP82: 0.09652 | AQ82: 0.02624 | AR82: 1.637389753 | AS82: 1.731342061 | AT82: 1.731342061 | AU82: 18.25 | AV82: 0.9133520634 | AW82: 10.25233359 | AX82: 9.326980662 | AZ82: 91.33520634 | BA82: 0.8239254388 | BB82: 0.8528863726 | BC82: 0.4457536343 | BD82: 0.4055208983 | BE82: 0.9074166218
G83: 74 | H83: 24 | I83: 1 | J83: 3.7 | K83: 3.7 | L83: 0.8564814815 | M83: 0.223499554 | N83: 1.523511004 | O83: 4.461755502 | P83: 2.938244498 | Q83: 0 | R83: 3.726046674 | S83: 0.6941711907 | T83: 0.1 | U83: 0.8448791844 | V83: 0.4397997441 | W83: 0.0001934238149 | X83: 0.0001934238149 | Y83: 1.552235015 | Z83: 0.02409433541 | AA83: 0.02409433541 | AB83: 1.761516117 | AC83: 0.2296174882 | AD83: 0.04115869688 | AE83: 0.0684672 | AF83: 0 | AG83: 0.3465644938 | AH83: 3.283364857 | AI83: 0.3341950283 | AJ83: 0.016576 | AK83: 0.361897921 | AL83: 0.163392 | AM83: 0.00084 | AN83: 0.0254 | AO83: 0.105156 | AP83: 0.09652 | AQ83: 0.02624 | AR83: 1.673817604 | AS83: 1.772649755 | AT83: 1.772649755 | AU83: 18.5 | AV83: 0.9125595432 | AW83: 10.45127392 | AX83: 9.563797464 | AZ83: 91.25595432 | BA83: 0.8448791844 | BB83: 0.8718544149 | BC83: 0.4544032138 | BD83: 0.415817281 | BE83: 0.9277705702
G84: 75 | H84: 24 | I84: 1 | J84: 3.75 | K84: 3.75 | L84: 0.8680555556 | M84: 0.2237055652 | N84: 1.524405386 | O84: 4.512202693 | P84: 2.987797307 | Q84: 0 | R84: 3.775731847 | S84: 0.7128075491 | T84: 0.1 | U84: 0.8661902853 | V84: 0.44005793 | W84: 0.0001936509818 | X84: 0.0001936509818 | Y84: 1.573449373 | Z84: 0.02475742928 | AA84: 0.02475742928 | AB84: 1.785827627 | AC84: 0.2359993431 | AD84: 0.04171489548 | AE84: 0.0684672 | AF84: 0 | AG84: 0.3538645237 | AH84: 3.326705678 | AI84: 0.3430760908 | AJ84: 0.0168 | AK84: 0.3716050614 | AL84: 0.1656 | AM84: 0.00084 | AN84: 0.0254 | AO84: 0.105156 | AP84: 0.09652 | AQ84: 0.02624 | AR84: 1.710705078 | AS84: 1.814615089 | AT84: 1.814615089 | AU84: 18.75 | AV84: 0.9117603183 | AW84: 10.65269205 | AX84: 9.803820413 | AZ84: 91.17603183 | BA84: 0.8661902853 | BB84: 0.8910695852 | BC84: 0.4631605237 | BD84: 0.4262530614 | BE84: 0.9484248038
G85: 76 | H85: 24 | I85: 1 | J85: 3.8 | K85: 3.8 | L85: 0.8796296296 | M85: 0.2239116048 | N85: 1.525299023 | O85: 4.562649512 | P85: 3.037350488 | Q85: 0 | R85: 3.825425217 | S85: 0.7316939046 | T85: 0.1 | U85: 0.8878620607 | V85: 0.4403159008 | W85: 0.0001938780925 | X85: 0.0001938780925 | Y85: 1.594680239 | Z85: 0.02543005064 | AA85: 0.02543005064 | AB85: 1.810164393 | AC85: 0.2424754395 | AD85: 0.04227109409 | AE85: 0.0684672 | AF85: 0 | AG85: 0.361272916 | AH85: 3.370041983 | AI85: 0.3520726719 | AJ85: 0.017024 | AK85: 0.3814521693 | AL85: 0.167808 | AM85: 0.00084 | AN85: 0.0254 | AO85: 0.105156 | AP85: 0.09652 | AQ85: 0.02624 | AR85: 1.74805231 | AS85: 1.85724414 | AT85: 1.85724414 | AU85: 19 | AV85: 0.9109544805 | AW85: 10.85660251 | AX85: 10.04706261 | AZ85: 91.09544805 | BA85: 0.8878620607 | BB85: 0.9105330853 | BC85: 0.472026196 | BD85: 0.4368288093 | BE85: 0.9693820797
G86: 77 | H86: 24 | I86: 1 | J86: 3.85 | K86: 3.85 | L86: 0.8912037037 | M86: 0.2241176729 | N86: 1.526191915 | O86: 4.613095957 | P86: 3.086904043 | Q86: 0 | R86: 3.875126468 | S86: 0.7508302573 | T86: 0.1 | U86: 0.909897903 | V86: 0.4405736565 | W86: 0.0001941051468 | X86: 0.0001941051468 | Y86: 1.615927466 | Z86: 0.02611221576 | AA86: 0.02611221576 | AB86: 1.834526261 | AC86: 0.2490460085 | AD86: 0.0428272927 | AE86: 0.0684672 | AF86: 0 | AG86: 0.3687903106 | AH86: 3.413373485 | AI86: 0.3611846749 | AJ86: 0.017248 | AK86: 0.391439825 | AL86: 0.170016 | AM86: 0.00084 | AN86: 0.0254 | AO86: 0.105156 | AP86: 0.09652 | AQ86: 0.02624 | AR86: 1.785859433 | AS86: 1.900543113 | AT86: 1.900543113 | AU86: 19.25 | AV86: 0.910142113 | AW86: 11.06302002 | AX86: 10.29353741 | AZ86: 91.0142113 | BA86: 0.909897903 | BB86: 0.9302461356 | BC86: 0.4810008706 | BD86: 0.447545105 | BE86: 0.9906452096
G87: 78 | H87: 24 | I87: 1 | J87: 3.9 | K87: 3.9 | L87: 0.9027777778 | M87: 0.2243237695 | N87: 1.527084061 | O87: 4.663542031 | P87: 3.136457969 | Q87: 0 | R87: 3.924835302 | S87: 0.7702166072 | T87: 0.1 | U87: 0.932301279 | V87: 0.4408311969 | W87: 0.0001943321442 | X87: 0.0001943321442 | Y87: 1.637190914 | Z87: 0.0268039409 | AA87: 0.0268039409 | AB87: 1.858913084 | AC87: 0.2557112812 | AD87: 0.0433834913 | AE87: 0.0684672 | AF87: 0 | AG87: 0.3764173556 | AH87: 3.456699913 | AI87: 0.370412003 | AJ87: 0.017472 | AK87: 0.40156862 | AL87: 0.172224 | AM87: 0.00084 | AN87: 0.0254 | AO87: 0.105156 | AP87: 0.09652 | AQ87: 0.02624 | AR87: 1.824126583 | AS87: 1.94451834 | AT87: 1.94451834 | AU87: 19.5 | AV87: 0.9093232914 | AW87: 11.2719595 | AX87: 10.54325842 | AZ87: 90.93232914 | BA87: 0.932301279 | BB87: 0.9502099756 | BC87: 0.4900851956 | BD87: 0.45840254 | BE87: 1.012217061
G88: 79 | H88: 24 | I88: 1 | J88: 3.95 | K88: 3.95 | L88: 0.9143518519 | M88: 0.2245298947 | N88: 1.527975462 | O88: 4.713987731 | P88: 3.186012269 | Q88: 0 | R88: 3.974551432 | S88: 0.7898529542 | T88: 0.1 | U88: 0.9550757315 | V88: 0.4410885221 | W88: 0.0001945590843 | X88: 0.0001945590843 | Y88: 1.658470449 | Z88: 0.02750524232 | AA88: 0.02750524232 | AB88: 1.883324723 | AC88: 0.2624714889 | AD88: 0.04393968991 | AE88: 0.0684672 | AF88: 0 | AG88: 0.3841547073 | AH88: 3.50002101 | AI88: 0.3797545592 | AJ88: 0.017696 | AK88: 0.4118391566 | AL88: 0.174432 | AM88: 0.00084 | AN88: 0.0254 | AO88: 0.105156 | AP88: 0.09652 | AQ88: 0.02624 | AR88: 1.862853892 | AS88: 1.989176291 | AT88: 1.989176291 | AU88: 19.75 | AV88: 0.9084980836 | AW88: 11.48343603 | AX88: 10.79623948 | AZ88: 90.84980836 | BA88: 0.9550757315 | BB88: 0.9704258639 | BC88: 0.4992798273 | BD88: 0.4694017166 | BE88: 1.034100559
G89: 80 | H89: 24 | I89: 1 | J89: 4 | K89: 4 | L89: 0.9259259259 | M89: 0.2247360483 | N89: 1.528866117 | O89: 4.764433058 | P89: 3.235566942 | Q89: 0 | R89: 4.024274589 | S89: 0.8097392983 | T89: 0.1 | U89: 0.9782248807 | V89: 0.441345632 | W89: 0.0001947859669 | X89: 0.0001947859669 | Y89: 1.679765943 | Z89: 0.02821613622 | AA89: 0.02821613622 | AB89: 1.907761044 | AC89: 0.2693268629 | AD89: 0.04449588852 | AE89: 0.0684672 | AF89: 0 | AG89: 0.3920030304 | AH89: 3.54333653 | AI89: 0.3892122468 | AJ89: 0.01792 | AK89: 0.4222520482 | AL89: 0.17664 | AM89: 0.00084 | AN89: 0.0254 | AO89: 0.105156 | AP89: 0.09652 | AQ89: 0.02624 | AR89: 1.902041496 | AS89: 2.034523566 | AT89: 2.034523566 | AU89: 20 | AV89: 0.9076665506 | AW89: 11.6974649 | AX89: 11.05249471 | AZ89: 90.76665506 | BA89: 0.9782248807 | BB89: 0.9908950787 | BC89: 0.5085854304 | BD89: 0.4805432482 | BE89: 1.056298686
G90: 81 | H90: 24 | I90: 1 | J90: 4.05 | K90: 4.05 | L90: 0.9375 | M90: 0.2249422304 | N90: 1.529756025 | O90: 4.814878013 | P90: 3.285121987 | Q90: 0 | R90: 4.074004515 | S90: 0.8298756396 | T90: 0.1 | U90: 1.001752426 | V90: 0.4416025265 | W90: 0.0001950127914 | X90: 0.0001950127914 | Y90: 1.70107727 | Z90: 0.0289366388 | AA90: 0.0289366388 | AB90: 1.932221919 | AC90: 0.2762776344 | AD90: 0.04505208712 | AE90: 0.0684672 | AF90: 0 | AG90: 0.399962998 | AH90: 3.586646239 | AI90: 0.3987849686 | AJ90: 0.018144 | AK90: 0.4328079195 | AL90: 0.178848 | AM90: 0.00084 | AN90: 0.0254 | AO90: 0.105156 | AP90: 0.09652 | AQ90: 0.02624 | AR90: 1.94168953 | AS90: 2.080566909 | AT90: 2.080566909 | AU90: 20.25 | AV90: 0.9068287466 | AW90: 11.91406159 | AX90: 11.31203847 | AZ90: 90.68287466 | BA90: 1.001752426 | BB90: 1.011618918 | BC90: 0.518002678 | BD90: 0.4918277595 | BE90: 1.078814483
G91: 82 | H91: 24 | I91: 1 | J91: 4.1 | K91: 4.1 | L91: 0.9490740741 | M91: 0.225148441 | N91: 1.530645188 | O91: 4.865322594 | P91: 3.334677406 | Q91: 0 | R91: 4.123740966 | S91: 0.8502619779 | T91: 0.1 | U91: 1.025662147 | V91: 0.4418592057 | W91: 0.0001952395577 | X91: 0.0001952395577 | Y91: 1.722404315 | Z91: 0.02966676624 | AA91: 0.02966676624 | AB91: 1.956707228 | AC91: 0.283324035 | AD91: 0.04560828573 | AE91: 0.0684672 | AF91: 0 | AG91: 0.4080352916 | AH91: 3.629949915 | AI91: 0.4084726279 | AJ91: 0.018368 | AK91: 0.4435074063 | AL91: 0.181056 | AM91: 0.00084 | AN91: 0.0254 | AO91: 0.105156 | AP91: 0.09652 | AQ91: 0.02624 | AR91: 1.981798126 | AS91: 2.127313199 | AT91: 2.127313199 | AU91: 20.5 | AV91: 0.9059847194 | AW91: 12.13324179 | AX91: 11.57488539 | AZ91: 90.59847194 | BA91: 1.025662147 | BB91: 1.032598698 | BC91: 0.5275322516 | BD91: 0.5032558863 | BE91: 1.101651053
G92: 83 | H92: 24 | I92: 1 | J92: 4.15 | K92: 4.15 | L92: 0.9606481481 | M92: 0.2253546801 | N92: 1.531533605 | O92: 4.915766802 | P92: 3.384233198 | Q92: 0 | R92: 4.173483709 | S92: 0.8708983133 | T92: 0.1 | U92: 1.049957905 | V92: 0.4421156694 | W92: 0.0001954662652 | X92: 0.0001954662652 | Y92: 1.743746963 | Z92: 0.0304065347 | AA92: 0.0304065347 | AB92: 1.981216852 | AC92: 0.290466296 | AD92: 0.04616448434 | AE92: 0.0684672 | AF92: 0 | AG92: 0.4162206015 | AH92: 3.673247344 | AI92: 0.4182751275 | AJ92: 0.018592 | AK92: 0.454351156 | AL92: 0.183264 | AM92: 0.00084 | AN92: 0.0254 | AO92: 0.105156 | AP92: 0.09652 | AQ92: 0.02624 | AR92: 2.022367421 | AS92: 2.174769463 | AT92: 2.174769463 | AU92: 20.75 | AV92: 0.9051345111 | AW92: 12.35502136 | AX92: 11.84105035 | AZ92: 90.51345111 | BA92: 1.049957905 | BB92: 1.053835758 | BC92: 0.5371748415 | BD92: 0.514828276 | BE92: 1.124811558
G93: 84 | H93: 24 | I93: 1 | J93: 4.2 | K93: 4.2 | L93: 0.9722222222 | M93: 0.2255609478 | N93: 1.532421275 | O93: 4.966210637 | P93: 3.433789363 | Q93: 0 | R93: 4.223232519 | S93: 0.8917846457 | T93: 0.1 | U93: 1.074643648 | V93: 0.4423719177 | W93: 0.0001956929136 | X93: 0.0001956929136 | Y93: 1.765105105 | Z93: 0.03115596031 | AA93: 0.03115596031 | AB93: 2.005750682 | AC93: 0.2977046491 | AD93: 0.04672068294 | AE93: 0.0684672 | AF93: 0 | AG93: 0.4245196269 | AH93: 3.716538324 | AI93: 0.4281923706 | AJ93: 0.018816 | AK93: 0.4653398272 | AL93: 0.185472 | AM93: 0.00084 | AN93: 0.0254 | AO93: 0.105156 | AP93: 0.09652 | AQ93: 0.02624 | AR93: 2.063397548 | AS93: 2.222942873 | AT93: 2.222942873 | AU93: 21 | AV93: 0.9042781578 | AW93: 12.57941638 | AX93: 12.11054851 | AZ93: 90.42781578 | BA93: 1.074643648 | BB93: 1.075331454 | BC93: 0.5469311469 | BD93: 0.5265455872 | BE93: 1.148299225
G94: 85 | H94: 24 | I94: 1 | J94: 4.25 | K94: 4.25 | L94: 0.9837962963 | M94: 0.225767244 | N94: 1.533308198 | O94: 5.016654099 | P94: 3.483345901 | Q94: 0 | R94: 4.272987187 | S94: 0.9129209751 | T94: 0.1 | U94: 1.099723405 | V94: 0.4426279504 | W94: 0.0001959195025 | X94: 0.0001959195025 | Y94: 1.786478636 | Z94: 0.03191505917 | AA94: 0.03191505917 | AB94: 2.03030861 | AC94: 0.3050393258 | AD94: 0.04727688155 | AE94: 0.0684672 | AF94: 0 | AG94: 0.4329330758 | AH94: 3.759822662 | AI94: 0.43822426 | AJ94: 0.01904 | AK94: 0.4764740905 | AL94: 0.18768 | AM94: 0.00084 | AN94: 0.0254 | AO94: 0.105156 | AP94: 0.09652 | AQ94: 0.02624 | AR94: 2.104888642 | AS94: 2.27184075 | AT94: 2.27184075 | AU94: 21.25 | AV94: 0.9034156904 | AW94: 12.80644314 | AX94: 12.38339528 | AZ94: 90.34156904 | BA94: 1.099723405 | BB94: 1.097087166 | BC94: 0.5568018758 | BD94: 0.5384084905 | BE94: 1.172117344
G95: 86 | H95: 24 | I95: 1 | J95: 4.3 | K95: 4.3 | L95: 0.9953703704 | M95: 0.2259735687 | N95: 1.534194375 | O95: 5.067097187 | P95: 3.532902813 | Q95: 0 | R95: 4.32274751 | S95: 0.9343073016 | T95: 0.1 | U95: 1.125201298 | V95: 0.4428837676 | W95: 0.0001961460316 | X95: 0.0001961460316 | Y95: 1.807867456 | Z95: 0.03268384739 | AA95: 0.03268384739 | AB95: 2.054890533 | AC95: 0.3124705577 | AD95: 0.04783308015 | AE95: 0.0684672 | AF95: 0 | AG95: 0.441461665 | AH95: 3.803100173 | AI95: 0.4483706987 | AJ95: 0.019264 | AK95: 0.487754628 | AL95: 0.189888 | AM95: 0.00084 | AN95: 0.0254 | AO95: 0.105156 | AP95: 0.09652 | AQ95: 0.02624 | AR95: 2.146840838 | AS95: 2.321470568 | AT95: 2.321470568 | AU95: 21.5 | AV95: 0.9025471345 | AW95: 13.03611813 | AX95: 12.65960636 | AZ95: 90.25471345 | BA95: 1.125201298 | BB95: 1.119104293 | BC95: 0.566787745 | BD95: 0.550417668 | BE95: 1.19626927
G96: 87 | H96: 24 | I96: 1 | J96: 4.35 | K96: 4.35 | L96: 1.006944444 | M96: 0.226179922 | N96: 1.535079804 | O96: 5.117539902 | P96: 3.582460098 | Q96: 0 | R96: 4.372513293 | S96: 0.955943625 | T96: 0.1 | U96: 1.151081533 | V96: 0.4431393691 | W96: 0.0001963725005 | X96: 0.0001963725005 | Y96: 1.829271468 | Z96: 0.03346234103 | AA96: 0.03346234103 | AB96: 2.079496355 | AC96: 0.3199985767 | AD96: 0.04838927876 | AE96: 0.0684672 | AF96: 0 | AG96: 0.4501061207 | AH96: 3.84637068 | AI96: 0.4586315897 | AJ96: 0.019488 | AK96: 0.4991821337 | AL96: 0.192096 | AM96: 0.00084 | AN96: 0.0254 | AO96: 0.105156 | AP96: 0.09652 | AQ96: 0.02624 | AR96: 2.18925427 | AS96: 2.371839957 | AT96: 2.371839957 | AU96: 21.75 | AV96: 0.9016725108 | AW96: 13.26845806 | AX96: 12.93919771 | AZ96: 90.16725108 | BA96: 1.151081533 | BB96: 1.141384254 | BC96: 0.5768894807 | BD96: 0.5625738137 | BE96: 1.220758424
G97: 88 | H97: 24 | I97: 1 | J97: 4.4 | K97: 4.4 | L97: 1.018518519 | M97: 0.2263863038 | N97: 1.535964487 | O97: 5.167982244 | P97: 3.632017756 | Q97: 0 | R97: 4.422284354 | S97: 0.9778299454 | T97: 0.1 | U97: 1.177368412 | V97: 0.443394755 | W97: 0.0001965989088 | X97: 0.0001965989088 | Y97: 1.850690577 | Z97: 0.03425055613 | AA97: 0.03425055613 | AB97: 2.104125981 | AC97: 0.3276236145 | AD97: 0.04894547737 | AE97: 0.0684672 | AF97: 0 | AG97: 0.4588671784 | AH97: 3.889634015 | AI97: 0.4690068358 | AJ97: 0.019712 | AK97: 0.5107573135 | AL97: 0.194304 | AM97: 0.00084 | AN97: 0.0254 | AO97: 0.105156 | AP97: 0.09652 | AQ97: 0.02624 | AR97: 2.232129073 | AS97: 2.422956707 | AT97: 2.422956707 | AU97: 22 | AV97: 0.9007918355 | AW97: 13.50347982 | AX97: 13.22218557 | AZ97: 90.07918355 | BA97: 1.177368412 | BB97: 1.163928492 | BC97: 0.5871078184 | BD97: 0.5748776335 | BE97: 1.245588296
G98: 89 | H98: 24 | I98: 1 | J98: 4.45 | K98: 4.45 | L98: 1.030092593 | M98: 0.2265927142 | N98: 1.536848423 | O98: 5.218424211 | P98: 3.681575789 | Q98: 0 | R98: 4.472060516 | S98: 0.9999662628 | T98: 0.1 | U98: 1.204066325 | V98: 0.4436499253 | W98: 0.0001968252562 | X98: 0.0001968252562 | Y98: 1.872124695 | Z98: 0.03504850873 | AA98: 0.03504850873 | AB98: 2.12877932 | AC98: 0.335345903 | AD98: 0.04950167597 | AE98: 0.0684672 | AF98: 0 | AG98: 0.4677455829 | AH98: 3.932890014 | AI98: 0.4794963398 | AJ98: 0.019936 | AK98: 0.5224808857 | AL98: 0.196512 | AM98: 0.00084 | AN98: 0.0254 | AO98: 0.105156 | AP98: 0.09652 | AQ98: 0.02624 | AR98: 2.275465382 | AS98: 2.474828768 | AT98: 2.474828768 | AU98: 22.25 | AV98: 0.89990512 | AW98: 13.74120057 | AX98: 13.50858645 | AZ98: 89.990512 | BA98: 1.204066325 | BB98: 1.186738469 | BC98: 0.5974435029 | BD98: 0.5873298457 | BE98: 1.270762443
G99: 90 | H99: 24 | I99: 1 | J99: 4.5 | K99: 4.5 | L99: 1.041666667 | M99: 0.2267991531 | N99: 1.537731611 | O99: 5.268865805 | P99: 3.731134195 | Q99: 0 | R99: 4.52184161 | S99: 1.022352577 | T99: 0.1 | U99: 1.231179762 | V99: 0.4439048797 | W99: 0.0001970515422 | X99: 0.0001970515422 | Y99: 1.893573733 | Z99: 0.03585621483 | AA99: 0.03585621483 | AB99: 2.153456285 | AC99: 0.343165674 | AD99: 0.05005787458 | AE99: 0.0684672 | AF99: 0 | AG99: 0.4767420884 | AH99: 3.976138525 | AI99: 0.4901000046 | AJ99: 0.02016 | AK99: 0.5343535803 | AL99: 0.19872 | AM99: 0.00084 | AN99: 0.0254 | AO99: 0.105156 | AP99: 0.09652 | AQ99: 0.02624 | AR99: 2.31926333 | AS99: 2.527464258 | AT99: 2.527464258 | AU99: 22.5 | AV99: 0.8990123717 | AW99: 13.98163763 | AX99: 13.79841715 | AZ99: 89.90123717 | BA99: 1.231179762 | BB99: 1.209815669 | BC99: 0.6078972884 | BD99: 0.5999311803 | BE99: 1.296284496
G100: 91 | H100: 24 | I100: 1 | J100: 4.55 | K100: 4.55 | L100: 1.053240741 | M100: 0.2270056206 | N100: 1.538614051 | O100: 5.319307026 | P100: 3.780692974 | Q100: 0 | R100: 4.571627475 | S100: 1.044988888 | T100: 0.1 | U100: 1.258713307 | V100: 0.4441596184 | W100: 0.0001972777666 | X100: 0.0001972777666 | Y100: 1.915037608 | Z100: 0.03667369042 | AA100: 0.03667369042 | AB100: 2.178156795 | AC100: 0.3510831596 | AD100: 0.05061407319 | AE100: 0.0684672 | AF100: 0 | AG100: 0.485857459 | AH100: 4.019379398 | AI100: 0.5008177331 | AJ100: 0.020384 | AK100: 0.5463761402 | AL100: 0.200928 | AM100: 0.00084 | AN100: 0.0254 | AO100: 0.105156 | AP100: 0.09652 | AQ100: 0.02624 | AR100: 2.363523054 | AS100: 2.580871463 | AT100: 2.580871463 | AU100: 22.75 | AV100: 0.8981135937 | AW100: 14.2248086 | AX100: 14.09169474 | AZ100: 89.81135937 | BA100: 1.258713307 | BB100: 1.233161599 | BC100: 0.618469939 | BD100: 0.6126823802 | BE100: 1.322158155
G101: 92 | H101: 24 | I101: 1 | J101: 4.6 | K101: 4.6 | L101: 1.064814815 | M101: 0.2272121166 | N101: 1.539495744 | O101: 5.369747872 | P101: 3.830252128 | Q101: 0 | R101: 4.621417957 | S101: 1.067875196 | T101: 0.1 | U101: 1.286671646 | V101: 0.4444141412 | W101: 0.0001975039289 | X101: 0.0001975039289 | Y101: 1.936516239 | Z101: 0.03750095145 | AA101: 0.03750095145 | AB101: 2.202880767 | AC101: 0.3590985919 | AD101: 0.05117027179 | AE101: 0.0684672 | AF101: 0 | AG101: 0.4950924684 | AH101: 4.062612491 | AI101: 0.5116494279 | AJ101: 0.020608 | AK101: 0.5585493204 | AL101: 0.203136 | AM101: 0.00084 | AN101: 0.0254 | AO101: 0.105156 | AP101: 0.09652 | AQ101: 0.02624 | AR101: 2.408244688 | AS101: 2.635058842 | AT101: 2.635058842 | AU101: 23 | AV101: 0.8972087851 | AW101: 14.47073125 | AX101: 14.38843661 | AZ101: 89.72087851 | BA101: 1.286671646 | BB101: 1.256777789 | BC101: 0.6291622284 | BD101: 0.6255842004 | BE101: 1.348387196
G102: 93 | H102: 24 | I102: 1 | J102: 4.65 | K102: 4.65 | L102: 1.076388889 | M102: 0.2274186413 | N102: 1.54037669 | O102: 5.420188345 | P102: 3.879811655 | Q102: 0 | R102: 4.671212908 | S102: 1.091011501 | T102: 0.1 | U102: 1.315059564 | V102: 0.4446684482 | W102: 0.0001977300288 | X102: 0.0001977300288 | Y102: 1.958009547 | Z102: 0.03833801387 | AA102: 0.03833801387 | AB102: 2.227628125 | AC102: 0.3672122028 | AD102: 0.0517264704 | AE102: 0.0684672 | AF102: 0 | AG102: 0.5044479003 | AH102: 4.105837669 | AI102: 0.5225949919 | AJ102: 0.020832 | AK102: 0.5708738887 | AL102: 0.205344 | AM102: 0.00084 | AN102: 0.0254 | AO102: 0.105156 | AP102: 0.09652 | AQ102: 0.02624 | AR102: 2.453428367 | AS102: 2.69003503 | AT102: 2.69003503 | AU102: 23.25 | AV102: 0.8962979415 | AW102: 14.71942363 | AX102: 14.6886604 | AZ102: 89.62979415 | BA102: 1.315059564 | BB102: 1.280665789 | BC102: 0.6399749403 | BD102: 0.6386374087 | BE102: 1.374975467
G103: 94 | H103: 24 | I103: 1 | J103: 4.7 | K103: 4.7 | L103: 1.087962963 | M103: 0.2276251945 | N103: 1.541256887 | O103: 5.470628443 | P103: 3.929371557 | Q103: 0 | R103: 4.721012187 | S103: 1.114397803 | T103: 0.1 | U103: 1.34388195 | V103: 0.4449225392 | W103: 0.0001979560659 | X103: 0.0001979560659 | Y103: 1.979517456 | Z103: 0.03918489359 | AA103: 0.03918489359 | AB103: 2.252398796 | AC103: 0.3754242247 | AD103: 0.05228266901 | AE103: 0.0684672 | AF103: 0 | AG103: 0.5139245485 | AH103: 4.1490548 | AI103: 0.5336543277 | AJ103: 0.021056 | AK103: 0.5833506256 | AL103: 0.207552 | AM103: 0.00084 | AN103: 0.0254 | AO103: 0.105156 | AP103: 0.09652 | AQ103: 0.02624 | AR103: 2.499074225 | AS103: 2.745808845 | AT103: 2.745808845 | AU103: 23.5 | AV103: 0.8953810545 | AW103: 14.97090397 | AX103: 14.99238407 | AZ103: 89.53810545 | BA103: 1.34388195 | BB103: 1.304827174 | BC103: 0.6509088685 | BD103: 0.6518427856 | BE103: 1.401926895
G104: 95 | H104: 24 | I104: 1 | J104: 4.75 | K104: 4.75 | L104: 1.099537037 | M104: 0.2278317763 | N104: 1.542136336 | O104: 5.521068168 | P104: 3.978931832 | Q104: 0 | R104: 4.770815658 | S104: 1.138034102 | T104: 0.1 | U104: 1.373143802 | V104: 0.4451764143 | W104: 0.0001981820398 | X104: 0.0001981820398 | Y104: 2.001039893 | Z104: 0.04004160652 | AA104: 0.04004160652 | AB104: 2.277192706 | AC104: 0.3837348898 | AD104: 0.05283886761 | AE104: 0.0684672 | AF104: 0 | AG104: 0.5235232168 | AH104: 4.192263759 | AI104: 0.5448273381 | AJ104: 0.02128 | AK104: 0.5959803244 | AL104: 0.20976 | AM104: 0.00084 | AN104: 0.0254 | AO104: 0.105156 | AP104: 0.09652 | AQ104: 0.02624 | AR104: 2.545182397 | AS104: 2.802389287 | AT104: 2.802389287 | AU104: 23.75 | AV104: 0.8944581123 | AW104: 15.22519079 | AX104: 15.29962586 | AZ104: 89.44581123 | BA104: 1.373143802 | BB104: 1.329263541 | BC104: 0.6619648168 | BD104: 0.6652011244 | BE104: 1.429245486
G105: 96 | H105: 24 | I105: 1 | J105: 4.8 | K105: 4.8 | L105: =Vout*K105/(Vin*Efficiency) -> 1.111111111 | M105: 0.2280383867 | N105: =(Vin-(Rdson1+Rdcr)*K105-Vout)*M105/(Fsw*Lf) -> 1.543015036 | O105: 5.571507518 | P105: 4.028492482 | Q105: =IF(MIN(Vin, -P105/(Coss_Q1+Coss_Q2)*0.00000002)<0, 0, MIN(Vin, -P105/(Coss_Q1+Coss_Q2)*0.00000002)) -> 0 | R105: 4.820623191 | S105: =R105^2*Rdcr -> 1.161920398 | T105: 0.1 | U105: =(T105+S105*(1+Ltc*(Ta-25)))/(1-S105*Ltc*ThetaCa) -> 1.402850222 | V105: 0.4454300733 | W105: 0.0001984079502 | X105: 0.0001984079502 | Y105: 2.022576785 | Z105: 0.04090816852 | AA105: 0.04090816852 | AB105: 2.302009787 | AC105: =Rdson1*AB105^2 -> 0.3921444303 | AD105: 0.05339506622 | AE105: 0.0684672 | AF105: 0 | AG105: =(AF105+AE105+AD105+AC105*(1+RdsonTopTc*Ta-RdsonTopTc*25))/(1-AC105*RdsonTopTc*ThetaJA_Q1) -> 0.5332447196 | AH105: 4.235464425 | AI105: =Rdson2*AH105^2 -> 0.5561139257 | AJ105: 0.021504 | AK105: =(AJ105+AI105*(1+RdsonBotTc*Ta-RdsonBotTc*25))/(1-AI105*RdsonBotTc*ThetaJA_Q2) -> 0.6087637917 | AL105: 0.211968 | AM105: 0.00084 | AN105: 0.0254 | AO105: 0.105156 | AP105: 0.09652 | AQ105: 0.02624 | AR105: 2.59175302 | AS105: 2.859785545 | AT105: 2.859785545 | AU105: 24 | AV105: 0.8935290998 | AW105: 15.48230279 | AX105: 15.61040433 | AZ105: 89.35290998 | BA105: 1.402850222 | BB105: 1.353976511 | BC105: 0.6731435996 | BD105: 0.6787132317 | BE105: 1.456935323
G106: 97 | H106: 24 | I106: 1 | J106: 4.85 | K106: 4.85 | L106: 1.122685185 | M106: 0.2282450257 | N106: 1.543892989 | O106: 5.621946494 | P106: 4.078053506 | Q106: 0 | R106: 4.870434662 | S106: 1.18605669 | T106: 0.1 | U106: 1.433006428 | V106: 0.4456835163 | W106: 0.0001986337967 | X106: 0.0001986337967 | Y106: 2.044128065 | Z106: 0.04178459546 | AA106: 0.04178459546 | AB106: 2.326849972 | AC106: 0.4006530787 | AD106: 0.05395126483 | AE106: 0.0684672 | AF106: 0 | AG106: 0.5430898817 | AH106: 4.278656682 | AI106: 0.5675139931 | AJ106: 0.021728 | AK106: 0.6217018469 | AL106: 0.214176 | AM106: 0.00084 | AN106: 0.0254 | AO106: 0.105156 | AP106: 0.09652 | AQ106: 0.02624 | AR106: 2.638786226 | AS106: 2.918007001 | AT106: 2.918007001 | AU106: 24.25 | AV106: 0.8925939985 | AW106: 15.74225896 | AX106: 15.92473832 | AZ106: 89.25939985 | BA106: 1.433006428 | BB106: 1.378967729 | BC106: 0.6844460417 | BD106: 0.6923799269 | BE106: 1.485000573
G107: 98 | H107: 24 | I107: 1 | J107: 4.9 | K107: 4.9 | L107: 1.134259259 | M107: 0.2284516933 | N107: 1.544770192 | O107: 5.672385096 | P107: 4.127614904 | Q107: 0 | R107: 4.920249951 | S107: 1.210442979 | T107: 0.1 | U107: 1.463617748 | V107: 0.4459367432 | W107: 0.000198859579 | X107: 0.000198859579 | Y107: 2.065693665 | Z107: 0.04267090317 | AA107: 0.04267090317 | AB107: 2.351713197 | AC107: 0.4092610673 | AD107: 0.05450746343 | AE107: 0.0684672 | AF107: 0 | AG107: 0.5530595385 | AH107: 4.32184042 | AI107: 0.5790274431 | AJ107: 0.021952 | AK107: 0.6347953231 | AL107: 0.216384 | AM107: 0.00084 | AN107: 0.0254 | AO107: 0.105156 | AP107: 0.09652 | AQ107: 0.02624 | AR107: 2.686282153 | AS107: 2.977063234 | AT107: 2.977063234 | AU107: 24.5 | AV107: 0.8916527866 | AW107: 16.00507851 | AX107: 16.24264699 | AZ107: 89.16527866 | BA107: 1.463617748 | BB107: 1.404238862 | BC107: 0.6958729785 | BD107: 0.7062020431 | BE107: 1.513445486
G108: 99 | H108: 24 | I108: 1 | J108: 4.95 | K108: 4.95 | L108: 1.145833333 | M108: 0.2286583895 | N108: 1.545646647 | O108: 5.722823324 | P108: 4.177176676 | Q108: 0 | R108: 4.970068943 | S108: 1.235079265 | T108: 0.1 | U108: 1.494689627 | V108: 0.446189754 | W108: 0.0001990852966 | X108: 0.0001990852966 | Y108: 2.08727352 | Z108: 0.04356710746 | AA108: 0.04356710746 | AB108: 2.376599401 | AC108: 0.4179686287 | AD108: 0.05506366204 | AE108: 0.0684672 | AF108: 0 | AG108: 0.5631545362 | AH108: 4.365015531 | AI108: 0.5906541781 | AJ108: 0.022176 | AK108: 0.6480450665 | AL108: 0.218592 | AM108: 0.00084 | AN108: 0.0254 | AO108: 0.105156 | AP108: 0.09652 | AQ108: 0.02624 | AR108: 2.734240934 | AS108: 3.036964024 | AT108: 3.036964024 | AU108: 24.75 | AV108: 0.8907054394 | AW108: 16.27078089 | AX108: 16.56414981 | AZ108: 89.07054394 | BA108: 1.494689627 | BB108: 1.429791603 | BC108: 0.7074252562 | BD108: 0.7201804265 | BE108: 1.542274397
G109: 100 | H109: 24 | I109: 1 | J109: 5 | K109: 5 | L109: 1.157407407 | M109: 0.2288651143 | N109: 1.546522353 | O109: 5.773261177 | P109: 4.226738823 | Q109: 0 | R109: 5.019891528 | S109: 1.259965547 | T109: 0.1 | U109: 1.526227629 | V109: 0.4464425485 | W109: 0.0001993109491 | X109: 0.0001993109491 | Y109: 2.108867566 | Z109: 0.04447322411 | AA109: 0.04447322411 | AB109: 2.401508522 | AC109: 0.4267759954 | AD109: 0.05561986065 | AE109: 0.0684672 | AF109: 0 | AG109: 0.573375732 | AH109: 4.408181912 | AI109: 0.6023941008 | AJ109: 0.0224 | AK109: 0.6614519373 | AL109: 0.2208 | AM109: 0.00084 | AN109: 0.0254 | AO109: 0.105156 | AP109: 0.09652 | AQ109: 0.02624 | AR109: 2.782662704 | AS109: 3.097719356 | AT109: 3.097719356 | AU109: 25 | AV109: 0.8897519291 | AW109: 16.53938583 | AX109: 16.88926656 | AZ109: 88.97519291 | BA109: 1.526227629 | BB109: 1.455627669 | BC109: 0.719103732 | BD109: 0.7343159373 | BE109: 1.571491728

Sheet Efficiency Plot Management (hidden)
A2: ="EFF_Ch1" -> EFF_Ch1
A3: ="EFF_Ch2" -> EFF_Ch2

Sheet Standard Value Calculator (hidden)
A2: Capacitors | B2: Css | C2: Cc1ea | D2: Cc2ea | E2: Cout | F2: Cin | G2: Css
A3: Inputs | B3: =Css -> 1.4e-08 | C3: =Cc1ea -> 5.557844195e-11 | D3: =Cc2ea -> 8.489631826e-13 | E3: =Cout -> 9.4e-05 | F3: =Cin -> 2.2e-05 | G3: =Css -> 1.4e-08 | J3: Resistors | K3: inputs | L3: Standard Result
A4: Standard Result | B4: =SUM(B6:B158)/1000000000000 -> 1.5e-08 | C4: =IF(C3="OPEN","OPEN",SUM(C6:C158)/1000000000000) -> 5.6e-11 | D4: =SUM(D6:D158)/1000000000000 -> 8.2e-13 | E4: =SUM(E6:E158)/1000000000000 -> 0.0001 | F4: =SUM(F6:F158)/1000000000000 -> 2.2e-05 | G4: =SUM(G6:G158)/1000000000000 -> 1.5e-08 | J4: Rt | K4: =Rfadj -> 100 | L4: =IF(K4>(INT(0.5+100*POWER(10,IF(96*(LOG(K4)-INT(LOG(K4)))-ROUND(96*(LOG(K4)-INT(LOG(K4))),0)<0,ROUND(96*(LOG(K4)-INT(LOG(K4))),0)-1,ROUND(96*(LOG(K4)-INT(LOG(K4))),0))/96))*POWER(10,INT(LOG(K4))-2)+INT(0.5+100*POWER(10,(IF(96*(LOG(K4)-INT(LOG(K4)))-ROUND(96*(LOG(K4)-INT(LOG(K4))),0)<0,ROUND(96*(LOG(K4)-INT(LOG(K4))),0)-1,ROUND(96*(LOG(K4)-INT(LOG(K4))),0))+1)/96))*POWER(10,INT(LOG(K4))-2))/2,INT(0.5+100*POWER(10,(IF(96*(LOG(K4)-INT(LOG(K4)))-ROUND(96*(LOG(K4)-INT(LOG(K4))),0)<0,ROUND(96*(LOG(K4)-INT(LOG(K4))),0)-1,ROUND(96*(LOG(K4)-INT(LOG(K4))),0))+1)/96))*POWER(10,INT(LOG(K4))-2),INT(0.5+100*POWER(10,IF(96*(LOG(K4)-INT(LOG(K4)))-ROUND(96*(LOG(K4)-INT(LOG(K4))),0)<0,ROUND(96*(LOG(K4)-INT(LOG(K4))),0)-1,ROUND(96*(LOG(K4)-INT(LOG(K4))),0))/96))*POWER(10,INT(LOG(K4))-2)) -> 100 | M4: Ω
A5: (pF)
A6: 0.47 | B6: =IF(IF((B$3*10^12-$A7)*(B$3*10^12-$A6)*-1<0,0,1)*IF(ABS(B$3*10^12-$A7)>(B$3*10^12-$A6),$A6,$A7)=B7,0,IF((B$3*10^12-$A7)*(B$3*10^12-$A6)*-1<0,0,1)*IF(ABS(B$3*10^12-$A7)>(B$3*10^12-$A6),$A6,$A7)) -> 0 | C6: 0 | D6: 0 | E6: 0 | F6: 0 | G6: 0
A7: 0.56 | B7: =IF(IF((B$3*10^12-$A8)*(B$3*10^12-$A7)*-1<0,0,1)*IF(ABS(B$3*10^12-$A8)>(B$3*10^12-$A7),$A7,$A8)=B8,0,IF((B$3*10^12-$A8)*(B$3*10^12-$A7)*-1<0,0,1)*IF(ABS(B$3*10^12-$A8)>(B$3*10^12-$A7),$A7,$A8)) -> 0 | C7: =IF(IF((C$3*10^12-$A8)*(C$3*10^12-$A7)*-1<0,0,1)*IF(ABS(C$3*10^12-$A8)>(C$3*10^12-$A7),$A7,$A8)=C8,0,IF((C$3*10^12-$A8)*(C$3*10^12-$A7)*-1<0,0,1)*IF(ABS(C$3*10^12-$A8)>(C$3*10^12-$A7),$A7,$A8)) -> 0 | D7: =IF(IF((D$3*10^12-$A8)*(D$3*10^12-$A7)*-1<0,0,1)*IF(ABS(D$3*10^12-$A8)>(D$3*10^12-$A7),$A7,$A8)=D8,0,IF((D$3*10^12-$A8)*(D$3*10^12-$A7)*-1<0,0,1)*IF(ABS(D$3*10^12-$A8)>(D$3*10^12-$A7),$A7,$A8)) -> 0 | E7: =IF(IF((E$3*10^12-$A8)*(E$3*10^12-$A7)*-1<0,0,1)*IF(ABS(E$3*10^12-$A8)>(E$3*10^12-$A7),$A7,$A8)=E8,0,IF((E$3*10^12-$A8)*(E$3*10^12-$A7)*-1<0,0,1)*IF(ABS(E$3*10^12-$A8)>(E$3*10^12-$A7),$A7,$A8)) -> 0 | F7: =IF(IF((F$3*10^12-$A8)*(F$3*10^12-$A7)*-1<0,0,1)*IF(ABS(F$3*10^12-$A8)>(F$3*10^12-$A7),$A7,$A8)=F8,0,IF((F$3*10^12-$A8)*(F$3*10^12-$A7)*-1<0,0,1)*IF(ABS(F$3*10^12-$A8)>(F$3*10^12-$A7),$A7,$A8)) -> 0 | G7: =IF(IF((G$3*10^12-$A8)*(G$3*10^12-$A7)*-1<0,0,1)*IF(ABS(G$3*10^12-$A8)>(G$3*10^12-$A7),$A7,$A8)=G8,0,IF((G$3*10^12-$A8)*(G$3*10^12-$A7)*-1<0,0,1)*IF(ABS(G$3*10^12-$A8)>(G$3*10^12-$A7),$A7,$A8)) -> 0 | J7: Rent | K7: =Rent -> 885221.6749 | L7: 887000 | M7: Ω
A8: 0.68 | B8: 0 | C8: 0 | D8: 0 | E8: 0 | F8: 0 | G8: 0 | J8: Rc1ea | K8: =Rcea2 -> 0 | L8: =IF(K8>(INT(0.5+100*POWER(10,IF(96*(LOG(K8)-INT(LOG(K8)))-ROUND(96*(LOG(K8)-INT(LOG(K8))),0)<0,ROUND(96*(LOG(K8)-INT(LOG(K8))),0)-1,ROUND(96*(LOG(K8)-INT(LOG(K8))),0))/96))*POWER(10,INT(LOG(K8))-2)+INT(0.5+100*POWER(10,(IF(96*(LOG(K8)-INT(LOG(K8)))-ROUND(96*(LOG(K8)-INT(LOG(K8))),0)<0,ROUND(96*(LOG(K8)-INT(LOG(K8))),0)-1,ROUND(96*(LOG(K8)-INT(LOG(K8))),0))+1)/96))*POWER(10,INT(LOG(K8))-2))/2,INT(0.5+100*POWER(10,(IF(96*(LOG(K8)-INT(LOG(K8)))-ROUND(96*(LOG(K8)-INT(LOG(K8))),0)<0,ROUND(96*(LOG(K8)-INT(LOG(K8))),0)-1,ROUND(96*(LOG(K8)-INT(LOG(K8))),0))+1)/96))*POWER(10,INT(LOG(K8))-2),INT(0.5+100*POWER(10,IF(96*(LOG(K8)-INT(LOG(K8)))-ROUND(96*(LOG(K8)-INT(LOG(K8))),0)<0,ROUND(96*(LOG(K8)-INT(LOG(K8))),0)-1,ROUND(96*(LOG(K8)-INT(LOG(K8))),0))/96))*POWER(10,INT(LOG(K8))-2)) ->  | M8: Ω
A9: 0.82 | B9: 0 | C9: 0 | D9: 0.82 | E9: 0 | F9: 0 | G9: 0
A10: 1 | B10: 0 | C10: 0 | D10: 0 | E10: 0 | F10: 0 | G10: 0 | J10: Rfb1 | K10: =Rfb1_ -> 40000 | L10: =IF(K10>(INT(0.5+100*POWER(10,IF(96*(LOG(K10)-INT(LOG(K10)))-ROUND(96*(LOG(K10)-INT(LOG(K10))),0)<0,ROUND(96*(LOG(K10)-INT(LOG(K10))),0)-1,ROUND(96*(LOG(K10)-INT(LOG(K10))),0))/96))*POWER(10,INT(LOG(K10))-2)+INT(0.5+100*POWER(10,(IF(96*(LOG(K10)-INT(LOG(K10)))-ROUND(96*(LOG(K10)-INT(LOG(K10))),0)<0,ROUND(96*(LOG(K10)-INT(LOG(K10))),0)-1,ROUND(96*(LOG(K10)-INT(LOG(K10))),0))+1)/96))*POWER(10,INT(LOG(K10))-2))/2,INT(0.5+100*POWER(10,(IF(96*(LOG(K10)-INT(LOG(K10)))-ROUND(96*(LOG(K10)-INT(LOG(K10))),0)<0,ROUND(96*(LOG(K10)-INT(LOG(K10))),0)-1,ROUND(96*(LOG(K10)-INT(LOG(K10))),0))+1)/96))*POWER(10,INT(LOG(K10))-2),INT(0.5+100*POWER(10,IF(96*(LOG(K10)-INT(LOG(K10)))-ROUND(96*(LOG(K10)-INT(LOG(K10))),0)<0,ROUND(96*(LOG(K10)-INT(LOG(K10))),0)-1,ROUND(96*(LOG(K10)-INT(LOG(K10))),0))/96))*POWER(10,INT(LOG(K10))-2)) -> 40200 | M10: Ω
A11: 1.2 | B11: 0 | C11: 0 | D11: 0 | E11: 0 | F11: 0 | G11: 0 | J11: Rfb2 | K11: =Rfb2_ -> 10000 | L11: =IF(K11="OPEN","OPEN",IF(K11>(INT(0.5+100*POWER(10,IF(96*(LOG(K11)-INT(LOG(K11)))-ROUND(96*(LOG(K11)-INT(LOG(K11))),0)<0,ROUND(96*(LOG(K11)-INT(LOG(K11))),0)-1,ROUND(96*(LOG(K11)-INT(LOG(K11))),0))/96))*POWER(10,INT(LOG(K11))-2)+INT(0.5+100*POWER(10,(IF(96*(LOG(K11)-INT(LOG(K11)))-ROUND(96*(LOG(K11)-INT(LOG(K11))),0)<0,ROUND(96*(LOG(K11)-INT(LOG(K11))),0)-1,ROUND(96*(LOG(K11)-INT(LOG(K11))),0))+1)/96))*POWER(10,INT(LOG(K11))-2))/2,INT(0.5+100*POWER(10,(IF(96*(LOG(K11)-INT(LOG(K11)))-ROUND(96*(LOG(K11)-INT(LOG(K11))),0)<0,ROUND(96*(LOG(K11)-INT(LOG(K11))),0)-1,ROUND(96*(LOG(K11)-INT(LOG(K11))),0))+1)/96))*POWER(10,INT(LOG(K11))-2),INT(0.5+100*POWER(10,IF(96*(LOG(K11)-INT(LOG(K11)))-ROUND(96*(LOG(K11)-INT(LOG(K11))),0)<0,ROUND(96*(LOG(K11)-INT(LOG(K11))),0)-1,ROUND(96*(LOG(K11)-INT(LOG(K11))),0))/96))*POWER(10,INT(LOG(K11))-2))) -> 10000 | M11: Ω
A12: 1.5 | B12: 0 | C12: 0 | D12: 0 | E12: 0 | F12: 0 | G12: 0 | J12: Rt1 | K12: ='Variable Management'!B25*1000 -> 99566.98732 | L12: =IF(K12>(INT(0.5+100*POWER(10,IF(96*(LOG(K12)-INT(LOG(K12)))-ROUND(96*(LOG(K12)-INT(LOG(K12))),0)<0,ROUND(96*(LOG(K12)-INT(LOG(K12))),0)-1,ROUND(96*(LOG(K12)-INT(LOG(K12))),0))/96))*POWER(10,INT(LOG(K12))-2)+INT(0.5+100*POWER(10,(IF(96*(LOG(K12)-INT(LOG(K12)))-ROUND(96*(LOG(K12)-INT(LOG(K12))),0)<0,ROUND(96*(LOG(K12)-INT(LOG(K12))),0)-1,ROUND(96*(LOG(K12)-INT(LOG(K12))),0))+1)/96))*POWER(10,INT(LOG(K12))-2))/2,INT(0.5+100*POWER(10,(IF(96*(LOG(K12)-INT(LOG(K12)))-ROUND(96*(LOG(K12)-INT(LOG(K12))),0)<0,ROUND(96*(LOG(K12)-INT(LOG(K12))),0)-1,ROUND(96*(LOG(K12)-INT(LOG(K12))),0))+1)/96))*POWER(10,INT(LOG(K12))-2),INT(0.5+100*POWER(10,IF(96*(LOG(K12)-INT(LOG(K12)))-ROUND(96*(LOG(K12)-INT(LOG(K12))),0)<0,ROUND(96*(LOG(K12)-INT(LOG(K12))),0)-1,ROUND(96*(LOG(K12)-INT(LOG(K12))),0))/96))*POWER(10,INT(LOG(K12))-2)) -> 100000 | M12: Ω
A13: 1.8 | B13: 0 | C13: 0 | D13: 0 | E13: 0 | F13: 0 | G13: 0
A14: 2.2 | B14: =IF(IF((B$3*10^12-$A15)*(B$3*10^12-$A14)*-1<0,0,1)*IF(ABS(B$3*10^12-$A15)>(B$3*10^12-$A14),$A14,$A15)=B15,0,IF((B$3*10^12-$A15)*(B$3*10^12-$A14)*-1<0,0,1)*IF(ABS(B$3*10^12-$A15)>(B$3*10^12-$A14),$A14,$A15)) -> 0 | C14: 0 | D14: 0 | E14: 0 | F14: 0 | G14: 0
A15: 2.7 | B15: 0 | C15: 0 | D15: 0 | E15: 0 | F15: 0 | G15: 0
A16: 3.3 | B16: 0 | C16: 0 | D16: 0 | E16: 0 | F16: 0 | G16: 0 | J16: Rs | K16: =Rs_ideal*1000 ->  | L16: =IF(K16=0,0,IF(K16>(INT(0.5+100*POWER(10,IF(96*(LOG(K16)-INT(LOG(K16)))-ROUND(96*(LOG(K16)-INT(LOG(K16))),0)<0,ROUND(96*(LOG(K16)-INT(LOG(K16))),0)-1,ROUND(96*(LOG(K16)-INT(LOG(K16))),0))/96))*POWER(10,INT(LOG(K16))-2)+INT(0.5+100*POWER(10,(IF(96*(LOG(K16)-INT(LOG(K16)))-ROUND(96*(LOG(K16)-INT(LOG(K16))),0)<0,ROUND(96*(LOG(K16)-INT(LOG(K16))),0)-1,ROUND(96*(LOG(K16)-INT(LOG(K16))),0))+1)/96))*POWER(10,INT(LOG(K16))-2))/2,INT(0.5+100*POWER(10,(IF(96*(LOG(K16)-INT(LOG(K16)))-ROUND(96*(LOG(K16)-INT(LOG(K16))),0)<0,ROUND(96*(LOG(K16)-INT(LOG(K16))),0)-1,ROUND(96*(LOG(K16)-INT(LOG(K16))),0))+1)/96))*POWER(10,INT(LOG(K16))-2),INT(0.5+100*POWER(10,IF(96*(LOG(K16)-INT(LOG(K16)))-ROUND(96*(LOG(K16)-INT(LOG(K16))),0)<0,ROUND(96*(LOG(K16)-INT(LOG(K16))),0)-1,ROUND(96*(LOG(K16)-INT(LOG(K16))),0))/96))*POWER(10,INT(LOG(K16))-2))) ->  | M16: mΩ
A17: 3.9 | B17: 0 | C17: 0 | D17: 0 | E17: 0 | F17: 0 | G17: 0 | J17: Cres | K17: =Cres ->  | L17: =G4*1000000000000 -> 15000 | M17: pF
A18: 4.7 | B18: 0 | C18: 0 | D18: 0 | E18: 0 | F18: 0 | G18: 0
A19: 5.6 | B19: 0 | C19: 0 | D19: 0 | E19: 0 | F19: 0 | G19: 0
A20: 6.8 | B20: 0 | C20: 0 | D20: 0 | E20: 0 | F20: 0 | G20: 0
A21: 8.2 | B21: 0 | C21: 0 | D21: 0 | E21: 0 | F21: 0 | G21: 0
A22: 10 | B22: 0 | C22: 0 | D22: 0 | E22: 0 | F22: 0 | G22: 0 | J22: Css | K22: =Css -> 1.4e-08 | L22: =G4 -> 1.5e-08
A23: 12 | B23: 0 | C23: 0 | D23: 0 | E23: 0 | F23: 0 | G23: 0
A24: 15 | B24: 0 | C24: 0 | D24: 0 | E24: 0 | F24: 0 | G24: 0
A25: 18 | B25: 0 | C25: 0 | D25: 0 | E25: 0 | F25: 0 | G25: 0
A26: 22 | B26: 0 | C26: 0 | D26: 0 | E26: 0 | F26: 0 | G26: 0
A27: 27 | B27: 0 | C27: 0 | D27: 0 | E27: 0 | F27: 0 | G27: 0
A28: 33 | B28: 0 | C28: 0 | D28: 0 | E28: 0 | F28: 0 | G28: 0
A29: 39 | B29: 0 | C29: 0 | D29: 0 | E29: 0 | F29: 0 | G29: 0
A30: 47 | B30: 0 | C30: 56 | D30: 0 | E30: 0 | F30: 0 | G30: 0 | J30: Rc1 | K30: =L7/1000&" kΩ" -> 887 kΩ | L30: =L7/1000 -> 887 | M30: kΩ
A31: 56 | B31: 0 | C31: 0 | D31: 0 | E31: 0 | F31: 0 | G31: 0 | J31: Cc1 | K31: =C4*1000000000&" nF" -> 0.056 nF | L31: =C4*1000000000 -> 0.056 | M31: nF
A32: 68 | B32: 0 | C32: 0 | D32: 0 | E32: 0 | F32: 0 | G32: 0 | J32: Cc2 | K32: =D4*1000000000000&" pF" -> 0.82 pF | L32: =D4*1000000000000 -> 0.82 | M32: pF
A33: 82 | B33: 0 | C33: 0 | D33: 0 | E33: 0 | F33: 0 | G33: 0
A34: =A22*10 -> 100 | B34: 0 | C34: 0 | D34: 0 | E34: 0 | F34: 0 | G34: 0
A35: =A23*10 -> 120 | B35: 0 | C35: 0 | D35: 0 | E35: 0 | F35: 0 | G35: 0
A36: 150 | B36: 0 | C36: 0 | D36: 0 | E36: 0 | F36: 0 | G36: 0
A37: 180 | B37: 0 | C37: 0 | D37: 0 | E37: 0 | F37: 0 | G37: 0
A38: 220 | B38: 0 | C38: 0 | D38: 0 | E38: 0 | F38: 0 | G38: 0
A39: 270 | B39: 0 | C39: =IF(IF((C$3*10^12-$A40)*(C$3*10^12-$A39)*-1<0,0,1)*IF(ABS(C$3*10^12-$A40)>(C$3*10^12-$A39),$A39,$A40)=C40,0,IF((C$3*10^12-$A40)*(C$3*10^12-$A39)*-1<0,0,1)*IF(ABS(C$3*10^12-$A40)>(C$3*10^12-$A39),$A39,$A40)) -> 0 | D39: 0 | E39: 0 | F39: 0 | G39: 0
A40: 330 | B40: 0 | C40: 0 | D40: 0 | E40: 0 | F40: 0 | G40: 0
A41: 390 | B41: 0 | C41: 0 | D41: 0 | E41: 0 | F41: 0 | G41: 0
A42: 470 | B42: 0 | C42: 0 | D42: 0 | E42: 0 | F42: 0 | G42: 0
A43: 560 | B43: 0 | C43: 0 | D43: 0 | E43: 0 | F43: 0 | G43: 0
A44: 680 | B44: 0 | C44: 0 | D44: 0 | E44: 0 | F44: 0 | G44: 0
A45: =A33*10 -> 820 | B45: 0 | C45: 0 | D45: 0 | E45: 0 | F45: 0 | G45: 0
A46: 1000 | B46: 0 | C46: 0 | D46: 0 | E46: 0 | F46: 0 | G46: 0
A47: 1200 | B47: 0 | C47: 0 | D47: 0 | E47: 0 | F47: 0 | G47: 0
A48: 1500 | B48: 0 | C48: 0 | D48: 0 | E48: 0 | F48: 0 | G48: 0
A49: 1800 | B49: 0 | C49: 0 | D49: 0 | E49: 0 | F49: 0 | G49: 0
A50: 2200 | B50: 0 | C50: 0 | D50: 0 | E50: 0 | F50: 0 | G50: 0
A51: 2700 | B51: 0 | C51: 0 | D51: 0 | E51: 0 | F51: 0 | G51: 0
A52: 3300 | B52: 0 | C52: 0 | D52: 0 | E52: 0 | F52: 0 | G52: 0
A53: 3900 | B53: 0 | C53: 0 | D53: 0 | E53: 0 | F53: 0 | G53: 0
A54: 4700 | B54: 0 | C54: 0 | D54: 0 | E54: 0 | F54: 0 | G54: 0
A55: 5600 | B55: 0 | C55: 0 | D55: 0 | E55: 0 | F55: 0 | G55: 0
A56: 6800 | B56: 0 | C56: 0 | D56: 0 | E56: 0 | F56: 0 | G56: 0
A57: 8200 | B57: 0 | C57: 0 | D57: 0 | E57: 0 | F57: 0 | G57: 0
A58: 10000 | B58: 0 | C58: 0 | D58: 0 | E58: 0 | F58: 0 | G58: 0
A59: 12000 | B59: 15000 | C59: 0 | D59: 0 | E59: 0 | F59: 0 | G59: 15000
A60: 15000 | B60: 0 | C60: 0 | D60: 0 | E60: 0 | F60: 0 | G60: 0
A61: 18000 | B61: 0 | C61: 0 | D61: 0 | E61: 0 | F61: 0 | G61: 0
A62: 22000 | B62: 0 | C62: 0 | D62: 0 | E62: 0 | F62: 0 | G62: 0
A63: 27000 | B63: 0 | C63: 0 | D63: 0 | E63: 0 | F63: 0 | G63: 0
A64: 33000 | B64: 0 | C64: 0 | D64: 0 | E64: 0 | F64: 0 | G64: 0
A65: 39000 | B65: 0 | C65: 0 | D65: 0 | E65: 0 | F65: 0 | G65: 0
A66: 47000 | B66: 0 | C66: 0 | D66: 0 | E66: 0 | F66: 0 | G66: 0
A67: 56000 | B67: 0 | C67: 0 | D67: 0 | E67: 0 | F67: 0 | G67: 0
A68: 68000 | B68: 0 | C68: 0 | D68: 0 | E68: 0 | F68: 0 | G68: 0
A69: 82000 | B69: 0 | C69: 0 | D69: 0 | E69: 0 | F69: 0 | G69: 0
A70: 100000 | B70: 0 | C70: 0 | D70: =IF(IF((D$3*10^12-$A71)*(D$3*10^12-$A70)*-1<0,0,1)*IF(ABS(D$3*10^12-$A71)>(D$3*10^12-$A70),$A70,$A71)=D71,0,IF((D$3*10^12-$A71)*(D$3*10^12-$A70)*-1<0,0,1)*IF(ABS(D$3*10^12-$A71)>(D$3*10^12-$A70),$A70,$A71)) -> 0 | E70: 0 | F70: 0 | G70: 0
A71: 120000 | B71: =IF(IF((B$3*10^12-$A72)*(B$3*10^12-$A71)*-1<0,0,1)*IF(ABS(B$3*10^12-$A72)>(B$3*10^12-$A71),$A71,$A72)=B72,0,IF((B$3*10^12-$A72)*(B$3*10^12-$A71)*-1<0,0,1)*IF(ABS(B$3*10^12-$A72)>(B$3*10^12-$A71),$A71,$A72)) -> 0 | C71: =IF(IF((C$3*10^12-$A72)*(C$3*10^12-$A71)*-1<0,0,1)*IF(ABS(C$3*10^12-$A72)>(C$3*10^12-$A71),$A71,$A72)=C72,0,IF((C$3*10^12-$A72)*(C$3*10^12-$A71)*-1<0,0,1)*IF(ABS(C$3*10^12-$A72)>(C$3*10^12-$A71),$A71,$A72)) -> 0 | D71: 0 | E71: 0 | F71: =IF(IF((F$3*10^12-$A72)*(F$3*10^12-$A71)*-1<0,0,1)*IF(ABS(F$3*10^12-$A72)>(F$3*10^12-$A71),$A71,$A72)=F72,0,IF((F$3*10^12-$A72)*(F$3*10^12-$A71)*-1<0,0,1)*IF(ABS(F$3*10^12-$A72)>(F$3*10^12-$A71),$A71,$A72)) -> 0 | G71: =IF(IF((G$3*10^12-$A72)*(G$3*10^12-$A71)*-1<0,0,1)*IF(ABS(G$3*10^12-$A72)>(G$3*10^12-$A71),$A71,$A72)=G72,0,IF((G$3*10^12-$A72)*(G$3*10^12-$A71)*-1<0,0,1)*IF(ABS(G$3*10^12-$A72)>(G$3*10^12-$A71),$A71,$A72)) -> 0
A72: 150000 | B72: 0 | C72: 0 | D72: 0 | E72: 0 | F72: 0 | G72: 0
A73: 180000 | B73: 0 | C73: 0 | D73: 0 | E73: 0 | F73: 0 | G73: 0
A74: 220000 | B74: 0 | C74: 0 | D74: 0 | E74: 0 | F74: 0 | G74: 0
A75: 270000 | B75: 0 | C75: 0 | D75: 0 | E75: 0 | F75: 0 | G75: 0
A76: 330000 | B76: 0 | C76: 0 | D76: 0 | E76: 0 | F76: 0 | G76: 0
A77: 390000 | B77: 0 | C77: 0 | D77: 0 | E77: 0 | F77: 0 | G77: 0
A78: 470000 | B78: 0 | C78: 0 | D78: 0 | E78: 0 | F78: 0 | G78: 0
A79: 560000 | B79: 0 | C79: 0 | D79: 0 | E79: 0 | F79: 0 | G79: 0
A80: 680000 | B80: 0 | C80: 0 | D80: 0 | E80: 0 | F80: 0 | G80: 0
A81: 820000 | B81: 0 | C81: 0 | D81: 0 | E81: 0 | F81: 0 | G81: 0
A82: 1000000 | B82: 0 | C82: 0 | D82: 0 | E82: 0 | F82: 0 | G82: 0
A83: 1200000 | B83: 0 | C83: 0 | D83: 0 | E83: 0 | F83: 0 | G83: 0
A84: 1500000 | B84: 0 | C84: 0 | D84: 0 | E84: 0 | F84: 0 | G84: 0
A85: 1800000 | B85: 0 | C85: 0 | D85: 0 | E85: 0 | F85: 0 | G85: 0
A86: 2200000 | B86: 0 | C86: 0 | D86: 0 | E86: 0 | F86: 0 | G86: 0
A87: 2700000 | B87: 0 | C87: 0 | D87: 0 | E87: 0 | F87: 0 | G87: 0
A88: 3300000 | B88: 0 | C88: 0 | D88: 0 | E88: 0 | F88: 0 | G88: 0
A89: 3900000 | B89: 0 | C89: 0 | D89: 0 | E89: 0 | F89: 0 | G89: 0
A90: 4700000 | B90: 0 | C90: 0 | D90: 0 | E90: 0 | F90: 0 | G90: 0
A91: 5600000 | B91: 0 | C91: 0 | D91: 0 | E91: 0 | F91: 0 | G91: 0
A92: 6800000 | B92: 0 | C92: 0 | D92: 0 | E92: 0 | F92: 0 | G92: 0
A93: 8200000 | B93: 0 | C93: 0 | D93: 0 | E93: 0 | F93: 0 | G93: 0
A94: 10000000 | B94: 0 | C94: 0 | D94: 0 | E94: 0 | F94: 0 | G94: 0
A95: 12000000 | B95: 0 | C95: 0 | D95: 0 | E95: 0 | F95: 0 | G95: 0
A96: 15000000 | B96: 0 | C96: 0 | D96: 0 | E96: 0 | F96: 0 | G96: 0
A97: 18000000 | B97: 0 | C97: 0 | D97: 0 | E97: 0 | F97: 0 | G97: 0
A98: 22000000 | B98: 0 | C98: 0 | D98: 0 | E98: 0 | F98: 22000000 | G98: 0
A99: =A87*10 -> 27000000 | B99: 0 | C99: 0 | D99: 0 | E99: 0 | F99: 0 | G99: 0
A100: 33000000 | B100: 0 | C100: 0 | D100: 0 | E100: 0 | F100: 0 | G100: 0
A101: 39000000 | B101: 0 | C101: 0 | D101: 0 | E101: 0 | F101: 0 | G101: 0
A102: 47000000 | B102: 0 | C102: 0 | D102: 0 | E102: 0 | F102: 0 | G102: 0
A103: 56000000 | B103: 0 | C103: 0 | D103: 0 | E103: 0 | F103: =IF(IF((F$3*10^12-$A104)*(F$3*10^12-$A103)*-1<0,0,1)*IF(ABS(F$3*10^12-$A104)>(F$3*10^12-$A103),$A103,$A104)=F104,0,IF((F$3*10^12-$A104)*(F$3*10^12-$A103)*-1<0,0,1)*IF(ABS(F$3*10^12-$A104)>(F$3*10^12-$A103),$A103,$A104)) -> 0 | G103: =IF(IF((G$3*10^12-$A104)*(G$3*10^12-$A103)*-1<0,0,1)*IF(ABS(G$3*10^12-$A104)>(G$3*10^12-$A103),$A103,$A104)=G104,0,IF((G$3*10^12-$A104)*(G$3*10^12-$A103)*-1<0,0,1)*IF(ABS(G$3*10^12-$A104)>(G$3*10^12-$A103),$A103,$A104)) -> 0
A104: 68000000 | B104: 0 | C104: 0 | D104: 0 | E104: 0 | F104: 0 | G104: 0
A105: 82000000 | B105: 0 | C105: 0 | D105: 0 | E105: 100000000 | F105: 0 | G105: 0
A106: 100000000 | B106: 0 | C106: 0 | D106: 0 | E106: 0 | F106: 0 | G106: 0
A107: 120000000 | B107: 0 | C107: 0 | D107: 0 | E107: 0 | F107: 0 | G107: 0
A108: 150000000 | B108: 0 | C108: 0 | D108: 0 | E108: 0 | F108: 0 | G108: 0
A109: 180000000 | B109: 0 | C109: 0 | D109: 0 | E109: 0 | F109: 0 | G109: 0
A110: 220000000 | B110: 0 | C110: 0 | D110: 0 | E110: 0 | F110: 0 | G110: 0
A111: 270000000 | B111: 0 | C111: 0 | D111: 0 | E111: 0 | F111: 0 | G111: 0
A112: 330000000 | B112: 0 | C112: 0 | D112: 0 | E112: 0 | F112: 0 | G112: 0
A113: 390000000 | B113: 0 | C113: 0 | D113: 0 | E113: 0 | F113: 0 | G113: 0
A114: 470000000 | B114: 0 | C114: 0 | D114: 0 | E114: 0 | F114: 0 | G114: 0
A115: 560000000 | B115: 0 | C115: 0 | D115: 0 | E115: 0 | F115: 0 | G115: 0
A116: 680000000 | B116: 0 | C116: 0 | D116: 0 | E116: 0 | F116: 0 | G116: 0
A117: 820000000 | B117: 0 | C117: 0 | D117: 0 | E117: 0 | F117: 0 | G117: 0
A118: 1000000000 | B118: 0 | C118: 0 | D118: 0 | E118: 0 | F118: 0 | G118: 0
A119: 1200000000 | B119: 0 | C119: 0 | D119: 0 | E119: 0 | F119: 0 | G119: 0
A120: 1500000000 | B120: 0 | C120: 0 | D120: 0 | E120: 0 | F120: 0 | G120: 0
A121: 1800000000 | B121: 0 | C121: 0 | D121: 0 | E121: 0 | F121: 0 | G121: 0
A122: 2200000000 | B122: 0 | C122: 0 | D122: 0 | E122: 0 | F122: 0 | G122: 0
A123: 2700000000 | B123: 0 | C123: 0 | D123: 0 | E123: 0 | F123: 0 | G123: 0
A124: 3300000000 | B124: 0 | C124: 0 | D124: 0 | E124: 0 | F124: 0 | G124: 0
A125: 3900000000 | B125: 0 | C125: 0 | D125: 0 | E125: 0 | F125: 0 | G125: 0
A126: 4700000000 | B126: 0 | C126: 0 | D126: 0 | E126: 0 | F126: 0 | G126: 0
A127: 5600000000 | B127: 0 | C127: 0 | D127: 0 | E127: 0 | F127: 0 | G127: 0
A128: 6800000000 | B128: 0 | C128: 0 | D128: 0 | E128: 0 | F128: 0 | G128: 0
A129: 8200000000 | B129: 0 | C129: 0 | D129: 0 | E129: 0 | F129: 0 | G129: 0
A130: 10000000000 | B130: 0 | C130: 0 | D130: 0 | E130: 0 | F130: 0 | G130: 0
A131: 12000000000 | B131: 0 | C131: 0 | D131: 0 | E131: 0 | F131: 0 | G131: 0
A132: 15000000000 | B132: 0 | C132: 0 | D132: 0 | E132: 0 | F132: 0 | G132: 0
A133: 18000000000 | B133: 0 | C133: 0 | D133: 0 | E133: 0 | F133: 0 | G133: 0
A134: 22000000000 | B134: 0 | C134: 0 | D134: 0 | E134: =IF(IF((E$3*10^12-$A135)*(E$3*10^12-$A134)*-1<0,0,1)*IF(ABS(E$3*10^12-$A135)>(E$3*10^12-$A134),$A134,$A135)=E135,0,IF((E$3*10^12-$A135)*(E$3*10^12-$A134)*-1<0,0,1)*IF(ABS(E$3*10^12-$A135)>(E$3*10^12-$A134),$A134,$A135)) -> 0 | F134: 0 | G134: 0
A135: 27000000000 | B135: =IF(IF((B$3*10^12-$A136)*(B$3*10^12-$A135)*-1<0,0,1)*IF(ABS(B$3*10^12-$A136)>(B$3*10^12-$A135),$A135,$A136)=B136,0,IF((B$3*10^12-$A136)*(B$3*10^12-$A135)*-1<0,0,1)*IF(ABS(B$3*10^12-$A136)>(B$3*10^12-$A135),$A135,$A136)) -> 0 | C135: =IF(IF((C$3*10^12-$A136)*(C$3*10^12-$A135)*-1<0,0,1)*IF(ABS(C$3*10^12-$A136)>(C$3*10^12-$A135),$A135,$A136)=C136,0,IF((C$3*10^12-$A136)*(C$3*10^12-$A135)*-1<0,0,1)*IF(ABS(C$3*10^12-$A136)>(C$3*10^12-$A135),$A135,$A136)) -> 0 | D135: 0 | E135: 0 | F135: 0 | G135: 0
A136: 33000000000 | B136: 0 | C136: 0 | D136: 0 | E136: 0 | F136: 0 | G136: 0
A137: 39000000000 | B137: 0 | C137: 0 | D137: 0 | E137: 0 | F137: 0 | G137: 0
A138: 47000000000 | B138: 0 | C138: 0 | D138: 0 | E138: 0 | F138: 0 | G138: 0
A139: 56000000000 | B139: 0 | C139: 0 | D139: 0 | E139: 0 | F139: 0 | G139: 0
A140: 68000000000 | B140: 0 | C140: 0 | D140: 0 | E140: 0 | F140: 0 | G140: 0
A141: 82000000000 | B141: 0 | C141: 0 | D141: 0 | E141: 0 | F141: 0 | G141: 0
A142: 100000000000 | B142: 0 | C142: 0 | D142: 0 | E142: 0 | F142: 0 | G142: 0
A143: 120000000000 | B143: 0 | C143: 0 | D143: 0 | E143: 0 | F143: 0 | G143: 0
A144: 150000000000 | B144: 0 | C144: 0 | D144: 0 | E144: 0 | F144: 0 | G144: 0
A145: 180000000000 | B145: 0 | C145: 0 | D145: 0 | E145: 0 | F145: 0 | G145: 0
A146: 220000000000 | B146: 0 | C146: 0 | D146: 0 | E146: 0 | F146: 0 | G146: 0
A147: 270000000000 | B147: 0 | C147: 0 | D147: 0 | E147: 0 | F147: 0 | G147: 0
A148: 330000000000 | B148: 0 | C148: 0 | D148: 0 | E148: 0 | F148: 0 | G148: 0
A149: 390000000000 | B149: 0 | C149: 0 | D149: 0 | E149: 0 | F149: 0 | G149: 0
A150: 470000000000 | B150: 0 | C150: 0 | D150: 0 | E150: 0 | F150: 0 | G150: 0
A151: 560000000000 | B151: 0 | C151: 0 | D151: 0 | E151: 0 | F151: 0 | G151: 0
A152: 680000000000 | B152: 0 | C152: 0 | D152: 0 | E152: 0 | F152: 0 | G152: 0
A153: 820000000000 | B153: 0 | C153: 0 | D153: 0 | E153: 0 | F153: 0 | G153: 0
A154: 1000000000000 | B154: 0 | C154: 0 | D154: 0 | E154: 0 | F154: 0 | G154: 0
A155: 1200000000000 | B155: 0 | C155: 0 | D155: 0 | E155: 0 | F155: 0 | G155: 0
A156: 1500000000000 | B156: 0 | C156: 0 | D156: 0 | E156: 0 | F156: 0 | G156: 0
A157: 1800000000000 | B157: 0 | C157: 0 | D157: 0 | E157: 0 | F157: 0 | G157: 0
A158: 2200000000000 | B158: 0 | C158: 0 | D158: 0 | E158: 0 | F158: 0 | G158: 0
A159: 2700000000000 | B159: 2700000000000 | C159: 2700000000000 | D159: 2700000000000 | E159: 2700000000000 | F159: 2700000000000 | G159: 2700000000000

Sheet Snubber (hidden)
C1: UNITS | D1: STD UNITS
A2: Frequency of Ringing | B2: 85 | C2: MHz | D2: =B2*1000000 -> 85000000 | E2: Hz
A3: SW capacitance | B3: 3000 | C3: pF | D3: =B3*0.000000000001 -> 3e-09 | E3: F
A4: Lpar | B4: =1000000000*1/((D2*2*3.14159)^2*D3) -> 1.168643077 | C4: nH | D4: =B4/1000000000 -> 1.168643077e-09 | E4: H
A5: Csnub | B5: =4*B3 -> 12000 | C5: pF | D5: =B5*0.000000000001 -> 1.2e-08 | E5: F
A6: Rsnub | B6: =SQRT(D4/D3) -> 0.6241375589 | C6: Ω | D6: =B6 -> 0.6241375589 | E6: Ω

Sheet Parallel Output Caps (hidden)
A4: Fsw | B4: =Fsw -> 400000
A6: C1 | B6: 20 | C6: uF | D6: =B6/1000000 -> 2e-05 | E6: F
A7: R1 | B7: 0.5 | C7: mOhms | D7: =B7/1000 -> 0.0005 | E7: Ohms
A9: C2 | B9: 68 | C9: uF | D9: =B9/1000000 -> 6.8e-05 | E9: F
A10: R2 | B10: 20 | C10: mOhms | D10: =B10/1000 -> 0.02 | E10: Ohms
A13: I1 | B13: =(D6/(D6+D9))*SQRT((D10*D9*B4)^2+1)/SQRT((((D7+D10)*D6*D9/(D9+D6))*B4)^2+1) -> 0.256672574 | C13: %
A14: I2 | B14: =1-B13 -> 0.743327426 | C14: %
A16: I1 | B16: =B13*(Iripple1/(2*SQRT(3))) ->  | C16: A
A17: I2 | B17: =B14*(Iripple1/(2*SQRT(3))) ->  | C17: A
